Workbook

Sheet 1-MetaPro_2022
A1: Código Dpto | B1: Departamento | C1: Municipio | D1: Divipola | E1: Poblaciòn Menor de 1 año (Meta Programática 2022) | F1: Poblaciòn de 1 año (Meta Programática 2022) | G1: Pob. 5 años (Meta Programática 2022) | H1: Q | I1: DEPARTAMENTO | J1: CODEP | K1: Poblaciòn Menor de 1 año (Meta Programática 2022) | L1: Poblaciòn de 1 año (Meta Programática 2022) | M1: Pob. 5 años (Meta Programática 2022) | N1: R | O1: Poblacion de 9 años DANE | R1: Total fase 1 | S1: Total fase 2 | T1: Gran total Pob Covid-19
A2: 05 | B2: ANTIOQUIA | C2: Medellin | D2: 05001 | E2: 25,902 | F2: 26,817 | G2: 28,016 | H2: 0 | I2: ANTIOQUIA | J2: 05 | K2: =SUMIF($A$2:$A$1122,J2,$E$2:$E$1122) -> 72,099 | L2: =SUMIF($A$2:$A$1122,J2,$F$2:$F$1122) -> 74,701 | M2: =SUMIF($A$2:$A$1122,J2,$G$2:$G$1122) -> 79,329 | N2: 0 | O2: 14957 | Q2: 05001 | R2: 852,035 | S2: 1,179,004 | T2: =R2+S2 -> 2,031,039 | V2: Rangos de edad | X2: 05001 | Y2: 14957
A3: 05 | B3: ANTIOQUIA | C3: Abejorral | D3: 05002 | E3: 161 | F3: 167 | G3: 242 | I3: ATLANTICO | J3: 08 | K3: =SUMIF($A$3:$A$1122,J3,$E$3:$E$1122) -> 21,197 | L3: =SUMIF($A$3:$A$1122,J3,$F$3:$F$1122) -> 21,565 | M3: =SUMIF($A$3:$A$1122,J3,$G$3:$G$1122) -> 22,982 | O3: 144 | Q3: 05002 | R3: 4,537 | S3: 8,657 | T3: =R3+S3 -> 13,194 | V3: 16 17 | X3: 05002 | Y3: 144
A4: 05 | B4: ANTIOQUIA | C4: Abriaqui | D4: 05004 | E4: 22 | F4: 22 | G4: 27 | I4: BARRANQUILLA | J4: 08001 | K4: =SUMIF($D$3:$D$1122,J4,$E$3:$E$1122) -> 19,802 | L4: =SUMIF($D$3:$D$1122,J4,$F$3:$F$1122) -> 20,849 | M4: =SUMIF($D$3:$D$1122,J4,$G$3:$G$1122) -> 22,374 | O4: 20 | Q4: 05004 | R4: 453 | S4: 1,171 | T4: 1,624 | V4: 18 - 22 | X4: 05004 | Y4: 20
A5: 05 | B5: ANTIOQUIA | C5: Alejandria | D5: 05021 | E5: 45 | F5: 46 | G5: 58 | I5: BOGOTA | J5: 11 | K5: =SUMIF($A$3:$A$1122,J5,$E$3:$E$1122) -> 90,967 | L5: =SUMIF($A$3:$A$1122,J5,$F$3:$F$1122) -> 93,996 | M5: =SUMIF($A$3:$A$1122,J5,$G$3:$G$1122) -> 96,930 | O5: 36 | Q5: 05021 | R5: 886 | S5: 1,959 | T5: 2,846 | V5: 23 - 27 | X5: 05021 | Y5: 36
A6: 05 | B6: ANTIOQUIA | C6: Amaga | D6: 05030 | E6: 269 | F6: 276 | G6: 299 | I6: BOLIVAR | J6: 13 | K6: =SUMIF($A$3:$A$1122,J6,$E$3:$E$1122) -> 18,473 | L6: =SUMIF($A$3:$A$1122,J6,$F$3:$F$1122) -> 19,368 | M6: =SUMIF($A$3:$A$1122,J6,$G$3:$G$1122) -> 20,614 | O6: 210 | Q6: 05030 | R6: 6,171 | S6: 14,239 | T6: 20,410 | V6: 28 - 32 | X6: 05030 | Y6: 210
A7: 05 | B7: ANTIOQUIA | C7: Amalfi | D7: 05031 | E7: 279 | F7: 296 | G7: 347 | I7: CARTAGENA | J7: 13001 | K7: =SUMIF($D$3:$D$1122,J7,$E$3:$E$1122) -> 16,175 | L7: =SUMIF($D$3:$D$1122,J7,$F$3:$F$1122) -> 17,942 | M7: =SUMIF($D$3:$D$1122,J7,$G$3:$G$1122) -> 18,393 | O7: 241 | Q7: 05031 | R7: 4,147 | S7: 11,750 | T7: 15,897 | V7: 33 - 37 | X7: 05031 | Y7: 241
A8: 05 | B8: ANTIOQUIA | C8: Andes | D8: 05034 | E8: 444 | F8: 457 | G8: 463 | I8: BOYACA | J8: 15 | K8: =SUMIF($A$3:$A$1122,J8,$E$3:$E$1122) -> 13,730 | L8: =SUMIF($A$3:$A$1122,J8,$F$3:$F$1122) -> 14,484 | M8: =SUMIF($A$3:$A$1122,J8,$G$3:$G$1122) -> 16,894 | O8: 309 | Q8: 05034 | R8: 9,366 | S8: 19,530 | T8: 28,896 | V8: 38 - 42 | X8: 05034 | Y8: 309
A9: 05 | B9: ANTIOQUIA | C9: Angelopolis | D9: 05036 | E9: 58 | F9: 63 | G9: 69 | I9: CALDAS | J9: 17 | K9: 8,721 | L9: 9,217 | M9: 10,478 | O9: 42 | Q9: 05036 | R9: 1,067 | S9: 2,548 | T9: 3,615 | V9: 43 - 47 | X9: 05036 | Y9: 42
A10: 05 | B10: ANTIOQUIA | C10: Angostura | D10: 05038 | E10: 120 | F10: 126 | G10: 128 | I10: CAQUETA | J10: 18 | K10: 6,564 | L10: 6,969 | M10: 7,426 | O10: 99 | Q10: 05038 | R10: 2,198 | S10: 4,921 | T10: 7,119 | V10: 48 - 52 | X10: 05038 | Y10: 99
A11: 05 | B11: ANTIOQUIA | C11: Anori | D11: 05040 | E11: 228 | F11: 249 | G11: 256 | I11: CAUCA | J11: 19 | K11: 19,592 | L11: 20,262 | M11: 21,724 | O11: 186 | Q11: 05040 | R11: 2,671 | S11: 8,142 | T11: 10,813 | V11: 53 - 57 | X11: 05040 | Y11: 186
A12: 05 | B12: ANTIOQUIA | C12: Santafe de Antioquia | D12: 05042 | E12: 322 | F12: 322 | G12: 345 | I12: CESAR | J12: 20 | K12: 22,660 | L12: 23,305 | M12: 24,304 | O12: 205 | Q12: 05042 | R12: 6,000 | S12: 11,957 | T12: 17,957 | V12: 58 - 59 | X12: 05042 | Y12: 205
A13: 05 | B13: ANTIOQUIA | C13: Anza | D13: 05044 | E13: 98 | F13: 98 | G13: 98 | I13: CORDOBA | J13: 23 | K13: 27,076 | L13: 27,651 | M13: 29,670 | O13: 62 | Q13: 05044 | R13: 1,358 | S13: 3,057 | T13: 4,415 | X13: 05044 | Y13: 62
A14: 05 | B14: ANTIOQUIA | C14: Apartado | D14: 05045 | E14: 2,103 | F14: 2,167 | G14: 2,211 | I14: CUNDINAMARCA | J14: 25 | K14: 33,569 | L14: 35,320 | M14: 38,650 | O14: 1170 | Q14: 05045 | R14: 27,992 | S14: 57,526 | T14: 85,518 | X14: 05045 | Y14: 1170
A15: 05 | B15: ANTIOQUIA | C15: Arboletes | D15: 05051 | E15: 485 | F15: 487 | G15: 570 | I15: CHOCO | J15: 27 | K15: 9,300 | L15: 10,101 | M15: 10,621 | O15: 311 | Q15: 05051 | R15: 5,868 | S15: 12,324 | T15: 18,192 | X15: 05051 | Y15: 311
A16: 05 | B16: ANTIOQUIA | C16: Argelia | D16: 05055 | E16: 104 | F16: 107 | G16: 110 | I16: HUILA | J16: 41 | K16: 17,459 | L16: 18,058 | M16: 19,914 | O16: 64 | Q16: 05055 | R16: 1,479 | S16: 3,096 | T16: 4,575 | X16: 05055 | Y16: 64
A17: 05 | B17: ANTIOQUIA | C17: Armenia | D17: 05059 | E17: 30 | F17: 33 | G17: 37 | I17: LA GUAJIRA | J17: 44 | K17: 21,111 | L17: 22,144 | M17: 23,063 | O17: 35 | Q17: 05059 | R17: 1,349 | S17: 2,092 | T17: 3,442 | X17: 05059 | Y17: 35
A18: 05 | B18: ANTIOQUIA | C18: Barbosa | D18: 05079 | E18: 429 | F18: 443 | G18: 465 | I18: MAGDALENA | J18: 47 | K18: 16,034 | L18: 16,613 | M18: 17,418 | O18: 352 | Q18: 05079 | R18: 11,340 | S18: 24,777 | T18: 36,117 | X18: 05079 | Y18: 352
A19: 05 | B19: ANTIOQUIA | C19: Belmira | D19: 05086 | E19: 54 | F19: 56 | G19: 67 | I19: SANTA MARTA | J19: 47001 | K19: =SUMIF($D$3:$D$1122,J19,$E$3:$E$1122) -> 8,239 | L19: =SUMIF($D$3:$D$1122,J19,$F$3:$F$1122) -> 8,392 | M19: =SUMIF($D$3:$D$1122,J19,$G$3:$G$1122) -> 8,689 | O19: 57 | Q19: 05086 | R19: 839 | S19: 2,658 | T19: 3,497 | X19: 05086 | Y19: 57
A20: 05 | B20: ANTIOQUIA | C20: Bello | D20: 05088 | E20: 4,661 | F20: 4,770 | G20: 5,037 | I20: META | J20: 50 | K20: =SUMIF($A$3:$A$1122,J20,$E$3:$E$1122) -> 14,484 | L20: =SUMIF($A$3:$A$1122,J20,$F$3:$F$1122) -> 15,149 | M20: =SUMIF($A$3:$A$1122,J20,$G$3:$G$1122) -> 16,175 | O20: 3486 | Q20: 05088 | R20: 122,485 | S20: 261,228 | T20: 383,713 | X20: 05088 | Y20: 3486
A21: 05 | B21: ANTIOQUIA | C21: Betania | D21: 05091 | E21: 92 | F21: 95 | G21: 107 | I21: NARIÑO | J21: 52 | K21: 18,378 | L21: 19,033 | M21: 20,963 | O21: 90 | Q21: 05091 | R21: 1,789 | S21: 4,380 | T21: 6,169 | X21: 05091 | Y21: 90
A22: 05 | B22: ANTIOQUIA | C22: Betulia | D22: 05093 | E22: 208 | F22: 219 | G22: 240 | I22: NORTE DE SANTANDER | J22: 54 | K22: 23,159 | L22: 24,048 | M22: 24,180 | O22: 143 | Q22: 05093 | R22: 3,170 | S22: 6,812 | T22: 9,983 | X22: 05093 | Y22: 143
A23: 05 | B23: ANTIOQUIA | C23: Ciudad Bolivar | D23: 05101 | E23: 286 | F23: 288 | G23: 334 | I23: QUINDIO | J23: 63 | K23: 5,298 | L23: 5,665 | M23: 6,156 | O23: 196 | Q23: 05101 | R23: 6,918 | S23: 11,321 | T23: 18,239 | X23: 05101 | Y23: 196
A24: 05 | B24: ANTIOQUIA | C24: Briceño | D24: 05107 | E24: 94 | F24: 104 | G24: 115 | I24: RISARALDA | J24: 66 | K24: 9,914 | L24: 10,411 | M24: 11,696 | O24: 78 | Q24: 05107 | R24: 1,169 | S24: 3,399 | T24: 4,568 | X24: 05107 | Y24: 78
A25: 05 | B25: ANTIOQUIA | C25: Buritica | D25: 05113 | E25: 104 | F25: 109 | G25: 116 | I25: SANTANDER | J25: 68 | K25: 28,187 | L25: 28,679 | M25: 31,095 | O25: 94 | Q25: 05113 | R25: 1,459 | S25: 4,043 | T25: 5,502 | X25: 05113 | Y25: 94
A26: 05 | B26: ANTIOQUIA | C26: Caceres | D26: 05120 | E26: 432 | F26: 447 | G26: 471 | I26: SUCRE | J26: 70 | K26: 13,943 | L26: 14,842 | M26: 15,586 | O26: 336 | Q26: 05120 | R26: 3,992 | S26: 12,035 | T26: 16,027 | X26: 05120 | Y26: 336
A27: 05 | B27: ANTIOQUIA | C27: Caicedo | D27: 05125 | E27: 113 | F27: 113 | G27: 134 | I27: TOLIMA | J27: 73 | K27: 15,759 | L27: 16,478 | M27: 18,368 | O27: 79 | Q27: 05125 | R27: 1,492 | S27: 3,638 | T27: 5,130 | X27: 05125 | Y27: 79
A28: 05 | B28: ANTIOQUIA | C28: Caldas | D28: 05129 | E28: 776 | F28: 816 | G28: 849 | I28: VALLE DEL CAUCA | J28: 76 | K28: 49,048 | L28: 51,056 | M28: 54,407 | O28: 466 | Q28: 05129 | R28: 26,740 | S28: 39,205 | T28: 65,945 | X28: 05129 | Y28: 466
A29: 05 | B29: ANTIOQUIA | C29: Campamento | D29: 05134 | E29: 87 | F29: 88 | G29: 109 | I29: BUENAVENTURA | J29: 76109 | K29: =SUMIF($D$3:$D$1122,J29,$E$3:$E$1122) -> 4,570 | L29: =SUMIF($D$3:$D$1122,J29,$F$3:$F$1122) -> 4,637 | M29: =SUMIF($D$3:$D$1122,J29,$G$3:$G$1122) -> 5,304 | O29: 88 | Q29: 05134 | R29: 1,397 | S29: 3,824 | T29: 5,221 | X29: 05134 | Y29: 88
A30: 05 | B30: ANTIOQUIA | C30: Cañasgordas | D30: 05138 | E30: 169 | F30: 174 | G30: 187 | I30: ARAUCA | J30: 81 | K30: =SUMIF($A$3:$A$1122,J30,$E$3:$E$1122) -> 5,184 | L30: =SUMIF($A$3:$A$1122,J30,$F$3:$F$1122) -> 5,350 | M30: =SUMIF($A$3:$A$1122,J30,$G$3:$G$1122) -> 5,180 | O30: 135 | Q30: 05138 | R30: 3,430 | S30: 6,465 | T30: 9,895 | X30: 05138 | Y30: 135
A31: 05 | B31: ANTIOQUIA | C31: Caracoli | D31: 05142 | E31: 53 | F31: 54 | G31: 55 | I31: CASANARE | J31: 85 | K31: 6,518 | L31: 6,820 | M31: 7,061 | O31: 31 | Q31: 05142 | R31: 1,151 | S31: 1,892 | T31: 3,043 | X31: 05142 | Y31: 31
A32: 05 | B32: ANTIOQUIA | C32: Caramanta | D32: 05145 | E32: 42 | F32: 43 | G32: 45 | I32: PUTUMAYO | J32: 86 | K32: 4,725 | L32: 4,933 | M32: 5,239 | O32: 31 | Q32: 05145 | R32: 1,227 | S32: 1,998 | T32: 3,225 | X32: 05145 | Y32: 31
A33: 05 | B33: ANTIOQUIA | C33: Carepa | D33: 05147 | E33: 953 | F33: 963 | G33: 957 | I33: SAN ANDRES ISLAS | J33: 88 | K33: 727 | L33: 764 | M33: 883 | O33: 514 | Q33: 05147 | R33: 9,392 | S33: 22,491 | T33: 31,883 | X33: 05147 | Y33: 514
A34: 05 | B34: ANTIOQUIA | C34: El Carmen de Viboral | D34: 05148 | E34: 619 | F34: 625 | G34: 651 | I34: AMAZONAS | J34: 91 | K34: 1,477 | L34: 1,573 | M34: 1,847 | O34: 473 | Q34: 05148 | R34: 10,882 | S34: 28,287 | T34: 39,169 | X34: 05148 | Y34: 473
A35: 05 | B35: ANTIOQUIA | C35: Carolina | D35: 05150 | E35: 23 | F35: 29 | G35: 33 | I35: GUAINIA | J35: 94 | K35: 922 | L35: 998 | M35: 1,024 | O35: 22 | Q35: 05150 | R35: 997 | S35: 1,774 | T35: 2,771 | X35: 05150 | Y35: 22
A36: 05 | B36: ANTIOQUIA | C36: Caucasia | D36: 05154 | E36: 1,552 | F36: 1,633 | G36: 1,671 | I36: GUAVIARE | J36: 95 | K36: 1,347 | L36: 1,401 | M36: 1,470 | O36: 933 | Q36: 05154 | R36: 19,196 | S36: 40,808 | T36: 60,004 | X36: 05154 | Y36: 933
A37: 05 | B37: ANTIOQUIA | C37: Chigorodo | D37: 05172 | E37: 1,150 | F37: 1,197 | G37: 1,236 | I37: VAUPES | J37: 97 | K37: 700 | L37: 723 | M37: 779 | O37: 602 | Q37: 05172 | R37: 11,833 | S37: 25,868 | T37: 37,701 | X37: 05172 | Y37: 602
A38: 05 | B38: ANTIOQUIA | C38: Cisneros | D38: 05190 | E38: 126 | F38: 141 | G38: 138 | I38: VICHADA | J38: 99 | K38: 1,663 | L38: 1,715 | M38: 1,850 | O38: 71 | Q38: 05190 | R38: 2,762 | S38: 4,285 | T38: 7,047 | X38: 05190 | Y38: 71
A39: 05 | B39: ANTIOQUIA | C39: Cocorna | D39: 05197 | E39: 179 | F39: 184 | G39: 213 | O39: 124 | Q39: 05197 | R39: 3,406 | S39: 6,102 | T39: 9,507 | X39: 05197 | Y39: 124
A40: 05 | B40: ANTIOQUIA | C40: Concepcion | D40: 05206 | E40: 38 | F40: 38 | G40: 50 | I40: TOTAL NACIONAL | K40: =SUM(K2:K38) -> 648,771 | L40: =SUM(L2:L38) -> 675,212 | M40: =SUM(M2:M38) -> 718,736 | O40: 30 | Q40: 05206 | R40: 1,075 | S40: 1,999 | T40: 3,074 | X40: 05206 | Y40: 30
A41: 05 | B41: ANTIOQUIA | C41: Concordia | D41: 05209 | E41: 191 | F41: 198 | G41: 208 | O41: 170 | Q41: 05209 | R41: 4,273 | S41: 9,348 | T41: 13,621 | X41: 05209 | Y41: 170
A42: 05 | B42: ANTIOQUIA | C42: Copacabana | D42: 05212 | E42: 536 | F42: 551 | G42: 660 | O42: 458 | Q42: 05212 | R42: 20,820 | S42: 38,560 | T42: 59,380 | X42: 05212 | Y42: 458
A43: 05 | B43: ANTIOQUIA | C43: Dabeiba | D43: 05234 | E43: 339 | F43: 390 | G43: 431 | O43: 264 | Q43: 05234 | R43: 3,755 | S43: 9,133 | T43: 12,888 | X43: 05234 | Y43: 264
A44: 05 | B44: ANTIOQUIA | C44: Don Matias | D44: 05237 | E44: 203 | F44: 230 | G44: 240 | O44: 156 | Q44: 05237 | R44: 4,706 | S44: 8,783 | T44: 13,489 | X44: 05237 | Y44: 156
A45: 05 | B45: ANTIOQUIA | C45: Ebejico | D45: 05240 | E45: 94 | F45: 99 | G45: 111 | O45: 82 | Q45: 05240 | R45: 3,017 | S45: 5,066 | T45: 8,083 | X45: 05240 | Y45: 82
A46: 05 | B46: ANTIOQUIA | C46: El Bagre | D46: 05250 | E46: 905 | F46: 944 | G46: 1,088 | O46: 609 | Q46: 05250 | R46: 8,836 | S46: 22,021 | T46: 30,856 | X46: 05250 | Y46: 609
A47: 05 | B47: ANTIOQUIA | C47: Entrerrios | D47: 05264 | E47: 132 | F47: 145 | G47: 147 | O47: 102 | Q47: 05264 | R47: 1,830 | S47: 5,266 | T47: 7,097 | X47: 05264 | Y47: 102
A48: 05 | B48: ANTIOQUIA | C48: Envigado | D48: 05266 | E48: 1,354 | F48: 1,399 | G48: 1,578 | O48: 1070 | Q48: 05266 | R48: 78,507 | S48: 113,186 | T48: 191,693 | X48: 05266 | Y48: 1070
A49: 05 | B49: ANTIOQUIA | C49: Fredonia | D49: 05282 | E49: 171 | F49: 172 | G49: 192 | O49: 165 | Q49: 05282 | R49: 5,036 | S49: 10,716 | T49: 15,752 | X49: 05282 | Y49: 165
A50: 05 | B50: ANTIOQUIA | C50: Frontino | D50: 05284 | E50: 324 | F50: 378 | G50: 417 | O50: 205 | Q50: 05284 | R50: 4,371 | S50: 8,286 | T50: 12,657 | X50: 05284 | Y50: 205
A51: 05 | B51: ANTIOQUIA | C51: Giraldo | D51: 05306 | E51: 84 | F51: 83 | G51: 104 | O51: 53 | Q51: 05306 | R51: 946 | S51: 2,400 | T51: 3,346 | X51: 05306 | Y51: 53
A52: 05 | B52: ANTIOQUIA | C52: Girardota | D52: 05308 | E52: 491 | F52: 520 | G52: 542 | O52: 333 | Q52: 05308 | R52: 14,245 | S52: 25,297 | T52: 39,542 | X52: 05308 | Y52: 333
A53: 05 | B53: ANTIOQUIA | C53: Gomez Plata | D53: 05310 | E53: 76 | F53: 79 | G53: 85 | O53: 71 | Q53: 05310 | R53: 2,081 | S53: 4,236 | T53: 6,317 | X53: 05310 | Y53: 71
A54: 05 | B54: ANTIOQUIA | C54: Granada | D54: 05313 | E54: 151 | F54: 147 | G54: 153 | O54: 83 | Q54: 05313 | R54: 2,197 | S54: 3,937 | T54: 6,134 | X54: 05313 | Y54: 83
A55: 05 | B55: ANTIOQUIA | C55: Guadalupe | D55: 05315 | E55: 74 | F55: 74 | G55: 75 | O55: 54 | Q55: 05315 | R55: 1,224 | S55: 2,902 | T55: 4,127 | X55: 05315 | Y55: 54
A56: 05 | B56: ANTIOQUIA | C56: Guarne | D56: 05318 | E56: 425 | F56: 451 | G56: 464 | O56: 350 | Q56: 05318 | R56: 11,195 | S56: 26,300 | T56: 37,495 | X56: 05318 | Y56: 350
A57: 05 | B57: ANTIOQUIA | C57: Guatape | D57: 05321 | E57: 89 | F57: 93 | G57: 106 | O57: 59 | Q57: 05321 | R57: 1,383 | S57: 3,861 | T57: 5,243 | X57: 05321 | Y57: 59
A58: 05 | B58: ANTIOQUIA | C58: Heliconia | D58: 05347 | E58: 48 | F58: 49 | G58: 55 | O58: 33 | Q58: 05347 | R58: 1,274 | S58: 2,338 | T58: 3,612 | X58: 05347 | Y58: 33
A59: 05 | B59: ANTIOQUIA | C59: Hispania | D59: 05353 | E59: 51 | F59: 51 | G59: 62 | O59: 42 | Q59: 05353 | R59: 1,153 | S59: 2,385 | T59: 3,538 | X59: 05353 | Y59: 42
A60: 05 | B60: ANTIOQUIA | C60: Itagui | D60: 05360 | E60: 2,684 | F60: 2,759 | G60: 2,992 | O60: 1572 | Q60: 05360 | R60: 90,187 | S60: 137,249 | T60: 227,436 | X60: 05360 | Y60: 1572
A61: 05 | B61: ANTIOQUIA | C61: Ituango | D61: 05361 | E61: 259 | F61: 265 | G61: 329 | O61: 214 | Q61: 05361 | R61: 4,105 | S61: 12,873 | T61: 16,978 | X61: 05361 | Y61: 214
A62: 05 | B62: ANTIOQUIA | C62: Jardin | D62: 05364 | E62: 142 | F62: 147 | G62: 173 | O62: 101 | Q62: 05364 | R62: 3,672 | S62: 6,365 | T62: 10,038 | X62: 05364 | Y62: 101
A63: 05 | B63: ANTIOQUIA | C63: Jerico | D63: 05368 | E63: 98 | F63: 98 | G63: 128 | O63: 87 | Q63: 05368 | R63: 3,335 | S63: 5,875 | T63: 9,210 | X63: 05368 | Y63: 87
A64: 05 | B64: ANTIOQUIA | C64: La Ceja | D64: 05376 | E64: 673 | F64: 679 | G64: 787 | O64: 439 | Q64: 05376 | R64: 20,119 | S64: 31,403 | T64: 51,522 | X64: 05376 | Y64: 439
A65: 05 | B65: ANTIOQUIA | C65: La Estrella | D65: 05380 | E65: 514 | F65: 563 | G65: 535 | O65: 420 | Q65: 05380 | R65: 14,845 | S65: 35,816 | T65: 50,660 | X65: 05380 | Y65: 420
A66: 05 | B66: ANTIOQUIA | C66: La Pintada | D66: 05390 | E66: 116 | F66: 115 | G66: 124 | O66: 61 | Q66: 05390 | R66: 1,507 | S66: 3,910 | T66: 5,417 | X66: 05390 | Y66: 61
A67: 05 | B67: ANTIOQUIA | C67: La Union | D67: 05400 | E67: 268 | F67: 270 | G67: 298 | O67: 165 | Q67: 05400 | R67: 4,480 | S67: 10,073 | T67: =R67+S67 -> 14,554 | X67: 05400 | Y67: 165
A68: 05 | B68: ANTIOQUIA | C68: Liborina | D68: 05411 | E68: 96 | F68: 96 | G68: 122 | O68: 78 | Q68: 05411 | R68: 2,241 | S68: 4,216 | T68: 6,457 | X68: 05411 | Y68: 78
A69: 05 | B69: ANTIOQUIA | C69: Maceo | D69: 05425 | E69: 101 | F69: 108 | G69: 116 | O69: 73 | Q69: 05425 | R69: 1,917 | S69: 3,409 | T69: 5,326 | X69: 05425 | Y69: 73
A70: 05 | B70: ANTIOQUIA | C70: Marinilla | D70: 05440 | E70: 764 | F70: 781 | G70: 774 | O70: 486 | Q70: 05440 | R70: 14,104 | S70: 30,774 | T70: 44,877 | X70: 05440 | Y70: 486
A71: 05 | B71: ANTIOQUIA | C71: Montebello | D71: 05467 | E71: 56 | F71: 63 | G71: 66 | O71: 48 | Q71: 05467 | R71: 1,599 | S71: 2,764 | T71: 4,363 | X71: 05467 | Y71: 48
A72: 05 | B72: ANTIOQUIA | C72: Murindo | D72: 05475 | E72: 123 | F72: 125 | G72: 146 | O72: 72 | Q72: 05475 | R72: 509 | S72: 1,866 | T72: 2,375 | X72: 05475 | Y72: 72
A73: 05 | B73: ANTIOQUIA | C73: Mutata | D73: 05480 | E73: 506 | F73: 509 | G73: 536 | O73: 164 | Q73: 05480 | R73: 2,557 | S73: 5,767 | T73: 8,324 | X73: 05480 | Y73: 164
A74: 05 | B74: ANTIOQUIA | C74: Nariño | D74: 05483 | E74: 125 | F74: 126 | G74: 142 | O74: 84 | Q74: 05483 | R74: 2,325 | S74: 4,039 | T74: 6,364 | X74: 05483 | Y74: 84
A75: 05 | B75: ANTIOQUIA | C75: Necocli | D75: 05490 | E75: 914 | F75: 987 | G75: 1,098 | O75: 504 | Q75: 05490 | R75: 7,817 | S75: 17,647 | T75: 25,463 | X75: 05490 | Y75: 504
A76: 05 | B76: ANTIOQUIA | C76: Nechi | D76: 05495 | E76: 447 | F76: 460 | G76: 511 | O76: 315 | Q76: 05495 | R76: 3,843 | S76: 10,902 | T76: 14,744 | X76: 05495 | Y76: 315
A77: 05 | B77: ANTIOQUIA | C77: Olaya | D77: 05501 | E77: 26 | F77: 27 | G77: 33 | O77: 26 | Q77: 05501 | R77: 579 | S77: 1,306 | T77: 1,886 | X77: 05501 | Y77: 26
A78: 05 | B78: ANTIOQUIA | C78: Peñol | D78: 05541 | E78: 245 | F78: 246 | G78: 258 | O78: 160 | Q78: 05541 | R78: 4,065 | S78: 9,433 | T78: 13,498 | X78: 05541 | Y78: 160
A79: 05 | B79: ANTIOQUIA | C79: Peque | D79: 05543 | E79: 105 | F79: 105 | G79: 123 | O79: 75 | Q79: 05543 | R79: 1,423 | S79: 3,384 | T79: 4,807 | X79: 05543 | Y79: 75
A80: 05 | B80: ANTIOQUIA | C80: Pueblorrico | D80: 05576 | E80: 90 | F80: 93 | G80: 105 | O80: 70 | Q80: 05576 | R80: 1,914 | S80: 3,651 | T80: 5,564 | X80: 05576 | Y80: 70
A81: 05 | B81: ANTIOQUIA | C81: Puerto Berrio | D81: 05579 | E81: 547 | F81: 551 | G81: 593 | O81: 318 | Q81: 05579 | R81: 9,295 | S81: 18,220 | T81: 27,515 | X81: 05579 | Y81: 318
A82: 05 | B82: ANTIOQUIA | C82: Puerto Nare | D82: 05585 | E82: 134 | F82: 136 | G82: 137 | O82: 120 | Q82: 05585 | R82: 2,387 | S82: 6,196 | T82: 8,583 | X82: 05585 | Y82: 120
A83: 05 | B83: ANTIOQUIA | C83: Puerto Triunfo | D83: 05591 | E83: 218 | F83: 228 | G83: 229 | O83: 152 | Q83: 05591 | R83: 2,248 | S83: 8,661 | T83: 10,909 | X83: 05591 | Y83: 152
A84: 05 | B84: ANTIOQUIA | C84: Remedios | D84: 05604 | E84: 472 | F84: 479 | G84: 481 | O84: 290 | Q84: 05604 | R84: 3,851 | S84: 12,687 | T84: 16,537 | X84: 05604 | Y84: 290
A85: 05 | B85: ANTIOQUIA | C85: Retiro | D85: 05607 | E85: 116 | F85: 132 | G85: 143 | O85: 147 | Q85: 05607 | R85: 4,165 | S85: 11,178 | T85: 15,343 | X85: 05607 | Y85: 147
A86: 05 | B86: ANTIOQUIA | C86: Rionegro | D86: 05615 | E86: 1,672 | F86: 1,776 | G86: 1,920 | O86: 843 | Q86: 05615 | R86: 47,762 | S86: 66,586 | T86: 114,348 | X86: 05615 | Y86: 843
A87: 05 | B87: ANTIOQUIA | C87: Sabanalarga | D87: 05628 | E87: 120 | F87: 121 | G87: 136 | O87: 88 | Q87: 05628 | R87: 1,440 | S87: 3,835 | T87: 5,275 | X87: 05628 | Y87: 88
A88: 05 | B88: ANTIOQUIA | C88: Sabaneta | D88: 05631 | E88: 572 | F88: 616 | G88: 663 | O88: 414 | Q88: 05631 | R88: 23,139 | S88: 42,443 | T88: 65,582 | X88: 05631 | Y88: 414
A89: 05 | B89: ANTIOQUIA | C89: Salgar | D89: 05642 | E89: 170 | F89: 170 | G89: 189 | O89: 150 | Q89: 05642 | R89: 3,601 | S89: 7,909 | T89: 11,510 | X89: 05642 | Y89: 150
A90: 05 | B90: ANTIOQUIA | C90: San Andres de Cuerquia | D90: 05647 | E90: 90 | F90: 93 | G90: 99 | O90: 69 | Q90: 05647 | R90: 1,187 | S90: 3,027 | T90: 4,214 | X90: 05647 | Y90: 69
A91: 05 | B91: ANTIOQUIA | C91: San Carlos | D91: 05649 | E91: 168 | F91: 181 | G91: 202 | O91: 130 | Q91: 05649 | R91: 2,938 | S91: 6,627 | T91: 9,565 | X91: 05649 | Y91: 130
A92: 05 | B92: ANTIOQUIA | C92: San Francisco | D92: 05652 | E92: 80 | F92: 80 | G92: 112 | O92: 58 | Q92: 05652 | R92: 1,299 | S92: 2,309 | T92: 3,608 | X92: 05652 | Y92: 58
A93: 05 | B93: ANTIOQUIA | C93: San Jeronimo | D93: 05656 | E93: 152 | F93: 158 | G93: 168 | O93: 122 | Q93: 05656 | R93: 2,991 | S93: 7,115 | T93: 10,106 | X93: 05656 | Y93: 122
A94: 05 | B94: ANTIOQUIA | C94: San Jose de La Montaña | D94: 05658 | E94: 49 | F94: 50 | G94: 52 | O94: 42 | Q94: 05658 | R94: 614 | S94: 1,644 | T94: 2,258 | X94: 05658 | Y94: 42
A95: 05 | B95: ANTIOQUIA | C95: San Juan de Uraba | D95: 05659 | E95: 409 | F95: 416 | G95: 444 | O95: 243 | Q95: 05659 | R95: 3,229 | S95: 8,306 | T95: 11,535 | X95: 05659 | Y95: 243
A96: 05 | B96: ANTIOQUIA | C96: San Luis | D96: 05660 | E96: 210 | F96: 223 | G96: 239 | O96: 124 | Q96: 05660 | R96: 2,630 | S96: 5,434 | T96: 8,064 | X96: 05660 | Y96: 124
A97: 05 | B97: ANTIOQUIA | C97: San Pedro | D97: 05664 | E97: 307 | F97: 332 | G97: 361 | O97: 178 | Q97: 05664 | R97: 4,746 | S97: 10,382 | T97: 15,128 | X97: 05664 | Y97: 178
A98: 05 | B98: ANTIOQUIA | C98: San Pedro de Uraba | D98: 05665 | E98: 555 | F98: 554 | G98: 554 | O98: 329 | Q98: 05665 | R98: 5,651 | S98: 13,308 | T98: 18,960 | X98: 05665 | Y98: 329
A99: 05 | B99: ANTIOQUIA | C99: San Rafael | D99: 05667 | E99: 168 | F99: 171 | G99: 193 | O99: 112 | Q99: 05667 | R99: 3,240 | S99: 6,670 | T99: 9,910 | X99: 05667 | Y99: 112
A100: 05 | B100: ANTIOQUIA | C100: San Roque | D100: 05670 | E100: 214 | F100: 226 | G100: 237 | O100: 180 | Q100: 05670 | R100: 4,210 | S100: 9,182 | T100: 13,392 | X100: 05670 | Y100: 180
A101: 05 | B101: ANTIOQUIA | C101: San Vicente | D101: 05674 | E101: 174 | F101: 176 | G101: 192 | O101: 160 | Q101: 05674 | R101: 3,449 | S101: 9,844 | T101: 13,293 | X101: 05674 | Y101: 160
A102: 05 | B102: ANTIOQUIA | C102: Santa Barbara | D102: 05679 | E102: 186 | F102: 189 | G102: 200 | O102: 173 | Q102: 05679 | R102: 5,970 | S102: 11,620 | T102: 17,589 | X102: 05679 | Y102: 173
A103: 05 | B103: ANTIOQUIA | C103: Santa Rosa de Osos | D103: 05686 | E103: 454 | F103: 479 | G103: 518 | O103: 318 | Q103: 05686 | R103: 7,278 | S103: 16,924 | T103: 24,203 | X103: 05686 | Y103: 318
A104: 05 | B104: ANTIOQUIA | C104: Santo Domingo | D104: 05690 | E104: 64 | F104: 75 | G104: 100 | O104: 90 | Q104: 05690 | R104: 2,181 | S104: 5,267 | T104: 7,448 | X104: 05690 | Y104: 90
A105: 05 | B105: ANTIOQUIA | C105: El Santuario | D105: 05697 | E105: 510 | F105: 520 | G105: 518 | O105: 315 | Q105: 05697 | R105: 5,678 | S105: 15,481 | T105: 21,159 | X105: 05697 | Y105: 315
A106: 05 | B106: ANTIOQUIA | C106: Segovia | D106: 05736 | E106: 619 | F106: 635 | G106: 668 | O106: 358 | Q106: 05736 | R106: 5,876 | S106: 17,463 | T106: 23,340 | X106: 05736 | Y106: 358
A107: 05 | B107: ANTIOQUIA | C107: Sonson | D107: 05756 | E107: 404 | F107: 416 | G107: 421 | O107: 289 | Q107: 05756 | R107: 7,405 | S107: 15,881 | T107: 23,286 | X107: 05756 | Y107: 289
A108: 05 | B108: ANTIOQUIA | C108: Sopetran | D108: 05761 | E108: 146 | F108: 148 | G108: 148 | O108: 114 | Q108: 05761 | R108: 2,978 | S108: 6,760 | T108: 9,738 | X108: 05761 | Y108: 114
A109: 05 | B109: ANTIOQUIA | C109: Tamesis | D109: 05789 | E109: 134 | F109: 134 | G109: 156 | O109: 108 | Q109: 05789 | R109: 4,078 | S109: 6,930 | T109: 11,009 | X109: 05789 | Y109: 108
A110: 05 | B110: ANTIOQUIA | C110: Taraza | D110: 05790 | E110: 461 | F110: 495 | G110: 519 | O110: 316 | Q110: 05790 | R110: 4,404 | S110: 11,523 | T110: 15,927 | X110: 05790 | Y110: 316
A111: 05 | B111: ANTIOQUIA | C111: Tarso | D111: 05792 | E111: 63 | F111: 67 | G111: 77 | O111: 45 | Q111: 05792 | R111: 1,298 | S111: 2,738 | T111: 4,037 | X111: 05792 | Y111: 45
A112: 05 | B112: ANTIOQUIA | C112: Titiribi | D112: 05809 | E112: 64 | F112: 72 | G112: 83 | O112: 70 | Q112: 05809 | R112: 2,313 | S112: 4,609 | T112: 6,922 | X112: 05809 | Y112: 70
A113: 05 | B113: ANTIOQUIA | C113: Toledo | D113: 05819 | E113: 58 | F113: 58 | G113: 78 | O113: 47 | Q113: 05819 | R113: 893 | S113: 2,100 | T113: 2,994 | X113: 05819 | Y113: 47
A114: 05 | B114: ANTIOQUIA | C114: Turbo | D114: 05837 | E114: 2,627 | F114: 2,649 | G114: 2,720 | O114: 1426 | Q114: 05837 | R114: 21,519 | S114: 53,907 | T114: 75,425 | X114: 05837 | Y114: 1426
A115: 05 | B115: ANTIOQUIA | C115: Uramita | D115: 05842 | E115: 79 | F115: 87 | G115: 106 | O115: 63 | Q115: 05842 | R115: 1,349 | S115: 2,796 | T115: 4,145 | X115: 05842 | Y115: 63
A116: 05 | B116: ANTIOQUIA | C116: Urrao | D116: 05847 | E116: 400 | F116: 439 | G116: 489 | O116: 293 | Q116: 05847 | R116: 5,560 | S116: 12,830 | T116: 18,391 | X116: 05847 | Y116: 293
A117: 05 | B117: ANTIOQUIA | C117: Valdivia | D117: 05854 | E117: 226 | F117: 237 | G117: 270 | O117: 144 | Q117: 05854 | R117: 2,307 | S117: 5,902 | T117: 8,209 | X117: 05854 | Y117: 144
A118: 05 | B118: ANTIOQUIA | C118: Valparaiso | D118: 05856 | E118: 50 | F118: 53 | G118: 55 | O118: 40 | Q118: 05856 | R118: 1,411 | S118: 2,799 | T118: 4,210 | X118: 05856 | Y118: 40
A119: 05 | B119: ANTIOQUIA | C119: Vegachi | D119: 05858 | E119: 188 | F119: 193 | G119: 197 | O119: 101 | Q119: 05858 | R119: 2,711 | S119: 5,219 | T119: 7,930 | X119: 05858 | Y119: 101
A120: 05 | B120: ANTIOQUIA | C120: Venecia | D120: 05861 | E120: 112 | F120: 112 | G120: 116 | O120: 73 | Q120: 05861 | R120: 2,726 | S120: 5,211 | T120: 7,937 | X120: 05861 | Y120: 73
A121: 05 | B121: ANTIOQUIA | C121: Vigia del Fuerte | D121: 05873 | E121: 136 | F121: 163 | G121: 186 | O121: 120 | Q121: 05873 | R121: 1,009 | S121: 3,526 | T121: 4,535 | X121: 05873 | Y121: 120
A122: 05 | B122: ANTIOQUIA | C122: Yali | D122: 05885 | E122: 69 | F122: 69 | G122: 97 | O122: 65 | Q122: 05885 | R122: 1,369 | S122: 3,274 | T122: 4,643 | X122: 05885 | Y122: 65
A123: 05 | B123: ANTIOQUIA | C123: Yarumal | D123: 05887 | E123: 534 | F123: 557 | G123: 582 | O123: 376 | Q123: 05887 | R123: 9,807 | S123: 18,676 | T123: 28,483 | X123: 05887 | Y123: 376
A124: 05 | B124: ANTIOQUIA | C124: Yolombo | D124: 05890 | E124: 201 | F124: 209 | G124: 230 | O124: 194 | Q124: 05890 | R124: 4,815 | S124: 9,850 | T124: 14,665 | X124: 05890 | Y124: 194
A125: 05 | B125: ANTIOQUIA | C125: Yondo | D125: 05893 | E125: 278 | F125: 285 | G125: 318 | O125: 210 | Q125: 05893 | R125: 1,865 | S125: 8,280 | T125: 10,145 | X125: 05893 | Y125: 210
A126: 05 | B126: ANTIOQUIA | C126: Zaragoza | D126: 05895 | E126: 439 | F126: 454 | G126: 463 | O126: 287 | Q126: 05895 | R126: 3,807 | S126: 10,413 | T126: 14,220 | X126: 05895 | Y126: 287
B127: ATLANTICO | C127: Barranquilla | D127: 08001 | E127: 19,802 | F127: 20,849 | G127: 22,374 | O127: 9732 | Q127: 08001 | R127: 416,579 | S127: 567,749 | T127: 984,328 | X127: 08001 | Y127: 9732
A128: 08 | B128: ATLANTICO | C128: Baranoa | D128: 08078 | E128: 890 | F128: 901 | G128: 957 | O128: 560 | Q128: 08078 | R128: 13,718 | S128: 29,383 | T128: 43,102 | X128: 08078 | Y128: 560
A129: 08 | B129: ATLANTICO | C129: Campo de La Cruz | D129: 08137 | E129: 408 | F129: 423 | G129: 467 | O129: 223 | Q129: 08137 | R129: 5,156 | S129: 9,896 | T129: 15,052 | X129: 08137 | Y129: 223
A130: 08 | B130: ATLANTICO | C130: Candelaria | D130: 08141 | E130: 308 | F130: 305 | G130: 301 | O130: 162 | Q130: 08141 | R130: 2,810 | S130: 7,280 | T130: 10,091 | X130: 08141 | Y130: 162
A131: 08 | B131: ATLANTICO | C131: Galapa | D131: 08296 | E131: 915 | F131: 978 | G131: 1,006 | O131: 609 | Q131: 08296 | R131: 8,307 | S131: 29,393 | T131: =R131+S131 -> 37,700 | X131: 08296 | Y131: 609
A132: 08 | B132: ATLANTICO | C132: Juan de Acosta | D132: 08372 | E132: 298 | F132: 302 | G132: 309 | O132: 182 | Q132: 08372 | R132: 3,454 | S132: 10,013 | T132: 13,467 | X132: 08372 | Y132: 182
A133: 08 | B133: ATLANTICO | C133: Luruaco | D133: 08421 | E133: 554 | F133: 540 | G133: 548 | O133: 294 | Q133: 08421 | R133: 5,554 | S133: 12,729 | T133: 18,283 | X133: 08421 | Y133: 294
A134: 08 | B134: ATLANTICO | C134: Malambo | D134: 08433 | E134: 2,154 | F134: 2,268 | G134: 2,304 | O134: 1289 | Q134: 08433 | R134: 21,923 | S134: 61,301 | T134: 83,224 | X134: 08433 | Y134: 1289
A135: 08 | B135: ATLANTICO | C135: Manati | D135: 08436 | E135: 347 | F135: 376 | G135: 413 | O135: 213 | Q135: 08436 | R135: 3,518 | S135: 8,943 | T135: 12,461 | X135: 08436 | Y135: 213
A136: 08 | B136: ATLANTICO | C136: Palmar de Varela | D136: 08520 | E136: 487 | F136: 496 | G136: 510 | O136: 264 | Q136: 08520 | R136: 4,215 | S136: 13,606 | T136: 17,822 | X136: 08520 | Y136: 264
A137: 08 | B137: ATLANTICO | C137: Piojo | D137: 08549 | E137: 66 | F137: 73 | G137: 79 | O137: 57 | Q137: 08549 | R137: 908 | S137: 3,104 | T137: 4,012 | X137: 08549 | Y137: 57
A138: 08 | B138: ATLANTICO | C138: Polonuevo | D138: 08558 | E138: 272 | F138: 262 | G138: 280 | O138: 176 | Q138: 08558 | R138: 3,243 | S138: 8,416 | T138: 11,658 | X138: 08558 | Y138: 176
A139: 08 | B139: ATLANTICO | C139: Ponedera | D139: 08560 | E139: 422 | F139: 426 | G139: 438 | O139: 246 | Q139: 08560 | R139: 3,824 | S139: 10,963 | T139: 14,787 | X139: 08560 | Y139: 246
A140: 08 | B140: ATLANTICO | C140: Puerto Colombia | D140: 08573 | E140: 474 | F140: 481 | G140: 481 | O140: 415 | Q140: 08573 | R140: 7,524 | S140: 24,128 | T140: 31,651 | X140: 08573 | Y140: 415
A141: 08 | B141: ATLANTICO | C141: Repelon | D141: 08606 | E141: 512 | F141: 512 | G141: 531 | O141: 265 | Q141: 08606 | R141: 5,134 | S141: 11,797 | T141: 16,930 | X141: 08606 | Y141: 265
A142: 08 | B142: ATLANTICO | C142: Sabanagrande | D142: 08634 | E142: 470 | F142: 497 | G142: 512 | O142: 312 | Q142: 08634 | R142: 5,711 | S142: 15,444 | T142: 21,155 | X142: 08634 | Y142: 312
A143: 08 | B143: ATLANTICO | C143: Sabanalarga | D143: 08638 | E143: 1,456 | F143: 1,494 | G143: 1,645 | O143: 892 | Q143: 08638 | R143: 25,710 | S143: 42,968 | T143: 68,678 | X143: 08638 | Y143: 892
A144: 08 | B144: ATLANTICO | C144: Santa Lucia | D144: 08675 | E144: 251 | F144: 251 | G144: 276 | O144: 168 | Q144: 08675 | R144: 2,364 | S144: 7,246 | T144: 9,610 | X144: 08675 | Y144: 168
A145: 08 | B145: ATLANTICO | C145: Santo Tomas | D145: 08685 | E145: 435 | F145: 444 | G145: 455 | O145: 257 | Q145: 08685 | R145: 6,719 | S145: 14,129 | T145: 20,849 | X145: 08685 | Y145: 257
A146: 08 | B146: ATLANTICO | C146: Soledad | D146: 08758 | E146: 9,998 | F146: 10,042 | G146: 10,950 | O146: 5571 | Q146: 08758 | R146: 124,036 | S146: 300,070 | T146: 424,106 | X146: 08758 | Y146: 5571
A147: 08 | B147: ATLANTICO | C147: Suan | D147: 08770 | E147: 206 | F147: 212 | G147: 214 | O147: 123 | Q147: 08770 | R147: 2,014 | S147: 5,389 | T147: 7,403 | X147: 08770 | Y147: 123
A148: 08 | B148: ATLANTICO | C148: Tubara | D148: 08832 | E148: 143 | F148: 148 | G148: 159 | O148: 156 | Q148: 08832 | R148: 2,300 | S148: 8,269 | T148: 10,568 | X148: 08832 | Y148: 156
A149: 08 | B149: ATLANTICO | C149: Usiacuri | D149: 08849 | E149: 131 | F149: 134 | G149: 147 | O149: 106 | Q149: 08849 | R149: 1,728 | S149: 5,758 | T149: 7,486 | X149: 08849 | Y149: 106
A150: 11 | B150: BOGOTA | C150: Bogota, D.C. | D150: 11001 | E150: 90,967 | F150: 93,996 | G150: 96,930 | O150: 47156 | Q150: 11001 | R150: 2,143,019 | S150: 3,649,791 | T150: 5,792,809 | X150: 11001 | Y150: 47156
B151: BOLIVAR | C151: Cartagena | D151: 13001 | E151: 16,175 | F151: 17,942 | G151: 18,393 | O151: 8174 | Q151: 13001 | R151: 279,776 | S151: 459,114 | T151: 738,890 | X151: 13001 | Y151: 8174
A152: 13 | B152: BOLIVAR | C152: Achi | D152: 13006 | E152: 352 | F152: 388 | G152: 412 | O152: 239 | Q152: 13006 | R152: 4,662 | S152: 10,203 | T152: 14,865 | X152: 13006 | Y152: 239
A153: 13 | B153: BOLIVAR | C153: Altos del Rosario | D153: 13030 | E153: 203 | F153: 229 | G153: 235 | O153: 132 | Q153: 13030 | R153: 1,665 | S153: 4,616 | T153: 6,281 | X153: 13030 | Y153: 132
A154: 13 | B154: BOLIVAR | C154: Arenal | D154: 13042 | E154: 153 | F154: 161 | G154: 187 | O154: 79 | Q154: 13042 | R154: 1,180 | S154: 3,172 | T154: 4,352 | X154: 13042 | Y154: 79
A155: 13 | B155: BOLIVAR | C155: Arjona | D155: 13052 | E155: 1,108 | F155: 1,202 | G155: 1,215 | O155: 665 | Q155: 13052 | R155: 13,401 | S155: 31,835 | T155: 45,235 | X155: 13052 | Y155: 665
A156: 13 | B156: BOLIVAR | C156: Arroyohondo | D156: 13062 | E156: 151 | F156: 144 | G156: 161 | O156: 77 | Q156: 13062 | R156: 2,028 | S156: 3,668 | T156: 5,696 | X156: 13062 | Y156: 77
A157: 13 | B157: BOLIVAR | C157: Barranco de Loba | D157: 13074 | E157: 349 | F157: 365 | G157: 390 | O157: 169 | Q157: 13074 | R157: 2,640 | S157: 6,094 | T157: 8,734 | X157: 13074 | Y157: 169
A158: 13 | B158: BOLIVAR | C158: Calamar | D158: 13140 | E158: 366 | F158: 400 | G158: 430 | O158: 215 | Q158: 13140 | R158: 4,922 | S158: 9,656 | T158: 14,578 | X158: 13140 | Y158: 215
A159: 13 | B159: BOLIVAR | C159: Cantagallo | D159: 13160 | E159: 130 | F159: 130 | G159: 149 | O159: 84 | Q159: 13160 | R159: 953 | S159: 3,732 | T159: 4,684 | X159: 13160 | Y159: 84
A160: 13 | B160: BOLIVAR | C160: Cicuco | D160: 13188 | E160: 315 | F160: 317 | G160: 327 | O160: 150 | Q160: 13188 | R160: 2,669 | S160: 5,818 | T160: 8,487 | X160: 13188 | Y160: 150
A161: 13 | B161: BOLIVAR | C161: Cordoba | D161: 13212 | E161: 225 | F161: 255 | G161: 251 | O161: 145 | Q161: 13212 | R161: 2,929 | S161: 6,880 | T161: 9,809 | X161: 13212 | Y161: 145
A162: 13 | B162: BOLIVAR | C162: Clemencia | D162: 13222 | E162: 259 | F162: 266 | G162: 283 | O162: 152 | Q162: 13222 | R162: 2,320 | S162: 6,525 | T162: 8,845 | X162: 13222 | Y162: 152
A163: 13 | B163: BOLIVAR | C163: El Carmen de Bolivar | D163: 13244 | E163: 1,145 | F163: 1,250 | G163: 1,372 | O163: 660 | Q163: 13244 | R163: 15,759 | S163: 30,471 | T163: 46,231 | X163: 13244 | Y163: 660
A164: 13 | B164: BOLIVAR | C164: El Guamo | D164: 13248 | E164: 132 | F164: 132 | G164: 137 | O164: 71 | Q164: 13248 | R164: 2,018 | S164: 3,750 | T164: 5,768 | X164: 13248 | Y164: 71
A165: 13 | B165: BOLIVAR | C165: El Peñon | D165: 13268 | E165: 132 | F165: 132 | G165: 150 | O165: 84 | Q165: 13268 | R165: 1,397 | S165: 3,171 | T165: 4,568 | X165: 13268 | Y165: 84
A166: 13 | B166: BOLIVAR | C166: Hatillo de Loba | D166: 13300 | E166: 313 | F166: 317 | G166: 332 | O166: 146 | Q166: 13300 | R166: 2,349 | S166: 5,140 | T166: 7,489 | X166: 13300 | Y166: 146
A167: 13 | B167: BOLIVAR | C167: Magangue | D167: 13430 | E167: 2,054 | F167: 2,199 | G167: 2,481 | O167: 1293 | Q167: 13430 | R167: 34,432 | S167: 59,035 | T167: 93,467 | X167: 13430 | Y167: 1293
A168: 13 | B168: BOLIVAR | C168: Mahates | D168: 13433 | E168: 416 | F168: 431 | G168: 456 | O168: 262 | Q168: 13433 | R168: 5,399 | S168: 12,478 | T168: 17,877 | X168: 13433 | Y168: 262
A169: 13 | B169: BOLIVAR | C169: Margarita | D169: 13440 | E169: 134 | F169: 140 | G169: 155 | O169: 101 | Q169: 13440 | R169: 2,296 | S169: 4,373 | T169: 6,669 | X169: 13440 | Y169: 101
A170: 13 | B170: BOLIVAR | C170: Maria La Baja | D170: 13442 | E170: 906 | F170: 956 | G170: 989 | O170: 481 | Q170: 13442 | R170: 9,252 | S170: 19,976 | T170: 29,228 | X170: 13442 | Y170: 481
A171: 13 | B171: BOLIVAR | C171: Montecristo | D171: 13458 | E171: 212 | F171: 224 | G171: 247 | O171: 179 | Q171: 13458 | R171: 1,736 | S171: 7,350 | T171: 9,086 | X171: 13458 | Y171: 179
A172: 13 | B172: BOLIVAR | C172: Mompos | D172: 13468 | E172: 915 | F172: 918 | G172: 947 | O172: 453 | Q172: 13468 | R172: 12,276 | S172: 19,101 | T172: 31,377 | X172: 13468 | Y172: 453
A173: 13 | B173: BOLIVAR | C173: Morales | D173: 13473 | E173: 260 | F173: 262 | G173: 313 | O173: 229 | Q173: 13473 | R173: 2,517 | S173: 9,774 | T173: 12,290 | X173: 13473 | Y173: 229
A174: 13 | B174: BOLIVAR | C174: Norosi | D174: 13490 | E174: 121 | F174: 147 | G174: 154 | O174: 105 | Q174: 13490 | R174: 813 | S174: 4,165 | T174: 4,978 | X174: 13490 | Y174: 105
A175: 13 | B175: BOLIVAR | C175: Pinillos | D175: 13549 | E175: 413 | F175: 451 | G175: 475 | O175: 258 | Q175: 13549 | R175: 4,182 | S175: 10,077 | T175: 14,259 | X175: 13549 | Y175: 258
A176: 13 | B176: BOLIVAR | C176: Regidor | D176: 13580 | E176: 168 | F176: 170 | G176: 175 | O176: 81 | Q176: 13580 | R176: 971 | S176: 2,960 | T176: 3,931 | X176: 13580 | Y176: 81
A177: 13 | B177: BOLIVAR | C177: Rio Viejo | D177: 13600 | E177: 166 | F177: 166 | G177: 174 | O177: 95 | Q177: 13600 | R177: 1,583 | S177: 4,500 | T177: 6,083 | X177: 13600 | Y177: 95
A178: 13 | B178: BOLIVAR | C178: San Cristobal | D178: 13620 | E178: 125 | F178: 126 | G178: 139 | O178: 75 | Q178: 13620 | R178: 1,858 | S178: 3,613 | T178: 5,472 | X178: 13620 | Y178: 75
A179: 13 | B179: BOLIVAR | C179: San Estanislao | D179: 13647 | E179: 242 | F179: 254 | G179: 301 | O179: 170 | Q179: 13647 | R179: 3,485 | S179: 8,119 | T179: 11,604 | X179: 13647 | Y179: 170
A180: 13 | B180: BOLIVAR | C180: San Fernando | D180: 13650 | E180: 180 | F180: 194 | G180: 204 | O180: 129 | Q180: 13650 | R180: 2,289 | S180: 5,140 | T180: 7,429 | X180: 13650 | Y180: 129
A181: 13 | B181: BOLIVAR | C181: San Jacinto | D181: 13654 | E181: 361 | F181: 378 | G181: 404 | O181: 216 | Q181: 13654 | R181: 5,770 | S181: 10,241 | T181: 16,010 | X181: 13654 | Y181: 216
A182: 13 | B182: BOLIVAR | C182: San Jacinto del Cauca | D182: 13655 | E182: 142 | F182: 150 | G182: 192 | O182: 108 | Q182: 13655 | R182: 1,788 | S182: 4,350 | T182: 6,138 | X182: 13655 | Y182: 108
A183: 13 | B183: BOLIVAR | C183: San Juan Nepomuceno | D183: 13657 | E183: 575 | F183: 576 | G183: 592 | O183: 315 | Q183: 13657 | R183: 8,995 | S183: 16,402 | T183: 25,398 | X183: 13657 | Y183: 315
A184: 13 | B184: BOLIVAR | C184: San Martin de Loba | D184: 13667 | E184: 463 | F184: 471 | G184: 487 | O184: 150 | Q184: 13667 | R184: 2,699 | S184: 5,978 | T184: 8,676 | X184: 13667 | Y184: 150
A185: 13 | B185: BOLIVAR | C185: San Pablo | D185: 13670 | E185: 628 | F185: 628 | G185: 634 | O185: 312 | Q185: 13670 | R185: 3,269 | S185: 12,077 | T185: 15,346 | X185: 13670 | Y185: 312
A186: 13 | B186: BOLIVAR | C186: Santa Catalina | D186: 13673 | E186: 217 | F186: 241 | G186: 250 | O186: 137 | Q186: 13673 | R186: 2,361 | S186: 6,361 | T186: 8,722 | X186: 13673 | Y186: 137
A187: 13 | B187: BOLIVAR | C187: Santa Rosa | D187: 13683 | E187: 351 | F187: 351 | G187: 382 | O187: 212 | Q187: 13683 | R187: 3,548 | S187: 9,742 | T187: 13,290 | X187: 13683 | Y187: 212
A188: 13 | B188: BOLIVAR | C188: Santa Rosa del Sur | D188: 13688 | E188: 914 | F188: 966 | G188: 867 | O188: 356 | Q188: 13688 | R188: 3,778 | S188: 14,946 | T188: 18,724 | X188: 13688 | Y188: 356
A189: 13 | B189: BOLIVAR | C189: Simiti | D189: 13744 | E189: 344 | F189: 344 | G189: 367 | O189: 183 | Q189: 13744 | R189: 2,623 | S189: 8,156 | T189: 10,778 | X189: 13744 | Y189: 183
A190: 13 | B190: BOLIVAR | C190: Soplaviento | D190: 13760 | E190: 142 | F190: 143 | G190: 153 | O190: 91 | Q190: 13760 | R190: 2,111 | S190: 4,639 | T190: 6,750 | X190: 13760 | Y190: 91
A191: 13 | B191: BOLIVAR | C191: Talaigua Nuevo | D191: 13780 | E191: 244 | F191: 244 | G191: 284 | O191: 139 | Q191: 13780 | R191: 2,481 | S191: 5,365 | T191: 7,847 | X191: 13780 | Y191: 139
A192: 13 | B192: BOLIVAR | C192: Tiquisio | D192: 13810 | E192: 490 | F192: 540 | G192: 599 | O192: 222 | Q192: 13810 | R192: 2,771 | S192: 7,497 | T192: 10,268 | X192: 13810 | Y192: 222
A193: 13 | B193: BOLIVAR | C193: Turbaco | D193: 13836 | E193: 1,163 | F193: 1,179 | G193: 1,282 | O193: 942 | Q193: 13836 | R193: 17,740 | S193: 50,579 | T193: 68,319 | X193: 13836 | Y193: 942
A194: 13 | B194: BOLIVAR | C194: Turbana | D194: 13838 | E194: 247 | F194: 259 | G194: 282 | O194: 146 | Q194: 13838 | R194: 2,806 | S194: 7,599 | T194: 10,406 | X194: 13838 | Y194: 146
A195: 13 | B195: BOLIVAR | C195: Villanueva | D195: 13873 | E195: 354 | F195: 366 | G195: 378 | O195: 246 | Q195: 13873 | R195: 3,874 | S195: 10,723 | T195: =R195+S195 -> 14,596 | X195: 13873 | Y195: 246
A196: 13 | B196: BOLIVAR | C196: Zambrano | D196: 13894 | E196: 193 | F196: 206 | G196: 220 | O196: 108 | Q196: 13894 | R196: 2,354 | S196: 5,147 | T196: 7,500 | X196: 13894 | Y196: 108
A197: 15 | B197: BOYACA | C197: Tunja | D197: 15001 | E197: 2,081 | F197: 2,272 | G197: 2,648 | O197: 1255 | Q197: 15001 | R197: 49,409 | S197: 83,161 | T197: 132,569 | X197: 15001 | Y197: 1255
A198: 15 | B198: BOYACA | C198: Almeida | D198: 15022 | E198: 15 | F198: 17 | G198: 17 | O198: 10 | Q198: 15022 | R198: 490 | S198: 703 | T198: 1,193 | X198: 15022 | Y198: 10
A199: 15 | B199: BOYACA | C199: Aquitania | D199: 15047 | E199: 185 | F199: 204 | G199: 211 | O199: 138 | Q199: 15047 | R199: 2,905 | S199: 6,522 | T199: 9,426 | X199: 15047 | Y199: 138
A200: 15 | B200: BOYACA | C200: Arcabuco | D200: 15051 | E200: 71 | F200: 72 | G200: 78 | O200: 49 | Q200: 15051 | R200: 994 | S200: 2,561 | T200: 3,555 | X200: 15051 | Y200: 49
... 924 more rows

Sheet 1_PLANTILLA_MENSUAL
E1: =D1+1 -> 1 | F1: 2 | G1: 3 | H1: =G1+1 -> 4 | I1: =H1+1 -> 5 | J1: =I1+1 -> 6 | K1: =J1+1 -> 7 | L1: =K1+1 -> 8 | M1: =L1+1 -> 9 | N1: =M1+1 -> 10 | O1: =N1+1 -> 11 | P1: =O1+1 -> 12 | Q1: =P1+1 -> 13 | R1: =Q1+1 -> 14 | S1: =R1+1 -> 15 | T1: =S1+1 -> 16 | U1: =T1+1 -> 17 | V1: =U1+1 -> 18 | W1: =V1+1 -> 19 | X1: =W1+1 -> 20 | Y1: =X1+1 -> 21 | Z1: =Y1+1 -> 22 | AA1: =Z1+1 -> 23 | AB1: =AA1+1 -> 24 | AC1: =#REF!+1 ->  | AD1: =AC1+1 ->  | AE1: =AD1+1 ->  | AF1: =AE1+1 ->  | AG1: =AF1+1 ->  | AH1: =AG1+1 ->  | AJ1: =AH1+1 ->  | AK1: =AJ1+1 ->  | AL1: =AK1+1 ->  | AN1: =AL1+1 ->  | AO1: =AN1+1 ->  | AP1: =AO1+1 ->  | AR1: =AP1+1 ->  | AS1: =AR1+1 ->  | AT1: =AS1+1 ->  | AV1: =AT1+1 ->  | AW1: =AV1+1 ->  | AX1: =AW1+1 ->  | AZ1: =AX1+1 ->  | BA1: =AZ1+1 ->  | BB1: =BA1+1 ->  | BC1: =BB1+1 ->  | BD1: =BC1+1 ->  | BE1: =BD1+1 ->  | BF1: =BE1+1 ->  | BG1: =BF1+1 ->  | BH1: =BG1+1 ->  | BI1: =BH1+1 ->  | BJ1: =BI1+1 ->  | BK1: =BJ1+1 ->  | BL1: =BK1+1 ->  | BM1: =BL1+1 ->  | BN1: =BM1+1 ->  | BP1: =#REF!+1 ->  | BQ1: =BP1+1 ->  | BR1: =BQ1+1 ->  | BS1: =BR1+1 ->  | BT1: =BS1+1 ->  | BU1: =BT1+1 ->  | BV1: =BU1+1 ->  | BW1: =BV1+1 ->  | BX1: =BW1+1 ->  | BY1: =BX1+1 ->  | BZ1: =BY1+1 ->  | CA1: =BZ1+1 ->  | CB1: =CA1+1 ->  | CC1: =CB1+1 ->  | CD1: =CC1+1 ->  | CE1: =CD1+1 ->  | CF1: =CE1+1 ->  | CG1: =CF1+1 ->  | CH1: =CG1+1 ->  | CI1: =CH1+1 ->  | CJ1: =CI1+1 ->  | CK1: =CJ1+1 ->  | CL1: =CK1+1 ->  | CM1: =CL1+1 ->  | CN1: =CM1+1 ->  | CO1: =CN1+1 ->  | CP1: =CO1+1 ->  | CQ1: =CP1+1 ->  | CR1: =CQ1+1 ->  | CS1: =CO1+1 ->  | CT1: =CS1+1 ->  | CU1: =CT1+1 ->  | CV1: =#REF!+1 ->  | CW1: =CV1+1 ->  | CX1: =#REF!+1 ->  | CY1: =CX1+1 ->  | CZ1: =CY1+1 ->  | DA1: =CZ1+1 ->  | DB1: =DA1+1 ->  | DC1: =DB1+1 ->  | DD1: =DC1+1 ->  | DE1: =DD1+1 ->  | DF1: =#REF!+1 ->  | DG1: =DF1+1 ->  | DH1: =DG1+1 ->  | DI1: =DH1+1 ->  | DJ1: =DI1+1 ->  | DK1: =DJ1+1 ->  | DL1: =DK1+1 ->  | DM1: =DL1+1 ->  | DN1: =DM1+1 ->  | DO1: =DN1+1 ->  | DP1: =DO1+1 ->  | DQ1: =DK1+1 ->  | DR1: =#REF!+1 ->  | DS1: =#REF!+1 ->  | DT1: =#REF!+1 ->  | DU1: =#REF!+1 ->  | DV1: =DU1+1 ->  | DW1: =DV1+1 ->  | DX1: =DW1+1 ->  | DY1: =DX1+1 ->  | DZ1: =DY1+1 ->  | EA1: =DZ1+1 ->  | EB1: =EA1+1 ->  | EC1: =EB1+1 ->  | ED1: =EC1+1 ->  | EE1: =ED1+1 ->  | EF1: =EE1+1 ->  | EG1: =EF1+1 ->  | EH1: =EG1+1 ->  | EI1: =EH1+1 ->  | EJ1: =EI1+1 ->  | EK1: =EJ1+1 ->  | EL1: =EK1+1 ->  | EM1: =EL1+1 ->  | EN1: =EM1+1 ->  | EO1: =EN1+1 ->  | EP1: =EO1+1 ->  | EQ1: =EP1+1 ->  | ER1: =EQ1+1 ->  | ES1: =ER1+1 ->  | ET1: =ES1+1 ->  | EU1: =ET1+1 ->  | EV1: =EU1+1 ->  | EW1: =EV1+1 ->  | EX1: =EW1+1 ->  | EY1: =EX1+1 ->  | EZ1: =EY1+1 ->  | FA1: =EZ1+1 ->  | FB1: =FA1+1 ->  | FC1: =FB1+1 ->  | FD1: =FC1+1 ->  | FE1: =FD1+1 ->  | FF1: =FE1+1 ->  | FG1: =FF1+1 ->  | FH1: =FG1+1 ->  | FI1: =FH1+1 ->  | FJ1: =FI1+1 ->  | FK1: =FJ1+1 ->  | FL1: =FK1+1 ->  | FM1: =FL1+1 ->  | FN1: =FM1+1 ->  | FO1: =FN1+1 ->  | FP1: =FO1+1 ->  | FQ1: =FP1+1 ->  | FR1: =FQ1+1 ->  | FS1: =FR1+1 ->  | FT1: =FS1+1 ->  | FU1: =FT1+1 ->  | FV1: =FU1+1 ->  | FW1: =FV1+1 ->  | FX1: =FW1+1 ->  | FY1: =FX1+1 ->  | FZ1: =FY1+1 ->  | GA1: =FZ1+1 ->  | GB1: =GA1+1 ->  | GC1: =GB1+1 ->  | GD1: =GC1+1 ->  | GE1: =GD1+1 ->  | GF1: =GE1+1 ->  | GG1: =GF1+1 ->  | GH1: =GG1+1 ->  | GI1: =GH1+1 ->  | GJ1: =GI1+1 ->  | GK1: =GJ1+1 ->  | GL1: =GK1+1 ->  | GM1: =GL1+1 ->  | GN1: =GM1+1 ->  | GO1: =GN1+1 ->  | GP1: =GO1+1 ->  | GQ1: =GP1+1 ->  | GR1: =GQ1+1 ->  | GS1: =GR1+1 ->  | GT1: =GS1+1 ->  | GU1: =GT1+1 ->  | GV1: =GU1+1 ->  | GW1: =GV1+1 ->  | GX1: =GW1+1 ->  | GY1: =GX1+1 ->  | GZ1: =GY1+1 ->  | HA1: =GZ1+1 ->  | HB1: =HA1+1 ->  | HC1: =HB1+1 ->  | HD1: =HC1+1 ->  | HE1: =HD1+1 ->  | HF1: =HE1+1 ->  | HG1: =HF1+1 ->  | HH1: =HG1+1 ->  | HI1: =HH1+1 ->  | HJ1: =HI1+1 ->  | HK1: =HJ1+1 ->  | HL1: =HK1+1 ->  | HM1: =HL1+1 ->  | HN1: =HM1+1 ->  | HO1: =HN1+1 ->  | HP1: =HO1+1 ->  | HQ1: =HP1+1 ->  | HR1: =HQ1+1 ->  | HS1: =HL1+1 ->  | HT1: =HS1+1 ->  | HU1: =HT1+1 ->  | HV1: =HU1+1 ->  | HW1: =HV1+1 ->  | HX1: =HW1+1 ->  | HY1: =HX1+1 ->  | HZ1: =HY1+1 ->  | IA1: =HZ1+1 ->  | IB1: =HZ1+1 ->  | ID1: =IC1+1 ->  | IE1: =ID1+1 ->  | IF1: =IE1+1 ->  | IG1: =IF1+1 ->  | IH1: =IG1+1 ->  | II1: =IG1+1 ->  | IK1: =IJ1+1 ->  | IL1: =IK1+1 ->  | IM1: =IL1+1 ->  | IN1: =IM1+1 ->  | IO1: =IN1+1 ->  | IP1: =IO1+1 ->  | IQ1: =IP1+1 ->  | IR1: =IQ1+1 ->  | IS1: =IR1+1 ->  | IT1: =IS1+1 ->  | IU1: =IT1+1 ->  | IV1: =IU1+1 ->  | IX1: =IV1+1 ->  | IY1: =IX1+1 ->  | IZ1: =IY1+1 ->  | JA1: =IZ1+1 ->  | JB1: =JA1+1 ->  | JC1: =JB1+1 ->  | JD1: =JC1+1 ->  | JE1: =JD1+1 ->  | JF1: =JE1+1 ->  | JG1: =JF1+1 ->  | JH1: =JG1+1 ->  | JI1: =JH1+1 ->  | JJ1: =JI1+1 ->  | JK1: =JJ1+1 ->  | JL1: =JK1+1 ->  | JM1: =JL1+1 ->  | JN1: =JM1+1 ->  | JO1: =JN1+1 ->  | JP1: =JO1+1 ->  | JQ1: =JP1+1 ->  | JR1: =JQ1+1 ->  | JS1: =JR1+1 ->  | JT1: =JS1+1 ->  | JU1: =JT1+1 ->  | JV1: =JU1+1 ->  | JW1: =JV1+1 ->  | JX1: =JW1+1 ->  | JY1: =JX1+1 ->  | JZ1: =JY1+1 ->  | KA1: =JZ1+1 ->  | KB1: =KA1+1 ->  | KC1: =KA1+1 ->  | KE1: =#REF!+1 ->  | KF1: =KE1+1 ->  | KG1: =KF1+1 ->  | KH1: =KG1+1 ->  | KI1: =KH1+1 ->  | KJ1: =KI1+1 ->  | KK1: =KI1+1 ->  | KM1: =KL1+1 ->  | KN1: =KM1+1 ->  | KO1: =KM1+1 ->  | KQ1: =#REF!+1 ->  | KR1: =KQ1+1 ->  | KS1: =KR1+1 ->  | KT1: =KS1+1 ->  | KU1: =KT1+1 ->  | KV1: =KU1+1 ->  | KW1: =KV1+1 ->  | KX1: =KW1+1 ->  | KY1: =KX1+1 ->  | KZ1: =KY1+1 ->  | LA1: =KZ1+1 ->  | LB1: =LA1+1 ->  | LC1: =LB1+1 ->  | LD1: =LC1+1 ->  | LE1: =LD1+1 ->  | LF1: =LE1+1 ->  | LG1: =LF1+1 ->  | LH1: =LG1+1 ->  | LI1: =LH1+1 ->  | LJ1: =LI1+1 ->  | LK1: =LJ1+1 ->  | LL1: =LK1+1 ->  | LM1: =LL1+1 ->  | LN1: =LM1+1 ->  | LO1: =LN1+1 ->  | LP1: =LO1+1 ->  | LQ1: =LP1+1 ->  | LR1: =LQ1+1 ->  | LS1: =LR1+1 ->  | LT1: =LS1+1 ->  | LU1: =LT1+1 ->  | LV1: =LU1+1 ->  | LW1: =LV1+1 ->  | LX1: =LW1+1 ->  | LY1: =LX1+1 ->  | LZ1: =LY1+1 ->  | MA1: =LZ1+1 ->  | MB1: =MA1+1 ->  | MC1: =MB1+1 ->  | MD1: =MC1+1 ->  | ME1: =MD1+1 ->  | MF1: =ME1+1 ->  | MG1: =MF1+1 ->  | MH1: =MG1+1 ->  | MI1: =MH1+1 ->  | MJ1: =MI1+1 ->  | MK1: =MJ1+1 ->  | ML1: =MK1+1 ->  | MM1: =ML1+1 ->  | MN1: =MM1+1 ->  | MO1: =MN1+1 ->  | MP1: =MO1+1 ->  | MQ1: =MP1+1 ->  | MR1: =MQ1+1 ->  | MS1: =MR1+1 ->  | MT1: =MS1+1 ->  | MU1: =MT1+1 ->  | MV1: =MU1+1 ->  | MW1: =MV1+1 ->  | MX1: =MW1+1 ->  | MY1: =MX1+1 ->  | MZ1: =MY1+1 ->  | NA1: =MZ1+1 ->  | NB1: =NA1+1 ->  | NC1: =NB1+1 ->  | ND1: =NC1+1 ->  | NE1: =ND1+1 ->  | NF1: =NE1+1 ->  | NG1: =NF1+1 ->  | NH1: =#REF!+1 ->  | NI1: =NH1+1 ->  | NJ1: =NI1+1 ->  | NK1: =NJ1+1 ->  | NL1: =NK1+1 ->  | NM1: =NL1+1 ->  | NN1: =NM1+1 ->  | NO1: =NN1+1 ->  | NP1: =#REF!+1 ->  | NQ1: =NP1+1 ->  | NR1: =#REF!+1 ->  | NS1: =NQ1+1 ->  | NU1: =#REF!+1 ->  | NV1: =#REF!+1 ->  | NW1: =#REF!+1 ->  | NX1: =NW1+1 ->  | NY1: =NX1+1 ->  | NZ1: =#REF!+1 ->  | OA1: =NZ1+1 ->  | OB1: =#REF!+1 ->  | OC1: =OB1+1 ->  | OD1: =OC1+1 ->  | OE1: =OD1+1 ->  | OF1: =OE1+1 ->  | OG1: =OF1+1 ->  | OH1: =OG1+1 ->  | OI1: =OH1+1 ->  | OJ1: =OI1+1 ->  | OK1: =OJ1+1 ->  | OL1: =OK1+1 ->  | OM1: =OL1+1 ->  | ON1: =OM1+1 ->  | OO1: =ON1+1 ->  | OP1: =OO1+1 ->  | OQ1: =OP1+1 ->  | OR1: =OQ1+1 ->  | OS1: =OR1+1 ->  | OT1: =OS1+1 ->  | OU1: =OT1+1 ->  | OV1: =OU1+1 ->  | OW1: =OV1+1 ->  | OX1: =OW1+1 ->  | OY1: =OX1+1 ->  | OZ1: =OY1+1 ->  | PA1: =OZ1+1 ->  | PB1: =PA1+1 ->  | PC1: =PB1+1 ->  | PD1: =#REF!+1 ->  | PE1: =PD1+1 ->  | PF1: =PE1+1 ->  | PG1: =PF1+1 ->  | PH1: =PG1+1 ->  | PI1: =PH1+1 ->  | PJ1: =PI1+1 ->  | PK1: =PJ1+1 ->  | PL1: =PK1+1 ->  | PM1: =PL1+1 ->  | PN1: =PM1+1 ->  | PO1: =PN1+1 ->  | PP1: =PO1+1 ->  | PQ1: =PP1+1 ->  | PR1: =PQ1+1 ->  | PS1: =PR1+1 ->  | PT1: =PS1+1 ->  | PU1: =PT1+1 ->  | PV1: =PU1+1 ->  | PW1: =PV1+1 ->  | PX1: =PW1+1 ->  | PY1: =PX1+1 ->  | PZ1: =PY1+1 ->  | QA1: =#REF!+1 ->  | QB1: =QA1+1 ->  | QE1: 0 | QX1: . | RU1: 0 | SF1: =SE1+1 -> 1 | SG1: 2 | SH1: 3 | SI1: 4 | SJ1: 5 | SK1: 6 | SL1: 7 | SM1: 8 | SN1: 9 | SO1: 10 | SP1: 11 | SQ1: 12 | SR1: 13 | SS1: 14
A2: NOMBRE DEPARTAMENTO: | D2: BOGOTA | E2: CODIGO DEPARTAMENTO: | G2: =VLOOKUP(D2,Tabla2[[DEPARTAMENTO]:[CODEP]],2,0) -> 11
A3: AÑO: | D3: 2022 | QC3: . | RU3: .
A4: MES DE REPORTE | D4: Abril | F4: VACUNAS PAI | S4: VACUNAS PAI | BV4: VACUNAS PAI | DF4: VACUNAS PAI | EM4: VACUNAS PAI | FI4: VACUNAS PAI | GN4: VACUNAS PAI | HE4: VACUNAS PAI | LU4: VACUNAS PAI | PB4: VACUNAS PAI | PY4: VACUNAS PAI | SE4: BIOLÓGICOS COMPRADOS DIRECTAMENTE POR SDS A OPS Y ENTREGADO A SUBREDES
A5: MUNICIPIO | D5: REGIMEN / GRUPO ETNICO | E5: BCG | I5: HEPATITIS B | AF5: HEPATITIS B (RESOLUCION. 0459/2012 y Circular 031/2014) | BL5: POBLACION PRIORIZADA PARA HEPATITIS B (Entidades Territoriales priorizados ) | BP5: ANTIPOLIO INACTIVADA (VIP) | CX5: POLIO ORAL - VOP | DF5: PENTAVALENTE DPT - HB - Hib | DQ5: PENTAVALENTE DPT - HB - Hib (CUANDO EL MINISTERIO LA AUTORICE) | DU5: DPT | EU5: DTPa Acelular Pediatrica | FZ5: TOXOIDE TETANICO-DIFTERICO PEDIATRICO (TD) | HE5: ROTAVIRUS | HG5: NEUMOCOCO CONJUGADA DECAVALENTE | HM5: NEUMOCOCO CONJUGADA TRECEVALENTE | HS5: SRP (TRIPLE VIRAL) | IK5: SR (DOBLE VIRAL) | JB5: FIEBRE AMARILLA DOSIS UNICA | JU5: HEPATITIS A (Cohorte de nacidos a partir de 1 de enero de 2012) | KE5: VARICELA (Cohorte de nacidos a partir de 1 de julio de 2014) | KQ5: TOXOIDE TETANICO-DIFTERICO DE ADULTOS (Td) | MV5: Tdap ACELULAR | NH5: INFLUENZA | NW5: MENINGOCOCO (PARA USO EN BROTES) | OC5: V P H | PF5: ANTIRRABICA HUMANA PRE/POST-EXPOSICION | PT5: INMUNOGLOBULINA ANTI HEPATITIS B | PY5: INMUNOGLOBULINAS/ANTITOXINAS TETÁNICAS | QA5: ANTI TOXINA DIFTERICA (Suero heterólogo) | RY5: NEUMOCOCO POLISACARIDO BOGOTÁ PAI | SF5: ANTIRRABICA HUMANA PRE/POST-EXPOSICION | TA5: POBLACION PRIORIZADA PARA HEPATITIS B (Municipios priorizados)
E6: NIÑO O NIÑA RECIEN NACIDO (DE 0 HASTA 29 DÍAS) | F6: NIÑO O NIÑA MENOR DE UN AÑO (A PARTIR DE 30 DIAS HASTA 11 MESES 29 DIAS) | G6: POBLACION INDIGENA Y RURAL DISPERSA (DE 1 AÑO A 5 AÑOS, 11 MESES, 29 DIAS) | H6: CONTACTOS DE HANSEN (LEPRA) OTRAS EDADES | I6: RECIEN NACIDO (HASTA 29 DÍAS) | K6: DE 2 A 11 MESES 29 DÍAS | N6: DE 1 AÑO | Q6: DE 2 AÑOS | T6: DE 3 AÑOS | W6: DE 4 AÑOS | Z6: DE 5 AÑOS | AC6: DE 6 a 18 AÑOS (ICBF) | AF6: DE 1 AÑO | AJ6: DE 2 AÑOS | AN6: DE 3 AÑOS | AR6: DE 4 AÑOS | AV6: DE 5 AÑOS | AZ6: 6 A 14 AÑOS | BD6: DE 15 AÑOS A 17 AÑOS | BH6: DE 18 AÑOS Y MAS | BP6: < DE 1 AÑO | BS6: DE 1 AÑO | BV6: DE 2 AÑOS | BY6: DE 3 AÑOS | CB6: DE 4 AÑOS | CE6: DE 5 AÑOS | CH6: AL AÑO DE LA 3ra DOSIS (De 18 a 23 meses) | CI6: DE 2 AÑOS | CJ6: DE 3 AÑOS | CK6: DE 4 AÑOS | CL6: DE 5 AÑOS | CM6: 3 AÑOS | CN6: 4 AÑOS | CO6: 5 AÑOS | CP6: DE 6 AÑOS | CS6: DE 7 A 17 AÑOS (AUTORIZADAS POR EL MINISTERIO) | CV6: DE 18 A 60 AÑOS (AUTORIZADAS POR EL MINISTERIO) | CX6: AL AÑO DE LA 3ra DOSIS (De 18 a 23 meses) | CY6: DE 2 AÑOS | CZ6: DE 3 AÑOS | DA6: DE 4 AÑOS | DB6: DE 5 AÑOS | DC6: 3 AÑOS | DD6: 4 AÑOS | DE6: 5 AÑOS | DF6: < DE 1 AÑO | DI6: DE 1 AÑO | DL6: AL AÑO DE LA 3ra DOSIS (De 18 a 23 meses) | DM6: DE 2 AÑOS | DN6: DE 3 AÑOS | DO6: DE 4 AÑOS | DP6: DE 5 AÑOS | DQ6: DE 2 AÑOS | DR6: DE 3 AÑOS | DS6: DE 4 AÑOS | DT6: DE 5 AÑOS | DU6: < DE 1 AÑO | DX6: DE 1 AÑO | EA6: DE 2 AÑOS | ED6: DE 3 AÑOS | EG6: DE 4 AÑOS | EJ6: DE 5 AÑOS | EM6: AL AÑO DE LA 3ra DOSIS (De 18 a 23 meses) | EN6: DE 2 AÑOS | EO6: DE 3 AÑOS | EP6: DE 4 AÑOS | EQ6: DE 5 AÑOS | ER6: 3 AÑOS | ES6: 4 AÑOS | ET6: 5 AÑOS | EU6: < DE 1 AÑO | EX6: DE 1 AÑO | FA6: DE 2 AÑOS | FD6: DE 3 AÑOS | FG6: DE 4 AÑOS | FJ6: DE 5 AÑOS | FM6: AL AÑO DE LA 3ra DOSIS (De 18 a 23 meses) | FN6: DE 2 AÑOS | FO6: DE 3 AÑOS | FP6: DE 4 AÑOS | FQ6: DE 5 AÑOS | FR6: 3 AÑOS | FS6: 4 AÑOS | FT6: 5 AÑOS | FU6: DE 6 AÑOS | FZ6: < DE 1 AÑO | GC6: DE 1 AÑO | GF6: DE 2 AÑOS | GI6: DE 3 AÑOS | GL6: DE 4 AÑOS | GO6: DE 5 AÑOS | GR6: AL AÑO DE LA 3ra DOSIS (De 18 a 23 meses) | GS6: DE 2 AÑOS | GT6: DE 3 AÑOS | GU6: DE 4 AÑOS | GV6: DE 5 AÑOS | GW6: 3 AÑOS | GX6: 4 AÑOS | GY6: 5 AÑOS | GZ6: DE 6 AÑOS | HE6: DE 2 MESES A 3 MESES y 21 DIAS | HF6: DE 4 MESES A 11 MESES y 29 DIAS | HG6: DE 2 A 11 MESES 29 DIAS | HI6: DE 12 MESES A 23 MESES | HJ6: DE 12 A 23 MESES | HL6: DE 24 MESES A 5 AÑOS | HM6: DE 2 A 11 MESES 29 DIAS | HO6: DE 12 MESES A 23 MESES | HP6: DE 12 A 23 MESES | HR6: DE 24 MESES A 5 AÑOS | HS6: PRIMERA DOSIS | ID6: DOSIS DE REFUERZO | IK6: DOSIS CERO | IL6: DOSIS UNICA | JB6: DE 1 AÑO | JC6: DE 2 AÑOS | JD6: DE 3 AÑOS | JE6: DE 4 AÑOS | JF6: DE 5 AÑOS | JG6: DE 6 AÑOS | JH6: DE 7 AÑOS | JI6: DE 8 AÑOS | JJ6: DE 9 AÑOS | JK6: DE 10 AÑOS | JL6: DE 11 AÑOS | JM6: DE 12 AÑOS | JN6: DE 13 a 14 AÑOS | JO6: DE 15 a 17 AÑOS | JP6: 18 A 30 AÑOS | JQ6: 31 A 40 AÑOS | JR6: 41 A 50 AÑOS | JS6: 51 A 59 AÑOS | JT6: SOLO EN SITUACIÓN DE BROTE | JU6: DOSIS ÚNICA | KE6: PRIMERA DOSIS | KM6: REFUERZO | KQ6: NIÑOS Y NIÑAS DE 7 A 9 AÑOS | KV6: GESTANTES DE 9 AÑOS A 17 AÑOS | LA6: GESTANTES DE 18 AÑOS Y MAS | LF6: REFUERZOS GESTANTES 15 A 49 AÑOS | LJ6: MUJERES EN EDAD FERTIL (MEF) DE 10 AÑOS A 17 AÑOS | LO6: MUJERES EN EDAD FERTIL (MEF) DE 18 A 49 AÑOS | LT6: REFUERZOS MEF DE 15 A 49 AÑOS | LX6: HOMBRES DE 10 A 17 AÑOS | MC6: HOMBRES DE 18 A 49 AÑOS | MH6: REFUERZOS HOMBRES DE 15 A 49 AÑOS | ML6: OTROS DE 50 A 59 AÑOS | MQ6: OTROS DE 60 AÑOS Y MAS | MV6: DE 9 A 17 AÑOS GESTANTES de acuerdo al lineamiento | NB6: DE 18 Y MAS AÑOS GESTANTES de acuerdo al lineamiento | NH6: DE 6 MESES A 11 MESES | NJ6: DE 12 MESES A 23 MESES | NM6: 24 A 35 MESES | NP6: DE 60 Y MAS AÑOS | NQ6: GESTANTES A PARTIR DE LA SEMANA 14 | NR6: DE 3 A 8 AÑOS (Poblaciones autorizadas de acuerdo con los lineamientos emitidos por el MSPS ) | NU6: DE 9 A 17 AÑOS (Poblaciones autorizadas de acuerdo con los lineamientos emitidos por el MSPS ) | NV6: DE 18 A 59 AÑOS (Poblaciones autorizadas de acuerdo con los lineamientos emitidos por el MSPS ) | NW6: DE 6 A 11 MESES | NZ6: 12 A 23 MESES | OB6: MAYORES DE 2 AÑOS | OC6: 9 AÑOS | OF6: 10 AÑOS | OI6: 11 AÑOS | OL6: 12 AÑOS | OO6: 13 AÑOS | OR6: 14 AÑOS | OU6: 15 AÑOS | OX6: 16 AÑOS | PA6: 17 AÑOS | PD6: 18 AÑOS a 26 AÑOS | PF6: ESQUEMA PRE EXPOSICIÓN OPCION 1 (I.D.) (Se aplica previa autorización del Ministerio) | PH6: ESQUEMA PRE EXPOSICIÓN OPCION 2 (I.M.) (Se aplica previa autorización del Ministerio) | PJ6: ESQUEMA POST EXPOSICION Número de dosis aplicadas | PN6: ESQUEMA POST EXPOSICION ACORTADO (ZAGREB) Número de dosis aplicadas | PQ6: TOTAL DE ESQUEMAS POST EXPOSICION (USUARIOS CON ESQUEMA DE VACUNACION COMPLETO) | PR6: INMUNOGLOBULINA ANTIRRÁBICA (Número de frascos utilizados) | PS6: No. De personas que recibieron inmunoglobulina antirrabica. | PT6: RECIEN NACIDO (Hijo de Madre Antigenos + para HB) | PW6: (RESOLUCION 0459/2012- circular 031/14) | PY6: INMUNOGLOBULINA ANTI TETANICA (Suero homólogo) | QD6: codepcomure | QE6: DOSIS APLICADAS POR BIOLOGICOS | QW6: FLU | RG6: ANTI RABICA HUMANA PRE/POST-EXPOSICION | RN6: INMUNO GLOBULINA ANTI HEPATITIS B | RQ6: (RESOLUCION 0459/2012- circular 031/14) | RS6: ANTI TOXINA TETANICA | RY6: DE 2 A 5 AÑOS | RZ6: DE 6 A 14 AÑOS | SA6: DE 15 A 18 AÑOS | SB6: DE 19 A 59 AÑOS | SC6: DE 60 Y MAS AÑOS | SD6: A LOS 5 AÑOS DE LA 1ra DOSIS | SF6: ESQUEMA PRE EXPOSICIÓN OPCION 1 (I.D.) (Se aplica previa autorización del Ministerio) | SH6: ESQUEMA PRE EXPOSICIÓN OPCION 2 (I.M.) (Se aplica previa autorización del Ministerio) | SJ6: ESQUEMA POST EXPOSICION Número de dosis aplicadas | SN6: ESQUEMA POST EXPOSICION ACORTADO (ZAGREB) Número de dosis aplicadas | SQ6: TOTAL DE ESQUEMAS POST EXPOSICION (USUARIOS CON ESQUEMA DE VACUNACION COMPLETO) | SR6: INMUNOGLOBULINA ANTIRRÁBICA (Número de frascos utilizados) | SS6: No. De personas que recibieron inmunoglobulina antirrabica. | SU6: ANTI RABICA HUMANA PRE/POST-EXPOSICION | TA6: HOMBRES QUE TIENEN SEXO CON HOMBRES | TD6: TRABAJADORAS(RES) SEXUALES | TG6: MUJERES TRANSGENERO | TJ6: PERSONAS QUE SE INYECTAN DROGAS | TM6: HABITANTES DE CALLE
A7: Nº | B7: COD DANE MPIO | C7: NOMBRE MUNICIPIO/ IPS | I7: RECIEN NACIDO (Primeras 12 Horas) | J7: RECIEN NACIDO Entre 12 horas y 29 dias | K7: 1a | L7: 2a | M7: 3a | N7: 1a | O7: 2a | P7: 3a | Q7: 1a | R7: 2a | S7: 3a | T7: 1a | U7: 2a | V7: 3a | W7: 1a | X7: 2a | Y7: 3a | Z7: 1a | AA7: 2a | AB7: 3a | AC7: 1a | AD7: 2a | AE7: 3a | AF7: 1a | AG7: 2a | AH7: 3a | AI7: Adicional | AJ7: 1a | AK7: 2a | AL7: 3a | AM7: Adicional | AN7: 1a | AO7: 2a | AP7: 3a | AQ7: Adicional | AR7: 1a | AS7: 2a | AT7: 3a | AU7: Adicional | AV7: 1a | AW7: 2a | AX7: 3a | AY7: Adicional | AZ7: 1a | BA7: 2a | BB7: 3a | BC7: Adicional | BD7: 1a | BE7: 2a | BF7: 3a | BG7: Adicional | BH7: 1a | BI7: 2a | BJ7: 3a | BK7: Adicional | BL7: 1a | BM7: 2a | BN7: 3a | BO7: adicional | BP7: 1a | BQ7: 2a | BR7: 3a | BS7: 1a | BT7: 2a | BU7: 3a | BV7: 1a | BW7: 2a | BX7: 3a | BY7: 1a | BZ7: 2a | CA7: 3a | CB7: 1a | CC7: 2a | CD7: 3a | CE7: 1a | CF7: 2a | CG7: 3a | CH7: Primer Refuerzo | CM7: Segundo Refuerzo | CO7: Segundo Refuerzo | CP7: 1a | CQ7: 2a | CR7: 3a | CS7: 1a | CT7: 2a | CU7: 3a | CV7: 1a | CW7: 2a | CX7: 1er REF. | DC7: 2° REF. | DF7: 1a | DG7: 2a | DH7: 3a | DI7: 1a | DJ7: 2a | DK7: 3a | DL7: 1er REF de acuerdo a lineamiento | DQ7: 1a | DR7: 1a | DS7: 1a | DT7: 1a | DU7: 1a | DV7: 2a | DW7: 3a | DX7: 1a | DY7: 2a | DZ7: 3a | EA7: 1a | EB7: 2a | EC7: 3a | ED7: 1a | EE7: 2a | EF7: 3a | EG7: 1a | EH7: 2a | EI7: 3a | EJ7: 1a | EK7: 2a | EL7: 3a | EM7: 1er REF. | ER7: 2° REF. | EU7: 1a | EV7: 2a | EW7: 3a | EX7: 1a | EY7: 2a | EZ7: 3a | FA7: 1a | FB7: 2a | FC7: 3a | FD7: 1a | FE7: 2a | FF7: 3a | FG7: 1a | FH7: 2a | FI7: 3a | FJ7: 1a | FK7: 2a | FL7: 3a | FM7: 1er REF. | FR7: 2° REF. | FU7: 1a | FV7: 2a | FW7: 3a | FX7: 1er REF. | FY7: 2° REF. | FZ7: 1a | GA7: 2a | GB7: 3a | GC7: 1a | GD7: 2a | GE7: 3a | GF7: 1a | GG7: 2a | GH7: 3a | GI7: 1a | GJ7: 2a | GK7: 3a | GL7: 1a | GM7: 2a | GN7: 3a | GO7: 1a | GP7: 2a | GQ7: 3a | GR7: 1er REF. | GW7: 2° REF. | GZ7: 1a | HA7: 2a | HB7: 3a | HC7: 1er REF. | HD7: 2° REF. | HE7: 1a | HF7: 2a | HG7: 1a | HH7: 2a | HI7: REF. | HJ7: 1a | HK7: 2a | HL7: ÚNICA | HM7: 1a | HN7: 2a | HO7: REF. | HP7: 1a | HQ7: 2a | HR7: ÚNICA | HS7: DE 1 AÑO | HT7: DE 2 AÑOS | HU7: DE 3 AÑOS | HV7: DE 4 AÑOS | HW7: DE 5 AÑOS | HX7: DE 6 AÑOS | HY7: DE 7 AÑOS | HZ7: DE 8 AÑOS | IA7: DE 9 AÑOS | IB7: DE 10 AÑOS | IC7: DE 11 AÑOS | ID7: DE 5 AÑOS | IE7: DE 6 AÑOS | IF7: DE 7 AÑOS | IG7: DE 8 AÑOS | IH7: DE 9 AÑOS | II7: DE 10 AÑOS | IJ7: DE 11 AÑOS | IK7: SR * 6 a 11 MESES 29 DIAS | IL7: DE 1 AÑO | IM7: DE 2 AÑOS | IN7: DE 3 AÑOS | IO7: DE 4 AÑOS | IP7: DE 5 AÑOS | IQ7: DE 6 AÑOS | IR7: DE 7 AÑOS | IS7: DE 8 AÑOS | IT7: DE 9 AÑOS | IU7: DE 10 AÑOS | IV7: DE 11 AÑOS | IW7: DE 12 a 14 AÑOS | IX7: DE 15 a 17 AÑOS | IY7: 18 A 30 AÑOS | IZ7: 31 A 40 AÑOS | JA7: 41 Y MAS AÑOS | JT7: 6 meses a 11 meses (Con Autorizacion del MSPS de acuerdo a Lineamientos) | JU7: DE 1 AÑO | JV7: DE 2 AÑOS | JW7: DE 3 AÑOS | JX7: DE 4 AÑOS | JY7: DE 5 AÑOS | JZ7: DE 6 AÑOS | KA7: DE 7 AÑOS | KB7: DE 8 AÑOS | KC7: DE 9 AÑOS | KD7: DE 10 AÑOS | KE7: DE 1 AÑO | KF7: DE 2 AÑOS | KG7: DE 3 AÑOS | KH7: DE 4 AÑOS | KI7: DE 5 AÑOS | KJ7: DE 6 AÑOS | KK7: DE 7 AÑOS | KL7: DE 8 AÑOS | KM7: DE 5 AÑOS (aplicadas a partir del 1 de julio de 2019) | KN7: DE 6 AÑOS (aplicadas a partir del 1 de julio de 2019) | KO7: DE 7 AÑOS (aplicadas a partir del 1 de julio de 2019) | KP7: DE 8 AÑOS (aplicadas a partir del 1 de julio de 2019) | KQ7: Td1 | KR7: Td2 | KS7: Td3 | KT7: Ref 1 | KU7: Ref 2 | KV7: Td1 | KW7: Td2 | KX7: Td3 | KY7: Td4 | KZ7: Td5 | LA7: Td1 | LB7: Td2 | LC7: Td3 | LD7: Td4 | LE7: Td5 | LF7: REF. 1 | LG7: REF. 2 | LH7: REF. 3 | LI7: REF. 4 | LJ7: Td1 | LK7: Td2 | LL7: Td3 | LM7: Td4 | LN7: Td5 | LO7: Td1 | LP7: Td2 | LQ7: Td3 | LR7: Td4 | LS7: Td5 | LT7: REF. 1 | LU7: REF. 2 | LV7: REF. 3 | LW7: REF. 4 | LX7: Td1 | LY7: Td2 | LZ7: Td3 | MA7: Td4 | MB7: Td5 | MC7: Td1 | MD7: Td2 | ME7: Td3 | MF7: Td4 | MG7: Td5 | MH7: REF. 1 | MI7: REF. 2 | MJ7: REF. 3 | MK7: REF. 4 | ML7: Td1 | MM7: Td2 | MN7: Td3 | MO7: Td4 | MP7: Td5 | MQ7: Td1 | MR7: Td2 | MS7: Td3 | MT7: Td4 | MU7: Td5 | MV7: U DOSIS EN C/EMBARAZO | MW7: Corresponde a Td1 | MX7: Corresponde a Td2 | MY7: Corresponde a Td3 | MZ7: Corresponde a Td4 | NA7: Corresponde a Td5 | NB7: U DOSIS EN C/EMBARAZO | NC7: Corresponde a Td1 | ND7: Corresponde a Td2 | NE7: Corresponde a Td3 | NF7: Corresponde a Td4 | NG7: Corresponde a Td5 | NH7: 1a | NI7: 2a | NJ7: 1a | NK7: 2a | NL7: ÚNICA | NM7: 1a | NN7: 2a | NO7: ÚNICA | NP7: ÚNICA | NQ7: ÚNICA | NR7: 1a | NS7: 2a | NT7: ÚNICA | NU7: ÚNICA | NV7: ÚNICA | NW7: 1a | NX7: 2a | NY7: 3a | NZ7: 1a | OA7: 2a | OB7: ÚNICA | OC7: 1a | OD7: 2a | OE7: 3a | OF7: 1a | OG7: 2a | OH7: 3a | OI7: 1a | OJ7: 2a | OK7: 3a | OL7: 1a | OM7: 2a | ON7: 3a | OO7: 1a | OP7: 2a | OQ7: 3a | OR7: 1a | OS7: 2a | OT7: 3a | OU7: 1a | OV7: 2a | OW7: 3a | OX7: 1a | OY7: 2a | OZ7: 3a | PA7: 1a | PB7: 2a | PC7: 3a | PD7: 2a | PE7: 3a | PF7: 1a. y 2a día 0 | PG7: 3a y 4a. día 7 | PH7: 1a . día 0 | PI7: 2a. día 7 | PJ7: 1a. día 0 | PK7: 2a. dia 3 | PL7: 3a. día 7 | PM7: 4a . día 14 | PN7: 1era. y 2da dosis 0,0 | PO7: 3a. día 7 | PP7: 4a. día 21 | PQ7: Número de usuarios | PT7: Número de frascos utilizados | PU7: N° recién nacidos que recibieron dosis de Ig en las primeras 12 horas | PV7: N° recién nacidos que recibieron dosis de Ig despues de las primeras 12 horas | PW7: Número de frascos utilizados | PX7: N° Personas que recibieron dosis de Ig | PY7: Número de frascos utilizados | PZ7: N° Personas que recibieron dosis de Ig | QA7: Número de frascos utilizados | QB7: N° Personas que recibieron dosis de antitoxina | QC7: TOTAL DOSIS | QE7: BCG | QF7: HEPATITIS B | QG7: ANTIPOLIO INACTIVADA (VIP) PARENTERAL | QH7: ANTIPOLIO (VOP) ORAL | QI7: PENTAVALENTE DPT - HB - Hib | QJ7: DPT | QK7: DTPa Acelular Pediatrica | QL7: TOXOIDE TETANICO-DIFTERICO PEDIATRICO (TD) | QM7: ROTAVIRUS | QN7: NEUMOCOCO CONJUGADA DECAVALENTE | QO7: NEUMOCOCO CONJUGADA TRECEVALENTE | QP7: SRP (TRIPLE VIRAL) | QQ7: SR | QR7: FIEBRE AMARILLA | QS7: HEPATITIS A | QT7: VARICELA | QU7: TOXOIDE TETANICO-DIFTERICO DE ADULTOS (Td) | QV7: dTpa. ACELULAR | QW7: DE 6 MESES A 23 MESES | QX7: DE 12 MESES A 23 MESES | QY7: 24 A 35 MESES | QZ7: DE 60 AÑOS Y MAS | RA7: Gestantes a partir de la semana 14 | RB7: DE 3 A 8 AÑOS (Poblaciones autorizadas de acuerdo con los lineamientos emitidos por el MSPS ) | RC7: DE 9 A 17 AÑOS (Poblaciones autorizadas de acuerdo con los lineamientos emitidos por el MSPS ) | RD7: DE 18 A 59 AÑOS (Poblaciones autorizadas de acuerdo con los lineamientos emitidos por el MSPS ) | RE7: MENINGOCOCO (PARA USO EN BROTES) ÚNICA | RF7: V. P. H. | RG7: ESQUEMA PRE EXPOSICIÓN OPCION 1 (I.D.) (Se aplica previa autorización del Ministerio) | RH7: ESQUEMA PRE EXPOSICIÓN OPCION 2 (I.M.) | RI7: ESQUEMA POST EXPOSICION Número de dosis aplicadas | RJ7: ESQUEMA POST EXPOSICION ACORTADO (ZAGREB) Número de dosis aplicadas | RK7: TOTAL DE ESQUEMAS POST EXPOSICION (USUARIOS CON ESQUEMA DE VACUNACION COMPLETO) | RL7: INMUNOGLOBULINA ANTIRRÁBICA (Número de frascos utilizados) | RM7: TOTAL DE ESQUEMAS POST EXPOSICION (USUARIOS CON ESQUEMA DE VACUNACION COMPLETO) | RN7: RECIEN NACIDO (Hijo de Madre Antigenos + para HB) Número de frascos utilizados | RO7: N° recién nacidos que recibieron dosis de Ig en las primeras 12 horas | RP7: N° recién nacidos que recibieron dosis de Ig despues de las primeras 12 horas | RQ7: Número de frascos utilizados | RR7: N° Personas que recibieron dosis de Ig | RS7: Número de frascos utilizados | RT7: N° Personas que recibieron dosis de Ig | RU7: ANTI TOXINA DIFTERICA (Suero heterólogo) Número de frascos utilizados | RV7: N° Personas que recibieron dosis de antitoxina | RW7: TOTAL DOSIS | SD7: REF. | SE7: Total neumo 23 | SF7: 1a. día 0 | SG7: 2a . día 7 | SH7: 1a . día 0 | SI7: 2a. día 7 | SJ7: 1a. día 0 | SK7: 2a. dia 3 | SL7: 3a. día 7 | SM7: 4a . día 14 | SN7: 1era. y 2da dosis 0,0 | SO7: 3a. día 7 | SP7: 4a. día 21 | SQ7: Número de usuarios | SU7: ESQUEMA PRE EXPOSICIÓN | SV7: ESQUEMA POST EXPOSICION | SW7: ESQUEMA POST EXPOSICION (USUARIOS CON ESQUEMA DE VACUNACION COMPLETO) | SX7: INMUNOGLOBULINA ANTIRRÁBICA (Número de frascos utilizados) | SY7: No. De personas que recibieron Inmunoglobulina antirrabica | TA7: 1a | TB7: 2a | TC7: 3a | TD7: 1a | TE7: 2a | TF7: 3a | TG7: 1a | TH7: 2a | TI7: 3a | TJ7: 1a | TK7: 2a | TL7: 3a | TM7: 1a | TN7: 2a | TO7: 3a | TQ7: 3a HB | TR7: 3Hib | TS7: 3a Polio | TT7: 1erR polio | TU7: 2o R polio
B8: 01 | C8: USAQUEN | D8: FEMENINO | E8: 415 | F8: 6 | G8: 1 | H8: 0 | I8: 410 | J8: 13 | K8: 0 | L8: 0 | M8: 0 | N8: 0 | O8: 0 | P8: 4 | Q8: 0 | R8: 0 | S8: 3 | T8: 0 | U8: 0 | V8: 0 | W8: 0 | X8: 0 | Y8: 0 | Z8: 0 | AA8: 0 | AB8: 0 | AZ8: 0 | BA8: 1 | BB8: 0 | BC8: 0 | BD8: 0 | BE8: 0 | BF8: 1 | BG8: 0 | BH8: 5 | BI8: 0 | BJ8: 0 | BK8: 0 | BP8: 149 | BQ8: 144 | BR8: 140 | BS8: 0 | BT8: 0 | BU8: 4 | BV8: 1 | BW8: 0 | BX8: 1 | BY8: 0 | BZ8: 0 | CA8: 0 | CB8: 0 | CC8: 0 | CD8: 0 | CH8: 1 | CO8: 2 | CR8: 2 | CU8: 2 | CX8: 147 | CY8: 5 | CZ8: 2 | DA8: 2 | DB8: 2 | DC8: 0 | DD8: 0 | DE8: 160 | DF8: 149 | DG8: 144 | DH8: 140 | DQ8: 1 | DU8: 0 | DV8: 0 | DW8: 0 | DX8: 0 | DY8: 0 | DZ8: 4 | EA8: 0 | EB8: 0 | EC8: 2 | ED8: 0 | EE8: 0 | EF8: 0 | EG8: 0 | EH8: 0 | EI8: 0 | EJ8: 0 | EK8: 0 | EL8: 0 | EM8: 148 | EN8: 5 | EO8: 2 | EP8: 2 | EQ8: 2 | ER8: 0 | ES8: 0 | ET8: 161 | EX8: 0 | EY8: 0 | EZ8: 0 | FA8: 0 | FB8: 0 | FC8: 1 | FY8: 0 | HE8: 195 | HF8: 200 | HG8: 185 | HH8: 171 | HI8: 148 | HJ8: 4 | HK8: 1 | HL8: 12 | HS8: 150 | HT8: 2 | HU8: 0 | HV8: 0 | ID8: 179 | IE8: 3 | IF8: 3 | IG8: 1 | IH8: 0 | II8: 1 | IK8: 0 | IL8: 116 | IM8: 20 | IN8: 35 | IO8: 40 | IP8: 32 | IQ8: 30 | IR8: 30 | IS8: 38 | IT8: 28 | IU8: 24 | IV8: 39 | IX8: 11 | IY8: 141 | IZ8: 64 | JA8: 53 | JB8: 203 | JC8: 7 | JD8: 3 | JE8: 3 | JF8: 3 | JG8: 1 | JH8: 0 | JI8: 0 | JJ8: 0 | JK8: 0 | JL8: 0 | JM8: 1 | JN8: 3 | JO8: 15 | JP8: 115 | JQ8: 33 | JR8: 23 | JS8: 15 | JT8: 0 | JU8: 168 | JV8: 6 | JW8: 3 | JX8: 2 | JY8: 4 | JZ8: 0 | KA8: 1 | KB8: 1 | KE8: 155 | KF8: 5 | KG8: 3 | KH8: 1 | KI8: 5 | KJ8: 0 | KK8: 1 | KM8: 175 | KN8: 6 | KO8: 4 | KQ8: 0 | KR8: 0 | KS8: 0 | KT8: 0 | KU8: 2 | KV8: 5 | KW8: 3 | KX8: 0 | KY8: 0 | KZ8: 0 | LA8: 236 | LB8: 153 | LC8: 38 | LD8: 30 | LE8: 22 | LF8: 2 | LG8: 0 | LH8: 0 | LI8: 0 | LJ8: 34 | LK8: 11 | LL8: 2 | LM8: 2 | LN8: 0 | LO8: 145 | LP8: 85 | LQ8: 87 | LR8: 64 | LS8: 47 | LT8: 19 | LU8: 0 | LV8: 0 | LW8: 0 | LX8: 0 | LY8: 0 | LZ8: 0 | MA8: 0 | MB8: 0 | MC8: 0 | MD8: 0 | ME8: 0 | MF8: 0 | MG8: 1 | MH8: 0 | MI8: 0 | MJ8: 0 | MK8: 0 | ML8: 0 | MM8: 0 | MN8: 0 | MO8: 0 | MP8: 0 | MQ8: 0 | MR8: 0 | MS8: 0 | MT8: 0 | MU8: 0 | MV8: 0 | MW8: 3 | MX8: 4 | MY8: 0 | MZ8: 0 | NA8: 0 | NB8: 229 | NC8: 117 | ND8: 166 | NE8: 44 | NF8: 27 | NG8: 26 | OC8: 82 | OD8: 26 | OE8: 0 | OF8: 49 | OG8: 76 | OH8: 0 | OI8: 40 | OJ8: 48 | OK8: 0 | OL8: 35 | OM8: 40 | ON8: 0 | OO8: 39 | OP8: 26 | OQ8: 0 | OR8: 43 | OS8: 23 | OT8: 0 | OU8: 30 | OV8: 18 | OW8: 0 | OX8: 31 | OY8: 19 | OZ8: 0 | PA8: 12 | PB8: 17 | PC8: 0 | PD8: 4 | PE8: 2 | PF8: 0 | PG8: 0 | PH8: 0 | PI8: 0 | PJ8: 0 | PK8: 0 | PL8: 0 | PM8: 0 | PN8: 56 | PO8: 30 | PP8: 28 | PQ8: 28 | PR8: 87 | PS8: 19 | PT8: 0 | PU8: 0 | PV8: 0 | PW8: 9 | PX8: 5 | QC8: =SUM(E8:QB8)-PQ8-PS8-PX8 -> 7,779 | QE8: =SUM(E8:H8) -> 422.0 | QF8: =SUM(I8:BO8) -> 437.0 | QG8: =SUM(BP8:CW8) -> 446.0 | QH8: =SUM(CX8:DE8) -> 318.0 | QI8: =SUM(DF8:DT8) -> 434.0 | QJ8: =SUM(DU8:ET8) -> 326.0 | QK8: =SUM(EU8:FY8) -> 1.0 | QL8: =SUM(FZ8:HD8) -> 0.0 | QM8: =SUM(HE8:HF8) -> 395.0 | QN8: =SUM(HG8:HL8) -> 521.0 | QO8: =SUM(HM8:HR8) -> 0.0 | QP8: =SUM(HS8:IJ8) -> 339.0 | QQ8: =SUM(IK8:JA8) -> 701.0 | QR8: =SUM(JB8:JT8) -> 425.0 | QS8: =SUM(JU8:KD8) -> 185.0 | QT8: =SUM(KE8:KP8) -> 355.0 | QU8: =SUM(KQ8:MU8) -> 988.0 | QV8: =SUM(MV8:NG8) -> 616.0 | QW8: =SUM(NH8:NI8) -> 0.0 | QX8: =SUM(NJ8:NL8) -> 0.0 | QY8: =SUM(NM8:NO8) -> 0.0 | QZ8: =SUM(NP8) -> 0.0 | RA8: =SUM(NQ8) -> 0.0 | RB8: =SUM(NR8:NT8) -> 0.0 | RC8: =SUM(NU8) -> 0.0 | RD8: =SUM(NV8) -> 0.0 | RE8: =SUM(NW8:OB8) -> 0.0 | RF8: =SUM(OC8:PE8) -> 660.0 | RG8: =SUM(PF8:PG8) -> 0.0 | RH8: =SUM(PH8:PI8) -> 0.0 | RI8: =SUM(PJ8:PM8) -> 0.0 | RJ8: =SUM(PN8:PP8) -> 114.0 | RK8: =SUM(PQ8) -> 28.0 | RL8: =SUM(PR8) -> 87.0 | RM8: =SUM(PS8) -> 19.0 | RN8: =SUM(PT8) -> 0 | RO8: =SUM(PU8) -> 0 | RP8: =SUM(PV8) -> 0 | RQ8: =SUM(PW8) -> 9.0 | RR8: =SUM(PX8) -> 5.0 | RS8: =SUM(PY8) -> 0.0 | RT8: =SUM(PZ8) -> 0.0 | RU8: =SUM(QA8) -> 0.0 | RV8: =SUM(QB8) -> 0.0 | RW8: =SUM(QE8:RU8)-SUM(RK8,RM8)-SUM(RR8:RT8) -> 7,779.0 | RY8: 0 | RZ8: 0 | SA8: 0 | SB8: 9 | SC8: 143 | SD8: 28 | SE8: =SUM(RY8:SD8) -> 180 | SN8: 20 | SO8: 3 | SU8: =SF8+SG8 -> 0 | SV8: =SH8+SI8+SJ8+SK8+SL8+SM8+SN8+SO8+SP8 -> 23 | SW8: =SQ8 -> 0 | SX8: =SR8 -> 0 | SY8: =SS8 -> 0 | TA8: 0 | TB8: 0 | TC8: 0 | TD8: 0 | TE8: 0 | TF8: 0 | TG8: 0 | TH8: 0 | TI8: 0 | TJ8: 0 | TK8: 0 | TL8: 0 | TM8: 0 | TN8: 0 | TO8: 0 | TQ8: =M8+DH8+'2_MERCADO_PRIVADO'!BW8+'2_MERCADO_PRIVADO'!G8 -> 245 | TR8: =DH8+'2_MERCADO_PRIVADO'!AP8+'2_MERCADO_PRIVADO'!BW8 -> 245 | TS8: =BR8+'2_MERCADO_PRIVADO'!AP8+'2_MERCADO_PRIVADO'!BW8+'2_MERCADO_PRIVADO'!DD8 -> 245 | TT8: =CH8+CX8+'2_MERCADO_PRIVADO'!BF8+'2_MERCADO_PRIVADO'!CM8+'2_MERCADO_PRIVADO'!DT8 -> 231 | TU8: =CO8+DE8+'2_MERCADO_PRIVADO'!BM8+'2_MERCADO_PRIVADO'!CT8+'2_MERCADO_PRIVADO'!EA8 -> 218
D9: MASCULINO | E9: 429 | F9: 6 | G9: 0 | H9: 0 | I9: 410 | J9: 22 | K9: 0 | L9: 0 | M9: 0 | N9: 0 | O9: 2 | P9: 0 | Q9: 0 | R9: 0 | S9: 1 | T9: 0 | U9: 0 | V9: 1 | W9: 1 | X9: 0 | Y9: 0 | Z9: 0 | AA9: 0 | AB9: 0 | AZ9: 0 | BA9: 0 | BB9: 0 | BC9: 0 | BD9: 0 | BE9: 0 | BF9: 0 | BG9: 0 | BH9: 0 | BI9: 0 | BJ9: 0 | BK9: 0 | BP9: 132 | BQ9: 152 | BR9: 138 | BS9: 0 | BT9: 2 | BU9: 0 | BV9: 0 | BW9: 0 | BX9: 1 | BY9: 0 | BZ9: 0 | CA9: 1 | CB9: 1 | CC9: 0 | CD9: 0 | CH9: 0 | CO9: 4 | CR9: 5 | CU9: 2 | CX9: 134 | CY9: 7 | CZ9: 2 | DA9: 0 | DB9: 3 | DC9: 0 | DD9: 0 | DE9: 215 | DF9: 132 | DG9: 151 | DH9: 139 | DU9: 0 | DV9: 0 | DW9: 0 | DX9: 0 | DY9: 0 | DZ9: 0 | EA9: 0 | EB9: 0 | EC9: 1 | ED9: 0 | EE9: 0 | EF9: 1 | EG9: 1 | EH9: 0 | EI9: 0 | EJ9: 0 | EK9: 0 | EL9: 0 | EM9: 133 | EN9: 7 | EO9: 2 | EP9: 0 | EQ9: 2 | ER9: 0 | ES9: 0 | ET9: 218 | EX9: 0 | EY9: 2 | EZ9: 0 | FA9: 0 | FB9: 0 | FC9: 0 | FY9: 1 | HE9: 173 | HF9: 205 | HG9: 162 | HH9: 185 | HI9: 177 | HJ9: 4 | HK9: 1 | HL9: 6 | HS9: 186 | HT9: 0 | HU9: 0 | HV9: 1 | ID9: 247 | IE9: 7 | IF9: 2 | IG9: 0 | IH9: 0 | II9: 0 | IK9: 0 | IL9: 106 | IM9: 14 | IN9: 33 | IO9: 32 | IP9: 28 | IQ9: 45 | IR9: 29 | IS9: 31 | IT9: 32 | IU9: 28 | IV9: 27 | IX9: 3 | IY9: 88 | IZ9: 51 | JA9: 27 | JB9: 202 | JC9: 9 | JD9: 1 | JE9: 1 | JF9: 1 | JG9: 0 | JH9: 0 | JI9: 0 | JJ9: 0 | JK9: 0 | JL9: 0 | JM9: 0 | JN9: 1 | JO9: 3 | JP9: 88 | JQ9: 44 | JR9: 19 | JS9: 14 | JT9: 0 | JU9: 206 | JV9: 1 | JW9: 1 | JX9: 2 | JY9: 1 | JZ9: 3 | KA9: 1 | KB9: 0 | KE9: 190 | KF9: 1 | KG9: 1 | KH9: 2 | KI9: 2 | KJ9: 3 | KK9: 1 | KM9: 251 | KN9: 6 | KO9: 2 | KQ9: 0 | KR9: 0 | KS9: 0 | KT9: 0 | KU9: 0 | KV9: 0 | KW9: 0 | KX9: 0 | KY9: 0 | KZ9: 0 | LA9: 0 | LB9: 0 | LC9: 0 | LD9: 0 | LE9: 0 | LF9: 0 | LG9: 0 | LH9: 0 | LI9: 0 | LJ9: 0 | LK9: 1 | LL9: 0 | LM9: 0 | LN9: 0 | LO9: 0 | LP9: 0 | LQ9: 0 | LR9: 0 | LS9: 0 | LT9: 0 | LU9: 0 | LV9: 0 | LW9: 0 | LX9: 0 | LY9: 0 | LZ9: 0 | MA9: 0 | MB9: 0 | MC9: 6 | MD9: 2 | ME9: 0 | MF9: 0 | MG9: 0 | MH9: 0 | MI9: 0 | MJ9: 0 | MK9: 0 | ML9: 0 | MM9: 0 | MN9: 0 | MO9: 0 | MP9: 0 | MQ9: 0 | MR9: 0 | MS9: 0 | MT9: 0 | MU9: 0 | MV9: 0 | MW9: 0 | MX9: 0 | MY9: 0 | MZ9: 0 | NA9: 0 | NB9: 0 | NC9: 0 | ND9: 0 | NE9: 0 | NF9: 0 | NG9: 0 | OC9: 0 | OD9: 0 | OE9: 0 | OF9: 0 | OG9: 0 | OH9: 0 | OI9: 0 | OJ9: 0 | OK9: 0 | OL9: 0 | OM9: 0 | ON9: 0 | OO9: 0 | OP9: 0 | OQ9: 0 | OR9: 0 | OS9: 0 | OT9: 0 | OU9: 0 | OV9: 0 | OW9: 0 | OX9: 0 | OY9: 0 | OZ9: 0 | PA9: 0 | PB9: 0 | PC9: 0 | PD9: 0 | PE9: 0 | PF9: 0 | PG9: 0 | PH9: 0 | PI9: 0 | PJ9: 0 | PK9: 0 | PL9: 0 | PM9: 0 | PN9: 77 | PO9: 41 | PP9: 20 | PQ9: 20 | PR9: 70 | PS9: 18 | PT9: 0 | PU9: 0 | PV9: 0 | PW9: 0 | PX9: 0 | QC9: =SUM(E9:QB9)-PQ9-PS9-PX9 -> 5,665 | QE9: 435.0 | QF9: 437.0 | QG9: 438.0 | QH9: 361.0 | QI9: 422.0 | QJ9: 365.0 | QK9: 3.0 | QL9: 0.0 | QM9: 378.0 | QN9: 535.0 | QO9: 0.0 | QP9: 443.0 | QQ9: 574.0 | QR9: 383.0 | QS9: 215.0 | QT9: 459.0 | QU9: 9.0 | QV9: 0.0 | QW9: 0.0 | QX9: 0.0 | QY9: 0.0 | QZ9: 0.0 | RA9: 0.0 | RB9: 0.0 | RC9: 0.0 | RD9: 0.0 | RE9: 0.0 | RF9: 0.0 | RG9: 0.0 | RH9: 0.0 | RI9: 0.0 | RJ9: 138.0 | RK9: 20.0 | RL9: 70.0 | RM9: 18.0 | RN9: 0 | RO9: 0 | RP9: 0 | RQ9: 0.0 | RR9: 0.0 | RS9: 0.0 | RT9: 0.0 | RU9: 0.0 | RV9: 0.0 | RW9: =SUM(QE9:RU9)-SUM(RK9,RM9)-SUM(RR9:RT9) -> 5,665.0 | RY9: 1 | RZ9: 2 | SA9: 0 | SB9: 8 | SC9: 75 | SD9: 11 | SE9: =SUM(RY9:SD9) -> 97 | SN9: 15 | SO9: 3 | SU9: =SF9+SG9 -> 0 | SV9: =SH9+SI9+SJ9+SK9+SL9+SM9+SN9+SO9+SP9 -> 18 | SW9: =SQ9 -> 0 | SX9: =SR9 -> 0 | SY9: =SS9 -> 0 | TA9: 0 | TB9: 0 | TC9: 0 | TD9: 0 | TE9: 0 | TF9: 0 | TG9: 0 | TH9: 0 | TI9: 0 | TJ9: 0 | TK9: 0 | TL9: 0 | TM9: 0 | TN9: 0 | TO9: 0 | TQ9: =M9+DH9+'2_MERCADO_PRIVADO'!BW9+'2_MERCADO_PRIVADO'!G9 -> 226 | TR9: =DH9+'2_MERCADO_PRIVADO'!AP9+'2_MERCADO_PRIVADO'!BW9 -> 226 | TS9: =BR9+'2_MERCADO_PRIVADO'!AP9+'2_MERCADO_PRIVADO'!BW9+'2_MERCADO_PRIVADO'!DD9 -> 225 | TT9: =CH9+CX9+'2_MERCADO_PRIVADO'!BF9+'2_MERCADO_PRIVADO'!CM9+'2_MERCADO_PRIVADO'!DT9 -> 223 | TU9: =CO9+DE9+'2_MERCADO_PRIVADO'!BM9+'2_MERCADO_PRIVADO'!CT9+'2_MERCADO_PRIVADO'!EA9 -> 288
D10: OTRO | E10: 0 | F10: 0 | G10: 0 | H10: 0 | I10: 0 | J10: 0 | K10: 0 | L10: 0 | M10: 0 | N10: 0 | O10: 0 | P10: 0 | Q10: 0 | R10: 0 | S10: 0 | T10: 0 | U10: 0 | V10: 0 | W10: 0 | X10: 0 | Y10: 0 | Z10: 0 | AA10: 0 | AB10: 0 | AZ10: 0 | BA10: 0 | BB10: 0 | BC10: 0 | BD10: 0 | BE10: 0 | BF10: 0 | BG10: 0 | BH10: 0 | BI10: 0 | BJ10: 0 | BK10: 0 | BP10: 0 | BQ10: 0 | BR10: 0 | BS10: 0 | BT10: 0 | BU10: 0 | BV10: 0 | BW10: 0 | BX10: 0 | BY10: 0 | BZ10: 0 | CA10: 0 | CB10: 0 | CC10: 0 | CD10: 0 | CH10: 0 | CO10: 0 | CR10: 0 | CU10: 0 | CX10: 0 | CY10: 0 | CZ10: 0 | DA10: 0 | DB10: 0 | DC10: 0 | DD10: 0 | DE10: 0 | DF10: 0 | DG10: 0 | DH10: 0 | DU10: 0 | DV10: 0 | DW10: 0 | DX10: 0 | DY10: 0 | DZ10: 0 | EA10: 0 | EB10: 0 | EC10: 0 | ED10: 0 | EE10: 0 | EF10: 0 | EG10: 0 | EH10: 0 | EI10: 0 | EJ10: 0 | EK10: 0 | EL10: 0 | EM10: 0 | EN10: 0 | EO10: 0 | EP10: 0 | EQ10: 0 | ER10: 0 | ES10: 0 | ET10: 0 | EX10: 0 | EY10: 0 | EZ10: 0 | FA10: 0 | FB10: 0 | FC10: 0 | FY10: 0 | HE10: 0 | HF10: 0 | HG10: 0 | HH10: 0 | HI10: 0 | HJ10: 0 | HK10: 0 | HL10: 0 | HS10: 0 | HT10: 0 | HU10: 0 | HV10: 0 | ID10: 0 | IE10: 0 | IF10: 0 | IG10: 0 | IH10: 0 | II10: 0 | IK10: 0 | IL10: 0 | IM10: 0 | IN10: 0 | IO10: 0 | IP10: 0 | IQ10: 0 | IR10: 0 | IS10: 0 | IT10: 0 | IU10: 0 | IV10: 0 | IX10: 0 | IY10: 0 | IZ10: 0 | JA10: 0 | JB10: 0 | JC10: 0 | JD10: 0 | JE10: 0 | JF10: 0 | JG10: 0 | JH10: 0 | JI10: 0 | JJ10: 0 | JK10: 0 | JL10: 0 | JM10: 0 | JN10: 0 | JO10: 0 | JP10: 0 | JQ10: 0 | JR10: 0 | JS10: 0 | JT10: 0 | JU10: 0 | JV10: 0 | JW10: 0 | JX10: 0 | JY10: 0 | JZ10: 0 | KA10: 0 | KB10: 0 | KE10: 0 | KF10: 0 | KG10: 0 | KH10: 0 | KI10: 0 | KJ10: 0 | KK10: 0 | KM10: 0 | KN10: 0 | KO10: 0 | KQ10: 0 | KR10: 0 | KS10: 0 | KT10: 0 | KU10: 0 | KV10: 0 | KW10: 0 | KX10: 0 | KY10: 0 | KZ10: 0 | LA10: 0 | LB10: 0 | LC10: 0 | LD10: 0 | LE10: 0 | LF10: 0 | LG10: 0 | LH10: 0 | LI10: 0 | LJ10: 0 | LK10: 0 | LL10: 0 | LM10: 0 | LN10: 0 | LO10: 0 | LP10: 0 | LQ10: 0 | LR10: 0 | LS10: 0 | LT10: 0 | LU10: 0 | LV10: 0 | LW10: 0 | LX10: 0 | LY10: 0 | LZ10: 0 | MA10: 0 | MB10: 0 | MC10: 0 | MD10: 0 | ME10: 0 | MF10: 0 | MG10: 0 | MH10: 0 | MI10: 0 | MJ10: 0 | MK10: 0 | ML10: 0 | MM10: 0 | MN10: 0 | MO10: 0 | MP10: 0 | MQ10: 0 | MR10: 0 | MS10: 0 | MT10: 0 | MU10: 0 | MV10: 0 | MW10: 0 | MX10: 0 | MY10: 0 | MZ10: 0 | NA10: 0 | NB10: 0 | NC10: 0 | ND10: 0 | NE10: 0 | NF10: 0 | NG10: 0 | OC10: 0 | OD10: 0 | OE10: 0 | OF10: 0 | OG10: 0 | OH10: 0 | OI10: 0 | OJ10: 0 | OK10: 0 | OL10: 0 | OM10: 0 | ON10: 0 | OO10: 0 | OP10: 0 | OQ10: 0 | OR10: 0 | OS10: 0 | OT10: 0 | OU10: 0 | OV10: 0 | OW10: 0 | OX10: 0 | OY10: 0 | OZ10: 0 | PA10: 0 | PB10: 0 | PC10: 0 | PD10: 0 | PE10: 0 | PF10: 0 | PG10: 0 | PH10: 0 | PI10: 0 | PJ10: 0 | PK10: 0 | PL10: 0 | PM10: 0 | PN10: 0 | PO10: 0 | PP10: 0 | PQ10: 0 | PR10: 0 | PS10: 0 | PT10: 0 | PU10: 0 | PV10: 0 | PW10: 0 | PX10: 0 | QC10: =SUM(E10:QB10) -> 0 | QE10: 0.0 | QF10: 0.0 | QG10: 0.0 | QH10: 0.0 | QI10: 0.0 | QJ10: 0.0 | QK10: 0.0 | QL10: 0.0 | QM10: 0.0 | QN10: 0.0 | QO10: 0.0 | QP10: 0.0 | QQ10: 0.0 | QR10: 0.0 | QS10: 0.0 | QT10: 0.0 | QU10: 0.0 | QV10: 0.0 | QW10: 0.0 | QX10: 0.0 | QY10: 0.0 | QZ10: 0.0 | RA10: 0.0 | RB10: 0.0 | RC10: 0.0 | RD10: 0.0 | RE10: 0.0 | RF10: 0.0 | RG10: 0.0 | RH10: 0.0 | RI10: 0.0 | RJ10: 0.0 | RK10: 0.0 | RL10: 0.0 | RM10: 0.0 | RN10: 0 | RO10: 0 | RP10: 0 | RQ10: 0.0 | RR10: 0.0 | RS10: 0.0 | RT10: 0.0 | RU10: 0.0 | RV10: 0.0 | RW10: =SUM(QE10:RU10)-SUM(RK10,RM10)-SUM(RQ10:RT10) -> 0.0 | RY10: 0 | RZ10: 0 | SA10: 0 | SB10: 0 | SC10: 0 | SD10: 0 | SE10: 0 | SU10: 0 | SV10: 0 | SW10: 0 | SX10: 0 | SY10: 0 | TA10: 0 | TB10: 0 | TC10: 0 | TD10: 0 | TE10: 0 | TF10: 0 | TG10: 0 | TH10: 0 | TI10: 0 | TJ10: 0 | TK10: 0 | TL10: 0 | TM10: 0 | TN10: 0 | TO10: 0 | TQ10: =M10+DH10+'2_MERCADO_PRIVADO'!BW10+'2_MERCADO_PRIVADO'!G10 -> 0 | TR10: =DH10+'2_MERCADO_PRIVADO'!AP10+'2_MERCADO_PRIVADO'!BW10 -> 0 | TS10: =BR10+'2_MERCADO_PRIVADO'!AP10+'2_MERCADO_PRIVADO'!BW10+'2_MERCADO_PRIVADO'!DD10 -> 0 | TT10: =CH10+CX10+'2_MERCADO_PRIVADO'!BF10+'2_MERCADO_PRIVADO'!CM10+'2_MERCADO_PRIVADO'!DT10 -> 0 | TU10: =CO10+DE10+'2_MERCADO_PRIVADO'!BM10+'2_MERCADO_PRIVADO'!CT10+'2_MERCADO_PRIVADO'!EA10 -> 0
D11: TOTAL GENERO | E11: 844 | F11: 12 | G11: 1 | H11: 0 | I11: 820 | J11: 35 | K11: 0 | L11: 0 | M11: 0 | N11: 0 | O11: 2 | P11: 4 | Q11: 0 | R11: 0 | S11: 4 | T11: 0 | U11: 0 | V11: 1 | W11: 1 | X11: 0 | Y11: 0 | Z11: 0 | AA11: 0 | AB11: 0 | AZ11: 0 | BA11: 1 | BB11: 0 | BC11: 0 | BD11: 0 | BE11: 0 | BF11: 1 | BG11: 0 | BH11: 5 | BI11: 0 | BJ11: 0 | BK11: 0 | BP11: 281 | BQ11: 296 | BR11: 278 | BS11: 0 | BT11: 2 | BU11: 4 | BV11: 1 | BW11: 0 | BX11: 2 | BY11: 0 | BZ11: 0 | CA11: 1 | CB11: 1 | CC11: 0 | CD11: 0 | CH11: 1 | CO11: 6 | CR11: 7 | CU11: 4 | CX11: 281 | CY11: 12 | CZ11: 4 | DA11: 2 | DB11: 5 | DC11: 0 | DD11: 0 | DE11: 375 | DF11: 281 | DG11: 295 | DH11: 279 | DQ11: 1 | DU11: 0 | DV11: 0 | DW11: 0 | DX11: 0 | DY11: 0 | DZ11: 4 | EA11: 0 | EB11: 0 | EC11: 3 | ED11: 0 | EE11: 0 | EF11: 1 | EG11: 1 | EH11: 0 | EI11: 0 | EJ11: 0 | EK11: 0 | EL11: 0 | EM11: 281 | EN11: 12 | EO11: 4 | EP11: 2 | EQ11: 4 | ER11: 0 | ES11: 0 | ET11: 379 | EX11: 0 | EY11: 2 | EZ11: 0 | FA11: 0 | FB11: 0 | FC11: 1 | FY11: 1 | HE11: 368 | HF11: 405 | HG11: 347 | HH11: 356 | HI11: 325 | HJ11: 8 | HK11: 2 | HL11: 18 | HS11: 336 | HT11: 2 | HU11: 0 | HV11: 1 | ID11: 426 | IE11: 10 | IF11: 5 | IG11: 1 | IH11: 0 | II11: 1 | IK11: 0 | IL11: 222 | IM11: 34 | IN11: 68 | IO11: 72 | IP11: 60 | IQ11: 75 | IR11: 59 | IS11: 69 | IT11: 60 | IU11: 52 | IV11: 66 | IX11: 14 | IY11: 229 | IZ11: 115 | JA11: 80 | JB11: 405 | JC11: 16 | JD11: 4 | JE11: 4 | JF11: 4 | JG11: 1 | JH11: 0 | JI11: 0 | JJ11: 0 | JK11: 0 | JL11: 0 | JM11: 1 | JN11: 4 | JO11: 18 | JP11: 203 | JQ11: 77 | JR11: 42 | JS11: 29 | JT11: 0 | JU11: 374 | JV11: 7 | JW11: 4 | JX11: 4 | JY11: 5 | JZ11: 3 | KA11: 2 | KB11: 1 | KE11: 345 | KF11: 6 | KG11: 4 | KH11: 3 | KI11: 7 | KJ11: 3 | KK11: 2 | KM11: 426 | KN11: 12 | KO11: 6 | KQ11: 0 | KR11: 0 | KS11: 0 | KT11: 0 | KU11: 2 | KV11: 5 | KW11: 3 | KX11: 0 | KY11: 0 | KZ11: 0 | LA11: 236 | LB11: 153 | LC11: 38 | LD11: 30 | LE11: 22 | LF11: 2 | LG11: 0 | LH11: 0 | LI11: 0 | LJ11: 34 | LK11: 12 | LL11: 2 | LM11: 2 | LN11: 0 | LO11: 145 | LP11: 85 | LQ11: 87 | LR11: 64 | LS11: 47 | LT11: 19 | LU11: 0 | LV11: 0 | LW11: 0 | LX11: 0 | LY11: 0 | LZ11: 0 | MA11: 0 | MB11: 0 | MC11: 6 | MD11: 2 | ME11: 0 | MF11: 0 | MG11: 1 | MH11: 0 | MI11: 0 | MJ11: 0 | MK11: 0 | ML11: 0 | MM11: 0 | MN11: 0 | MO11: 0 | MP11: 0 | MQ11: 0 | MR11: 0 | MS11: 0 | MT11: 0 | MU11: 0 | MV11: 0 | MW11: 3 | MX11: 4 | MY11: 0 | MZ11: 0 | NA11: 0 | NB11: 229 | NC11: 117 | ND11: 166 | NE11: 44 | NF11: 27 | NG11: 26 | OC11: 82 | OD11: 26 | OE11: 0 | OF11: 49 | OG11: 76 | OH11: 0 | OI11: 40 | OJ11: 48 | OK11: 0 | OL11: 35 | OM11: 40 | ON11: 0 | OO11: 39 | OP11: 26 | OQ11: 0 | OR11: 43 | OS11: 23 | OT11: 0 | OU11: 30 | OV11: 18 | OW11: 0 | OX11: 31 | OY11: 19 | OZ11: 0 | PA11: 12 | PB11: 17 | PC11: 0 | PD11: 4 | PE11: 2 | PF11: 0 | PG11: 0 | PH11: 0 | PI11: 0 | PJ11: 0 | PK11: 0 | PL11: 0 | PM11: 0 | PN11: 133 | PO11: 71 | PP11: 48 | PQ11: 48 | PR11: 157 | PS11: 37 | PT11: 0 | PU11: 0 | PV11: 0 | PW11: 9 | PX11: 5 | QC11: =SUM(QC8:QC10) -> 13,444 | QE11: =+SUM(QE8:QE10) -> 857.0 | QF11: =+SUM(QF8:QF10) -> 874.0 | QG11: =+SUM(QG8:QG10) -> 884.0 | QH11: =+SUM(QH8:QH10) -> 679.0 | QI11: =+SUM(QI8:QI10) -> 856.0 | QJ11: =+SUM(QJ8:QJ10) -> 691.0 | QK11: =+SUM(QK8:QK10) -> 4.0 | QL11: =+SUM(QL8:QL10) -> 0.0 | QM11: =+SUM(QM8:QM10) -> 773.0 | QN11: =+SUM(QN8:QN10) -> 1,056.0 | QO11: =+SUM(QO8:QO10) -> 0.0 | QP11: =+SUM(QP8:QP10) -> 782.0 | QQ11: =+SUM(QQ8:QQ10) -> 1,275.0 | QR11: =+SUM(QR8:QR10) -> 808.0 | QS11: =+SUM(QS8:QS10) -> 400.0 | QT11: =+SUM(QT8:QT10) -> 814.0 | QU11: =+SUM(QU8:QU10) -> 997.0 | QV11: =+SUM(QV8:QV10) -> 616.0 | QW11: =+SUM(QW8:QW10) -> 0.0 | QX11: =+SUM(QX8:QX10) -> 0.0 | QY11: =+SUM(QY8:QY10) -> 0.0 | QZ11: =+SUM(QZ8:QZ10) -> 0.0 | RA11: =+SUM(RA8:RA10) -> 0.0 | RB11: =+SUM(RB8:RB10) -> 0.0 | RC11: =+SUM(RC8:RC10) -> 0.0 | RD11: =+SUM(RD8:RD10) -> 0.0 | RE11: =+SUM(RE8:RE10) -> 0.0 | RF11: =+SUM(RF8:RF10) -> 660.0 | RG11: =+SUM(RG8:RG10) -> 0.0 | RH11: =+SUM(RH8:RH10) -> 0.0 | RI11: =+SUM(RI8:RI10) -> 0.0 | RJ11: =+SUM(RJ8:RJ10) -> 252.0 | RK11: =+SUM(RK8:RK10) -> 48.0 | RL11: =+SUM(RL8:RL10) -> 157.0 | RM11: =+SUM(RM8:RM10) -> 37.0 | RN11: =+SUM(RN8:RN10) -> 0.0 | RO11: =+SUM(RO8:RO10) -> 0.0 | RP11: =+SUM(RP8:RP10) -> 0.0 | RQ11: =+SUM(RQ8:RQ10) -> 9.0 | RR11: =+SUM(RR8:RR10) -> 5.0 | RS11: =+SUM(RS8:RS10) -> 0.0 | RT11: =+SUM(RT8:RT10) -> 0.0 | RU11: =+SUM(RU8:RU10) -> 0.0 | RV11: =+SUM(RV8:RV10) -> 0.0 | RW11: =SUM(RW8:RW10) -> 13,444.0 | RX11: =+SR11+RW16+SE11+'2_MERCADO_PRIVADO'!TA11 -> 25634 | RY11: 1 | RZ11: 2 | SA11: 0 | SB11: 17 | SC11: 218 | SD11: 39 | SE11: =SUM(SE8:SE10) -> 277 | SF11: =SUM(SF8:SF10) -> 0 | SG11: 0 | SH11: 0 | SI11: 0 | SJ11: 0 | SK11: 0 | SL11: 0 | SM11: 0 | SN11: 35 | SO11: 6 | SQ11: 0 | SU11: =SUM(SU8:SU10) -> 0 | SV11: =SUM(SV8:SV10) -> 41 | SW11: =SUM(SW8:SW10) -> 0 | SX11: =SUM(SX8:SX10) -> 0 | SY11: =SUM(SY8:SY10) -> 0 | TA11: 0 | TB11: 0 | TC11: 0 | TD11: 0 | TE11: 0 | TF11: 0 | TG11: 0 | TH11: 0 | TI11: 0 | TJ11: 0 | TK11: 0 | TL11: 0 | TM11: 0 | TN11: 0 | TO11: 0 | TQ11: =M11+DH11+'2_MERCADO_PRIVADO'!BW11+'2_MERCADO_PRIVADO'!G11 -> 471 | TR11: =DH11+'2_MERCADO_PRIVADO'!AP11+'2_MERCADO_PRIVADO'!BW11 -> 471 | TS11: =BR11+'2_MERCADO_PRIVADO'!AP11+'2_MERCADO_PRIVADO'!BW11+'2_MERCADO_PRIVADO'!DD11 -> 470 | TT11: =CH11+CX11+'2_MERCADO_PRIVADO'!BF11+'2_MERCADO_PRIVADO'!CM11+'2_MERCADO_PRIVADO'!DT11 -> 454 | TU11: =CO11+DE11+'2_MERCADO_PRIVADO'!BM11+'2_MERCADO_PRIVADO'!CT11+'2_MERCADO_PRIVADO'!EA11 -> 506
D12: CONTRIBUTIVO | E12: 785 | F12: 8 | G12: 0 | H12: 0 | I12: 754 | J12: 30 | K12: 0 | L12: 0 | M12: 0 | N12: 0 | O12: 0 | P12: 0 | Q12: 0 | R12: 0 | S12: 0 | T12: 0 | U12: 0 | V12: 0 | W12: 0 | X12: 0 | Y12: 0 | Z12: 0 | AA12: 0 | AB12: 0 | AZ12: 0 | BA12: 1 | BB12: 0 | BC12: 0 | BD12: 0 | BE12: 0 | BF12: 1 | BG12: 0 | BH12: 4 | BI12: 0 | BJ12: 0 | BK12: 0 | BP12: 234 | BQ12: 246 | BR12: 231 | BS12: 0 | BT12: 0 | BU12: 0 | BV12: 0 | BW12: 0 | BX12: 0 | BY12: 0 | BZ12: 0 | CA12: 0 | CB12: 0 | CC12: 0 | CD12: 0 | CH12: 0 | CO12: 6 | CR12: 1 | CU12: 0 | CX12: 229 | CY12: 5 | CZ12: 2 | DA12: 0 | DB12: 3 | DC12: 0 | DD12: 0 | DE12: 305 | DF12: 234 | DG12: 245 | DH12: 232 | DU12: 0 | DV12: 0 | DW12: 0 | DX12: 0 | DY12: 0 | DZ12: 0 | EA12: 0 | EB12: 0 | EC12: 0 | ED12: 0 | EE12: 0 | EF12: 0 | EG12: 0 | EH12: 0 | EI12: 0 | EJ12: 0 | EK12: 0 | EL12: 0 | EM12: 229 | EN12: 5 | EO12: 2 | EP12: 0 | EQ12: 2 | ER12: 0 | ES12: 0 | ET12: 309 | EX12: 0 | EY12: 0 | EZ12: 0 | FA12: 0 | FB12: 0 | FC12: 0 | FY12: 1 | HE12: 323 | HF12: 358 | HG12: 297 | HH12: 306 | HI12: 268 | HJ12: 0 | HK12: 0 | HL12: 0 | HS12: 267 | HT12: 0 | HU12: 0 | HV12: 0 | ID12: 353 | IE12: 4 | IF12: 1 | IG12: 0 | IH12: 0 | II12: 0 | IK12: 0 | IL12: 188 | IM12: 25 | IN12: 52 | IO12: 62 | IP12: 51 | IQ12: 62 | IR12: 47 | IS12: 58 | IT12: 48 | IU12: 46 | IV12: 52 | IX12: 10 | IY12: 189 | IZ12: 103 | JA12: 66 | JB12: 348 | JC12: 8 | JD12: 2 | JE12: 2 | JF12: 4 | JG12: 1 | JH12: 0 | JI12: 0 | JJ12: 0 | JK12: 0 | JL12: 0 | JM12: 1 | JN12: 2 | JO12: 12 | JP12: 173 | JQ12: 70 | JR12: 35 | JS12: 25 | JT12: 0 | JU12: 306 | JV12: 0 | JW12: 0 | JX12: 1 | JY12: 0 | JZ12: 0 | KA12: 0 | KB12: 0 | KE12: 275 | KF12: 0 | KG12: 0 | KH12: 0 | KI12: 0 | KJ12: 0 | KK12: 0 | KM12: 361 | KN12: 4 | KO12: 1 | KQ12: 0 | KR12: 0 | KS12: 0 | KT12: 0 | KU12: 1 | KV12: 4 | KW12: 3 | KX12: 0 | KY12: 0 | KZ12: 0 | LA12: 227 | LB12: 148 | LC12: 37 | LD12: 29 | LE12: 22 | LF12: 2 | LG12: 0 | LH12: 0 | LI12: 0 | LJ12: 23 | LK12: 8 | LL12: 2 | LM12: 2 | LN12: 0 | LO12: 128 | LP12: 70 | LQ12: 76 | LR12: 58 | LS12: 40 | LT12: 18 | LU12: 0 | LV12: 0 | LW12: 0 | LX12: 0 | LY12: 0 | LZ12: 0 | MA12: 0 | MB12: 0 | MC12: 5 | MD12: 2 | ME12: 0 | MF12: 0 | MG12: 1 | MH12: 0 | MI12: 0 | MJ12: 0 | MK12: 0 | ML12: 0 | MM12: 0 | MN12: 0 | MO12: 0 | MP12: 0 | MQ12: 0 | MR12: 0 | MS12: 0 | MT12: 0 | MU12: 0 | MV12: 0 | MW12: 1 | MX12: 3 | MY12: 0 | MZ12: 0 | NA12: 0 | NB12: 223 | NC12: 96 | ND12: 161 | NE12: 39 | NF12: 27 | NG12: 25 | OC12: 70 | OD12: 23 | OE12: 0 | OF12: 40 | OG12: 65 | OH12: 0 | OI12: 34 | OJ12: 44 | OK12: 0 | OL12: 30 | OM12: 29 | ON12: 0 | OO12: 32 | OP12: 23 | OQ12: 0 | OR12: 34 | OS12: 20 | OT12: 0 | OU12: 25 | OV12: 16 | OW12: 0 | OX12: 30 | OY12: 19 | OZ12: 0 | PA12: 9 | PB12: 12 | PC12: 0 | PD12: 4 | PE12: 2 | PF12: 0 | PG12: 0 | PH12: 0 | PI12: 0 | PJ12: 0 | PK12: 0 | PL12: 0 | PM12: 0 | PN12: 122 | PO12: 67 | PP12: 46 | PQ12: 46 | PR12: 149 | PS12: 35 | PT12: 0 | PU12: 0 | PV12: 0 | PW12: 8 | PX12: 4 | QC12: =SUM(E12:QB12)-PQ12-PS12-PX12 -> 11,405 | QE12: =SUM(E12:H12) -> 793.0 | QF12: =SUM(I12:BO12) -> 790.0 | QG12: =SUM(BP12:CW12) -> 718.0 | QH12: =SUM(CX12:DE12) -> 544.0 | QI12: =SUM(DF12:DT12) -> 711.0 | QJ12: =SUM(DU12:ET12) -> 547.0 | QK12: =SUM(EU12:FY12) -> 1.0 | QL12: =SUM(FZ12:HD12) -> 0.0 | QM12: =SUM(HE12:HF12) -> 681.0 | QN12: =SUM(HG12:HL12) -> 871.0 | QO12: =SUM(HM12:HR12) -> 0.0 | QP12: =SUM(HS12:IJ12) -> 625.0 | QQ12: =SUM(IK12:JA12) -> 1,059.0 | QR12: =SUM(JB12:JT12) -> 683.0 | QS12: =SUM(JU12:KD12) -> 307.0 | QT12: =SUM(KE12:KP12) -> 641.0 | QU12: =SUM(KQ12:MU12) -> 906.0 | QV12: =SUM(MV12:NG12) -> 575.0 | QW12: =SUM(NH12:NI12) -> 0.0 | QX12: =SUM(NJ12:NL12) -> 0.0 | QY12: =SUM(NM12:NO12) -> 0.0 | QZ12: =SUM(NP12) -> 0.0 | RA12: =SUM(NQ12) -> 0.0 | RB12: =SUM(NR12:NT12) -> 0.0 | RC12: =SUM(NU12) -> 0.0 | RD12: =SUM(NV12) -> 0.0 | RE12: =SUM(NW12:OB12) -> 0.0 | RF12: =SUM(OC12:PE12) -> 561.0 | RG12: =SUM(PF12:PG12) -> 0.0 | RH12: =SUM(PH12:PI12) -> 0.0 | RI12: =SUM(PJ12:PM12) -> 0.0 | RJ12: =SUM(PN12:PP12) -> 235.0 | RK12: =SUM(PQ12) -> 46.0 | RL12: =SUM(PR12) -> 149.0 | RM12: =SUM(PS12) -> 35.0 | RN12: =SUM(PT12) -> 0 | RO12: =SUM(PU12) -> 0 | RP12: =SUM(PV12) -> 0 | RQ12: =SUM(PW12) -> 8.0 | RR12: =SUM(PX12) -> 4.0 | RS12: =SUM(PY12) -> 0.0 | RT12: =SUM(PZ12) -> 0.0 | RU12: =SUM(QA12) -> 0.0 | RV12: =SUM(QB12) -> 0.0 | RW12: =SUM(QE12:RU12)-SUM(RK12,RM12)-SUM(RR12:RT12) -> 11,405.0 | RX12: =+SR12+RW17+SE12+'2_MERCADO_PRIVADO'!TA12 -> 10508 | RY12: 1 | RZ12: 1 | SA12: 0 | SB12: 17 | SC12: 194 | SD12: 36 | SE12: =SUM(RY12:SD12) -> 249 | SN12: 35 | SO12: 6 | SU12: =SF12+SG12 -> 0 | SV12: =SH12+SI12+SJ12+SK12+SL12+SM12+SN12+SO12+SP12 -> 41 | SW12: =SQ12 -> 0 | SX12: =SR12 -> 0 | SY12: =SS12 -> 0 | TA12: 0 | TB12: 0 | TC12: 0 | TD12: 0 | TE12: 0 | TF12: 0 | TG12: 0 | TH12: 0 | TI12: 0 | TJ12: 0 | TK12: 0 | TL12: 0 | TM12: 0 | TN12: 0 | TO12: 0 | TQ12: =M12+DH12+'2_MERCADO_PRIVADO'!BW12+'2_MERCADO_PRIVADO'!G12 -> 422 | TR12: =DH12+'2_MERCADO_PRIVADO'!AP12+'2_MERCADO_PRIVADO'!BW12 -> 422 | TS12: =BR12+'2_MERCADO_PRIVADO'!AP12+'2_MERCADO_PRIVADO'!BW12+'2_MERCADO_PRIVADO'!DD12 -> 421 | TT12: =CH12+CX12+'2_MERCADO_PRIVADO'!BF12+'2_MERCADO_PRIVADO'!CM12+'2_MERCADO_PRIVADO'!DT12 -> 397 | TU12: =CO12+DE12+'2_MERCADO_PRIVADO'!BM12+'2_MERCADO_PRIVADO'!CT12+'2_MERCADO_PRIVADO'!EA12 -> 433
D13: SUBSIDIADO | E13: 28 | F13: 4 | G13: 0 | H13: 0 | I13: 30 | J13: 3 | K13: 0 | L13: 0 | M13: 0 | N13: 0 | O13: 0 | P13: 0 | Q13: 0 | R13: 0 | S13: 0 | T13: 0 | U13: 0 | V13: 0 | W13: 0 | X13: 0 | Y13: 0 | Z13: 0 | AA13: 0 | AB13: 0 | AZ13: 0 | BA13: 0 | BB13: 0 | BC13: 0 | BD13: 0 | BE13: 0 | BF13: 0 | BG13: 0 | BH13: 0 | BI13: 0 | BJ13: 0 | BK13: 0 | BP13: 29 | BQ13: 36 | BR13: 32 | BS13: 0 | BT13: 0 | BU13: 0 | BV13: 0 | BW13: 0 | BX13: 0 | BY13: 0 | BZ13: 0 | CA13: 0 | CB13: 0 | CC13: 0 | CD13: 0 | CH13: 1 | CO13: 0 | CR13: 1 | CU13: 2 | CX13: 38 | CY13: 5 | CZ13: 1 | DA13: 0 | DB13: 0 | DC13: 0 | DD13: 0 | DE13: 23 | DF13: 29 | DG13: 36 | DH13: 32 | DU13: 0 | DV13: 0 | DW13: 0 | DX13: 0 | DY13: 0 | DZ13: 0 | EA13: 0 | EB13: 0 | EC13: 0 | ED13: 0 | EE13: 0 | EF13: 0 | EG13: 0 | EH13: 0 | EI13: 0 | EJ13: 0 | EK13: 0 | EL13: 0 | EM13: 39 | EN13: 5 | EO13: 1 | EP13: 0 | EQ13: 0 | ER13: 0 | ES13: 0 | ET13: 23 | EX13: 0 | EY13: 0 | EZ13: 0 | FA13: 0 | FB13: 0 | FC13: 0 | FY13: 0 | HE13: 26 | HF13: 35 | HG13: 29 | HH13: 36 | HI13: 39 | HJ13: 2 | HK13: 0 | HL13: 2 | HS13: 41 | HT13: 1 | HU13: 0 | HV13: 0 | ID13: 23 | IE13: 1 | IF13: 1 | IG13: 0 | IH13: 0 | II13: 1 | IK13: 0 | IL13: 24 | IM13: 5 | IN13: 7 | IO13: 3 | IP13: 3 | IQ13: 6 | IR13: 1 | IS13: 3 | IT13: 5 | IU13: 3 | IV13: 7 | IX13: 3 | IY13: 28 | IZ13: 4 | JA13: 4 | JB13: 39 | JC13: 5 | JD13: 1 | JE13: 0 | JF13: 0 | JG13: 0 | JH13: 0 | JI13: 0 | JJ13: 0 | JK13: 0 | JL13: 0 | JM13: 0 | JN13: 1 | JO13: 3 | JP13: 21 | JQ13: 2 | JR13: 1 | JS13: 2 | JT13: 0 | JU13: 41 | JV13: 2 | JW13: 0 | JX13: 0 | JY13: 1 | JZ13: 1 | KA13: 0 | KB13: 0 | KE13: 41 | KF13: 2 | KG13: 0 | KH13: 0 | KI13: 2 | KJ13: 1 | KK13: 0 | KM13: 21 | KN13: 2 | KO13: 2 | KQ13: 0 | KR13: 0 | KS13: 0 | KT13: 0 | KU13: 0 | KV13: 0 | KW13: 0 | KX13: 0 | KY13: 0 | KZ13: 0 | LA13: 5 | LB13: 3 | LC13: 1 | LD13: 1 | LE13: 0 | LF13: 0 | LG13: 0 | LH13: 0 | LI13: 0 | LJ13: 6 | LK13: 3 | LL13: 0 | LM13: 0 | LN13: 0 | LO13: 8 | LP13: 10 | LQ13: 6 | LR13: 4 | LS13: 4 | LT13: 1 | LU13: 0 | LV13: 0 | LW13: 0 | LX13: 0 | LY13: 0 | LZ13: 0 | MA13: 0 | MB13: 0 | MC13: 1 | MD13: 0 | ME13: 0 | MF13: 0 | MG13: 0 | MH13: 0 | MI13: 0 | MJ13: 0 | MK13: 0 | ML13: 0 | MM13: 0 | MN13: 0 | MO13: 0 | MP13: 0 | MQ13: 0 | MR13: 0 | MS13: 0 | MT13: 0 | MU13: 0 | MV13: 0 | MW13: 1 | MX13: 1 | MY13: 0 | MZ13: 0 | NA13: 0 | NB13: 5 | NC13: 8 | ND13: 2 | NE13: 3 | NF13: 0 | NG13: 1 | OC13: 5 | OD13: 2 | OE13: 0 | OF13: 6 | OG13: 5 | OH13: 0 | OI13: 1 | OJ13: 1 | OK13: 0 | OL13: 3 | OM13: 5 | ON13: 0 | OO13: 3 | OP13: 2 | OQ13: 0 | OR13: 3 | OS13: 1 | OT13: 0 | OU13: 1 | OV13: 1 | OW13: 0 | OX13: 0 | OY13: 0 | OZ13: 0 | PA13: 2 | PB13: 3 | PC13: 0 | PD13: 0 | PE13: 0 | PF13: 0 | PG13: 0 | PH13: 0 | PI13: 0 | PJ13: 0 | PK13: 0 | PL13: 0 | PM13: 0 | PN13: 6 | PO13: 1 | PP13: 1 | PQ13: 1 | PR13: 4 | PS13: 1 | PT13: 0 | PU13: 0 | PV13: 0 | PW13: 0 | PX13: 0 | QC13: =SUM(E13:QB13)-PQ13-PS13-PX13 -> 1,062 | QE13: 32.0 | QF13: 33.0 | QG13: 101.0 | QH13: 67.0 | QI13: 97.0 | QJ13: 68.0 | QK13: 0.0 | QL13: 0.0 | QM13: 61.0 | QN13: 108.0 | QO13: 0.0 | QP13: 68.0 | QQ13: 106.0 | QR13: 75.0 | QS13: 45.0 | QT13: 71.0 | QU13: 53.0 | QV13: 21.0 | QW13: 0.0 | QX13: 0.0 | QY13: 0.0 | QZ13: 0.0 | RA13: 0.0 | RB13: 0.0 | RC13: 0.0 | RD13: 0.0 | RE13: 0.0 | RF13: 44.0 | RG13: 0.0 | RH13: 0.0 | RI13: 0.0 | RJ13: 8.0 | RK13: 1.0 | RL13: 4.0 | RM13: 1.0 | RN13: 0 | RO13: 0 | RP13: 0 | RQ13: 0.0 | RR13: 0.0 | RS13: 0.0 | RT13: 0.0 | RU13: 0.0 | RV13: 0.0 | RW13: =SUM(QE13:RU13)-SUM(RK13,RM13)-SUM(RR13:RT13) -> 1,062.0 | RX13: =+SR13+RW18+SE13+'2_MERCADO_PRIVADO'!TA13 -> 474 | RY13: 0 | RZ13: 0 | SA13: 0 | SB13: 0 | SC13: 12 | SD13: 0 | SE13: 12 | SU13: 0 | SV13: 0 | SW13: 0 | SX13: 0 | SY13: 0 | TA13: 0 | TB13: 0 | TC13: 0 | TD13: 0 | TE13: 0 | TF13: 0 | TG13: 0 | TH13: 0 | TI13: 0 | TJ13: 0 | TK13: 0 | TL13: 0 | TM13: 0 | TN13: 0 | TO13: 0 | TQ13: =M13+DH13+'2_MERCADO_PRIVADO'!BW13+'2_MERCADO_PRIVADO'!G13 -> 32 | TR13: =DH13+'2_MERCADO_PRIVADO'!AP13+'2_MERCADO_PRIVADO'!BW13 -> 32 | TS13: =BR13+'2_MERCADO_PRIVADO'!AP13+'2_MERCADO_PRIVADO'!BW13+'2_MERCADO_PRIVADO'!DD13 -> 32 | TT13: =CH13+CX13+'2_MERCADO_PRIVADO'!BF13+'2_MERCADO_PRIVADO'!CM13+'2_MERCADO_PRIVADO'!DT13 -> 39 | TU13: =CO13+DE13+'2_MERCADO_PRIVADO'!BM13+'2_MERCADO_PRIVADO'!CT13+'2_MERCADO_PRIVADO'!EA13 -> 23
D14: POBRE NO ASEGURADO | E14: 26 | F14: 0 | G14: 1 | H14: 0 | I14: 31 | J14: 2 | K14: 0 | L14: 0 | M14: 0 | N14: 0 | O14: 2 | P14: 4 | Q14: 0 | R14: 0 | S14: 4 | T14: 0 | U14: 0 | V14: 1 | W14: 1 | X14: 0 | Y14: 0 | Z14: 0 | AA14: 0 | AB14: 0 | AZ14: 0 | BA14: 0 | BB14: 0 | BC14: 0 | BD14: 0 | BE14: 0 | BF14: 0 | BG14: 0 | BH14: 1 | BI14: 0 | BJ14: 0 | BK14: 0 | BP14: 8 | BQ14: 10 | BR14: 9 | BS14: 0 | BT14: 2 | BU14: 4 | BV14: 1 | BW14: 0 | BX14: 2 | BY14: 0 | BZ14: 0 | CA14: 1 | CB14: 1 | CC14: 0 | CD14: 0 | CH14: 0 | CO14: 0 | CR14: 5 | CU14: 2 | CX14: 8 | CY14: 2 | CZ14: 1 | DA14: 2 | DB14: 2 | DC14: 0 | DD14: 0 | DE14: 25 | DF14: 8 | DG14: 10 | DH14: 9 | DQ14: 1 | DU14: 0 | DV14: 0 | DW14: 0 | DX14: 0 | DY14: 0 | DZ14: 4 | EA14: 0 | EB14: 0 | EC14: 3 | ED14: 0 | EE14: 0 | EF14: 1 | EG14: 1 | EH14: 0 | EI14: 0 | EJ14: 0 | EK14: 0 | EL14: 0 | EM14: 8 | EN14: 2 | EO14: 1 | EP14: 2 | EQ14: 2 | ER14: 0 | ES14: 0 | ET14: 25 | EX14: 0 | EY14: 2 | EZ14: 0 | FA14: 0 | FB14: 0 | FC14: 1 | FY14: 0 | HE14: 9 | HF14: 6 | HG14: 11 | HH14: 8 | HI14: 8 | HJ14: 6 | HK14: 2 | HL14: 16 | HS14: 17 | HT14: 1 | HU14: 0 | HV14: 1 | ID14: 26 | IE14: 5 | IF14: 3 | IG14: 1 | IH14: 0 | II14: 0 | IK14: 0 | IL14: 8 | IM14: 4 | IN14: 8 | IO14: 6 | IP14: 2 | IQ14: 6 | IR14: 7 | IS14: 5 | IT14: 4 | IU14: 1 | IV14: 4 | IX14: 1 | IY14: 10 | IZ14: 5 | JA14: 9 | JB14: 11 | JC14: 3 | JD14: 1 | JE14: 2 | JF14: 0 | JG14: 0 | JH14: 0 | JI14: 0 | JJ14: 0 | JK14: 0 | JL14: 0 | JM14: 0 | JN14: 1 | JO14: 2 | JP14: 9 | JQ14: 4 | JR14: 6 | JS14: 1 | JT14: 0 | JU14: 16 | JV14: 5 | JW14: 4 | JX14: 3 | JY14: 4 | JZ14: 2 | KA14: 2 | KB14: 1 | KE14: 18 | KF14: 4 | KG14: 4 | KH14: 3 | KI14: 5 | KJ14: 2 | KK14: 2 | KM14: 21 | KN14: 6 | KO14: 3 | KQ14: 0 | KR14: 0 | KS14: 0 | KT14: 0 | KU14: 1 | KV14: 1 | KW14: 0 | KX14: 0 | KY14: 0 | KZ14: 0 | LA14: 1 | LB14: 1 | LC14: 0 | LD14: 0 | LE14: 0 | LF14: 0 | LG14: 0 | LH14: 0 | LI14: 0 | LJ14: 3 | LK14: 0 | LL14: 0 | LM14: 0 | LN14: 0 | LO14: 7 | LP14: 1 | LQ14: 2 | LR14: 1 | LS14: 0 | LT14: 0 | LU14: 0 | LV14: 0 | LW14: 0 | LX14: 0 | LY14: 0 | LZ14: 0 | MA14: 0 | MB14: 0 | MC14: 0 | MD14: 0 | ME14: 0 | MF14: 0 | MG14: 0 | MH14: 0 | MI14: 0 | MJ14: 0 | MK14: 0 | ML14: 0 | MM14: 0 | MN14: 0 | MO14: 0 | MP14: 0 | MQ14: 0 | MR14: 0 | MS14: 0 | MT14: 0 | MU14: 0 | MV14: 0 | MW14: 1 | MX14: 0 | MY14: 0 | MZ14: 0 | NA14: 0 | NB14: 0 | NC14: 9 | ND14: 0 | NE14: 1 | NF14: 0 | NG14: 0 | OC14: 3 | OD14: 0 | OE14: 0 | OF14: 1 | OG14: 1 | OH14: 0 | OI14: 2 | OJ14: 0 | OK14: 0 | OL14: 1 | OM14: 2 | ON14: 0 | OO14: 2 | OP14: 1 | OQ14: 0 | OR14: 2 | OS14: 2 | OT14: 0 | OU14: 0 | OV14: 0 | OW14: 0 | OX14: 1 | OY14: 0 | OZ14: 0 | PA14: 1 | PB14: 1 | PC14: 0 | PD14: 0 | PE14: 0 | PF14: 0 | PG14: 0 | PH14: 0 | PI14: 0 | PJ14: 0 | PK14: 0 | PL14: 0 | PM14: 0 | PN14: 0 | PO14: 0 | PP14: 1 | PQ14: 1 | PR14: 0 | PS14: 0 | PT14: 0 | PU14: 0 | PV14: 0 | PW14: 1 | PX14: 1 | QC14: 634 | QE14: 27.0 | QF14: 46.0 | QG14: 45.0 | QH14: 40.0 | QI14: 28.0 | QJ14: 49.0 | QK14: 3.0 | QL14: 0.0 | QM14: 15.0 | QN14: 51.0 | QO14: 0.0 | QP14: 54.0 | QQ14: 80.0 | QR14: 40.0 | QS14: 37.0 | QT14: 68.0 | QU14: 18.0 | QV14: 11.0 | QW14: 0.0 | QX14: 0.0 | QY14: 0.0 | QZ14: 0.0 | RA14: 0.0 | RB14: 0.0 | RC14: 0.0 | RD14: 0.0 | RE14: 0.0 | RF14: 20.0 | RG14: 0.0 | RH14: 0.0 | RI14: 0.0 | RJ14: 1.0 | RK14: 1.0 | RL14: 0.0 | RM14: 0.0 | RN14: 0 | RO14: 0 | RP14: 0 | RQ14: 1.0 | RR14: 1.0 | RS14: 0.0 | RT14: 0.0 | RU14: 0.0 | RV14: 0.0 | RW14: 634.0 | RX14: =+SR14+RW19+SE14+'2_MERCADO_PRIVADO'!TA14 -> 948 | RY14: 0 | RZ14: 0 | SA14: 0 | SB14: 0 | SC14: 3 | SD14: 3 | SE14: 6 | SU14: 0 | SV14: 0 | SW14: 0 | SX14: 0 | SY14: 0 | TA14: 0 | TB14: 0 | TC14: 0 | TD14: 0 | TE14: 0 | TF14: 0 | TG14: 0 | TH14: 0 | TI14: 0 | TJ14: 0 | TK14: 0 | TL14: 0 | TM14: 0 | TN14: 0 | TO14: 0 | TQ14: =M14+DH14+'2_MERCADO_PRIVADO'!BW14+'2_MERCADO_PRIVADO'!G14 -> 9 | TR14: =DH14+'2_MERCADO_PRIVADO'!AP14+'2_MERCADO_PRIVADO'!BW14 -> 9 | TS14: =BR14+'2_MERCADO_PRIVADO'!AP14+'2_MERCADO_PRIVADO'!BW14+'2_MERCADO_PRIVADO'!DD14 -> 9 | TT14: =CH14+CX14+'2_MERCADO_PRIVADO'!BF14+'2_MERCADO_PRIVADO'!CM14+'2_MERCADO_PRIVADO'!DT14 -> 10 | TU14: =CO14+DE14+'2_MERCADO_PRIVADO'!BM14+'2_MERCADO_PRIVADO'!CT14+'2_MERCADO_PRIVADO'!EA14 -> 25
D15: REGIMEN ESPECIAL | E15: 5 | F15: 0 | G15: 0 | H15: 0 | I15: 5 | J15: 0 | K15: 0 | L15: 0 | M15: 0 | N15: 0 | O15: 0 | P15: 0 | Q15: 0 | R15: 0 | S15: 0 | T15: 0 | U15: 0 | V15: 0 | W15: 0 | X15: 0 | Y15: 0 | Z15: 0 | AA15: 0 | AB15: 0 | AZ15: 0 | BA15: 0 | BB15: 0 | BC15: 0 | BD15: 0 | BE15: 0 | BF15: 0 | BG15: 0 | BH15: 0 | BI15: 0 | BJ15: 0 | BK15: 0 | BP15: 10 | BQ15: 4 | BR15: 6 | BS15: 0 | BT15: 0 | BU15: 0 | BV15: 0 | BW15: 0 | BX15: 0 | BY15: 0 | BZ15: 0 | CA15: 0 | CB15: 0 | CC15: 0 | CD15: 0 | CH15: 0 | CO15: 0 | CR15: 0 | CU15: 0 | CX15: 6 | CY15: 0 | CZ15: 0 | DA15: 0 | DB15: 0 | DC15: 0 | DD15: 0 | DE15: 22 | DF15: 10 | DG15: 4 | DH15: 6 | DU15: 0 | DV15: 0 | DW15: 0 | DX15: 0 | DY15: 0 | DZ15: 0 | EA15: 0 | EB15: 0 | EC15: 0 | ED15: 0 | EE15: 0 | EF15: 0 | EG15: 0 | EH15: 0 | EI15: 0 | EJ15: 0 | EK15: 0 | EL15: 0 | EM15: 5 | EN15: 0 | EO15: 0 | EP15: 0 | EQ15: 0 | ER15: 0 | ES15: 0 | ET15: 22 | EX15: 0 | EY15: 0 | EZ15: 0 | FA15: 0 | FB15: 0 | FC15: 0 | FY15: 0 | HE15: 10 | HF15: 6 | HG15: 10 | HH15: 6 | HI15: 10 | HJ15: 0 | HK15: 0 | HL15: 0 | HS15: 11 | HT15: 0 | HU15: 0 | HV15: 0 | ID15: 24 | IE15: 0 | IF15: 0 | IG15: 0 | IH15: 0 | II15: 0 | IK15: 0 | IL15: 2 | IM15: 0 | IN15: 1 | IO15: 1 | IP15: 4 | IQ15: 1 | IR15: 4 | IS15: 3 | IT15: 3 | IU15: 2 | IV15: 3 | IX15: 0 | IY15: 2 | IZ15: 3 | JA15: 1 | JB15: 7 | JC15: 0 | JD15: 0 | JE15: 0 | JF15: 0 | JG15: 0 | JH15: 0 | JI15: 0 | JJ15: 0 | JK15: 0 | JL15: 0 | JM15: 0 | JN15: 0 | JO15: 1 | JP15: 0 | JQ15: 1 | JR15: 0 | JS15: 1 | JT15: 0 | JU15: 11 | JV15: 0 | JW15: 0 | JX15: 0 | JY15: 0 | JZ15: 0 | KA15: 0 | KB15: 0 | KE15: 11 | KF15: 0 | KG15: 0 | KH15: 0 | KI15: 0 | KJ15: 0 | KK15: 0 | KM15: 23 | KN15: 0 | KO15: 0 | KQ15: 0 | KR15: 0 | KS15: 0 | KT15: 0 | KU15: 0 | KV15: 0 | KW15: 0 | KX15: 0 | KY15: 0 | KZ15: 0 | LA15: 3 | LB15: 1 | LC15: 0 | LD15: 0 | LE15: 0 | LF15: 0 | LG15: 0 | LH15: 0 | LI15: 0 | LJ15: 2 | LK15: 1 | LL15: 0 | LM15: 0 | LN15: 0 | LO15: 2 | LP15: 4 | LQ15: 3 | LR15: 1 | LS15: 3 | LT15: 0 | LU15: 0 | LV15: 0 | LW15: 0 | LX15: 0 | LY15: 0 | LZ15: 0 | MA15: 0 | MB15: 0 | MC15: 0 | MD15: 0 | ME15: 0 | MF15: 0 | MG15: 0 | MH15: 0 | MI15: 0 | MJ15: 0 | MK15: 0 | ML15: 0 | MM15: 0 | MN15: 0 | MO15: 0 | MP15: 0 | MQ15: 0 | MR15: 0 | MS15: 0 | MT15: 0 | MU15: 0 | MV15: 0 | MW15: 0 | MX15: 0 | MY15: 0 | MZ15: 0 | NA15: 0 | NB15: 1 | NC15: 4 | ND15: 3 | NE15: 1 | NF15: 0 | NG15: 0 | OC15: 4 | OD15: 1 | OE15: 0 | OF15: 2 | OG15: 5 | OH15: 0 | OI15: 3 | OJ15: 3 | OK15: 0 | OL15: 1 | OM15: 4 | ON15: 0 | OO15: 2 | OP15: 0 | OQ15: 0 | OR15: 4 | OS15: 0 | OT15: 0 | OU15: 4 | OV15: 1 | OW15: 0 | OX15: 0 | OY15: 0 | OZ15: 0 | PA15: 0 | PB15: 1 | PC15: 0 | PD15: 0 | PE15: 0 | PF15: 0 | PG15: 0 | PH15: 0 | PI15: 0 | PJ15: 0 | PK15: 0 | PL15: 0 | PM15: 0 | PN15: 5 | PO15: 3 | PP15: 0 | PQ15: 0 | PR15: 4 | PS15: 1 | PT15: 0 | PU15: 0 | PV15: 0 | PW15: 0 | PX15: 0 | QC15: 343 | QE15: 5.0 | QF15: 5.0 | QG15: 20.0 | QH15: 28.0 | QI15: 20.0 | QJ15: 27.0 | QK15: 0.0 | QL15: 0.0 | QM15: 16.0 | QN15: 26.0 | QO15: 0.0 | QP15: 35.0 | QQ15: 30.0 | QR15: 10.0 | QS15: 11.0 | QT15: 34.0 | QU15: 20.0 | QV15: 9.0 | QW15: 0.0 | QX15: 0.0 | QY15: 0.0 | QZ15: 0.0 | RA15: 0.0 | RB15: 0.0 | RC15: 0.0 | RD15: 0.0 | RE15: 0.0 | RF15: 35.0 | RG15: 0.0 | RH15: 0.0 | RI15: 0.0 | RJ15: 8.0 | RK15: 0.0 | RL15: 4.0 | RM15: 1.0 | RN15: 0 | RO15: 0 | RP15: 0 | RQ15: 0.0 | RR15: 0.0 | RS15: 0.0 | RT15: 0.0 | RU15: 0.0 | RV15: 0.0 | RW15: 343.0 | RX15: =+SR15+RW20+SE15+'2_MERCADO_PRIVADO'!TA15 -> 267 | RY15: 0 | RZ15: 1 | SA15: 0 | SB15: 0 | SC15: 9 | SD15: 0 | SE15: 10 | SU15: 0 | SV15: 0 | SW15: 0 | SX15: 0 | SY15: 0 | TA15: 0 | TB15: 0 | TC15: 0 | TD15: 0 | TE15: 0 | TF15: 0 | TG15: 0 | TH15: 0 | TI15: 0 | TJ15: 0 | TK15: 0 | TL15: 0 | TM15: 0 | TN15: 0 | TO15: 0 | TQ15: =M15+DH15+'2_MERCADO_PRIVADO'!BW15+'2_MERCADO_PRIVADO'!G15 -> 8 | TR15: =DH15+'2_MERCADO_PRIVADO'!AP15+'2_MERCADO_PRIVADO'!BW15 -> 8 | TS15: =BR15+'2_MERCADO_PRIVADO'!AP15+'2_MERCADO_PRIVADO'!BW15+'2_MERCADO_PRIVADO'!DD15 -> 8 | TT15: =CH15+CX15+'2_MERCADO_PRIVADO'!BF15+'2_MERCADO_PRIVADO'!CM15+'2_MERCADO_PRIVADO'!DT15 -> 8 | TU15: =CO15+DE15+'2_MERCADO_PRIVADO'!BM15+'2_MERCADO_PRIVADO'!CT15+'2_MERCADO_PRIVADO'!EA15 -> 25
D16: TOTAL REGIMEN | E16: 844 | F16: 12 | G16: 1 | H16: 0 | I16: 820 | J16: 35 | K16: 0 | L16: 0 | M16: 0 | N16: 0 | O16: 2 | P16: 4 | Q16: 0 | R16: 0 | S16: 4 | T16: 0 | U16: 0 | V16: 1 | W16: 1 | X16: 0 | Y16: 0 | Z16: 0 | AA16: 0 | AB16: 0 | AZ16: 0 | BA16: 1 | BB16: 0 | BC16: 0 | BD16: 0 | BE16: 0 | BF16: 1 | BG16: 0 | BH16: 5 | BI16: 0 | BJ16: 0 | BK16: 0 | BP16: 281 | BQ16: 296 | BR16: 278 | BS16: 0 | BT16: 2 | BU16: 4 | BV16: 1 | BW16: 0 | BX16: 2 | BY16: 0 | BZ16: 0 | CA16: 1 | CB16: 1 | CC16: 0 | CD16: 0 | CH16: 1 | CO16: 6 | CR16: 7 | CU16: 4 | CX16: 281 | CY16: 12 | CZ16: 4 | DA16: 2 | DB16: 5 | DC16: 0 | DD16: 0 | DE16: 375 | DF16: 281 | DG16: 295 | DH16: 279 | DQ16: 1 | DU16: 0 | DV16: 0 | DW16: 0 | DX16: 0 | DY16: 0 | DZ16: 4 | EA16: 0 | EB16: 0 | EC16: 3 | ED16: 0 | EE16: 0 | EF16: 1 | EG16: 1 | EH16: 0 | EI16: 0 | EJ16: 0 | EK16: 0 | EL16: 0 | EM16: 281 | EN16: 12 | EO16: 4 | EP16: 2 | EQ16: 4 | ER16: 0 | ES16: 0 | ET16: 379 | EX16: 0 | EY16: 2 | EZ16: 0 | FA16: 0 | FB16: 0 | FC16: 1 | FY16: 1 | HE16: 368 | HF16: 405 | HG16: 347 | HH16: 356 | HI16: 325 | HJ16: 8 | HK16: 2 | HL16: 18 | HS16: 336 | HT16: 2 | HU16: 0 | HV16: 1 | ID16: 426 | IE16: 10 | IF16: 5 | IG16: 1 | IH16: 0 | II16: 1 | IK16: 0 | IL16: 222 | IM16: 34 | IN16: 68 | IO16: 72 | IP16: 60 | IQ16: 75 | IR16: 59 | IS16: 69 | IT16: 60 | IU16: 52 | IV16: 66 | IX16: 14 | IY16: 229 | IZ16: 115 | JA16: 80 | JB16: 405 | JC16: 16 | JD16: 4 | JE16: 4 | JF16: 4 | JG16: 1 | JH16: 0 | JI16: 0 | JJ16: 0 | JK16: 0 | JL16: 0 | JM16: 1 | JN16: 4 | JO16: 18 | JP16: 203 | JQ16: 77 | JR16: 42 | JS16: 29 | JT16: 0 | JU16: 374 | JV16: 7 | JW16: 4 | JX16: 4 | JY16: 5 | JZ16: 3 | KA16: 2 | KB16: 1 | KE16: 345 | KF16: 6 | KG16: 4 | KH16: 3 | KI16: 7 | KJ16: 3 | KK16: 2 | KM16: 426 | KN16: 12 | KO16: 6 | KQ16: 0 | KR16: 0 | KS16: 0 | KT16: 0 | KU16: 2 | KV16: 5 | KW16: 3 | KX16: 0 | KY16: 0 | KZ16: 0 | LA16: 236 | LB16: 153 | LC16: 38 | LD16: 30 | LE16: 22 | LF16: 2 | LG16: 0 | LH16: 0 | LI16: 0 | LJ16: 34 | LK16: 12 | LL16: 2 | LM16: 2 | LN16: 0 | LO16: 145 | LP16: 85 | LQ16: 87 | LR16: 64 | LS16: 47 | LT16: 19 | LU16: 0 | LV16: 0 | LW16: 0 | LX16: 0 | LY16: 0 | LZ16: 0 | MA16: 0 | MB16: 0 | MC16: 6 | MD16: 2 | ME16: 0 | MF16: 0 | MG16: 1 | MH16: 0 | MI16: 0 | MJ16: 0 | MK16: 0 | ML16: 0 | MM16: 0 | MN16: 0 | MO16: 0 | MP16: 0 | MQ16: 0 | MR16: 0 | MS16: 0 | MT16: 0 | MU16: 0 | MV16: 0 | MW16: 3 | MX16: 4 | MY16: 0 | MZ16: 0 | NA16: 0 | NB16: 229 | NC16: 117 | ND16: 166 | NE16: 44 | NF16: 27 | NG16: 26 | OC16: 82 | OD16: 26 | OE16: 0 | OF16: 49 | OG16: 76 | OH16: 0 | OI16: 40 | OJ16: 48 | OK16: 0 | OL16: 35 | OM16: 40 | ON16: 0 | OO16: 39 | OP16: 26 | OQ16: 0 | OR16: 43 | OS16: 23 | OT16: 0 | OU16: 30 | OV16: 18 | OW16: 0 | OX16: 31 | OY16: 19 | OZ16: 0 | PA16: 12 | PB16: 17 | PC16: 0 | PD16: 4 | PE16: 2 | PF16: 0 | PG16: 0 | PH16: 0 | PI16: 0 | PJ16: 0 | PK16: 0 | PL16: 0 | PM16: 0 | PN16: 133 | PO16: 71 | PP16: 48 | PQ16: 48 | PR16: 157 | PS16: 37 | PT16: 0 | PU16: 0 | PV16: 0 | PW16: 9 | PX16: 5 | QC16: =SUM(QC12:QC15) -> 13,444 | QE16: =+SUM(QE12:QE15) -> 857.0 | QF16: =+SUM(QF12:QF15) -> 874.0 | QG16: =+SUM(QG12:QG15) -> 884.0 | QH16: =+SUM(QH12:QH15) -> 679.0 | QI16: =+SUM(QI12:QI15) -> 856.0 | QJ16: =+SUM(QJ12:QJ15) -> 691.0 | QK16: =+SUM(QK12:QK15) -> 4.0 | QL16: =+SUM(QL12:QL15) -> 0.0 | QM16: =+SUM(QM12:QM15) -> 773.0 | QN16: =+SUM(QN12:QN15) -> 1,056.0 | QO16: =+SUM(QO12:QO15) -> 0.0 | QP16: =+SUM(QP12:QP15) -> 782.0 | QQ16: =+SUM(QQ12:QQ15) -> 1,275.0 | QR16: =+SUM(QR12:QR15) -> 808.0 | QS16: =+SUM(QS12:QS15) -> 400.0 | QT16: =+SUM(QT12:QT15) -> 814.0 | QU16: =+SUM(QU12:QU15) -> 997.0 | QV16: =+SUM(QV12:QV15) -> 616.0 | QW16: =+SUM(QW12:QW15) -> 0.0 | QX16: =+SUM(QX12:QX15) -> 0.0 | QY16: =+SUM(QY12:QY15) -> 0.0 | QZ16: =+SUM(QZ12:QZ15) -> 0.0 | RA16: =+SUM(RA12:RA15) -> 0.0 | RB16: =+SUM(RB12:RB15) -> 0.0 | RC16: =+SUM(RC12:RC15) -> 0.0 | RD16: =+SUM(RD12:RD15) -> 0.0 | RE16: =+SUM(RE12:RE15) -> 0.0 | RF16: =+SUM(RF12:RF15) -> 660.0 | RG16: =+SUM(RG12:RG15) -> 0.0 | RH16: =+SUM(RH12:RH15) -> 0.0 | RI16: =+SUM(RI12:RI15) -> 0.0 | RJ16: =+SUM(RJ12:RJ15) -> 252.0 | RK16: =+SUM(RK12:RK15) -> 48.0 | RL16: =+SUM(RL12:RL15) -> 157.0 | RM16: =+SUM(RM12:RM15) -> 37.0 | RN16: =+SUM(RN12:RN15) -> 0.0 | RO16: =+SUM(RO12:RO15) -> 0.0 | RP16: =+SUM(RP12:RP15) -> 0.0 | RQ16: =+SUM(RQ12:RQ15) -> 9.0 | RR16: =+SUM(RR12:RR15) -> 5.0 | RS16: =+SUM(RS12:RS15) -> 0.0 | RT16: =+SUM(RT12:RT15) -> 0.0 | RU16: =+SUM(RU12:RU15) -> 0.0 | RV16: =+SUM(RV12:RV15) -> 0.0 | RW16: =SUM(RW12:RW15) -> 13,444.0 | RX16: =+SR16+RW21+SE16+'2_MERCADO_PRIVADO'!TA16 -> 12206 | RY16: 1 | RZ16: 2 | SA16: 0 | SB16: 17 | SC16: 218 | SD16: 39 | SE16: =SUM(SE12:SE15) -> 277 | SF16: =SUM(SF12:SF15) -> 0 | SG16: 0 | SH16: 0 | SI16: 0 | SJ16: 0 | SK16: 0 | SL16: 0 | SM16: 0 | SN16: 35 | SO16: 6 | SQ16: 0 | SU16: =SUM(SU12:SU15) -> 0 | SV16: =SUM(SV12:SV15) -> 41 | SW16: =SUM(SW12:SW15) -> 0 | SX16: =SUM(SX12:SX15) -> 0 | SY16: =SUM(SY12:SY15) -> 0 | TA16: 0 | TB16: 0 | TC16: 0 | TD16: 0 | TE16: 0 | TF16: 0 | TG16: 0 | TH16: 0 | TI16: 0 | TJ16: 0 | TK16: 0 | TL16: 0 | TM16: 0 | TN16: 0 | TO16: 0 | TQ16: =M16+DH16+'2_MERCADO_PRIVADO'!BW16+'2_MERCADO_PRIVADO'!G16 -> 471 | TR16: =DH16+'2_MERCADO_PRIVADO'!AP16+'2_MERCADO_PRIVADO'!BW16 -> 471 | TS16: =BR16+'2_MERCADO_PRIVADO'!AP16+'2_MERCADO_PRIVADO'!BW16+'2_MERCADO_PRIVADO'!DD16 -> 470 | TT16: =CH16+CX16+'2_MERCADO_PRIVADO'!BF16+'2_MERCADO_PRIVADO'!CM16+'2_MERCADO_PRIVADO'!DT16 -> 454 | TU16: =CO16+DE16+'2_MERCADO_PRIVADO'!BM16+'2_MERCADO_PRIVADO'!CT16+'2_MERCADO_PRIVADO'!EA16 -> 506
D17: INDIGENA | E17: 0 | F17: 0 | G17: 0 | H17: 0 | I17: 0 | J17: 0 | K17: 0 | L17: 0 | M17: 0 | N17: 0 | O17: 0 | P17: 0 | Q17: 0 | R17: 0 | S17: 0 | T17: 0 | U17: 0 | V17: 0 | W17: 0 | X17: 0 | Y17: 0 | Z17: 0 | AA17: 0 | AB17: 0 | AZ17: 0 | BA17: 0 | BB17: 0 | BC17: 0 | BD17: 0 | BE17: 0 | BF17: 0 | BG17: 0 | BH17: 0 | BI17: 0 | BJ17: 0 | BK17: 0 | BP17: 0 | BQ17: 0 | BR17: 0 | BS17: 0 | BT17: 0 | BU17: 0 | BV17: 0 | BW17: 0 | BX17: 0 | BY17: 0 | BZ17: 0 | CA17: 0 | CB17: 0 | CC17: 0 | CD17: 0 | CH17: 0 | CO17: 0 | CR17: 0 | CU17: 0 | CX17: 0 | CY17: 0 | CZ17: 0 | DA17: 0 | DB17: 0 | DC17: 0 | DD17: 0 | DE17: 0 | DF17: 0 | DG17: 0 | DH17: 0 | DU17: 0 | DV17: 0 | DW17: 0 | DX17: 0 | DY17: 0 | DZ17: 0 | EA17: 0 | EB17: 0 | EC17: 0 | ED17: 0 | EE17: 0 | EF17: 0 | EG17: 0 | EH17: 0 | EI17: 0 | EJ17: 0 | EK17: 0 | EL17: 0 | EM17: 0 | EN17: 0 | EO17: 0 | EP17: 0 | EQ17: 0 | ER17: 0 | ES17: 0 | ET17: 0 | EX17: 0 | EY17: 0 | EZ17: 0 | FA17: 0 | FB17: 0 | FC17: 0 | FY17: 0 | HE17: 0 | HF17: 0 | HG17: 0 | HH17: 0 | HI17: 0 | HJ17: 0 | HK17: 0 | HL17: 0 | HS17: 0 | HT17: 0 | HU17: 0 | HV17: 0 | ID17: 0 | IE17: 0 | IF17: 0 | IG17: 0 | IH17: 0 | II17: 0 | IK17: 0 | IL17: 0 | IM17: 0 | IN17: 0 | IO17: 0 | IP17: 0 | IQ17: 0 | IR17: 0 | IS17: 0 | IT17: 0 | IU17: 0 | IV17: 0 | IX17: 0 | IY17: 0 | IZ17: 0 | JA17: 0 | JB17: 0 | JC17: 0 | JD17: 0 | JE17: 0 | JF17: 0 | JG17: 0 | JH17: 0 | JI17: 0 | JJ17: 0 | JK17: 0 | JL17: 0 | JM17: 0 | JN17: 0 | JO17: 0 | JP17: 0 | JQ17: 0 | JR17: 0 | JS17: 0 | JT17: 0 | JU17: 0 | JV17: 0 | JW17: 0 | JX17: 0 | JY17: 0 | JZ17: 0 | KA17: 0 | KB17: 0 | KE17: 0 | KF17: 0 | KG17: 0 | KH17: 0 | KI17: 0 | KJ17: 0 | KK17: 0 | KM17: 0 | KN17: 0 | KO17: 0 | KQ17: 0 | KR17: 0 | KS17: 0 | KT17: 0 | KU17: 0 | KV17: 0 | KW17: 0 | KX17: 0 | KY17: 0 | KZ17: 0 | LA17: 0 | LB17: 0 | LC17: 0 | LD17: 0 | LE17: 0 | LF17: 0 | LG17: 0 | LH17: 0 | LI17: 0 | LJ17: 0 | LK17: 0 | LL17: 0 | LM17: 0 | LN17: 0 | LO17: 0 | LP17: 1 | LQ17: 0 | LR17: 0 | LS17: 0 | LT17: 0 | LU17: 0 | LV17: 0 | LW17: 0 | LX17: 0 | LY17: 0 | LZ17: 0 | MA17: 0 | MB17: 0 | MC17: 0 | MD17: 0 | ME17: 0 | MF17: 0 | MG17: 0 | MH17: 0 | MI17: 0 | MJ17: 0 | MK17: 0 | ML17: 0 | MM17: 0 | MN17: 0 | MO17: 0 | MP17: 0 | MQ17: 0 | MR17: 0 | MS17: 0 | MT17: 0 | MU17: 0 | MV17: 0 | MW17: 0 | MX17: 0 | MY17: 0 | MZ17: 0 | NA17: 0 | NB17: 0 | NC17: 0 | ND17: 0 | NE17: 0 | NF17: 0 | NG17: 0 | OC17: 0 | OD17: 0 | OE17: 0 | OF17: 0 | OG17: 0 | OH17: 0 | OI17: 0 | OJ17: 0 | OK17: 0 | OL17: 0 | OM17: 0 | ON17: 0 | OO17: 0 | OP17: 0 | OQ17: 0 | OR17: 0 | OS17: 0 | OT17: 0 | OU17: 0 | OV17: 0 | OW17: 0 | OX17: 0 | OY17: 0 | OZ17: 0 | PA17: 0 | PB17: 0 | PC17: 0 | PD17: 0 | PE17: 0 | PF17: 0 | PG17: 0 | PH17: 0 | PI17: 0 | PJ17: 0 | PK17: 0 | PL17: 0 | PM17: 0 | PN17: 0 | PO17: 0 | PP17: 0 | PQ17: 0 | PR17: 0 | PS17: 0 | PT17: 0 | PU17: 0 | PV17: 0 | PW17: 0 | PX17: 0 | QC17: =SUM(E17:QB17)-PQ17-PS17-PX17 -> 1 | QE17: =SUM(E17:H17) -> 0.0 | QF17: =SUM(I17:BO17) -> 0.0 | QG17: =SUM(BP17:CW17) -> 0.0 | QH17: =SUM(CX17:DE17) -> 0.0 | QI17: =SUM(DF17:DT17) -> 0.0 | QJ17: =SUM(DU17:ET17) -> 0.0 | QK17: =SUM(EU17:FY17) -> 0.0 | QL17: =SUM(FZ17:HD17) -> 0.0 | QM17: =SUM(HE17:HF17) -> 0.0 | QN17: =SUM(HG17:HL17) -> 0.0 | QO17: =SUM(HM17:HR17) -> 0.0 | QP17: =SUM(HS17:IJ17) -> 0.0 | QQ17: =SUM(IK17:JA17) -> 0.0 | QR17: =SUM(JB17:JT17) -> 0.0 | QS17: =SUM(JU17:KD17) -> 0.0 | QT17: =SUM(KE17:KP17) -> 0.0 | QU17: =SUM(KQ17:MU17) -> 1.0 | QV17: =SUM(MV17:NG17) -> 0.0 | QW17: =SUM(NH17:NI17) -> 0.0 | QX17: =SUM(NJ17:NL17) -> 0.0 | QY17: =SUM(NM17:NO17) -> 0.0 | QZ17: =SUM(NP17) -> 0.0 | RA17: =SUM(NQ17) -> 0.0 | RB17: =SUM(NR17:NT17) -> 0.0 | RC17: =SUM(NU17) -> 0.0 | RD17: =SUM(NV17) -> 0.0 | RE17: =SUM(NW17:OB17) -> 0.0 | RF17: =SUM(OC17:PE17) -> 0.0 | RG17: =SUM(PF17:PG17) -> 0.0 | RH17: =SUM(PH17:PI17) -> 0.0 | RI17: =SUM(PJ17:PM17) -> 0.0 | RJ17: =SUM(PN17:PP17) -> 0.0 | RK17: =SUM(PQ17) -> 0.0 | RL17: =SUM(PR17) -> 0.0 | RM17: =SUM(PS17) -> 0.0 | RN17: =SUM(PT17) -> 0 | RO17: =SUM(PU17) -> 0 | RP17: =SUM(PV17) -> 0 | RQ17: =SUM(PW17) -> 0.0 | RR17: =SUM(PX17) -> 0.0 | RS17: =SUM(PY17) -> 0.0 | RT17: =SUM(PZ17) -> 0.0 | RU17: =SUM(QA17) -> 0.0 | RV17: =SUM(QB17) -> 0.0 | RW17: 1.0 | RX17: =+SR17+RW22+SE17+'2_MERCADO_PRIVADO'!TA17 -> 13424 | RY17: 0 | RZ17: 0 | SA17: 0 | SB17: 1 | SC17: 0 | SD17: 0 | SE17: =SUM(RY17:SD17) -> 1 | SU17: =SF17+SG17 -> 0 | SV17: =SH17+SI17+SJ17+SK17+SL17+SM17+SN17+SO17+SP17 -> 0 | SW17: =SQ17 -> 0 | SX17: =SR17 -> 0 | SY17: =SS17 -> 0 | TA17: 0 | TB17: 0 | TC17: 0 | TD17: 0 | TE17: 0 | TF17: 0 | TG17: 0 | TH17: 0 | TI17: 0 | TJ17: 0 | TK17: 0 | TL17: 0 | TM17: 0 | TN17: 0 | TO17: 0 | TQ17: =M17+DH17+'2_MERCADO_PRIVADO'!BW17+'2_MERCADO_PRIVADO'!G17 -> 0 | TR17: =DH17+'2_MERCADO_PRIVADO'!AP17+'2_MERCADO_PRIVADO'!BW17 -> 0 | TS17: =BR17+'2_MERCADO_PRIVADO'!AP17+'2_MERCADO_PRIVADO'!BW17+'2_MERCADO_PRIVADO'!DD17 -> 0 | TT17: =CH17+CX17+'2_MERCADO_PRIVADO'!BF17+'2_MERCADO_PRIVADO'!CM17+'2_MERCADO_PRIVADO'!DT17 -> 0 | TU17: =CO17+DE17+'2_MERCADO_PRIVADO'!BM17+'2_MERCADO_PRIVADO'!CT17+'2_MERCADO_PRIVADO'!EA17 -> 0
D18: ROM (GITANO) | E18: 0 | F18: 0 | G18: 0 | H18: 0 | I18: 0 | J18: 0 | K18: 0 | L18: 0 | M18: 0 | N18: 0 | O18: 0 | P18: 0 | Q18: 0 | R18: 0 | S18: 0 | T18: 0 | U18: 0 | V18: 0 | W18: 0 | X18: 0 | Y18: 0 | Z18: 0 | AA18: 0 | AB18: 0 | AZ18: 0 | BA18: 0 | BB18: 0 | BC18: 0 | BD18: 0 | BE18: 0 | BF18: 0 | BG18: 0 | BH18: 0 | BI18: 0 | BJ18: 0 | BK18: 0 | BP18: 0 | BQ18: 0 | BR18: 0 | BS18: 0 | BT18: 0 | BU18: 0 | BV18: 0 | BW18: 0 | BX18: 0 | BY18: 0 | BZ18: 0 | CA18: 0 | CB18: 0 | CC18: 0 | CD18: 0 | CH18: 0 | CO18: 0 | CR18: 0 | CU18: 0 | CX18: 0 | CY18: 0 | CZ18: 0 | DA18: 0 | DB18: 0 | DC18: 0 | DD18: 0 | DE18: 0 | DF18: 0 | DG18: 0 | DH18: 0 | DU18: 0 | DV18: 0 | DW18: 0 | DX18: 0 | DY18: 0 | DZ18: 0 | EA18: 0 | EB18: 0 | EC18: 0 | ED18: 0 | EE18: 0 | EF18: 0 | EG18: 0 | EH18: 0 | EI18: 0 | EJ18: 0 | EK18: 0 | EL18: 0 | EM18: 0 | EN18: 0 | EO18: 0 | EP18: 0 | EQ18: 0 | ER18: 0 | ES18: 0 | ET18: 0 | EX18: 0 | EY18: 0 | EZ18: 0 | FA18: 0 | FB18: 0 | FC18: 0 | FY18: 0 | HE18: 0 | HF18: 0 | HG18: 0 | HH18: 0 | HI18: 0 | HJ18: 0 | HK18: 0 | HL18: 0 | HS18: 0 | HT18: 0 | HU18: 0 | HV18: 0 | ID18: 0 | IE18: 0 | IF18: 0 | IG18: 0 | IH18: 0 | II18: 0 | IK18: 0 | IL18: 0 | IM18: 0 | IN18: 0 | IO18: 0 | IP18: 0 | IQ18: 0 | IR18: 0 | IS18: 0 | IT18: 0 | IU18: 0 | IV18: 0 | IX18: 0 | IY18: 0 | IZ18: 0 | JA18: 0 | JB18: 0 | JC18: 0 | JD18: 0 | JE18: 0 | JF18: 0 | JG18: 0 | JH18: 0 | JI18: 0 | JJ18: 0 | JK18: 0 | JL18: 0 | JM18: 0 | JN18: 0 | JO18: 0 | JP18: 0 | JQ18: 0 | JR18: 0 | JS18: 0 | JT18: 0 | JU18: 0 | JV18: 0 | JW18: 0 | JX18: 0 | JY18: 0 | JZ18: 0 | KA18: 0 | KB18: 0 | KE18: 0 | KF18: 0 | KG18: 0 | KH18: 0 | KI18: 0 | KJ18: 0 | KK18: 0 | KM18: 0 | KN18: 0 | KO18: 0 | KQ18: 0 | KR18: 0 | KS18: 0 | KT18: 0 | KU18: 0 | KV18: 0 | KW18: 0 | KX18: 0 | KY18: 0 | KZ18: 0 | LA18: 0 | LB18: 0 | LC18: 0 | LD18: 0 | LE18: 0 | LF18: 0 | LG18: 0 | LH18: 0 | LI18: 0 | LJ18: 0 | LK18: 0 | LL18: 0 | LM18: 0 | LN18: 0 | LO18: 0 | LP18: 0 | LQ18: 0 | LR18: 0 | LS18: 0 | LT18: 0 | LU18: 0 | LV18: 0 | LW18: 0 | LX18: 0 | LY18: 0 | LZ18: 0 | MA18: 0 | MB18: 0 | MC18: 0 | MD18: 0 | ME18: 0 | MF18: 0 | MG18: 0 | MH18: 0 | MI18: 0 | MJ18: 0 | MK18: 0 | ML18: 0 | MM18: 0 | MN18: 0 | MO18: 0 | MP18: 0 | MQ18: 0 | MR18: 0 | MS18: 0 | MT18: 0 | MU18: 0 | MV18: 0 | MW18: 0 | MX18: 0 | MY18: 0 | MZ18: 0 | NA18: 0 | NB18: 0 | NC18: 0 | ND18: 0 | NE18: 0 | NF18: 0 | NG18: 0 | OC18: 0 | OD18: 0 | OE18: 0 | OF18: 0 | OG18: 0 | OH18: 0 | OI18: 0 | OJ18: 0 | OK18: 0 | OL18: 0 | OM18: 0 | ON18: 0 | OO18: 0 | OP18: 0 | OQ18: 0 | OR18: 0 | OS18: 0 | OT18: 0 | OU18: 0 | OV18: 0 | OW18: 0 | OX18: 0 | OY18: 0 | OZ18: 0 | PA18: 0 | PB18: 0 | PC18: 0 | PD18: 0 | PE18: 0 | PF18: 0 | PG18: 0 | PH18: 0 | PI18: 0 | PJ18: 0 | PK18: 0 | PL18: 0 | PM18: 0 | PN18: 0 | PO18: 0 | PP18: 0 | PQ18: 0 | PR18: 0 | PS18: 0 | PT18: 0 | PU18: 0 | PV18: 0 | PW18: 0 | PX18: 0 | QC18: =SUM(E18:QB18)-PQ18-PS18-PX18 -> 0 | QE18: 0.0 | QF18: 0.0 | QG18: 0.0 | QH18: 0.0 | QI18: 0.0 | QJ18: 0.0 | QK18: 0.0 | QL18: 0.0 | QM18: 0.0 | QN18: 0.0 | QO18: 0.0 | QP18: 0.0 | QQ18: 0.0 | QR18: 0.0 | QS18: 0.0 | QT18: 0.0 | QU18: 0.0 | QV18: 0.0 | QW18: 0.0 | QX18: 0.0 | QY18: 0.0 | QZ18: 0.0 | RA18: 0.0 | RB18: 0.0 | RC18: 0.0 | RD18: 0.0 | RE18: 0.0 | RF18: 0.0 | RG18: 0.0 | RH18: 0.0 | RI18: 0.0 | RJ18: 0.0 | RK18: 0.0 | RL18: 0.0 | RM18: 0.0 | RN18: 0 | RO18: 0 | RP18: 0 | RQ18: 0.0 | RR18: 0.0 | RS18: 0.0 | RT18: 0.0 | RU18: 0.0 | RV18: 0.0 | RW18: 0.0 | RX18: =+SR18+RW23+SE18+'2_MERCADO_PRIVADO'!TA18 -> 13444 | RY18: 0 | RZ18: 0 | SA18: 0 | SB18: 0 | SC18: 0 | SD18: 0 | SE18: 0 | SU18: 0 | SV18: 0 | SW18: 0 | SX18: 0 | SY18: 0 | TA18: 0 | TB18: 0 | TC18: 0 | TD18: 0 | TE18: 0 | TF18: 0 | TG18: 0 | TH18: 0 | TI18: 0 | TJ18: 0 | TK18: 0 | TL18: 0 | TM18: 0 | TN18: 0 | TO18: 0 | TQ18: =M18+DH18+'2_MERCADO_PRIVADO'!BW18+'2_MERCADO_PRIVADO'!G18 -> 0 | TR18: =DH18+'2_MERCADO_PRIVADO'!AP18+'2_MERCADO_PRIVADO'!BW18 -> 0 | TS18: =BR18+'2_MERCADO_PRIVADO'!AP18+'2_MERCADO_PRIVADO'!BW18+'2_MERCADO_PRIVADO'!DD18 -> 0 | TT18: =CH18+CX18+'2_MERCADO_PRIVADO'!BF18+'2_MERCADO_PRIVADO'!CM18+'2_MERCADO_PRIVADO'!DT18 -> 0 | TU18: =CO18+DE18+'2_MERCADO_PRIVADO'!BM18+'2_MERCADO_PRIVADO'!CT18+'2_MERCADO_PRIVADO'!EA18 -> 0
D19: RAIZAL | E19: 0 | F19: 0 | G19: 0 | H19: 0 | I19: 0 | J19: 0 | K19: 0 | L19: 0 | M19: 0 | N19: 0 | O19: 0 | P19: 0 | Q19: 0 | R19: 0 | S19: 0 | T19: 0 | U19: 0 | V19: 0 | W19: 0 | X19: 0 | Y19: 0 | Z19: 0 | AA19: 0 | AB19: 0 | AZ19: 0 | BA19: 0 | BB19: 0 | BC19: 0 | BD19: 0 | BE19: 0 | BF19: 0 | BG19: 0 | BH19: 0 | BI19: 0 | BJ19: 0 | BK19: 0 | BP19: 1 | BQ19: 0 | BR19: 0 | BS19: 0 | BT19: 0 | BU19: 0 | BV19: 0 | BW19: 0 | BX19: 0 | BY19: 0 | BZ19: 0 | CA19: 0 | CB19: 0 | CC19: 0 | CD19: 0 | CH19: 0 | CO19: 0 | CR19: 0 | CU19: 0 | CX19: 0 | CY19: 0 | CZ19: 0 | DA19: 0 | DB19: 0 | DC19: 0 | DD19: 0 | DE19: 0 | DF19: 1 | DG19: 0 | DH19: 0 | DU19: 0 | DV19: 0 | DW19: 0 | DX19: 0 | DY19: 0 | DZ19: 0 | EA19: 0 | EB19: 0 | EC19: 0 | ED19: 0 | EE19: 0 | EF19: 0 | EG19: 0 | EH19: 0 | EI19: 0 | EJ19: 0 | EK19: 0 | EL19: 0 | EM19: 0 | EN19: 0 | EO19: 0 | EP19: 0 | EQ19: 0 | ER19: 0 | ES19: 0 | ET19: 0 | EX19: 0 | EY19: 0 | EZ19: 0 | FA19: 0 | FB19: 0 | FC19: 0 | FY19: 0 | HE19: 1 | HF19: 0 | HG19: 1 | HH19: 0 | HI19: 0 | HJ19: 0 | HK19: 0 | HL19: 0 | HS19: 0 | HT19: 0 | HU19: 0 | HV19: 0 | ID19: 0 | IE19: 0 | IF19: 0 | IG19: 0 | IH19: 0 | II19: 0 | IK19: 0 | IL19: 0 | IM19: 0 | IN19: 0 | IO19: 0 | IP19: 0 | IQ19: 0 | IR19: 0 | IS19: 0 | IT19: 0 | IU19: 0 | IV19: 0 | IX19: 0 | IY19: 0 | IZ19: 0 | JA19: 0 | JB19: 0 | JC19: 0 | JD19: 0 | JE19: 0 | JF19: 0 | JG19: 0 | JH19: 0 | JI19: 0 | JJ19: 0 | JK19: 0 | JL19: 0 | JM19: 0 | JN19: 0 | JO19: 0 | JP19: 0 | JQ19: 0 | JR19: 0 | JS19: 0 | JT19: 0 | JU19: 0 | JV19: 0 | JW19: 0 | JX19: 0 | JY19: 0 | JZ19: 0 | KA19: 0 | KB19: 0 | KE19: 0 | KF19: 0 | KG19: 0 | KH19: 0 | KI19: 0 | KJ19: 0 | KK19: 0 | KM19: 0 | KN19: 0 | KO19: 0 | KQ19: 0 | KR19: 0 | KS19: 0 | KT19: 0 | KU19: 0 | KV19: 0 | KW19: 0 | KX19: 0 | KY19: 0 | KZ19: 0 | LA19: 0 | LB19: 0 | LC19: 0 | LD19: 0 | LE19: 0 | LF19: 0 | LG19: 0 | LH19: 0 | LI19: 0 | LJ19: 0 | LK19: 0 | LL19: 0 | LM19: 0 | LN19: 0 | LO19: 0 | LP19: 0 | LQ19: 0 | LR19: 0 | LS19: 0 | LT19: 0 | LU19: 0 | LV19: 0 | LW19: 0 | LX19: 0 | LY19: 0 | LZ19: 0 | MA19: 0 | MB19: 0 | MC19: 0 | MD19: 0 | ME19: 0 | MF19: 0 | MG19: 0 | MH19: 0 | MI19: 0 | MJ19: 0 | MK19: 0 | ML19: 0 | MM19: 0 | MN19: 0 | MO19: 0 | MP19: 0 | MQ19: 0 | MR19: 0 | MS19: 0 | MT19: 0 | MU19: 0 | MV19: 0 | MW19: 0 | MX19: 0 | MY19: 0 | MZ19: 0 | NA19: 0 | NB19: 0 | NC19: 0 | ND19: 0 | NE19: 0 | NF19: 0 | NG19: 0 | OC19: 0 | OD19: 0 | OE19: 0 | OF19: 0 | OG19: 0 | OH19: 0 | OI19: 0 | OJ19: 0 | OK19: 0 | OL19: 0 | OM19: 0 | ON19: 0 | OO19: 0 | OP19: 0 | OQ19: 0 | OR19: 0 | OS19: 0 | OT19: 0 | OU19: 0 | OV19: 0 | OW19: 0 | OX19: 0 | OY19: 0 | OZ19: 0 | PA19: 0 | PB19: 0 | PC19: 0 | PD19: 0 | PE19: 0 | PF19: 0 | PG19: 0 | PH19: 0 | PI19: 0 | PJ19: 0 | PK19: 0 | PL19: 0 | PM19: 0 | PN19: 0 | PO19: 0 | PP19: 0 | PQ19: 0 | PR19: 0 | PS19: 0 | PT19: 0 | PU19: 0 | PV19: 0 | PW19: 0 | PX19: 0 | QC19: 4 | QE19: 0.0 | QF19: 0.0 | QG19: 1.0 | QH19: 0.0 | QI19: 1.0 | QJ19: 0.0 | QK19: 0.0 | QL19: 0.0 | QM19: 1.0 | QN19: 1.0 | QO19: 0.0 | QP19: 0.0 | QQ19: 0.0 | QR19: 0.0 | QS19: 0.0 | QT19: 0.0 | QU19: 0.0 | QV19: 0.0 | QW19: 0.0 | QX19: 0.0 | QY19: 0.0 | QZ19: 0.0 | RA19: 0.0 | RB19: 0.0 | RC19: 0.0 | RD19: 0.0 | RE19: 0.0 | RF19: 0.0 | RG19: 0.0 | RH19: 0.0 | RI19: 0.0 | RJ19: 0.0 | RK19: 0.0 | RL19: 0.0 | RM19: 0.0 | RN19: 0 | RO19: 0 | RP19: 0 | RQ19: 0.0 | RR19: 0.0 | RS19: 0.0 | RT19: 0.0 | RU19: 0.0 | RV19: 0.0 | RW19: 4.0 | RX19: =+SR19+RW24+SE19+'2_MERCADO_PRIVADO'!TA19 -> 2 | RY19: 0 | RZ19: 0 | SA19: 0 | SB19: 0 | SC19: 0 | SD19: 0 | SE19: 0 | SU19: 0 | SV19: 0 | SW19: 0 | SX19: 0 | SY19: 0 | TA19: 0 | TB19: 0 | TC19: 0 | TD19: 0 | TE19: 0 | TF19: 0 | TG19: 0 | TH19: 0 | TI19: 0 | TJ19: 0 | TK19: 0 | TL19: 0 | TM19: 0 | TN19: 0 | TO19: 0 | TQ19: =M19+DH19+'2_MERCADO_PRIVADO'!BW19+'2_MERCADO_PRIVADO'!G19 -> 0 | TR19: =DH19+'2_MERCADO_PRIVADO'!AP19+'2_MERCADO_PRIVADO'!BW19 -> 0 | TS19: =BR19+'2_MERCADO_PRIVADO'!AP19+'2_MERCADO_PRIVADO'!BW19+'2_MERCADO_PRIVADO'!DD19 -> 0 | TT19: =CH19+CX19+'2_MERCADO_PRIVADO'!BF19+'2_MERCADO_PRIVADO'!CM19+'2_MERCADO_PRIVADO'!DT19 -> 0 | TU19: =CO19+DE19+'2_MERCADO_PRIVADO'!BM19+'2_MERCADO_PRIVADO'!CT19+'2_MERCADO_PRIVADO'!EA19 -> 0
D20: PALENQUERO | E20: 0 | F20: 0 | G20: 0 | H20: 0 | I20: 0 | J20: 0 | K20: 0 | L20: 0 | M20: 0 | N20: 0 | O20: 0 | P20: 0 | Q20: 0 | R20: 0 | S20: 0 | T20: 0 | U20: 0 | V20: 0 | W20: 0 | X20: 0 | Y20: 0 | Z20: 0 | AA20: 0 | AB20: 0 | AZ20: 0 | BA20: 0 | BB20: 0 | BC20: 0 | BD20: 0 | BE20: 0 | BF20: 0 | BG20: 0 | BH20: 0 | BI20: 0 | BJ20: 0 | BK20: 0 | BP20: 0 | BQ20: 0 | BR20: 0 | BS20: 0 | BT20: 0 | BU20: 0 | BV20: 0 | BW20: 0 | BX20: 0 | BY20: 0 | BZ20: 0 | CA20: 0 | CB20: 0 | CC20: 0 | CD20: 0 | CH20: 0 | CO20: 0 | CR20: 0 | CU20: 0 | CX20: 0 | CY20: 0 | CZ20: 0 | DA20: 0 | DB20: 0 | DC20: 0 | DD20: 0 | DE20: 0 | DF20: 0 | DG20: 0 | DH20: 0 | DU20: 0 | DV20: 0 | DW20: 0 | DX20: 0 | DY20: 0 | DZ20: 0 | EA20: 0 | EB20: 0 | EC20: 0 | ED20: 0 | EE20: 0 | EF20: 0 | EG20: 0 | EH20: 0 | EI20: 0 | EJ20: 0 | EK20: 0 | EL20: 0 | EM20: 0 | EN20: 0 | EO20: 0 | EP20: 0 | EQ20: 0 | ER20: 0 | ES20: 0 | ET20: 0 | EX20: 0 | EY20: 0 | EZ20: 0 | FA20: 0 | FB20: 0 | FC20: 0 | FY20: 0 | HE20: 0 | HF20: 0 | HG20: 0 | HH20: 0 | HI20: 0 | HJ20: 0 | HK20: 0 | HL20: 0 | HS20: 0 | HT20: 0 | HU20: 0 | HV20: 0 | ID20: 0 | IE20: 0 | IF20: 0 | IG20: 0 | IH20: 0 | II20: 0 | IK20: 0 | IL20: 0 | IM20: 0 | IN20: 0 | IO20: 0 | IP20: 0 | IQ20: 0 | IR20: 0 | IS20: 0 | IT20: 0 | IU20: 0 | IV20: 0 | IX20: 0 | IY20: 0 | IZ20: 0 | JA20: 0 | JB20: 0 | JC20: 0 | JD20: 0 | JE20: 0 | JF20: 0 | JG20: 0 | JH20: 0 | JI20: 0 | JJ20: 0 | JK20: 0 | JL20: 0 | JM20: 0 | JN20: 0 | JO20: 0 | JP20: 0 | JQ20: 0 | JR20: 0 | JS20: 0 | JT20: 0 | JU20: 0 | JV20: 0 | JW20: 0 | JX20: 0 | JY20: 0 | JZ20: 0 | KA20: 0 | KB20: 0 | KE20: 0 | KF20: 0 | KG20: 0 | KH20: 0 | KI20: 0 | KJ20: 0 | KK20: 0 | KM20: 0 | KN20: 0 | KO20: 0 | KQ20: 0 | KR20: 0 | KS20: 0 | KT20: 0 | KU20: 0 | KV20: 0 | KW20: 0 | KX20: 0 | KY20: 0 | KZ20: 0 | LA20: 0 | LB20: 0 | LC20: 0 | LD20: 0 | LE20: 0 | LF20: 0 | LG20: 0 | LH20: 0 | LI20: 0 | LJ20: 0 | LK20: 0 | LL20: 0 | LM20: 0 | LN20: 0 | LO20: 0 | LP20: 0 | LQ20: 0 | LR20: 0 | LS20: 0 | LT20: 0 | LU20: 0 | LV20: 0 | LW20: 0 | LX20: 0 | LY20: 0 | LZ20: 0 | MA20: 0 | MB20: 0 | MC20: 0 | MD20: 0 | ME20: 0 | MF20: 0 | MG20: 0 | MH20: 0 | MI20: 0 | MJ20: 0 | MK20: 0 | ML20: 0 | MM20: 0 | MN20: 0 | MO20: 0 | MP20: 0 | MQ20: 0 | MR20: 0 | MS20: 0 | MT20: 0 | MU20: 0 | MV20: 0 | MW20: 0 | MX20: 0 | MY20: 0 | MZ20: 0 | NA20: 0 | NB20: 0 | NC20: 0 | ND20: 1 | NE20: 0 | NF20: 1 | NG20: 0 | OC20: 0 | OD20: 0 | OE20: 0 | OF20: 0 | OG20: 0 | OH20: 0 | OI20: 0 | OJ20: 0 | OK20: 0 | OL20: 0 | OM20: 0 | ON20: 0 | OO20: 0 | OP20: 0 | OQ20: 0 | OR20: 0 | OS20: 0 | OT20: 0 | OU20: 0 | OV20: 0 | OW20: 0 | OX20: 0 | OY20: 0 | OZ20: 0 | PA20: 0 | PB20: 0 | PC20: 0 | PD20: 0 | PE20: 0 | PF20: 0 | PG20: 0 | PH20: 0 | PI20: 0 | PJ20: 0 | PK20: 0 | PL20: 0 | PM20: 0 | PN20: 0 | PO20: 0 | PP20: 0 | PQ20: 0 | PR20: 0 | PS20: 0 | PT20: 0 | PU20: 0 | PV20: 0 | PW20: 0 | PX20: 0 | QC20: 2 | QE20: 0.0 | QF20: 0.0 | QG20: 0.0 | QH20: 0.0 | QI20: 0.0 | QJ20: 0.0 | QK20: 0.0 | QL20: 0.0 | QM20: 0.0 | QN20: 0.0 | QO20: 0.0 | QP20: 0.0 | QQ20: 0.0 | QR20: 0.0 | QS20: 0.0 | QT20: 0.0 | QU20: 0.0 | QV20: 2.0 | QW20: 0.0 | QX20: 0.0 | QY20: 0.0 | QZ20: 0.0 | RA20: 0.0 | RB20: 0.0 | RC20: 0.0 | RD20: 0.0 | RE20: 0.0 | RF20: 0.0 | RG20: 0.0 | RH20: 0.0 | RI20: 0.0 | RJ20: 0.0 | RK20: 0.0 | RL20: 0.0 | RM20: 0.0 | RN20: 0 | RO20: 0 | RP20: 0 | RQ20: 0.0 | RR20: 0.0 | RS20: 0.0 | RT20: 0.0 | RU20: 0.0 | RV20: 0.0 | RW20: 2.0 | RX20: =+SR20+RW25+SE20+'2_MERCADO_PRIVADO'!TA20 -> 7 | RY20: 0 | RZ20: 0 | SA20: 0 | SB20: 0 | SC20: 0 | SD20: 0 | SE20: 0 | SU20: 0 | SV20: 0 | SW20: 0 | SX20: 0 | SY20: 0 | TA20: 0 | TB20: 0 | TC20: 0 | TD20: 0 | TE20: 0 | TF20: 0 | TG20: 0 | TH20: 0 | TI20: 0 | TJ20: 0 | TK20: 0 | TL20: 0 | TM20: 0 | TN20: 0 | TO20: 0 | TQ20: =M20+DH20+'2_MERCADO_PRIVADO'!BW20+'2_MERCADO_PRIVADO'!G20 -> 0 | TR20: =DH20+'2_MERCADO_PRIVADO'!AP20+'2_MERCADO_PRIVADO'!BW20 -> 0 | TS20: =BR20+'2_MERCADO_PRIVADO'!AP20+'2_MERCADO_PRIVADO'!BW20+'2_MERCADO_PRIVADO'!DD20 -> 0 | TT20: =CH20+CX20+'2_MERCADO_PRIVADO'!BF20+'2_MERCADO_PRIVADO'!CM20+'2_MERCADO_PRIVADO'!DT20 -> 0 | TU20: =CO20+DE20+'2_MERCADO_PRIVADO'!BM20+'2_MERCADO_PRIVADO'!CT20+'2_MERCADO_PRIVADO'!EA20 -> 0
D21: NEGRO(A), MULATO (A), AFROCOLOMBIANO (A) | E21: 2 | F21: 0 | G21: 0 | H21: 0 | I21: 2 | J21: 0 | K21: 0 | L21: 0 | M21: 0 | N21: 0 | O21: 0 | P21: 0 | Q21: 0 | R21: 0 | S21: 0 | T21: 0 | U21: 0 | V21: 0 | W21: 0 | X21: 0 | Y21: 0 | Z21: 0 | AA21: 0 | AB21: 0 | AZ21: 0 | BA21: 0 | BB21: 0 | BC21: 0 | BD21: 0 | BE21: 0 | BF21: 0 | BG21: 0 | BH21: 0 | BI21: 0 | BJ21: 0 | BK21: 0 | BP21: 0 | BQ21: 0 | BR21: 1 | BS21: 0 | BT21: 0 | BU21: 0 | BV21: 0 | BW21: 0 | BX21: 0 | BY21: 0 | BZ21: 0 | CA21: 0 | CB21: 0 | CC21: 0 | CD21: 0 | CH21: 0 | CO21: 0 | CR21: 0 | CU21: 0 | CX21: 1 | CY21: 0 | CZ21: 0 | DA21: 0 | DB21: 0 | DC21: 0 | DD21: 0 | DE21: 1 | DF21: 0 | DG21: 0 | DH21: 1 | DU21: 0 | DV21: 0 | DW21: 0 | DX21: 0 | DY21: 0 | DZ21: 0 | EA21: 0 | EB21: 0 | EC21: 0 | ED21: 0 | EE21: 0 | EF21: 0 | EG21: 0 | EH21: 0 | EI21: 0 | EJ21: 0 | EK21: 0 | EL21: 0 | EM21: 1 | EN21: 0 | EO21: 0 | EP21: 0 | EQ21: 0 | ER21: 0 | ES21: 0 | ET21: 1 | EX21: 0 | EY21: 0 | EZ21: 0 | FA21: 0 | FB21: 0 | FC21: 0 | FY21: 0 | HE21: 0 | HF21: 0 | HG21: 0 | HH21: 0 | HI21: 0 | HJ21: 0 | HK21: 0 | HL21: 1 | HS21: 0 | HT21: 0 | HU21: 0 | HV21: 0 | ID21: 1 | IE21: 0 | IF21: 0 | IG21: 0 | IH21: 0 | II21: 0 | IK21: 0 | IL21: 1 | IM21: 0 | IN21: 0 | IO21: 0 | IP21: 0 | IQ21: 0 | IR21: 0 | IS21: 0 | IT21: 0 | IU21: 0 | IV21: 0 | IX21: 0 | IY21: 0 | IZ21: 0 | JA21: 0 | JB21: 1 | JC21: 0 | JD21: 0 | JE21: 0 | JF21: 0 | JG21: 0 | JH21: 0 | JI21: 0 | JJ21: 0 | JK21: 0 | JL21: 0 | JM21: 0 | JN21: 0 | JO21: 0 | JP21: 0 | JQ21: 0 | JR21: 0 | JS21: 0 | JT21: 0 | JU21: 0 | JV21: 0 | JW21: 0 | JX21: 0 | JY21: 0 | JZ21: 0 | KA21: 0 | KB21: 0 | KE21: 0 | KF21: 0 | KG21: 0 | KH21: 0 | KI21: 0 | KJ21: 0 | KK21: 0 | KM21: 1 | KN21: 0 | KO21: 0 | KQ21: 0 | KR21: 0 | KS21: 0 | KT21: 0 | KU21: 0 | KV21: 0 | KW21: 0 | KX21: 0 | KY21: 0 | KZ21: 0 | LA21: 0 | LB21: 0 | LC21: 0 | LD21: 0 | LE21: 0 | LF21: 0 | LG21: 0 | LH21: 0 | LI21: 0 | LJ21: 0 | LK21: 0 | LL21: 0 | LM21: 0 | LN21: 0 | LO21: 0 | LP21: 0 | LQ21: 0 | LR21: 1 | LS21: 0 | LT21: 0 | LU21: 0 | LV21: 0 | LW21: 0 | LX21: 0 | LY21: 0 | LZ21: 0 | MA21: 0 | MB21: 0 | MC21: 0 | MD21: 0 | ME21: 0 | MF21: 0 | MG21: 0 | MH21: 0 | MI21: 0 | MJ21: 0 | MK21: 0 | ML21: 0 | MM21: 0 | MN21: 0 | MO21: 0 | MP21: 0 | MQ21: 0 | MR21: 0 | MS21: 0 | MT21: 0 | MU21: 0 | MV21: 0 | MW21: 0 | MX21: 0 | MY21: 0 | MZ21: 0 | NA21: 0 | NB21: 0 | NC21: 0 | ND21: 0 | NE21: 0 | NF21: 0 | NG21: 0 | OC21: 0 | OD21: 0 | OE21: 0 | OF21: 0 | OG21: 0 | OH21: 0 | OI21: 0 | OJ21: 0 | OK21: 0 | OL21: 0 | OM21: 0 | ON21: 0 | OO21: 0 | OP21: 0 | OQ21: 0 | OR21: 0 | OS21: 0 | OT21: 0 | OU21: 0 | OV21: 0 | OW21: 0 | OX21: 0 | OY21: 0 | OZ21: 0 | PA21: 0 | PB21: 0 | PC21: 0 | PD21: 0 | PE21: 0 | PF21: 0 | PG21: 0 | PH21: 0 | PI21: 0 | PJ21: 0 | PK21: 0 | PL21: 0 | PM21: 0 | PN21: 0 | PO21: 0 | PP21: 0 | PQ21: 0 | PR21: 0 | PS21: 0 | PT21: 0 | PU21: 0 | PV21: 0 | PW21: 0 | PX21: 0 | QC21: 16 | QE21: 2.0 | QF21: 2.0 | QG21: 1.0 | QH21: 2.0 | QI21: 1.0 | QJ21: 2.0 | QK21: 0.0 | QL21: 0.0 | QM21: 0.0 | QN21: 1.0 | QO21: 0.0 | QP21: 1.0 | QQ21: 1.0 | QR21: 1.0 | QS21: 0.0 | QT21: 1.0 | QU21: 1.0 | QV21: 0.0 | QW21: 0.0 | QX21: 0.0 | QY21: 0.0 | QZ21: 0.0 | RA21: 0.0 | RB21: 0.0 | RC21: 0.0 | RD21: 0.0 | RE21: 0.0 | RF21: 0.0 | RG21: 0.0 | RH21: 0.0 | RI21: 0.0 | RJ21: 0.0 | RK21: 0.0 | RL21: 0.0 | RM21: 0.0 | RN21: 0 | RO21: 0 | RP21: 0 | RQ21: 0.0 | RR21: 0.0 | RS21: 0.0 | RT21: 0.0 | RU21: 0.0 | RV21: 0.0 | RW21: 16.0 | RX21: =+SR21+RW26+SE21+'2_MERCADO_PRIVADO'!TA21 -> 9 | RY21: 0 | RZ21: 0 | SA21: 0 | SB21: 0 | SC21: 0 | SD21: 0 | SE21: 0 | SU21: 0 | SV21: 0 | SW21: 0 | SX21: 0 | SY21: 0 | TA21: 0 | TB21: 0 | TC21: 0 | TD21: 0 | TE21: 0 | TF21: 0 | TG21: 0 | TH21: 0 | TI21: 0 | TJ21: 0 | TK21: 0 | TL21: 0 | TM21: 0 | TN21: 0 | TO21: 0 | TQ21: =M21+DH21+'2_MERCADO_PRIVADO'!BW21+'2_MERCADO_PRIVADO'!G21 -> 1 | TR21: =DH21+'2_MERCADO_PRIVADO'!AP21+'2_MERCADO_PRIVADO'!BW21 -> 1 | TS21: =BR21+'2_MERCADO_PRIVADO'!AP21+'2_MERCADO_PRIVADO'!BW21+'2_MERCADO_PRIVADO'!DD21 -> 1 | TT21: =CH21+CX21+'2_MERCADO_PRIVADO'!BF21+'2_MERCADO_PRIVADO'!CM21+'2_MERCADO_PRIVADO'!DT21 -> 1 | TU21: =CO21+DE21+'2_MERCADO_PRIVADO'!BM21+'2_MERCADO_PRIVADO'!CT21+'2_MERCADO_PRIVADO'!EA21 -> 1
D22: SIN PERTENENCIA ETNICA | E22: 842 | F22: 12 | G22: 1 | H22: 0 | I22: 818 | J22: 35 | K22: 0 | L22: 0 | M22: 0 | N22: 0 | O22: 2 | P22: 4 | Q22: 0 | R22: 0 | S22: 4 | T22: 0 | U22: 0 | V22: 1 | W22: 1 | X22: 0 | Y22: 0 | Z22: 0 | AA22: 0 | AB22: 0 | AZ22: 0 | BA22: 1 | BB22: 0 | BC22: 0 | BD22: 0 | BE22: 0 | BF22: 1 | BG22: 0 | BH22: 5 | BI22: 0 | BJ22: 0 | BK22: 0 | BP22: 280 | BQ22: 296 | BR22: 277 | BS22: 0 | BT22: 2 | BU22: 4 | BV22: 1 | BW22: 0 | BX22: 2 | BY22: 0 | BZ22: 0 | CA22: 1 | CB22: 1 | CC22: 0 | CD22: 0 | CH22: 1 | CO22: 6 | CR22: 7 | CU22: 4 | CX22: 280 | CY22: 12 | CZ22: 4 | DA22: 2 | DB22: 5 | DC22: 0 | DD22: 0 | DE22: 374 | DF22: 280 | DG22: 295 | DH22: 278 | DQ22: 1 | DU22: 0 | DV22: 0 | DW22: 0 | DX22: 0 | DY22: 0 | DZ22: 4 | EA22: 0 | EB22: 0 | EC22: 3 | ED22: 0 | EE22: 0 | EF22: 1 | EG22: 1 | EH22: 0 | EI22: 0 | EJ22: 0 | EK22: 0 | EL22: 0 | EM22: 280 | EN22: 12 | EO22: 4 | EP22: 2 | EQ22: 4 | ER22: 0 | ES22: 0 | ET22: 378 | EX22: 0 | EY22: 2 | EZ22: 0 | FA22: 0 | FB22: 0 | FC22: 1 | FY22: 1 | HE22: 367 | HF22: 405 | HG22: 346 | HH22: 356 | HI22: 325 | HJ22: 8 | HK22: 2 | HL22: 17 | HS22: 336 | HT22: 2 | HU22: 0 | HV22: 1 | ID22: 425 | IE22: 10 | IF22: 5 | IG22: 1 | IH22: 0 | II22: 1 | IK22: 0 | IL22: 221 | IM22: 34 | IN22: 68 | IO22: 72 | IP22: 60 | IQ22: 75 | IR22: 59 | IS22: 69 | IT22: 60 | IU22: 52 | IV22: 66 | IX22: 14 | IY22: 229 | IZ22: 115 | JA22: 80 | JB22: 404 | JC22: 16 | JD22: 4 | JE22: 4 | JF22: 4 | JG22: 1 | JH22: 0 | JI22: 0 | JJ22: 0 | JK22: 0 | JL22: 0 | JM22: 1 | JN22: 4 | JO22: 18 | JP22: 203 | JQ22: 77 | JR22: 42 | JS22: 29 | JT22: 0 | JU22: 374 | JV22: 7 | JW22: 4 | JX22: 4 | JY22: 5 | JZ22: 3 | KA22: 2 | KB22: 1 | KE22: 345 | KF22: 6 | KG22: 4 | KH22: 3 | KI22: 7 | KJ22: 3 | KK22: 2 | KM22: 425 | KN22: 12 | KO22: 6 | KQ22: 0 | KR22: 0 | KS22: 0 | KT22: 0 | KU22: 2 | KV22: 5 | KW22: 3 | KX22: 0 | KY22: 0 | KZ22: 0 | LA22: 236 | LB22: 153 | LC22: 38 | LD22: 30 | LE22: 22 | LF22: 2 | LG22: 0 | LH22: 0 | LI22: 0 | LJ22: 34 | LK22: 12 | LL22: 2 | LM22: 2 | LN22: 0 | LO22: 145 | LP22: 84 | LQ22: 87 | LR22: 63 | LS22: 47 | LT22: 19 | LU22: 0 | LV22: 0 | LW22: 0 | LX22: 0 | LY22: 0 | LZ22: 0 | MA22: 0 | MB22: 0 | MC22: 6 | MD22: 2 | ME22: 0 | MF22: 0 | MG22: 1 | MH22: 0 | MI22: 0 | MJ22: 0 | MK22: 0 | ML22: 0 | MM22: 0 | MN22: 0 | MO22: 0 | MP22: 0 | MQ22: 0 | MR22: 0 | MS22: 0 | MT22: 0 | MU22: 0 | MV22: 0 | MW22: 3 | MX22: 4 | MY22: 0 | MZ22: 0 | NA22: 0 | NB22: 229 | NC22: 117 | ND22: 165 | NE22: 44 | NF22: 26 | NG22: 26 | OC22: 82 | OD22: 26 | OE22: 0 | OF22: 49 | OG22: 76 | OH22: 0 | OI22: 40 | OJ22: 48 | OK22: 0 | OL22: 35 | OM22: 40 | ON22: 0 | OO22: 39 | OP22: 26 | OQ22: 0 | OR22: 43 | OS22: 23 | OT22: 0 | OU22: 30 | OV22: 18 | OW22: 0 | OX22: 31 | OY22: 19 | OZ22: 0 | PA22: 12 | PB22: 17 | PC22: 0 | PD22: 4 | PE22: 2 | PF22: 0 | PG22: 0 | PH22: 0 | PI22: 0 | PJ22: 0 | PK22: 0 | PL22: 0 | PM22: 0 | PN22: 133 | PO22: 71 | PP22: 48 | PQ22: 48 | PR22: 157 | PS22: 37 | PT22: 0 | PU22: 0 | PV22: 0 | PW22: 9 | PX22: 5 | QC22: 13,421 | QE22: 855.0 | QF22: 872.0 | QG22: 882.0 | QH22: 677.0 | QI22: 854.0 | QJ22: 689.0 | QK22: 4.0 | QL22: 0.0 | QM22: 772.0 | QN22: 1,054.0 | QO22: 0.0 | QP22: 781.0 | QQ22: 1,274.0 | QR22: 807.0 | QS22: 400.0 | QT22: 813.0 | QU22: 995.0 | QV22: 614.0 | QW22: 0.0 | QX22: 0.0 | QY22: 0.0 | QZ22: 0.0 | RA22: 0.0 | RB22: 0.0 | RC22: 0.0 | RD22: 0.0 | RE22: 0.0 | RF22: 660.0 | RG22: 0.0 | RH22: 0.0 | RI22: 0.0 | RJ22: 252.0 | RK22: 48.0 | RL22: 157.0 | RM22: 37.0 | RN22: 0 | RO22: 0 | RP22: 0 | RQ22: 9.0 | RR22: 5.0 | RS22: 0.0 | RT22: 0.0 | RU22: 0.0 | RV22: 0.0 | RW22: 13,421.0 | RX22: =+SR22+RW27+SE22+'2_MERCADO_PRIVADO'!TA22 -> 12190 | RY22: 1 | RZ22: 2 | SA22: 0 | SB22: 16 | SC22: 218 | SD22: 39 | SE22: 276 | SN22: 35 | SO22: 6 | SU22: 0 | SV22: 41 | SW22: 0 | SX22: 0 | SY22: 0 | TA22: 0 | TB22: 0 | TC22: 0 | TD22: 0 | TE22: 0 | TF22: 0 | TG22: 0 | TH22: 0 | TI22: 0 | TJ22: 0 | TK22: 0 | TL22: 0 | TM22: 0 | TN22: 0 | TO22: 0 | TQ22: =M22+DH22+'2_MERCADO_PRIVADO'!BW22+'2_MERCADO_PRIVADO'!G22 -> 470 | TR22: =DH22+'2_MERCADO_PRIVADO'!AP22+'2_MERCADO_PRIVADO'!BW22 -> 470 | TS22: =BR22+'2_MERCADO_PRIVADO'!AP22+'2_MERCADO_PRIVADO'!BW22+'2_MERCADO_PRIVADO'!DD22 -> 469 | TT22: =CH22+CX22+'2_MERCADO_PRIVADO'!BF22+'2_MERCADO_PRIVADO'!CM22+'2_MERCADO_PRIVADO'!DT22 -> 453 | TU22: =CO22+DE22+'2_MERCADO_PRIVADO'!BM22+'2_MERCADO_PRIVADO'!CT22+'2_MERCADO_PRIVADO'!EA22 -> 505
D23: TOTAL ETNICOS | E23: 844 | F23: 12 | G23: 1 | H23: 0 | I23: 820 | J23: 35 | K23: 0 | L23: 0 | M23: 0 | N23: 0 | O23: 2 | P23: 4 | Q23: 0 | R23: 0 | S23: 4 | T23: 0 | U23: 0 | V23: 1 | W23: 1 | X23: 0 | Y23: 0 | Z23: 0 | AA23: 0 | AB23: 0 | AZ23: 0 | BA23: 1 | BB23: 0 | BC23: 0 | BD23: 0 | BE23: 0 | BF23: 1 | BG23: 0 | BH23: 5 | BI23: 0 | BJ23: 0 | BK23: 0 | BP23: 281 | BQ23: 296 | BR23: 278 | BS23: 0 | BT23: 2 | BU23: 4 | BV23: 1 | BW23: 0 | BX23: 2 | BY23: 0 | BZ23: 0 | CA23: 1 | CB23: 1 | CC23: 0 | CD23: 0 | CH23: 1 | CO23: 6 | CR23: 7 | CU23: 4 | CX23: 281 | CY23: 12 | CZ23: 4 | DA23: 2 | DB23: 5 | DC23: 0 | DD23: 0 | DE23: 375 | DF23: 281 | DG23: 295 | DH23: 279 | DQ23: 1 | DU23: 0 | DV23: 0 | DW23: 0 | DX23: 0 | DY23: 0 | DZ23: 4 | EA23: 0 | EB23: 0 | EC23: 3 | ED23: 0 | EE23: 0 | EF23: 1 | EG23: 1 | EH23: 0 | EI23: 0 | EJ23: 0 | EK23: 0 | EL23: 0 | EM23: 281 | EN23: 12 | EO23: 4 | EP23: 2 | EQ23: 4 | ER23: 0 | ES23: 0 | ET23: 379 | EX23: 0 | EY23: 2 | EZ23: 0 | FA23: 0 | FB23: 0 | FC23: 1 | FY23: 1 | HE23: 368 | HF23: 405 | HG23: 347 | HH23: 356 | HI23: 325 | HJ23: 8 | HK23: 2 | HL23: 18 | HS23: 336 | HT23: 2 | HU23: 0 | HV23: 1 | ID23: 426 | IE23: 10 | IF23: 5 | IG23: 1 | IH23: 0 | II23: 1 | IK23: 0 | IL23: 222 | IM23: 34 | IN23: 68 | IO23: 72 | IP23: 60 | IQ23: 75 | IR23: 59 | IS23: 69 | IT23: 60 | IU23: 52 | IV23: 66 | IX23: 14 | IY23: 229 | IZ23: 115 | JA23: 80 | JB23: 405 | JC23: 16 | JD23: 4 | JE23: 4 | JF23: 4 | JG23: 1 | JH23: 0 | JI23: 0 | JJ23: 0 | JK23: 0 | JL23: 0 | JM23: 1 | JN23: 4 | JO23: 18 | JP23: 203 | JQ23: 77 | JR23: 42 | JS23: 29 | JT23: 0 | JU23: 374 | JV23: 7 | JW23: 4 | JX23: 4 | JY23: 5 | JZ23: 3 | KA23: 2 | KB23: 1 | KE23: 345 | KF23: 6 | KG23: 4 | KH23: 3 | KI23: 7 | KJ23: 3 | KK23: 2 | KM23: 426 | KN23: 12 | KO23: 6 | KQ23: 0 | KR23: 0 | KS23: 0 | KT23: 0 | KU23: 2 | KV23: 5 | KW23: 3 | KX23: 0 | KY23: 0 | KZ23: 0 | LA23: 236 | LB23: 153 | LC23: 38 | LD23: 30 | LE23: 22 | LF23: 2 | LG23: 0 | LH23: 0 | LI23: 0 | LJ23: 34 | LK23: 12 | LL23: 2 | LM23: 2 | LN23: 0 | LO23: 145 | LP23: 85 | LQ23: 87 | LR23: 64 | LS23: 47 | LT23: 19 | LU23: 0 | LV23: 0 | LW23: 0 | LX23: 0 | LY23: 0 | LZ23: 0 | MA23: 0 | MB23: 0 | MC23: 6 | MD23: 2 | ME23: 0 | MF23: 0 | MG23: 1 | MH23: 0 | MI23: 0 | MJ23: 0 | MK23: 0 | ML23: 0 | MM23: 0 | MN23: 0 | MO23: 0 | MP23: 0 | MQ23: 0 | MR23: 0 | MS23: 0 | MT23: 0 | MU23: 0 | MV23: 0 | MW23: 3 | MX23: 4 | MY23: 0 | MZ23: 0 | NA23: 0 | NB23: 229 | NC23: 117 | ND23: 166 | NE23: 44 | NF23: 27 | NG23: 26 | OC23: 82 | OD23: 26 | OE23: 0 | OF23: 49 | OG23: 76 | OH23: 0 | OI23: 40 | OJ23: 48 | OK23: 0 | OL23: 35 | OM23: 40 | ON23: 0 | OO23: 39 | OP23: 26 | OQ23: 0 | OR23: 43 | OS23: 23 | OT23: 0 | OU23: 30 | OV23: 18 | OW23: 0 | OX23: 31 | OY23: 19 | OZ23: 0 | PA23: 12 | PB23: 17 | PC23: 0 | PD23: 4 | PE23: 2 | PF23: 0 | PG23: 0 | PH23: 0 | PI23: 0 | PJ23: 0 | PK23: 0 | PL23: 0 | PM23: 0 | PN23: 133 | PO23: 71 | PP23: 48 | PQ23: 48 | PR23: 157 | PS23: 37 | PT23: 0 | PU23: 0 | PV23: 0 | PW23: 9 | PX23: 5 | QC23: =SUM(QC17:QC22) -> 13,444 | QE23: =+SUM(QE17:QE22) -> 857.0 | QF23: =+SUM(QF17:QF22) -> 874.0 | QG23: =+SUM(QG17:QG22) -> 884.0 | QH23: =+SUM(QH17:QH22) -> 679.0 | QI23: =+SUM(QI17:QI22) -> 856.0 | QJ23: =+SUM(QJ17:QJ22) -> 691.0 | QK23: =+SUM(QK17:QK22) -> 4.0 | QL23: =+SUM(QL17:QL22) -> 0.0 | QM23: =+SUM(QM17:QM22) -> 773.0 | QN23: =+SUM(QN17:QN22) -> 1,056.0 | QO23: =+SUM(QO17:QO22) -> 0.0 | QP23: =+SUM(QP17:QP22) -> 782.0 | QQ23: =+SUM(QQ17:QQ22) -> 1,275.0 | QR23: =+SUM(QR17:QR22) -> 808.0 | QS23: =+SUM(QS17:QS22) -> 400.0 | QT23: =+SUM(QT17:QT22) -> 814.0 | QU23: =+SUM(QU17:QU22) -> 997.0 | QV23: =+SUM(QV17:QV22) -> 616.0 | QW23: =+SUM(QW17:QW22) -> 0.0 | QX23: =+SUM(QX17:QX22) -> 0.0 | QY23: =+SUM(QY17:QY22) -> 0.0 | QZ23: =+SUM(QZ17:QZ22) -> 0.0 | RA23: =+SUM(RA17:RA22) -> 0.0 | RB23: =+SUM(RB17:RB22) -> 0.0 | RC23: =+SUM(RC17:RC22) -> 0.0 | RD23: =+SUM(RD17:RD22) -> 0.0 | RE23: =+SUM(RE17:RE22) -> 0.0 | RF23: =+SUM(RF17:RF22) -> 660.0 | RG23: =+SUM(RG17:RG22) -> 0.0 | RH23: =+SUM(RH17:RH22) -> 0.0 | RI23: =+SUM(RI17:RI22) -> 0.0 | RJ23: =+SUM(RJ17:RJ22) -> 252.0 | RK23: =+SUM(RK17:RK22) -> 48.0 | RL23: =+SUM(RL17:RL22) -> 157.0 | RM23: =+SUM(RM17:RM22) -> 37.0 | RN23: =+SUM(RN17:RN22) -> 0.0 | RO23: =+SUM(RO17:RO22) -> 0.0 | RP23: =+SUM(RP17:RP22) -> 0.0 | RQ23: =+SUM(RQ17:RQ22) -> 9.0 | RR23: =+SUM(RR17:RR22) -> 5.0 | RS23: =+SUM(RS17:RS22) -> 0.0 | RT23: =+SUM(RT17:RT22) -> 0.0 | RU23: =+SUM(RU17:RU22) -> 0.0 | RV23: =+SUM(RV17:RV22) -> 0.0 | RW23: =SUM(RW17:RW22) -> 13,444.0 | RX23: =+SR23+RW28+SE23+'2_MERCADO_PRIVADO'!TA23 -> 15809 | RY23: 1 | RZ23: 2 | SA23: 0 | SB23: 17 | SC23: 218 | SD23: 39 | SE23: =SUM(SE17:SE22) -> 277 | SF23: =SUM(SF17:SF22) -> 0 | SG23: 0 | SH23: 0 | SI23: 0 | SJ23: 0 | SK23: 0 | SL23: 0 | SM23: 0 | SN23: 35 | SO23: 6 | SQ23: 0 | SU23: =SUM(SU17:SU22) -> 0 | SV23: =SUM(SV17:SV22) -> 41 | SW23: =SUM(SW17:SW22) -> 0 | SX23: =SUM(SX17:SX22) -> 0 | SY23: =SUM(SY17:SY22) -> 0 | TA23: 0 | TB23: 0 | TC23: 0 | TD23: 0 | TE23: 0 | TF23: 0 | TG23: 0 | TH23: 0 | TI23: 0 | TJ23: 0 | TK23: 0 | TL23: 0 | TM23: 0 | TN23: 0 | TO23: 0 | TQ23: =M23+DH23+'2_MERCADO_PRIVADO'!BW23+'2_MERCADO_PRIVADO'!G23 -> 471 | TR23: =DH23+'2_MERCADO_PRIVADO'!AP23+'2_MERCADO_PRIVADO'!BW23 -> 471 | TS23: =BR23+'2_MERCADO_PRIVADO'!AP23+'2_MERCADO_PRIVADO'!BW23+'2_MERCADO_PRIVADO'!DD23 -> 470 | TT23: =CH23+CX23+'2_MERCADO_PRIVADO'!BF23+'2_MERCADO_PRIVADO'!CM23+'2_MERCADO_PRIVADO'!DT23 -> 454 | TU23: =CO23+DE23+'2_MERCADO_PRIVADO'!BM23+'2_MERCADO_PRIVADO'!CT23+'2_MERCADO_PRIVADO'!EA23 -> 506
D24: EN SITUACION DE DESPLAZADO | E24: 0 | F24: 0 | G24: 0 | H24: 0 | I24: 0 | J24: 0 | K24: 0 | L24: 0 | M24: 0 | N24: 0 | O24: 0 | P24: 0 | Q24: 0 | R24: 0 | S24: 0 | T24: 0 | U24: 0 | V24: 0 | W24: 0 | X24: 0 | Y24: 0 | Z24: 0 | AA24: 0 | AB24: 0 | AZ24: 0 | BA24: 0 | BB24: 0 | BC24: 0 | BD24: 0 | BE24: 0 | BF24: 1 | BG24: 0 | BH24: 0 | BI24: 0 | BJ24: 0 | BK24: 0 | BP24: 0 | BQ24: 0 | BR24: 0 | BS24: 0 | BT24: 0 | BU24: 0 | BV24: 0 | BW24: 0 | BX24: 0 | BY24: 0 | BZ24: 0 | CA24: 0 | CB24: 0 | CC24: 0 | CD24: 0 | CH24: 0 | CO24: 0 | CR24: 0 | CU24: 0 | CX24: 0 | CY24: 0 | CZ24: 0 | DA24: 0 | DB24: 0 | DC24: 0 | DD24: 0 | DE24: 0 | DF24: 0 | DG24: 0 | DH24: 0 | DU24: 0 | DV24: 0 | DW24: 0 | DX24: 0 | DY24: 0 | DZ24: 0 | EA24: 0 | EB24: 0 | EC24: 0 | ED24: 0 | EE24: 0 | EF24: 0 | EG24: 0 | EH24: 0 | EI24: 0 | EJ24: 0 | EK24: 0 | EL24: 0 | EM24: 0 | EN24: 0 | EO24: 0 | EP24: 0 | EQ24: 0 | ER24: 0 | ES24: 0 | ET24: 0 | EX24: 0 | EY24: 0 | EZ24: 0 | FA24: 0 | FB24: 0 | FC24: 0 | FY24: 0 | HE24: 0 | HF24: 0 | HG24: 0 | HH24: 0 | HI24: 0 | HJ24: 0 | HK24: 0 | HL24: 0 | HS24: 0 | HT24: 0 | HU24: 0 | HV24: 0 | ID24: 0 | IE24: 0 | IF24: 0 | IG24: 0 | IH24: 0 | II24: 0 | IK24: 0 | IL24: 0 | IM24: 0 | IN24: 0 | IO24: 0 | IP24: 0 | IQ24: 0 | IR24: 0 | IS24: 0 | IT24: 0 | IU24: 0 | IV24: 0 | IX24: 0 | IY24: 0 | IZ24: 0 | JA24: 0 | JB24: 0 | JC24: 0 | JD24: 0 | JE24: 0 | JF24: 0 | JG24: 0 | JH24: 0 | JI24: 0 | JJ24: 0 | JK24: 0 | JL24: 0 | JM24: 0 | JN24: 0 | JO24: 0 | JP24: 0 | JQ24: 0 | JR24: 0 | JS24: 0 | JT24: 0 | JU24: 0 | JV24: 0 | JW24: 0 | JX24: 0 | JY24: 0 | JZ24: 0 | KA24: 0 | KB24: 0 | KE24: 0 | KF24: 0 | KG24: 0 | KH24: 0 | KI24: 0 | KJ24: 0 | KK24: 0 | KM24: 0 | KN24: 0 | KO24: 0 | KQ24: 0 | KR24: 0 | KS24: 0 | KT24: 0 | KU24: 0 | KV24: 0 | KW24: 0 | KX24: 0 | KY24: 0 | KZ24: 0 | LA24: 0 | LB24: 0 | LC24: 0 | LD24: 0 | LE24: 0 | LF24: 0 | LG24: 0 | LH24: 0 | LI24: 0 | LJ24: 0 | LK24: 0 | LL24: 0 | LM24: 0 | LN24: 0 | LO24: 0 | LP24: 0 | LQ24: 0 | LR24: 0 | LS24: 0 | LT24: 0 | LU24: 0 | LV24: 0 | LW24: 0 | LX24: 0 | LY24: 0 | LZ24: 0 | MA24: 0 | MB24: 0 | MC24: 0 | MD24: 0 | ME24: 0 | MF24: 0 | MG24: 0 | MH24: 0 | MI24: 0 | MJ24: 0 | MK24: 0 | ML24: 0 | MM24: 0 | MN24: 0 | MO24: 0 | MP24: 0 | MQ24: 0 | MR24: 0 | MS24: 0 | MT24: 0 | MU24: 0 | MV24: 0 | MW24: 0 | MX24: 0 | MY24: 0 | MZ24: 0 | NA24: 0 | NB24: 0 | NC24: 0 | ND24: 1 | NE24: 0 | NF24: 0 | NG24: 0 | OC24: 0 | OD24: 0 | OE24: 0 | OF24: 0 | OG24: 0 | OH24: 0 | OI24: 0 | OJ24: 0 | OK24: 0 | OL24: 0 | OM24: 0 | ON24: 0 | OO24: 0 | OP24: 0 | OQ24: 0 | OR24: 0 | OS24: 0 | OT24: 0 | OU24: 0 | OV24: 0 | OW24: 0 | OX24: 0 | OY24: 0 | OZ24: 0 | PA24: 0 | PB24: 0 | PC24: 0 | PD24: 0 | PE24: 0 | PF24: 0 | PG24: 0 | PH24: 0 | PI24: 0 | PJ24: 0 | PK24: 0 | PL24: 0 | PM24: 0 | PN24: 0 | PO24: 0 | PP24: 0 | PQ24: 0 | PR24: 0 | PS24: 0 | PT24: 0 | PU24: 0 | PV24: 0 | PW24: 0 | PX24: 0 | QC24: =SUM(E24:QB24)-PQ24-PS24-PX24 -> 2 | QE24: =SUM(E24:H24) -> 0.0 | QF24: =SUM(I24:BO24) -> 1.0 | QG24: =SUM(BP24:CW24) -> 0.0 | QH24: =SUM(CX24:DE24) -> 0.0 | QI24: =SUM(DF24:DT24) -> 0.0 | QJ24: =SUM(DU24:ET24) -> 0.0 | QK24: =SUM(EU24:FY24) -> 0.0 | QL24: =SUM(FZ24:HD24) -> 0.0 | QM24: =SUM(HE24:HF24) -> 0.0 | QN24: =SUM(HG24:HL24) -> 0.0 | QO24: =SUM(HM24:HR24) -> 0.0 | QP24: =SUM(HS24:IJ24) -> 0.0 | QQ24: =SUM(IK24:JA24) -> 0.0 | QR24: =SUM(JB24:JT24) -> 0.0 | QS24: =SUM(JU24:KD24) -> 0.0 | QT24: =SUM(KE24:KP24) -> 0.0 | QU24: =SUM(KQ24:MU24) -> 0.0 | QV24: =SUM(MV24:NG24) -> 1.0 | QW24: =SUM(NH24:NI24) -> 0.0 | QX24: =SUM(NJ24:NL24) -> 0.0 | QY24: =SUM(NM24:NO24) -> 0.0 | QZ24: =SUM(NP24) -> 0.0 | RA24: =SUM(NQ24) -> 0.0 | RB24: =SUM(NR24:NT24) -> 0.0 | RC24: =SUM(NU24) -> 0.0 | RD24: =SUM(NV24) -> 0.0 | RE24: =SUM(NW24:OB24) -> 0.0 | RF24: =SUM(OC24:PE24) -> 0.0 | RG24: =SUM(PF24:PG24) -> 0.0 | RH24: =SUM(PH24:PI24) -> 0.0 | RI24: =SUM(PJ24:PM24) -> 0.0 | RJ24: =SUM(PN24:PP24) -> 0.0 | RK24: =SUM(PQ24) -> 0.0 | RL24: =SUM(PR24) -> 0.0 | RM24: =SUM(PS24) -> 0.0 | RN24: =SUM(PT24) -> 0 | RO24: =SUM(PU24) -> 0 | RP24: =SUM(PV24) -> 0 | RQ24: =SUM(PW24) -> 0.0 | RR24: =SUM(PX24) -> 0.0 | RS24: =SUM(PY24) -> 0.0 | RT24: =SUM(PZ24) -> 0.0 | RU24: =SUM(QA24) -> 0.0 | RV24: =SUM(QB24) -> 0.0 | RW24: 2.0 | RX24: =+SR24+RW29+SE24+'2_MERCADO_PRIVADO'!TA24 -> 2619 | RY24: 0 | RZ24: 0 | SA24: 0 | SB24: 0 | SC24: 0 | SD24: 0 | SE24: =SUM(RY24:SD24) -> 0 | SU24: =SF24+SG24 -> 0 | SV24: =SH24+SI24+SJ24+SK24+SL24+SM24+SN24+SO24+SP24 -> 0 | SW24: =SQ24 -> 0 | SX24: =SR24 -> 0 | SY24: =SS24 -> 0 | TA24: 0 | TB24: 0 | TC24: 0 | TD24: 0 | TE24: 0 | TF24: 0 | TG24: 0 | TH24: 0 | TI24: 0 | TJ24: 0 | TK24: 0 | TL24: 0 | TM24: 0 | TN24: 0 | TO24: 0 | TQ24: =M24+DH24+'2_MERCADO_PRIVADO'!BW24+'2_MERCADO_PRIVADO'!G24 -> 0 | TR24: =DH24+'2_MERCADO_PRIVADO'!AP24+'2_MERCADO_PRIVADO'!BW24 -> 0 | TS24: =BR24+'2_MERCADO_PRIVADO'!AP24+'2_MERCADO_PRIVADO'!BW24+'2_MERCADO_PRIVADO'!DD24 -> 0 | TT24: =CH24+CX24+'2_MERCADO_PRIVADO'!BF24+'2_MERCADO_PRIVADO'!CM24+'2_MERCADO_PRIVADO'!DT24 -> 1 | TU24: =CO24+DE24+'2_MERCADO_PRIVADO'!BM24+'2_MERCADO_PRIVADO'!CT24+'2_MERCADO_PRIVADO'!EA24 -> 0
D25: EN CONDICION DE DISCAPACIDAD | E25: 0 | F25: 0 | G25: 0 | H25: 0 | I25: 0 | J25: 0 | K25: 0 | L25: 0 | M25: 0 | N25: 0 | O25: 0 | P25: 0 | Q25: 0 | R25: 0 | S25: 0 | T25: 0 | U25: 0 | V25: 0 | W25: 0 | X25: 0 | Y25: 0 | Z25: 0 | AA25: 0 | AB25: 0 | AZ25: 0 | BA25: 0 | BB25: 0 | BC25: 0 | BD25: 0 | BE25: 0 | BF25: 0 | BG25: 0 | BH25: 0 | BI25: 0 | BJ25: 0 | BK25: 0 | BP25: 0 | BQ25: 0 | BR25: 0 | BS25: 0 | BT25: 0 | BU25: 0 | BV25: 0 | BW25: 0 | BX25: 0 | BY25: 0 | BZ25: 0 | CA25: 0 | CB25: 0 | CC25: 0 | CD25: 0 | CH25: 0 | CO25: 0 | CR25: 0 | CU25: 0 | CX25: 0 | CY25: 0 | CZ25: 0 | DA25: 0 | DB25: 0 | DC25: 0 | DD25: 0 | DE25: 0 | DF25: 0 | DG25: 0 | DH25: 0 | DU25: 0 | DV25: 0 | DW25: 0 | DX25: 0 | DY25: 0 | DZ25: 0 | EA25: 0 | EB25: 0 | EC25: 0 | ED25: 0 | EE25: 0 | EF25: 0 | EG25: 0 | EH25: 0 | EI25: 0 | EJ25: 0 | EK25: 0 | EL25: 0 | EM25: 0 | EN25: 0 | EO25: 0 | EP25: 0 | EQ25: 0 | ER25: 0 | ES25: 0 | ET25: 0 | EX25: 0 | EY25: 0 | EZ25: 0 | FA25: 0 | FB25: 0 | FC25: 0 | FY25: 0 | HE25: 0 | HF25: 0 | HG25: 0 | HH25: 0 | HI25: 0 | HJ25: 0 | HK25: 0 | HL25: 0 | HS25: 0 | HT25: 0 | HU25: 0 | HV25: 0 | ID25: 0 | IE25: 0 | IF25: 0 | IG25: 0 | IH25: 0 | II25: 0 | IK25: 0 | IL25: 0 | IM25: 1 | IN25: 0 | IO25: 0 | IP25: 0 | IQ25: 0 | IR25: 0 | IS25: 0 | IT25: 0 | IU25: 0 | IV25: 0 | IX25: 0 | IY25: 1 | IZ25: 1 | JA25: 0 | JB25: 0 | JC25: 0 | JD25: 0 | JE25: 0 | JF25: 0 | JG25: 0 | JH25: 0 | JI25: 0 | JJ25: 0 | JK25: 0 | JL25: 0 | JM25: 0 | JN25: 0 | JO25: 0 | JP25: 0 | JQ25: 1 | JR25: 0 | JS25: 0 | JT25: 0 | JU25: 0 | JV25: 0 | JW25: 0 | JX25: 0 | JY25: 0 | JZ25: 0 | KA25: 0 | KB25: 0 | KE25: 0 | KF25: 0 | KG25: 0 | KH25: 0 | KI25: 0 | KJ25: 0 | KK25: 0 | KM25: 0 | KN25: 0 | KO25: 0 | KQ25: 0 | KR25: 0 | KS25: 0 | KT25: 0 | KU25: 0 | KV25: 0 | KW25: 0 | KX25: 0 | KY25: 0 | KZ25: 0 | LA25: 0 | LB25: 0 | LC25: 0 | LD25: 0 | LE25: 0 | LF25: 0 | LG25: 0 | LH25: 0 | LI25: 0 | LJ25: 0 | LK25: 0 | LL25: 0 | LM25: 0 | LN25: 0 | LO25: 0 | LP25: 0 | LQ25: 0 | LR25: 0 | LS25: 1 | LT25: 0 | LU25: 0 | LV25: 0 | LW25: 0 | LX25: 0 | LY25: 0 | LZ25: 0 | MA25: 0 | MB25: 0 | MC25: 0 | MD25: 0 | ME25: 0 | MF25: 0 | MG25: 0 | MH25: 0 | MI25: 0 | MJ25: 0 | MK25: 0 | ML25: 0 | MM25: 0 | MN25: 0 | MO25: 0 | MP25: 0 | MQ25: 0 | MR25: 0 | MS25: 0 | MT25: 0 | MU25: 0 | MV25: 0 | MW25: 0 | MX25: 0 | MY25: 0 | MZ25: 0 | NA25: 0 | NB25: 0 | NC25: 1 | ND25: 0 | NE25: 0 | NF25: 0 | NG25: 0 | OC25: 0 | OD25: 0 | OE25: 0 | OF25: 0 | OG25: 0 | OH25: 0 | OI25: 0 | OJ25: 0 | OK25: 0 | OL25: 0 | OM25: 0 | ON25: 0 | OO25: 0 | OP25: 0 | OQ25: 0 | OR25: 0 | OS25: 0 | OT25: 0 | OU25: 0 | OV25: 0 | OW25: 0 | OX25: 0 | OY25: 0 | OZ25: 0 | PA25: 0 | PB25: 0 | PC25: 0 | PD25: 0 | PE25: 0 | PF25: 0 | PG25: 0 | PH25: 0 | PI25: 0 | PJ25: 0 | PK25: 0 | PL25: 0 | PM25: 0 | PN25: 0 | PO25: 0 | PP25: 1 | PQ25: 1 | PR25: 0 | PS25: 0 | PT25: 0 | PU25: 0 | PV25: 0 | PW25: 0 | PX25: 0 | QC25: =SUM(E25:QB25)-PQ25-PS25-PX25 -> 7 | QE25: 0.0 | QF25: 0.0 | QG25: 0.0 | QH25: 0.0 | QI25: 0.0 | QJ25: 0.0 | QK25: 0.0 | QL25: 0.0 | QM25: 0.0 | QN25: 0.0 | QO25: 0.0 | QP25: 0.0 | QQ25: 3.0 | QR25: 1.0 | QS25: 0.0 | QT25: 0.0 | QU25: 1.0 | QV25: 1.0 | QW25: 0.0 | QX25: 0.0 | QY25: 0.0 | QZ25: 0.0 | RA25: 0.0 | RB25: 0.0 | RC25: 0.0 | RD25: 0.0 | RE25: 0.0 | RF25: 0.0 | RG25: 0.0 | RH25: 0.0 | RI25: 0.0 | RJ25: 1.0 | RK25: 1.0 | RL25: 0.0 | RM25: 0.0 | RN25: 0 | RO25: 0 | RP25: 0 | RQ25: 0.0 | RR25: 0.0 | RS25: 0.0 | RT25: 0.0 | RU25: 0.0 | RV25: 0.0 | RW25: 7.0 | RX25: =+SR25+RW30+SE25+'2_MERCADO_PRIVADO'!TA25 -> 17 | RY25: 0 | RZ25: 1 | SA25: 0 | SB25: 0 | SC25: 0 | SD25: 1 | SE25: 2 | SU25: 0 | SV25: 0 | SW25: 0 | SX25: 0 | SY25: 0 | TA25: 0 | TB25: 0 | TC25: 0 | TD25: 0 | TE25: 0 | TF25: 0 | TG25: 0 | TH25: 0 | TI25: 0 | TJ25: 0 | TK25: 0 | TL25: 0 | TM25: 0 | TN25: 0 | TO25: 0 | TQ25: =M25+DH25+'2_MERCADO_PRIVADO'!BW25+'2_MERCADO_PRIVADO'!G25 -> 0 | TR25: =DH25+'2_MERCADO_PRIVADO'!AP25+'2_MERCADO_PRIVADO'!BW25 -> 0 | TS25: =BR25+'2_MERCADO_PRIVADO'!AP25+'2_MERCADO_PRIVADO'!BW25+'2_MERCADO_PRIVADO'!DD25 -> 0 | TT25: =CH25+CX25+'2_MERCADO_PRIVADO'!BF25+'2_MERCADO_PRIVADO'!CM25+'2_MERCADO_PRIVADO'!DT25 -> 0 | TU25: =CO25+DE25+'2_MERCADO_PRIVADO'!BM25+'2_MERCADO_PRIVADO'!CT25+'2_MERCADO_PRIVADO'!EA25 -> 0
D26: VICTIMAS DEL CONFLICTO ARMADO | E26: 0 | F26: 0 | G26: 0 | H26: 0 | I26: 0 | J26: 0 | K26: 0 | L26: 0 | M26: 0 | N26: 0 | O26: 0 | P26: 0 | Q26: 0 | R26: 0 | S26: 0 | T26: 0 | U26: 0 | V26: 0 | W26: 0 | X26: 0 | Y26: 0 | Z26: 0 | AA26: 0 | AB26: 0 | AZ26: 0 | BA26: 0 | BB26: 0 | BC26: 0 | BD26: 0 | BE26: 0 | BF26: 0 | BG26: 0 | BH26: 0 | BI26: 0 | BJ26: 0 | BK26: 0 | BP26: 0 | BQ26: 0 | BR26: 0 | BS26: 0 | BT26: 0 | BU26: 0 | BV26: 0 | BW26: 0 | BX26: 0 | BY26: 0 | BZ26: 0 | CA26: 0 | CB26: 0 | CC26: 0 | CD26: 0 | CH26: 0 | CO26: 0 | CR26: 0 | CU26: 0 | CX26: 0 | CY26: 0 | CZ26: 0 | DA26: 0 | DB26: 0 | DC26: 0 | DD26: 0 | DE26: 0 | DF26: 0 | DG26: 0 | DH26: 0 | DU26: 0 | DV26: 0 | DW26: 0 | DX26: 0 | DY26: 0 | DZ26: 0 | EA26: 0 | EB26: 0 | EC26: 0 | ED26: 0 | EE26: 0 | EF26: 0 | EG26: 0 | EH26: 0 | EI26: 0 | EJ26: 0 | EK26: 0 | EL26: 0 | EM26: 0 | EN26: 0 | EO26: 0 | EP26: 0 | EQ26: 0 | ER26: 0 | ES26: 0 | ET26: 0 | EX26: 0 | EY26: 0 | EZ26: 0 | FA26: 0 | FB26: 0 | FC26: 0 | FY26: 0 | HE26: 0 | HF26: 0 | HG26: 0 | HH26: 0 | HI26: 0 | HJ26: 0 | HK26: 0 | HL26: 0 | HS26: 0 | HT26: 0 | HU26: 0 | HV26: 0 | ID26: 0 | IE26: 0 | IF26: 0 | IG26: 0 | IH26: 0 | II26: 0 | IK26: 0 | IL26: 0 | IM26: 0 | IN26: 0 | IO26: 0 | IP26: 0 | IQ26: 0 | IR26: 0 | IS26: 0 | IT26: 0 | IU26: 0 | IV26: 0 | IX26: 0 | IY26: 0 | IZ26: 0 | JA26: 0 | JB26: 0 | JC26: 0 | JD26: 0 | JE26: 0 | JF26: 0 | JG26: 0 | JH26: 0 | JI26: 0 | JJ26: 0 | JK26: 0 | JL26: 0 | JM26: 0 | JN26: 0 | JO26: 0 | JP26: 0 | JQ26: 0 | JR26: 0 | JS26: 0 | JT26: 0 | JU26: 0 | JV26: 0 | JW26: 0 | JX26: 0 | JY26: 0 | JZ26: 0 | KA26: 0 | KB26: 0 | KE26: 0 | KF26: 0 | KG26: 0 | KH26: 0 | KI26: 0 | KJ26: 0 | KK26: 0 | KM26: 0 | KN26: 0 | KO26: 0 | KQ26: 0 | KR26: 0 | KS26: 0 | KT26: 0 | KU26: 0 | KV26: 0 | KW26: 0 | KX26: 0 | KY26: 0 | KZ26: 0 | LA26: 0 | LB26: 0 | LC26: 0 | LD26: 0 | LE26: 0 | LF26: 0 | LG26: 0 | LH26: 0 | LI26: 0 | LJ26: 0 | LK26: 0 | LL26: 0 | LM26: 0 | LN26: 0 | LO26: 0 | LP26: 0 | LQ26: 0 | LR26: 0 | LS26: 0 | LT26: 0 | LU26: 0 | LV26: 0 | LW26: 0 | LX26: 0 | LY26: 0 | LZ26: 0 | MA26: 0 | MB26: 0 | MC26: 0 | MD26: 0 | ME26: 0 | MF26: 0 | MG26: 0 | MH26: 0 | MI26: 0 | MJ26: 0 | MK26: 0 | ML26: 0 | MM26: 0 | MN26: 0 | MO26: 0 | MP26: 0 | MQ26: 0 | MR26: 0 | MS26: 0 | MT26: 0 | MU26: 0 | MV26: 0 | MW26: 0 | MX26: 0 | MY26: 0 | MZ26: 0 | NA26: 0 | NB26: 0 | NC26: 0 | ND26: 0 | NE26: 0 | NF26: 0 | NG26: 0 | OC26: 0 | OD26: 0 | OE26: 0 | OF26: 0 | OG26: 0 | OH26: 0 | OI26: 0 | OJ26: 0 | OK26: 0 | OL26: 0 | OM26: 0 | ON26: 0 | OO26: 0 | OP26: 0 | OQ26: 0 | OR26: 0 | OS26: 0 | OT26: 0 | OU26: 0 | OV26: 0 | OW26: 0 | OX26: 0 | OY26: 0 | OZ26: 0 | PA26: 0 | PB26: 0 | PC26: 0 | PD26: 0 | PE26: 0 | PF26: 0 | PG26: 0 | PH26: 0 | PI26: 0 | PJ26: 0 | PK26: 0 | PL26: 0 | PM26: 0 | PN26: 0 | PO26: 0 | PP26: 0 | PQ26: 0 | PR26: 0 | PS26: 0 | PT26: 0 | PU26: 0 | PV26: 0 | PW26: 0 | PX26: 0 | QC26: 0 | QE26: 0.0 | QF26: 0.0 | QG26: 0.0 | QH26: 0.0 | QI26: 0.0 | QJ26: 0.0 | QK26: 0.0 | QL26: 0.0 | QM26: 0.0 | QN26: 0.0 | QO26: 0.0 | QP26: 0.0 | QQ26: 0.0 | QR26: 0.0 | QS26: 0.0 | QT26: 0.0 | QU26: 0.0 | QV26: 0.0 | QW26: 0.0 | QX26: 0.0 | QY26: 0.0 | QZ26: 0.0 | RA26: 0.0 | RB26: 0.0 | RC26: 0.0 | RD26: 0.0 | RE26: 0.0 | RF26: 0.0 | RG26: 0.0 | RH26: 0.0 | RI26: 0.0 | RJ26: 0.0 | RK26: 0.0 | RL26: 0.0 | RM26: 0.0 | RN26: 0 | RO26: 0 | RP26: 0 | RQ26: 0.0 | RR26: 0.0 | RS26: 0.0 | RT26: 0.0 | RU26: 0.0 | RV26: 0.0 | RW26: 0.0 | RX26: =+SR26+RW31+SE26+'2_MERCADO_PRIVADO'!TA26 -> 6226 | RY26: 0 | RZ26: 0 | SA26: 0 | SB26: 0 | SC26: 0 | SD26: 0 | SE26: 0 | SU26: 0 | SV26: 0 | SW26: 0 | SX26: 0 | SY26: 0 | TA26: 0 | TB26: 0 | TC26: 0 | TD26: 0 | TE26: 0 | TF26: 0 | TG26: 0 | TH26: 0 | TI26: 0 | TJ26: 0 | TK26: 0 | TL26: 0 | TM26: 0 | TN26: 0 | TO26: 0 | TQ26: =M26+DH26+'2_MERCADO_PRIVADO'!BW26+'2_MERCADO_PRIVADO'!G26 -> 0 | TR26: =DH26+'2_MERCADO_PRIVADO'!AP26+'2_MERCADO_PRIVADO'!BW26 -> 0 | TS26: =BR26+'2_MERCADO_PRIVADO'!AP26+'2_MERCADO_PRIVADO'!BW26+'2_MERCADO_PRIVADO'!DD26 -> 0 | TT26: =CH26+CX26+'2_MERCADO_PRIVADO'!BF26+'2_MERCADO_PRIVADO'!CM26+'2_MERCADO_PRIVADO'!DT26 -> 0 | TU26: =CO26+DE26+'2_MERCADO_PRIVADO'!BM26+'2_MERCADO_PRIVADO'!CT26+'2_MERCADO_PRIVADO'!EA26 -> 0
D27: ZONAS VEREDALES | E27: 1 | F27: 0 | G27: 0 | H27: 0 | I27: 1 | J27: 0 | K27: 0 | L27: 0 | M27: 0 | N27: 0 | O27: 0 | P27: 0 | Q27: 0 | R27: 0 | S27: 0 | T27: 0 | U27: 0 | V27: 0 | W27: 0 | X27: 0 | Y27: 0 | Z27: 0 | AA27: 0 | AB27: 0 | AZ27: 0 | BA27: 0 | BB27: 0 | BC27: 0 | BD27: 0 | BE27: 0 | BF27: 0 | BG27: 0 | BH27: 0 | BI27: 0 | BJ27: 0 | BK27: 0 | BP27: 0 | BQ27: 1 | BR27: 0 | BS27: 0 | BT27: 0 | BU27: 0 | BV27: 0 | BW27: 0 | BX27: 0 | BY27: 0 | BZ27: 0 | CA27: 0 | CB27: 0 | CC27: 0 | CD27: 0 | CH27: 0 | CO27: 0 | CR27: 0 | CU27: 0 | CX27: 0 | CY27: 0 | CZ27: 0 | DA27: 0 | DB27: 0 | DC27: 0 | DD27: 0 | DE27: 0 | DF27: 0 | DG27: 1 | DH27: 0 | DQ27: 1 | DU27: 0 | DV27: 0 | DW27: 0 | DX27: 0 | DY27: 0 | DZ27: 0 | EA27: 0 | EB27: 0 | EC27: 0 | ED27: 0 | EE27: 0 | EF27: 0 | EG27: 0 | EH27: 0 | EI27: 0 | EJ27: 0 | EK27: 0 | EL27: 0 | EM27: 0 | EN27: 0 | EO27: 0 | EP27: 0 | EQ27: 0 | ER27: 0 | ES27: 0 | ET27: 0 | EX27: 0 | EY27: 0 | EZ27: 0 | FA27: 0 | FB27: 0 | FC27: 0 | FY27: 0 | HE27: 0 | HF27: 1 | HG27: 0 | HH27: 1 | HI27: 0 | HJ27: 0 | HK27: 0 | HL27: 0 | HS27: 0 | HT27: 0 | HU27: 0 | HV27: 0 | ID27: 0 | IE27: 0 | IF27: 0 | IG27: 0 | IH27: 0 | II27: 0 | IK27: 0 | IL27: 1 | IM27: 0 | IN27: 0 | IO27: 0 | IP27: 0 | IQ27: 0 | IR27: 0 | IS27: 0 | IT27: 0 | IU27: 0 | IV27: 0 | IX27: 0 | IY27: 1 | IZ27: 1 | JA27: 0 | JB27: 0 | JC27: 0 | JD27: 0 | JE27: 0 | JF27: 0 | JG27: 0 | JH27: 0 | JI27: 0 | JJ27: 0 | JK27: 0 | JL27: 0 | JM27: 0 | JN27: 0 | JO27: 1 | JP27: 1 | JQ27: 0 | JR27: 0 | JS27: 0 | JT27: 0 | JU27: 0 | JV27: 0 | JW27: 0 | JX27: 0 | JY27: 0 | JZ27: 0 | KA27: 0 | KB27: 0 | KE27: 0 | KF27: 0 | KG27: 0 | KH27: 0 | KI27: 0 | KJ27: 0 | KK27: 0 | KM27: 0 | KN27: 0 | KO27: 0 | KQ27: 0 | KR27: 0 | KS27: 0 | KT27: 0 | KU27: 0 | KV27: 0 | KW27: 0 | KX27: 0 | KY27: 0 | KZ27: 0 | LA27: 0 | LB27: 0 | LC27: 0 | LD27: 0 | LE27: 0 | LF27: 0 | LG27: 0 | LH27: 0 | LI27: 0 | LJ27: 0 | LK27: 0 | LL27: 0 | LM27: 0 | LN27: 0 | LO27: 0 | LP27: 0 | LQ27: 0 | LR27: 0 | LS27: 0 | LT27: 0 | LU27: 0 | LV27: 0 | LW27: 0 | LX27: 0 | LY27: 0 | LZ27: 0 | MA27: 0 | MB27: 0 | MC27: 0 | MD27: 0 | ME27: 0 | MF27: 0 | MG27: 0 | MH27: 0 | MI27: 0 | MJ27: 0 | MK27: 0 | ML27: 0 | MM27: 0 | MN27: 0 | MO27: 0 | MP27: 0 | MQ27: 0 | MR27: 0 | MS27: 0 | MT27: 0 | MU27: 0 | MV27: 0 | MW27: 0 | MX27: 0 | MY27: 0 | MZ27: 0 | NA27: 0 | NB27: 0 | NC27: 0 | ND27: 0 | NE27: 0 | NF27: 0 | NG27: 0 | OC27: 0 | OD27: 0 | OE27: 0 | OF27: 0 | OG27: 0 | OH27: 0 | OI27: 0 | OJ27: 0 | OK27: 0 | OL27: 0 | OM27: 0 | ON27: 0 | OO27: 0 | OP27: 0 | OQ27: 0 | OR27: 0 | OS27: 0 | OT27: 0 | OU27: 0 | OV27: 0 | OW27: 0 | OX27: 0 | OY27: 0 | OZ27: 0 | PA27: 0 | PB27: 0 | PC27: 0 | PD27: 0 | PE27: 0 | PF27: 0 | PG27: 0 | PH27: 0 | PI27: 0 | PJ27: 0 | PK27: 0 | PL27: 0 | PM27: 0 | PN27: 0 | PO27: 0 | PP27: 0 | PQ27: 0 | PR27: 0 | PS27: 0 | PT27: 0 | PU27: 0 | PV27: 0 | PW27: 0 | PX27: 0 | QC27: =SUM(E27:QB27)-SUM(PQ27:PT27)-SUM(PW27:PZ27) -> 12 | QD27: =CONCATENATE($G$2,$B$8) -> 1101 | QE27: =SUM(E27:H27) -> 1.0 | QF27: =SUM(I27:BN27) -> 1.0 | QG27: =SUM(BP27:CW27) -> 1.0 | QH27: =SUM(CX27:DE27) -> 0.0 | QI27: =SUM(DF27:DT27) -> 2.0 | QJ27: =SUM(DU27:ET27) -> 0.0 | QK27: =SUM(EU27:FY27) -> 0.0 | QL27: =SUM(FZ27:HD27) -> 0.0 | QM27: =SUM(HE27:HF27) -> 1.0 | QN27: =SUM(HG27:HL27) -> 1.0 | QO27: =SUM(HR27:II27) -> 0.0 | QP27: 0.0 | QQ27: =SUM(IK27:JA27) -> 3.0 | QR27: =SUM(JB27:JT27) -> 2.0 | QS27: =SUM(JU27:KD27) -> 0.0 | QT27: =SUM(KE27:KP27) -> 0.0 | QU27: =SUM(KQ27:MU27) -> 0.0 | QV27: =SUM(MV27:NG27) -> 0.0 | QW27: =SUM(NH27:NL27) -> 0.0 | QX27: =SUM(NM27:NO27) -> 0.0 | QY27: =SUM(QY24:QY26) -> 0.0 | QZ27: =SUM(NP27) -> 0.0 | RA27: 0.0 | RB27: =SUM(NS27:NT27) -> 0.0 | RC27: 0.0 | RD27: 0.0 | RE27: =SUM(NZ27:OB27) -> 0.0 | RF27: =SUM(OC27:PE27) -> 0.0 | RG27: =SUM(PF27:PI27) -> 0.0 | RH27: =SUM(PJ27:PP27) -> 0.0 | RI27: =PQ27 -> 0.0 | RJ27: =PR27 -> 0.0 | RK27: =SUM(PQ27) -> 0.0 | RL27: 0.0 | RM27: 0.0 | RN27: 0 | RO27: 0 | RP27: 0 | RQ27: 0.0 | RR27: 0.0 | RS27: 0.0 | RT27: 0.0 | RU27: 0.0 | RV27: 0.0 | RW27: =SUM(QE27:RU27)-SUM(RI27:RM27)-SUM(RQ27:RT27) -> 12.0 | RX27: =+SR27+RW32+SE27+'2_MERCADO_PRIVADO'!TA27 -> 5636 | RY27: 0 | RZ27: 0 | SA27: 0 | SB27: 0 | SC27: 2 | SD27: 0 | SE27: 2 | SU27: 0 | SV27: 0 | SW27: 0 | SX27: 0 | SY27: 0 | TA27: 0 | TB27: 0 | TC27: 0 | TD27: 0 | TE27: 0 | TF27: 0 | TG27: 0 | TH27: 0 | TI27: 0 | TJ27: 0 | TK27: 0 | TL27: 0 | TM27: 0 | TN27: 0 | TO27: 0 | TQ27: =M27+DH27+'2_MERCADO_PRIVADO'!BW27+'2_MERCADO_PRIVADO'!G27 -> 0 | TR27: =DH27+'2_MERCADO_PRIVADO'!AP27+'2_MERCADO_PRIVADO'!BW27 -> 0 | TS27: =BR27+'2_MERCADO_PRIVADO'!AP27+'2_MERCADO_PRIVADO'!BW27+'2_MERCADO_PRIVADO'!DD27 -> 0 | TT27: =CH27+CX27+'2_MERCADO_PRIVADO'!BF27+'2_MERCADO_PRIVADO'!CM27+'2_MERCADO_PRIVADO'!DT27 -> 0 | TU27: =CO27+DE27+'2_MERCADO_PRIVADO'!BM27+'2_MERCADO_PRIVADO'!CT27+'2_MERCADO_PRIVADO'!EA27 -> 0
B28: 02 | C28: CHAPINERO | D28: FEMENINO | E28: 291 | F28: 10 | G28: 2 | H28: 0 | I28: 292 | AZ28: 1 | BA28: 0 | BB28: 0 | BC28: 0 | BD28: 0 | BE28: 0 | BF28: 0 | BG28: 0 | BH28: 1 | BI28: 1 | BJ28: 0 | BK28: 0 | BP28: 45 | BQ28: 53 | BR28: 38 | BS28: 0 | BT28: 0 | BU28: 0 | BV28: 0 | BW28: 0 | BX28: 0 | BY28: 0 | BZ28: 0 | CA28: 0 | CB28: 0 | CC28: 0 | CD28: 0 | CE28: 0 | CF28: 0 | CG28: 0 | CH28: 1 | CI28: 0 | CJ28: 0 | CK28: 0 | CL28: 0 | CM28: 0 | CN28: 0 | CO28: 1 | CX28: 47 | CY28: 3 | CZ28: 1 | DA28: 0 | DB28: 0 | DC28: 0 | DD28: 0 | DE28: 53 | DF28: 45 | DG28: 51 | DH28: 38 | DI28: 0 | DJ28: 0 | DK28: 0 | EM28: 48 | EN28: 3 | EO28: 1 | EP28: 0 | EQ28: 0 | ER28: 0 | ES28: 0 | ET28: 53 | FM28: 0 | FN28: 0 | FO28: 0 | FP28: 0 | FQ28: 0 | FR28: 0 | FS28: 0 | FT28: 1 | FU28: 0 | FV28: 0 | FW28: 0 | FX28: 0 | FY28: 1 | HE28: 115 | HF28: 141 | HG28: 114 | HH28: 139 | HI28: 53 | HJ28: 0 | HK28: 0 | HL28: 0 | HS28: 52 | HT28: 0 | HU28: 0 | HV28: 0 | HW28: 0 | HX28: 0 | HY28: 0 | HZ28: 0 | IA28: 0 | IB28: 0 | ID28: 71 | IE28: 2 | IF28: 1 | IG28: 0 | IH28: 0 | II28: 0 | IL28: 42 | IM28: 2 | IN28: 11 | IO28: 9 | IP28: 8 | IQ28: 10 | IR28: 6 | IS28: 10 | IT28: 13 | IU28: 17 | IV28: 15 | IY28: 2 | IZ28: 1 | JB28: 87 | JC28: 4 | JD28: 0 | JE28: 2 | JF28: 2 | JG28: 0 | JH28: 1 | JI28: 0 | JJ28: 0 | JK28: 0 | JP28: 1 | JU28: 67 | JV28: 0 | JW28: 0 | JX28: 0 | JY28: 0 | JZ28: 0 | KA28: 1 | KE28: 52 | KF28: 1 | KG28: 0 | KH28: 0 | KI28: 0 | KJ28: 0 | KK28: 0 | KL28: 71 | KM28: 2 | KN28: 1 | KO28: 0 | KP28: 0 | KQ28: 0 | KR28: 0 | KS28: 0 | KT28: 0 | KU28: 0 | KV28: 3 | KW28: 0 | KX28: 0 | KY28: 0 | KZ28: 0 | LA28: 86 | LB28: 42 | LC28: 12 | LD28: 7 | LE28: 2 | LF28: 0 | LG28: 0 | LH28: 0 | LI28: 0 | LJ28: 7 | LK28: 4 | LL28: 1 | LM28: 0 | LN28: 0 | LO28: 100 | LP28: 78 | LQ28: 98 | LR28: 58 | LS28: 34 | LT28: 5 | LU28: 0 | LV28: 0 | LW28: 0 | LX28: 0 | LY28: 0 | LZ28: 0 | MA28: 0 | MB28: 0 | MC28: 0 | MD28: 0 | ME28: 0 | MF28: 0 | MG28: 0 | MH28: 0 | MI28: 0 | MJ28: 0 | MK28: 0 | ML28: 0 | MM28: 0 | MN28: 0 | MO28: 0 | MP28: 0 | MQ28: 0 | MR28: 0 | MS28: 0 | MT28: 0 | MU28: 0 | MV28: 0 | MW28: 0 | MX28: 4 | MY28: 0 | MZ28: 0 | NA28: 0 | NB28: 29 | NC28: 64 | ND28: 104 | NE28: 56 | NF28: 24 | NG28: 30 | OC28: 58 | OD28: 13 | OE28: 0 | OF28: 28 | OG28: 24 | OH28: 0 | OI28: 28 | OJ28: 32 | OK28: 0 | OL28: 24 | OM28: 22 | ON28: 0 | OO28: 25 | OP28: 9 | OQ28: 0 | OR28: 31 | OS28: 17 | OT28: 0 | OU28: 24 | OV28: 2 | OW28: 0 | OX28: 19 | OY28: 15 | OZ28: 0 | PA28: 11 | PB28: 9 | PC28: 0 | PF28: 0 | PG28: 0 | PH28: 0 | PI28: 0 | PJ28: 0 | PK28: 0 | PL28: 0 | PM28: 0 | PN28: 47 | PO28: 19 | PP28: 14 | PQ28: 14 | PR28: 87 | PS28: 18 | PT28: 0 | PU28: 0 | PV28: 0 | PW28: 6 | PX28: 1 | QC28: =SUM(E28:QB28)-PQ28-PS28-PX28 -> 3,619 | QE28: 303.0 | QF28: =SUM(I28:BO28) -> 295.0 | QG28: 138.0 | QH28: 104.0 | QI28: 134.0 | QJ28: 105.0 | QK28: 2.0 | QL28: 0.0 | QM28: 256.0 | QN28: 306.0 | QO28: =SUM(HM28:HR28) -> 0.0 | QP28: 126.0 | QQ28: 146.0 | QR28: 97.0 | QS28: 68.0 | QT28: 127.0 | QU28: 537.0 | QV28: 311.0 | QW28: =SUM(NH28:NI28) -> 0.0 | QX28: =SUM(NJ28:NL28) -> 0.0 | QY28: =SUM(NM28:NO28) -> 0.0 | QZ28: 0.0 | RA28: 0.0 | RB28: =SUM(NR28:NT28) -> 0.0 | RC28: =SUM(NU28) -> 0.0 | RD28: =SUM(NV28) -> 0.0 | RE28: =SUM(NW28:OB28) -> 0.0 | RF28: =SUM(OC28:PE28) -> 391.0 | RG28: =SUM(PF28:PG28) -> 0.0 | RH28: =SUM(PH28:PI28) -> 0.0 | RI28: =SUM(PJ28:PM28) -> 0.0 | RJ28: =SUM(PN28:PP28) -> 80.0 | RK28: =SUM(PQ28) -> 14.0 | RL28: =SUM(PR28) -> 87.0 | RM28: =SUM(PS28) -> 18.0 | RN28: =SUM(PT28) -> 0 | RO28: =SUM(PU28) -> 0 | RP28: =SUM(PV28) -> 0 | RQ28: =SUM(PW28) -> 6.0 | RR28: =SUM(PX28) -> 1.0 | RS28: =SUM(PY28) -> 0.0 | RT28: =SUM(PZ28) -> 0.0 | RU28: =SUM(QA28) -> 0.0 | RV28: =SUM(QB28) -> 0.0 | RW28: =SUM(QE28:RV28)-RK28-RM28-RR28 -> 3,619.0 | RX28: =+SR28+RW33+SE28+'2_MERCADO_PRIVADO'!TA28 -> 4460 | RY28: 0 | RZ28: 2 | SA28: 1 | SB28: 24 | SC28: 87 | SD28: 6 | SE28: 120 | SR28: 1 | SS28: 1 | SU28: 0 | SV28: 0 | SW28: 0 | SX28: 1 | SY28: 1 | TA28: 0 | TB28: 0 | TC28: 0 | TD28: 0 | TE28: 0 | TF28: 0 | TG28: 0 | TH28: 0 | TI28: 0 | TJ28: 0 | TK28: 0 | TL28: 0 | TM28: 0 | TN28: 0 | TO28: 0 | TQ28: =M28+DH28+'2_MERCADO_PRIVADO'!BW28+'2_MERCADO_PRIVADO'!G28 -> 131 | TR28: =DH28+'2_MERCADO_PRIVADO'!AP28+'2_MERCADO_PRIVADO'!BW28 -> 131 | TS28: =BR28+'2_MERCADO_PRIVADO'!AP28+'2_MERCADO_PRIVADO'!BW28+'2_MERCADO_PRIVADO'!DD28 -> 131 | TT28: =CH28+CX28+'2_MERCADO_PRIVADO'!BF28+'2_MERCADO_PRIVADO'!CM28+'2_MERCADO_PRIVADO'!DT28 -> 120 | TU28: =CO28+DE28+'2_MERCADO_PRIVADO'!BM28+'2_MERCADO_PRIVADO'!CT28+'2_MERCADO_PRIVADO'!EA28 -> 114
D29: MASCULINO | E29: 323 | F29: 6 | G29: 1 | H29: 0 | I29: 311 | AZ29: 0 | BA29: 0 | BB29: 0 | BC29: 0 | BD29: 0 | BE29: 0 | BF29: 0 | BG29: 0 | BH29: 1 | BI29: 0 | BJ29: 0 | BK29: 0 | BP29: 56 | BQ29: 53 | BR29: 44 | BS29: 0 | BT29: 0 | BU29: 0 | BV29: 0 | BW29: 0 | BX29: 0 | BY29: 0 | BZ29: 0 | CA29: 0 | CB29: 0 | CC29: 0 | CD29: 0 | CE29: 0 | CF29: 0 | CG29: 0 | CH29: 1 | CI29: 0 | CJ29: 0 | CK29: 0 | CL29: 0 | CM29: 0 | CN29: 0 | CO29: 0 | CX29: 39 | CY29: 0 | CZ29: 0 | DA29: 0 | DB29: 0 | DC29: 0 | DD29: 0 | DE29: 64 | DF29: 56 | DG29: 52 | DH29: 44 | DI29: 0 | DJ29: 0 | DK29: 0 | EM29: 40 | EN29: 0 | EO29: 0 | EP29: 0 | EQ29: 0 | ER29: 0 | ES29: 0 | ET29: 64 | FM29: 0 | FN29: 0 | FO29: 0 | FP29: 0 | FQ29: 0 | FR29: 0 | FS29: 0 | FT29: 0 | FU29: 0 | FV29: 0 | FW29: 0 | FX29: 0 | FY29: 0 | HE29: 129 | HF29: 134 | HG29: 126 | HH29: 128 | HI29: 77 | HJ29: 1 | HK29: 0 | HL29: 0 | HS29: 76 | HT29: 1 | HU29: 0 | HV29: 0 | HW29: 0 | HX29: 0 | HY29: 0 | HZ29: 0 | IA29: 0 | IB29: 0 | ID29: 88 | IE29: 1 | IF29: 0 | IG29: 0 | IH29: 1 | II29: 1 | IL29: 42 | IM29: 6 | IN29: 7 | IO29: 11 | IP29: 13 | IQ29: 12 | IR29: 8 | IS29: 10 | IT29: 8 | IU29: 7 | IV29: 10 | IY29: 3 | IZ29: 1 | JB29: 76 | JC29: 1 | JD29: 0 | JE29: 1 | JF29: 2 | JG29: 0 | JH29: 0 | JI29: 1 | JJ29: 0 | JK29: 0 | JP29: 0 | JU29: 88 | JV29: 2 | JW29: 0 | JX29: 0 | JY29: 1 | JZ29: 0 | KA29: 0 | KE29: 76 | KF29: 2 | KG29: 0 | KH29: 0 | KI29: 1 | KJ29: 0 | KK29: 0 | KL29: 87 | KM29: 1 | KN29: 0 | KO29: 0 | KP29: 0 | KQ29: 0 | KR29: 0 | KS29: 0 | KT29: 0 | KU29: 0 | KV29: 0 | KW29: 0 | KX29: 0 | KY29: 0 | KZ29: 0 | LA29: 0 | LB29: 0 | LC29: 0 | LD29: 0 | LE29: 0 | LF29: 0 | LG29: 0 | LH29: 0 | LI29: 0 | LJ29: 0 | LK29: 0 | LL29: 0 | LM29: 0 | LN29: 0 | LO29: 0 | LP29: 0 | LQ29: 0 | LR29: 0 | LS29: 0 | LT29: 0 | LU29: 0 | LV29: 0 | LW29: 0 | LX29: 0 | LY29: 0 | LZ29: 0 | MA29: 0 | MB29: 0 | MC29: 3 | MD29: 0 | ME29: 2 | MF29: 0 | MG29: 0 | MH29: 0 | MI29: 0 | MJ29: 0 | MK29: 0 | ML29: 0 | MM29: 0 | MN29: 0 | MO29: 0 | MP29: 0 | MQ29: 0 | MR29: 0 | MS29: 0 | MT29: 0 | MU29: 0 | MV29: 0 | MW29: 0 | MX29: 0 | MY29: 0 | MZ29: 0 | NA29: 0 | NB29: 0 | NC29: 1 | ND29: 0 | NE29: 0 | NF29: 0 | NG29: 0 | OC29: 0 | OD29: 0 | OE29: 0 | OF29: 0 | OG29: 0 | OH29: 0 | OI29: 0 | OJ29: 0 | OK29: 0 | OL29: 0 | OM29: 0 | ON29: 0 | OO29: 0 | OP29: 0 | OQ29: 0 | OR29: 0 | OS29: 0 | OT29: 0 | OU29: 0 | OV29: 0 | OW29: 0 | OX29: 0 | OY29: 0 | OZ29: 0 | PA29: 0 | PB29: 0 | PC29: 0 | PF29: 0 | PG29: 0 | PH29: 0 | PI29: 0 | PJ29: 0 | PK29: 0 | PL29: 0 | PM29: 0 | PN29: 59 | PO29: 26 | PP29: 18 | PQ29: 18 | PR29: 97 | PS29: 22 | PT29: 0 | PU29: 0 | PV29: 0 | PW29: 6 | PX29: 1 | QC29: =SUM(E29:QB29)-PQ29-PS29-PX29 -> 2,607 | QE29: 330.0 | QF29: 312.0 | QG29: 154.0 | QH29: 103.0 | QI29: 152.0 | QJ29: 104.0 | QK29: 0.0 | QL29: 0.0 | QM29: 263.0 | QN29: 332.0 | QO29: 0.0 | QP29: 168.0 | QQ29: 138.0 | QR29: 81.0 | QS29: 91.0 | QT29: 167.0 | QU29: 5.0 | QV29: 1.0 | QW29: 0.0 | QX29: 0.0 | QY29: 0.0 | QZ29: 0.0 | RA29: 0.0 | RB29: 0.0 | RC29: 0.0 | RD29: 0.0 | RE29: 0.0 | RF29: 0.0 | RG29: 0.0 | RH29: 0.0 | RI29: 0.0 | RJ29: 103.0 | RK29: 18.0 | RL29: 97.0 | RM29: 22.0 | RN29: 0 | RO29: 0 | RP29: 0 | RQ29: 6.0 | RR29: 1.0 | RS29: 0.0 | RT29: 0.0 | RU29: 0.0 | RV29: 0.0 | RW29: =SUM(QE29:RV29)-RK29-RM29-RR29 -> 2,607.0 | RX29: =+SR29+RW34+SE29+'2_MERCADO_PRIVADO'!TA29 -> 4899 | RY29: 2 | RZ29: 2 | SA29: 1 | SB29: 70 | SC29: 43 | SD29: 40 | SE29: 158 | SU29: 0 | SV29: 0 | SW29: 0 | SX29: 0 | SY29: 0 | TA29: 0 | TB29: 0 | TC29: 0 | TD29: 0 | TE29: 0 | TF29: 0 | TG29: 0 | TH29: 0 | TI29: 0 | TJ29: 0 | TK29: 0 | TL29: 0 | TM29: 0 | TN29: 0 | TO29: 0 | TQ29: =M29+DH29+'2_MERCADO_PRIVADO'!BW29+'2_MERCADO_PRIVADO'!G29 -> 132 | TR29: =DH29+'2_MERCADO_PRIVADO'!AP29+'2_MERCADO_PRIVADO'!BW29 -> 132 | TS29: =BR29+'2_MERCADO_PRIVADO'!AP29+'2_MERCADO_PRIVADO'!BW29+'2_MERCADO_PRIVADO'!DD29 -> 132 | TT29: =CH29+CX29+'2_MERCADO_PRIVADO'!BF29+'2_MERCADO_PRIVADO'!CM29+'2_MERCADO_PRIVADO'!DT29 -> 110 | TU29: =CO29+DE29+'2_MERCADO_PRIVADO'!BM29+'2_MERCADO_PRIVADO'!CT29+'2_MERCADO_PRIVADO'!EA29 -> 127
D30: OTRO | E30: 0 | F30: 0 | G30: 0 | H30: 0 | I30: 0 | AZ30: 0 | BA30: 0 | BB30: 0 | BC30: 0 | BD30: 0 | BE30: 0 | BF30: 0 | BG30: 0 | BH30: 0 | BI30: 0 | BJ30: 0 | BK30: 0 | BP30: 0 | BQ30: 0 | BR30: 0 | BS30: 0 | BT30: 0 | BU30: 0 | BV30: 0 | BW30: 0 | BX30: 0 | BY30: 0 | BZ30: 0 | CA30: 0 | CB30: 0 | CC30: 0 | CD30: 0 | CE30: 0 | CF30: 0 | CG30: 0 | CH30: 0 | CI30: 0 | CJ30: 0 | CK30: 0 | CL30: 0 | CM30: 0 | CN30: 0 | CO30: 0 | CX30: 0 | CY30: 0 | CZ30: 0 | DA30: 0 | DB30: 0 | DC30: 0 | DD30: 0 | DE30: 0 | DF30: 0 | DG30: 0 | DH30: 0 | DI30: 0 | DJ30: 0 | DK30: 0 | EM30: 0 | EN30: 0 | EO30: 0 | EP30: 0 | EQ30: 0 | ER30: 0 | ES30: 0 | ET30: 0 | FM30: 0 | FN30: 0 | FO30: 0 | FP30: 0 | FQ30: 0 | FR30: 0 | FS30: 0 | FT30: 0 | FU30: 0 | FV30: 0 | FW30: 0 | FX30: 0 | FY30: 0 | HE30: 0 | HF30: 0 | HG30: 0 | HH30: 0 | HI30: 0 | HJ30: 0 | HK30: 0 | HL30: 0 | HS30: 0 | HT30: 0 | HU30: 0 | HV30: 0 | HW30: 0 | HX30: 0 | HY30: 0 | HZ30: 0 | IA30: 0 | IB30: 0 | ID30: 0 | IE30: 0 | IF30: 0 | IG30: 0 | IH30: 0 | II30: 0 | IL30: 0 | IM30: 0 | IN30: 0 | IO30: 0 | IP30: 0 | IQ30: 0 | IR30: 0 | IS30: 0 | IT30: 0 | IU30: 0 | IV30: 0 | IY30: 0 | IZ30: 0 | JB30: 0 | JC30: 0 | JD30: 0 | JE30: 0 | JF30: 0 | JG30: 0 | JH30: 0 | JI30: 0 | JJ30: 0 | JK30: 0 | JP30: 0 | JU30: 0 | JV30: 0 | JW30: 0 | JX30: 0 | JY30: 0 | JZ30: 0 | KA30: 0 | KE30: 0 | KF30: 0 | KG30: 0 | KH30: 0 | KI30: 0 | KJ30: 0 | KK30: 0 | KL30: 0 | KM30: 0 | KN30: 0 | KO30: 0 | KP30: 0 | KQ30: 0 | KR30: 0 | KS30: 0 | KT30: 0 | KU30: 0 | KV30: 0 | KW30: 0 | KX30: 0 | KY30: 0 | KZ30: 0 | LA30: 0 | LB30: 0 | LC30: 0 | LD30: 0 | LE30: 0 | LF30: 0 | LG30: 0 | LH30: 0 | LI30: 0 | LJ30: 0 | LK30: 0 | LL30: 0 | LM30: 0 | LN30: 0 | LO30: 0 | LP30: 0 | LQ30: 0 | LR30: 0 | LS30: 0 | LT30: 0 | LU30: 0 | LV30: 0 | LW30: 0 | LX30: 0 | LY30: 0 | LZ30: 0 | MA30: 0 | MB30: 0 | MC30: 0 | MD30: 0 | ME30: 0 | MF30: 0 | MG30: 0 | MH30: 0 | MI30: 0 | MJ30: 0 | MK30: 0 | ML30: 0 | MM30: 0 | MN30: 0 | MO30: 0 | MP30: 0 | MQ30: 0 | MR30: 0 | MS30: 0 | MT30: 0 | MU30: 0 | MV30: 0 | MW30: 0 | MX30: 0 | MY30: 0 | MZ30: 0 | NA30: 0 | NB30: 0 | NC30: 0 | ND30: 0 | NE30: 0 | NF30: 0 | NG30: 0 | OC30: 0 | OD30: 0 | OE30: 0 | OF30: 0 | OG30: 0 | OH30: 0 | OI30: 0 | OJ30: 0 | OK30: 0 | OL30: 0 | OM30: 0 | ON30: 0 | OO30: 0 | OP30: 0 | OQ30: 0 | OR30: 0 | OS30: 0 | OT30: 0 | OU30: 0 | OV30: 0 | OW30: 0 | OX30: 0 | OY30: 0 | OZ30: 0 | PA30: 0 | PB30: 0 | PC30: 0 | PF30: 0 | PG30: 0 | PH30: 0 | PI30: 0 | PJ30: 0 | PK30: 0 | PL30: 0 | PM30: 0 | PN30: 0 | PO30: 0 | PP30: 0 | PQ30: 0 | PR30: 0 | PS30: 0 | PT30: 0 | PU30: 0 | PV30: 0 | PW30: 0 | PX30: 0 | QC30: 0 | QE30: 0.0 | QF30: 0.0 | QG30: 0.0 | QH30: 0.0 | QI30: 0.0 | QJ30: 0.0 | QK30: 0.0 | QL30: 0.0 | QM30: 0.0 | QN30: 0.0 | QO30: 0.0 | QP30: 0.0 | QQ30: 0.0 | QR30: 0.0 | QS30: 0.0 | QT30: 0.0 | QU30: 0.0 | QV30: 0.0 | QW30: 0.0 | QX30: 0.0 | QY30: 0.0 | QZ30: 0.0 | RA30: 0.0 | RB30: 0.0 | RC30: 0.0 | RD30: 0.0 | RE30: 0.0 | RF30: 0.0 | RG30: 0.0 | RH30: 0.0 | RI30: 0.0 | RJ30: 0.0 | RK30: 0.0 | RL30: 0.0 | RM30: 0.0 | RN30: 0 | RO30: 0 | RP30: 0 | RQ30: 0.0 | RR30: 0.0 | RS30: 0.0 | RT30: 0.0 | RU30: 0.0 | RV30: 0.0 | RW30: 0.0 | RX30: =+SR30+RW35+SE30+'2_MERCADO_PRIVADO'!TA30 -> 371 | RY30: 0 | RZ30: 0 | SA30: 0 | SB30: 0 | SC30: 0 | SD30: 0 | SE30: 0 | SU30: 0 | SV30: 0 | SW30: 0 | SX30: 0 | SY30: 0 | TA30: 0 | TB30: 0 | TC30: 0 | TD30: 0 | TE30: 0 | TF30: 0 | TG30: 0 | TH30: 0 | TI30: 0 | TJ30: 0 | TK30: 0 | TL30: 0 | TM30: 0 | TN30: 0 | TO30: 0 | TQ30: =M30+DH30+'2_MERCADO_PRIVADO'!BW30+'2_MERCADO_PRIVADO'!G30 -> 0 | TR30: =DH30+'2_MERCADO_PRIVADO'!AP30+'2_MERCADO_PRIVADO'!BW30 -> 0 | TS30: =BR30+'2_MERCADO_PRIVADO'!AP30+'2_MERCADO_PRIVADO'!BW30+'2_MERCADO_PRIVADO'!DD30 -> 0 | TT30: =CH30+CX30+'2_MERCADO_PRIVADO'!BF30+'2_MERCADO_PRIVADO'!CM30+'2_MERCADO_PRIVADO'!DT30 -> 0 | TU30: =CO30+DE30+'2_MERCADO_PRIVADO'!BM30+'2_MERCADO_PRIVADO'!CT30+'2_MERCADO_PRIVADO'!EA30 -> 0
D31: TOTAL GENERO | E31: 614 | F31: 16 | G31: 3 | H31: 0 | I31: 603 | AZ31: 1 | BA31: 0 | BB31: 0 | BC31: 0 | BD31: 0 | BE31: 0 | BF31: 0 | BG31: 0 | BH31: 2 | BI31: 1 | BJ31: 0 | BK31: 0 | BP31: 101 | BQ31: 106 | BR31: 82 | BS31: 0 | BT31: 0 | BU31: 0 | BV31: 0 | BW31: 0 | BX31: 0 | BY31: 0 | BZ31: 0 | CA31: 0 | CB31: 0 | CC31: 0 | CD31: 0 | CE31: 0 | CF31: 0 | CG31: 0 | CH31: 2 | CI31: 0 | CJ31: 0 | CK31: 0 | CL31: 0 | CM31: 0 | CN31: 0 | CO31: 1 | CX31: 86 | CY31: 3 | CZ31: 1 | DA31: 0 | DB31: 0 | DC31: 0 | DD31: 0 | DE31: 117 | DF31: 101 | DG31: 103 | DH31: 82 | DI31: 0 | DJ31: 0 | DK31: 0 | EM31: 88 | EN31: 3 | EO31: 1 | EP31: 0 | EQ31: 0 | ER31: 0 | ES31: 0 | ET31: 117 | FM31: 0 | FN31: 0 | FO31: 0 | FP31: 0 | FQ31: 0 | FR31: 0 | FS31: 0 | FT31: 1 | FU31: 0 | FV31: 0 | FW31: 0 | FX31: 0 | FY31: 1 | HE31: 244 | HF31: 275 | HG31: 240 | HH31: 267 | HI31: 130 | HJ31: 1 | HK31: 0 | HL31: 0 | HS31: 128 | HT31: 1 | HU31: 0 | HV31: 0 | HW31: 0 | HX31: 0 | HY31: 0 | HZ31: 0 | IA31: 0 | IB31: 0 | ID31: 159 | IE31: 3 | IF31: 1 | IG31: 0 | IH31: 1 | II31: 1 | IL31: 84 | IM31: 8 | IN31: 18 | IO31: 20 | IP31: 21 | IQ31: 22 | IR31: 14 | IS31: 20 | IT31: 21 | IU31: 24 | IV31: 25 | IY31: 5 | IZ31: 2 | JB31: 163 | JC31: 5 | JD31: 0 | JE31: 3 | JF31: 4 | JG31: 0 | JH31: 1 | JI31: 1 | JJ31: 0 | JK31: 0 | JP31: 1 | JU31: 155 | JV31: 2 | JW31: 0 | JX31: 0 | JY31: 1 | JZ31: 0 | KA31: 1 | KE31: 128 | KF31: 3 | KG31: 0 | KH31: 0 | KI31: 1 | KJ31: 0 | KK31: 0 | KL31: 158 | KM31: 3 | KN31: 1 | KO31: 0 | KP31: 0 | KQ31: 0 | KR31: 0 | KS31: 0 | KT31: 0 | KU31: 0 | KV31: 3 | KW31: 0 | KX31: 0 | KY31: 0 | KZ31: 0 | LA31: 86 | LB31: 42 | LC31: 12 | LD31: 7 | LE31: 2 | LF31: 0 | LG31: 0 | LH31: 0 | LI31: 0 | LJ31: 7 | LK31: 4 | LL31: 1 | LM31: 0 | LN31: 0 | LO31: 100 | LP31: 78 | LQ31: 98 | LR31: 58 | LS31: 34 | LT31: 5 | LU31: 0 | LV31: 0 | LW31: 0 | LX31: 0 | LY31: 0 | LZ31: 0 | MA31: 0 | MB31: 0 | MC31: 3 | MD31: 0 | ME31: 2 | MF31: 0 | MG31: 0 | MH31: 0 | MI31: 0 | MJ31: 0 | MK31: 0 | ML31: 0 | MM31: 0 | MN31: 0 | MO31: 0 | MP31: 0 | MQ31: 0 | MR31: 0 | MS31: 0 | MT31: 0 | MU31: 0 | MV31: 0 | MW31: 0 | MX31: 4 | MY31: 0 | MZ31: 0 | NA31: 0 | NB31: 29 | NC31: 65 | ND31: 104 | NE31: 56 | NF31: 24 | NG31: 30 | OC31: 58 | OD31: 13 | OE31: 0 | OF31: 28 | OG31: 24 | OH31: 0 | OI31: 28 | OJ31: 32 | OK31: 0 | OL31: 24 | OM31: 22 | ON31: 0 | OO31: 25 | OP31: 9 | OQ31: 0 | OR31: 31 | OS31: 17 | OT31: 0 | OU31: 24 | OV31: 2 | OW31: 0 | OX31: 19 | OY31: 15 | OZ31: 0 | PA31: 11 | PB31: 9 | PC31: 0 | PF31: 0 | PG31: 0 | PH31: 0 | PI31: 0 | PJ31: 0 | PK31: 0 | PL31: 0 | PM31: 0 | PN31: 106 | PO31: 45 | PP31: 32 | PQ31: 32 | PR31: 184 | PS31: 40 | PT31: 0 | PU31: 0 | PV31: 0 | PW31: 12 | PX31: 2 | QC31: =SUM(QC28:QC30) -> 6,226 | QE31: =+SUM(QE28:QE30) -> 633.0 | QF31: =+SUM(QF28:QF30) -> 607.0 | QG31: =+SUM(QG28:QG30) -> 292.0 | QH31: =+SUM(QH28:QH30) -> 207.0 | QI31: =+SUM(QI28:QI30) -> 286.0 | QJ31: =+SUM(QJ28:QJ30) -> 209.0 | QK31: =+SUM(QK28:QK30) -> 2.0 | QL31: =+SUM(QL28:QL30) -> 0.0 | QM31: =+SUM(QM28:QM30) -> 519.0 | QN31: =+SUM(QN28:QN30) -> 638.0 | QO31: =+SUM(QO28:QO30) -> 0.0 | QP31: =+SUM(QP28:QP30) -> 294.0 | QQ31: =+SUM(QQ28:QQ30) -> 284.0 | QR31: =+SUM(QR28:QR30) -> 178.0 | QS31: =+SUM(QS28:QS30) -> 159.0 | QT31: =+SUM(QT28:QT30) -> 294.0 | QU31: =+SUM(QU28:QU30) -> 542.0 | QV31: =+SUM(QV28:QV30) -> 312.0 | QW31: =+SUM(QW28:QW30) -> 0.0 | QX31: =+SUM(QX28:QX30) -> 0.0 | QY31: =+SUM(QY28:QY30) -> 0.0 | QZ31: =+SUM(QZ28:QZ30) -> 0.0 | RA31: =+SUM(RA28:RA30) -> 0.0 | RB31: =+SUM(RB28:RB30) -> 0.0 | RC31: =+SUM(RC28:RC30) -> 0.0 | RD31: =+SUM(RD28:RD30) -> 0.0 | RE31: =+SUM(RE28:RE30) -> 0.0 | RF31: =+SUM(RF28:RF30) -> 391.0 | RG31: =+SUM(RG28:RG30) -> 0.0 | RH31: =+SUM(RH28:RH30) -> 0.0 | RI31: =+SUM(RI28:RI30) -> 0.0 | RJ31: =+SUM(RJ28:RJ30) -> 183.0 | RK31: =+SUM(RK28:RK30) -> 32.0 | RL31: =+SUM(RL28:RL30) -> 184.0 | RM31: =+SUM(RM28:RM30) -> 40.0 | RN31: =+SUM(RN28:RN30) -> 0.0 | RO31: =+SUM(RO28:RO30) -> 0.0 | RP31: =+SUM(RP28:RP30) -> 0.0 | RQ31: =+SUM(RQ28:RQ30) -> 12.0 | RR31: =+SUM(RR28:RR30) -> 2.0 | RS31: =+SUM(RS28:RS30) -> 0.0 | RT31: =+SUM(RT28:RT30) -> 0.0 | RU31: =+SUM(RU28:RU30) -> 0.0 | RV31: =+SUM(RV28:RV30) -> 0.0 | RW31: =SUM(RW28:RW30) -> 6,226.0 | RX31: =+SR31+RW36+SE31+'2_MERCADO_PRIVADO'!TA31 -> 15346 | RY31: 2 | RZ31: 4 | SA31: 2 | SB31: 94 | SC31: 130 | SD31: 46 | SE31: =SUM(SE28:SE30) -> 278 | SF31: =SUM(SF28:SF30) -> 0 | SG31: 0 | SH31: 0 | SI31: 0 | SJ31: 0 | SK31: 0 | SL31: 0 | SM31: 0 | SN31: 0 | SO31: 0 | SP31: 0 | SQ31: 0 | SR31: 1 | SS31: 1 | SU31: =SUM(SU28:SU30) -> 0 | SV31: 0 | SW31: 0 | SX31: 1 | SY31: 1 | TA31: 0 | TB31: 0 | TC31: 0 | TD31: 0 | TE31: 0 | TF31: 0 | TG31: 0 | TH31: 0 | TI31: 0 | TJ31: 0 | TK31: 0 | TL31: 0 | TM31: 0 | TN31: 0 | TO31: 0 | TQ31: =M31+DH31+'2_MERCADO_PRIVADO'!BW31+'2_MERCADO_PRIVADO'!G31 -> 263 | TR31: =DH31+'2_MERCADO_PRIVADO'!AP31+'2_MERCADO_PRIVADO'!BW31 -> 263 | TS31: =BR31+'2_MERCADO_PRIVADO'!AP31+'2_MERCADO_PRIVADO'!BW31+'2_MERCADO_PRIVADO'!DD31 -> 263 | TT31: =CH31+CX31+'2_MERCADO_PRIVADO'!BF31+'2_MERCADO_PRIVADO'!CM31+'2_MERCADO_PRIVADO'!DT31 -> 230 | TU31: =CO31+DE31+'2_MERCADO_PRIVADO'!BM31+'2_MERCADO_PRIVADO'!CT31+'2_MERCADO_PRIVADO'!EA31 -> 241
D32: CONTRIBUTIVO | E32: 546 | F32: 15 | G32: 3 | H32: 0 | I32: 536 | AZ32: 1 | BA32: 0 | BB32: 0 | BC32: 0 | BD32: 0 | BE32: 0 | BF32: 0 | BG32: 0 | BH32: 2 | BI32: 1 | BJ32: 0 | BK32: 0 | BP32: 92 | BQ32: 98 | BR32: 73 | BS32: 0 | BT32: 0 | BU32: 0 | BV32: 0 | BW32: 0 | BX32: 0 | BY32: 0 | BZ32: 0 | CA32: 0 | CB32: 0 | CC32: 0 | CD32: 0 | CE32: 0 | CF32: 0 | CG32: 0 | CH32: 2 | CI32: 0 | CJ32: 0 | CK32: 0 | CL32: 0 | CM32: 0 | CN32: 0 | CO32: 0 | CX32: 82 | CY32: 3 | CZ32: 0 | DA32: 0 | DB32: 0 | DC32: 0 | DD32: 0 | DE32: 104 | DF32: 92 | DG32: 97 | DH32: 73 | DI32: 0 | DJ32: 0 | DK32: 0 | EM32: 84 | EN32: 3 | EO32: 0 | EP32: 0 | EQ32: 0 | ER32: 0 | ES32: 0 | ET32: 104 | FM32: 0 | FN32: 0 | FO32: 0 | FP32: 0 | FQ32: 0 | FR32: 0 | FS32: 0 | FT32: 0 | FU32: 0 | FV32: 0 | FW32: 0 | FX32: 0 | FY32: 1 | HE32: 225 | HF32: 258 | HG32: 220 | HH32: 248 | HI32: 111 | HJ32: 0 | HK32: 0 | HL32: 0 | HS32: 110 | HT32: 1 | HU32: 0 | HV32: 0 | HW32: 0 | HX32: 0 | HY32: 0 | HZ32: 0 | IA32: 0 | IB32: 0 | ID32: 144 | IE32: 3 | IF32: 1 | IG32: 0 | IH32: 1 | II32: 1 | IL32: 76 | IM32: 8 | IN32: 16 | IO32: 19 | IP32: 21 | IQ32: 20 | IR32: 14 | IS32: 20 | IT32: 16 | IU32: 20 | IV32: 21 | IY32: 4 | IZ32: 1 | JB32: 154 | JC32: 5 | JD32: 0 | JE32: 3 | JF32: 3 | JG32: 0 | JH32: 0 | JI32: 1 | JJ32: 0 | JK32: 0 | JP32: 1 | JU32: 136 | JV32: 2 | JW32: 0 | JX32: 0 | JY32: 0 | JZ32: 0 | KA32: 1 | KE32: 109 | KF32: 3 | KG32: 0 | KH32: 0 | KI32: 0 | KJ32: 0 | KK32: 0 | KL32: 144 | KM32: 3 | KN32: 1 | KO32: 0 | KP32: 0 | KQ32: 0 | KR32: 0 | KS32: 0 | KT32: 0 | KU32: 0 | KV32: 3 | KW32: 0 | KX32: 0 | KY32: 0 | KZ32: 0 | LA32: 78 | LB32: 39 | LC32: 11 | LD32: 7 | LE32: 2 | LF32: 0 | LG32: 0 | LH32: 0 | LI32: 0 | LJ32: 7 | LK32: 4 | LL32: 1 | LM32: 0 | LN32: 0 | LO32: 89 | LP32: 73 | LQ32: 93 | LR32: 52 | LS32: 30 | LT32: 3 | LU32: 0 | LV32: 0 | LW32: 0 | LX32: 0 | LY32: 0 | LZ32: 0 | MA32: 0 | MB32: 0 | MC32: 2 | MD32: 0 | ME32: 0 | MF32: 0 | MG32: 0 | MH32: 0 | MI32: 0 | MJ32: 0 | MK32: 0 | ML32: 0 | MM32: 0 | MN32: 0 | MO32: 0 | MP32: 0 | MQ32: 0 | MR32: 0 | MS32: 0 | MT32: 0 | MU32: 0 | MV32: 0 | MW32: 0 | MX32: 3 | MY32: 0 | MZ32: 0 | NA32: 0 | NB32: 28 | NC32: 61 | ND32: 103 | NE32: 52 | NF32: 23 | NG32: 26 | OC32: 47 | OD32: 8 | OE32: 0 | OF32: 22 | OG32: 21 | OH32: 0 | OI32: 26 | OJ32: 24 | OK32: 0 | OL32: 23 | OM32: 16 | ON32: 0 | OO32: 22 | OP32: 7 | OQ32: 0 | OR32: 29 | OS32: 15 | OT32: 0 | OU32: 21 | OV32: 2 | OW32: 0 | OX32: 19 | OY32: 13 | OZ32: 0 | PA32: 9 | PB32: 7 | PC32: 0 | PF32: 0 | PG32: 0 | PH32: 0 | PI32: 0 | PJ32: 0 | PK32: 0 | PL32: 0 | PM32: 0 | PN32: 90 | PO32: 39 | PP32: 26 | PQ32: 26 | PR32: 171 | PS32: 36 | PT32: 0 | PU32: 0 | PV32: 0 | PW32: 12 | PX32: 2 | QC32: =SUM(E32:QB32)-PQ32-PS32-PX32 -> 5,616 | QE32: =SUM(E32:H32) -> 564.0 | QF32: =SUM(I32:BO32) -> 540.0 | QG32: =SUM(BP32:CW32) -> 265.0 | QH32: =SUM(CX32:DE32) -> 189.0 | QI32: =SUM(DF32:DT32) -> 262.0 | QJ32: =SUM(DU32:ET32) -> 191.0 | QK32: =SUM(EU32:FY32) -> 1.0 | QL32: =SUM(FZ32:HD32) -> 0.0 | QM32: =SUM(HE32:HF32) -> 483.0 | QN32: =SUM(HG32:HL32) -> 579.0 | QO32: =SUM(HM32:HR32) -> 0.0 | QP32: =SUM(HS32:IJ32) -> 261.0 | QQ32: =SUM(IK32:JA32) -> 256.0 | QR32: =SUM(JB32:JT32) -> 167.0 | QS32: =SUM(JU32:KD32) -> 139.0 | QT32: =SUM(KE32:KP32) -> 260.0 | QU32: =SUM(KQ32:MU32) -> 494.0 | QV32: =SUM(MV32:NG32) -> 296.0 | QW32: =SUM(NH32:NI32) -> 0.0 | QX32: =SUM(NJ32:NL32) -> 0.0 | QY32: =SUM(NM32:NO32) -> 0.0 | QZ32: =SUM(NP32) -> 0.0 | RA32: =SUM(NQ32) -> 0.0 | RB32: =SUM(NR32:NT32) -> 0.0 | RC32: =SUM(NU32) -> 0.0 | RD32: =SUM(NV32) -> 0.0 | RE32: =SUM(NW32:OB32) -> 0.0 | RF32: =SUM(OC32:PE32) -> 331.0 | RG32: =SUM(PF32:PG32) -> 0.0 | RH32: =SUM(PH32:PI32) -> 0.0 | RI32: =SUM(PJ32:PM32) -> 0.0 | RJ32: =SUM(PN32:PP32) -> 155.0 | RK32: =SUM(PQ32) -> 26.0 | RL32: =SUM(PR32) -> 171.0 | RM32: =SUM(PS32) -> 36.0 | RN32: =SUM(PT32) -> 0 | RO32: =SUM(PU32) -> 0 | RP32: =SUM(PV32) -> 0 | RQ32: =SUM(PW32) -> 12.0 | RR32: =SUM(PX32) -> 2.0 | RS32: =SUM(PY32) -> 0.0 | RT32: =SUM(PZ32) -> 0.0 | RU32: =SUM(QA32) -> 0.0 | RV32: =SUM(QB32) -> 0.0 | RW32: 5,616.0 | RX32: =+SR32+RW37+SE32+'2_MERCADO_PRIVADO'!TA32 -> 7824 | RY32: 1 | RZ32: 4 | SA32: 2 | SB32: 93 | SC32: 121 | SD32: 42 | SE32: =SUM(RY32:SD32) -> 263 | SR32: 1 | SS32: 1 | SU32: =SF32+SG32 -> 0 | SV32: =SH32+SI32+SJ32+SK32+SL32+SM32+SN32+SO32+SP32 -> 0 | SW32: =SQ32 -> 0 | SX32: =SR32 -> 1 | SY32: =SS32 -> 1 | TA32: 0 | TB32: 0 | TC32: 0 | TD32: 0 | TE32: 0 | TF32: 0 | TG32: 0 | TH32: 0 | TI32: 0 | TJ32: 0 | TK32: 0 | TL32: 0 | TM32: 0 | TN32: 0 | TO32: 0 | TQ32: =M32+DH32+'2_MERCADO_PRIVADO'!BW32+'2_MERCADO_PRIVADO'!G32 -> 246 | TR32: =DH32+'2_MERCADO_PRIVADO'!AP32+'2_MERCADO_PRIVADO'!BW32 -> 246 | TS32: =BR32+'2_MERCADO_PRIVADO'!AP32+'2_MERCADO_PRIVADO'!BW32+'2_MERCADO_PRIVADO'!DD32 -> 246 | TT32: =CH32+CX32+'2_MERCADO_PRIVADO'!BF32+'2_MERCADO_PRIVADO'!CM32+'2_MERCADO_PRIVADO'!DT32 -> 217 | TU32: =CO32+DE32+'2_MERCADO_PRIVADO'!BM32+'2_MERCADO_PRIVADO'!CT32+'2_MERCADO_PRIVADO'!EA32 -> 222
D33: SUBSIDIADO | E33: 5 | F33: 0 | G33: 0 | H33: 0 | I33: 6 | AZ33: 0 | BA33: 0 | BB33: 0 | BC33: 0 | BD33: 0 | BE33: 0 | BF33: 0 | BG33: 0 | BH33: 0 | BI33: 0 | BJ33: 0 | BK33: 0 | BP33: 4 | BQ33: 2 | BR33: 6 | BS33: 0 | BT33: 0 | BU33: 0 | BV33: 0 | BW33: 0 | BX33: 0 | BY33: 0 | BZ33: 0 | CA33: 0 | CB33: 0 | CC33: 0 | CD33: 0 | CE33: 0 | CF33: 0 | CG33: 0 | CH33: 0 | CI33: 0 | CJ33: 0 | CK33: 0 | CL33: 0 | CM33: 0 | CN33: 0 | CO33: 1 | CX33: 1 | CY33: 0 | CZ33: 0 | DA33: 0 | DB33: 0 | DC33: 0 | DD33: 0 | DE33: 5 | DF33: 4 | DG33: 2 | DH33: 6 | DI33: 0 | DJ33: 0 | DK33: 0 | EM33: 1 | EN33: 0 | EO33: 0 | EP33: 0 | EQ33: 0 | ER33: 0 | ES33: 0 | ET33: 6 | FM33: 0 | FN33: 0 | FO33: 0 | FP33: 0 | FQ33: 0 | FR33: 0 | FS33: 0 | FT33: 0 | FU33: 0 | FV33: 0 | FW33: 0 | FX33: 0 | FY33: 0 | HE33: 5 | HF33: 3 | HG33: 6 | HH33: 5 | HI33: 8 | HJ33: 0 | HK33: 0 | HL33: 0 | HS33: 8 | HT33: 0 | HU33: 0 | HV33: 0 | HW33: 0 | HX33: 0 | HY33: 0 | HZ33: 0 | IA33: 0 | IB33: 0 | ID33: 5 | IE33: 0 | IF33: 0 | IG33: 0 | IH33: 0 | II33: 0 | IL33: 3 | IM33: 0 | IN33: 0 | IO33: 1 | IP33: 0 | IQ33: 1 | IR33: 0 | IS33: 0 | IT33: 2 | IU33: 2 | IV33: 2 | IY33: 0 | IZ33: 0 | JB33: 2 | JC33: 0 | JD33: 0 | JE33: 0 | JF33: 0 | JG33: 0 | JH33: 0 | JI33: 0 | JJ33: 0 | JK33: 0 | JP33: 0 | JU33: 9 | JV33: 0 | JW33: 0 | JX33: 0 | JY33: 0 | JZ33: 0 | KA33: 0 | KE33: 8 | KF33: 0 | KG33: 0 | KH33: 0 | KI33: 0 | KJ33: 0 | KK33: 0 | KL33: 5 | KM33: 0 | KN33: 0 | KO33: 0 | KP33: 0 | KQ33: 0 | KR33: 0 | KS33: 0 | KT33: 0 | KU33: 0 | KV33: 0 | KW33: 0 | KX33: 0 | KY33: 0 | KZ33: 0 | LA33: 5 | LB33: 0 | LC33: 0 | LD33: 0 | LE33: 0 | LF33: 0 | LG33: 0 | LH33: 0 | LI33: 0 | LJ33: 0 | LK33: 0 | LL33: 0 | LM33: 0 | LN33: 0 | LO33: 7 | LP33: 3 | LQ33: 4 | LR33: 6 | LS33: 2 | LT33: 2 | LU33: 0 | LV33: 0 | LW33: 0 | LX33: 0 | LY33: 0 | LZ33: 0 | MA33: 0 | MB33: 0 | MC33: 1 | MD33: 0 | ME33: 0 | MF33: 0 | MG33: 0 | MH33: 0 | MI33: 0 | MJ33: 0 | MK33: 0 | ML33: 0 | MM33: 0 | MN33: 0 | MO33: 0 | MP33: 0 | MQ33: 0 | MR33: 0 | MS33: 0 | MT33: 0 | MU33: 0 | MV33: 0 | MW33: 0 | MX33: 1 | MY33: 0 | MZ33: 0 | NA33: 0 | NB33: 0 | NC33: 1 | ND33: 1 | NE33: 2 | NF33: 1 | NG33: 2 | OC33: 1 | OD33: 1 | OE33: 0 | OF33: 2 | OG33: 0 | OH33: 0 | OI33: 0 | OJ33: 1 | OK33: 0 | OL33: 0 | OM33: 1 | ON33: 0 | OO33: 0 | OP33: 0 | OQ33: 0 | OR33: 1 | OS33: 1 | OT33: 0 | OU33: 1 | OV33: 0 | OW33: 0 | OX33: 0 | OY33: 1 | OZ33: 0 | PA33: 2 | PB33: 0 | PC33: 0 | PF33: 0 | PG33: 0 | PH33: 0 | PI33: 0 | PJ33: 0 | PK33: 0 | PL33: 0 | PM33: 0 | PN33: 4 | PO33: 0 | PP33: 1 | PQ33: 1 | PR33: 1 | PS33: 1 | PT33: 0 | PU33: 0 | PV33: 0 | PW33: 0 | PX33: 0 | QC33: 180 | QE33: 5.0 | QF33: 6.0 | QG33: 13.0 | QH33: 6.0 | QI33: 12.0 | QJ33: 7.0 | QK33: 0.0 | QL33: 0.0 | QM33: 8.0 | QN33: 19.0 | QO33: 0.0 | QP33: 13.0 | QQ33: 11.0 | QR33: 2.0 | QS33: 9.0 | QT33: 13.0 | QU33: 30.0 | QV33: 8.0 | QW33: 0.0 | QX33: 0.0 | QY33: 0.0 | QZ33: 0.0 | RA33: 0.0 | RB33: 0.0 | RC33: 0.0 | RD33: 0.0 | RE33: 0.0 | RF33: 12.0 | RG33: 0.0 | RH33: 0.0 | RI33: 0.0 | RJ33: 5.0 | RK33: 1.0 | RL33: 1.0 | RM33: 1.0 | RN33: 0 | RO33: 0 | RP33: 0 | RQ33: 0.0 | RR33: 0.0 | RS33: 0.0 | RT33: 0.0 | RU33: 0.0 | RV33: 0.0 | RW33: 180.0 | RX33: =+SR33+RW38+SE33+'2_MERCADO_PRIVADO'!TA33 -> 479 | RY33: 0 | RZ33: 0 | SA33: 0 | SB33: 0 | SC33: 2 | SD33: 0 | SE33: 2 | SU33: 0 | SV33: 0 | SW33: 0 | SX33: 0 | SY33: 0 | TA33: 0 | TB33: 0 | TC33: 0 | TD33: 0 | TE33: 0 | TF33: 0 | TG33: 0 | TH33: 0 | TI33: 0 | TJ33: 0 | TK33: 0 | TL33: 0 | TM33: 0 | TN33: 0 | TO33: 0 | TQ33: =M33+DH33+'2_MERCADO_PRIVADO'!BW33+'2_MERCADO_PRIVADO'!G33 -> 7 | TR33: =DH33+'2_MERCADO_PRIVADO'!AP33+'2_MERCADO_PRIVADO'!BW33 -> 7 | TS33: =BR33+'2_MERCADO_PRIVADO'!AP33+'2_MERCADO_PRIVADO'!BW33+'2_MERCADO_PRIVADO'!DD33 -> 7 | TT33: =CH33+CX33+'2_MERCADO_PRIVADO'!BF33+'2_MERCADO_PRIVADO'!CM33+'2_MERCADO_PRIVADO'!DT33 -> 3 | TU33: =CO33+DE33+'2_MERCADO_PRIVADO'!BM33+'2_MERCADO_PRIVADO'!CT33+'2_MERCADO_PRIVADO'!EA33 -> 6
D34: POBRE NO ASEGURADO | E34: 3 | F34: 1 | G34: 0 | H34: 0 | I34: 3 | AZ34: 0 | BA34: 0 | BB34: 0 | BC34: 0 | BD34: 0 | BE34: 0 | BF34: 0 | BG34: 0 | BH34: 0 | BI34: 0 | BJ34: 0 | BK34: 0 | BP34: 1 | BQ34: 0 | BR34: 1 | BS34: 0 | BT34: 0 | BU34: 0 | BV34: 0 | BW34: 0 | BX34: 0 | BY34: 0 | BZ34: 0 | CA34: 0 | CB34: 0 | CC34: 0 | CD34: 0 | CE34: 0 | CF34: 0 | CG34: 0 | CH34: 0 | CI34: 0 | CJ34: 0 | CK34: 0 | CL34: 0 | CM34: 0 | CN34: 0 | CO34: 0 | CX34: 0 | CY34: 0 | CZ34: 1 | DA34: 0 | DB34: 0 | DC34: 0 | DD34: 0 | DE34: 1 | DF34: 1 | DG34: 0 | DH34: 1 | DI34: 0 | DJ34: 0 | DK34: 0 | EM34: 0 | EN34: 0 | EO34: 1 | EP34: 0 | EQ34: 0 | ER34: 0 | ES34: 0 | ET34: 1 | FM34: 0 | FN34: 0 | FO34: 0 | FP34: 0 | FQ34: 0 | FR34: 0 | FS34: 0 | FT34: 0 | FU34: 0 | FV34: 0 | FW34: 0 | FX34: 0 | FY34: 0 | HE34: 1 | HF34: 1 | HG34: 1 | HH34: 1 | HI34: 2 | HJ34: 1 | HK34: 0 | HL34: 0 | HS34: 2 | HT34: 0 | HU34: 0 | HV34: 0 | HW34: 0 | HX34: 0 | HY34: 0 | HZ34: 0 | IA34: 0 | IB34: 0 | ID34: 1 | IE34: 0 | IF34: 0 | IG34: 0 | IH34: 0 | II34: 0 | IL34: 3 | IM34: 0 | IN34: 1 | IO34: 0 | IP34: 0 | IQ34: 1 | IR34: 0 | IS34: 0 | IT34: 1 | IU34: 0 | IV34: 1 | IY34: 0 | IZ34: 0 | JB34: 1 | JC34: 0 | JD34: 0 | JE34: 0 | JF34: 1 | JG34: 0 | JH34: 1 | JI34: 0 | JJ34: 0 | JK34: 0 | JP34: 0 | JU34: 3 | JV34: 0 | JW34: 0 | JX34: 0 | JY34: 1 | JZ34: 0 | KA34: 0 | KE34: 3 | KF34: 0 | KG34: 0 | KH34: 0 | KI34: 1 | KJ34: 0 | KK34: 0 | KL34: 0 | KM34: 0 | KN34: 0 | KO34: 0 | KP34: 0 | KQ34: 0 | KR34: 0 | KS34: 0 | KT34: 0 | KU34: 0 | KV34: 0 | KW34: 0 | KX34: 0 | KY34: 0 | KZ34: 0 | LA34: 0 | LB34: 1 | LC34: 0 | LD34: 0 | LE34: 0 | LF34: 0 | LG34: 0 | LH34: 0 | LI34: 0 | LJ34: 0 | LK34: 0 | LL34: 0 | LM34: 0 | LN34: 0 | LO34: 2 | LP34: 1 | LQ34: 0 | LR34: 0 | LS34: 0 | LT34: 0 | LU34: 0 | LV34: 0 | LW34: 0 | LX34: 0 | LY34: 0 | LZ34: 0 | MA34: 0 | MB34: 0 | MC34: 0 | MD34: 0 | ME34: 0 | MF34: 0 | MG34: 0 | MH34: 0 | MI34: 0 | MJ34: 0 | MK34: 0 | ML34: 0 | MM34: 0 | MN34: 0 | MO34: 0 | MP34: 0 | MQ34: 0 | MR34: 0 | MS34: 0 | MT34: 0 | MU34: 0 | MV34: 0 | MW34: 0 | MX34: 0 | MY34: 0 | MZ34: 0 | NA34: 0 | NB34: 0 | NC34: 1 | ND34: 0 | NE34: 0 | NF34: 0 | NG34: 0 | OC34: 1 | OD34: 0 | OE34: 0 | OF34: 0 | OG34: 1 | OH34: 0 | OI34: 0 | OJ34: 2 | OK34: 0 | OL34: 0 | OM34: 0 | ON34: 0 | OO34: 0 | OP34: 0 | OQ34: 0 | OR34: 0 | OS34: 0 | OT34: 0 | OU34: 0 | OV34: 0 | OW34: 0 | OX34: 0 | OY34: 0 | OZ34: 0 | PA34: 0 | PB34: 0 | PC34: 0 | PF34: 0 | PG34: 0 | PH34: 0 | PI34: 0 | PJ34: 0 | PK34: 0 | PL34: 0 | PM34: 0 | PN34: 4 | PO34: 1 | PP34: 1 | PQ34: 1 | PR34: 1 | PS34: 1 | PT34: 0 | PU34: 0 | PV34: 0 | PW34: 0 | PX34: 0 | QC34: 59 | QE34: 4.0 | QF34: 3.0 | QG34: 2.0 | QH34: 2.0 | QI34: 2.0 | QJ34: 2.0 | QK34: 0.0 | QL34: 0.0 | QM34: 2.0 | QN34: 5.0 | QO34: 0.0 | QP34: 3.0 | QQ34: 7.0 | QR34: 3.0 | QS34: 4.0 | QT34: 4.0 | QU34: 4.0 | QV34: 1.0 | QW34: 0.0 | QX34: 0.0 | QY34: 0.0 | QZ34: 0.0 | RA34: 0.0 | RB34: 0.0 | RC34: 0.0 | RD34: 0.0 | RE34: 0.0 | RF34: 4.0 | RG34: 0.0 | RH34: 0.0 | RI34: 0.0 | RJ34: 6.0 | RK34: 1.0 | RL34: 1.0 | RM34: 1.0 | RN34: 0 | RO34: 0 | RP34: 0 | RQ34: 0.0 | RR34: 0.0 | RS34: 0.0 | RT34: 0.0 | RU34: 0.0 | RV34: 0.0 | RW34: 59.0 | RX34: =+SR34+RW39+SE34+'2_MERCADO_PRIVADO'!TA34 -> 534 | RY34: 0 | RZ34: 0 | SA34: 0 | SB34: 1 | SC34: 0 | SD34: 0 | SE34: 1 | SU34: 0 | SV34: 0 | SW34: 0 | SX34: 0 | SY34: 0 | TA34: 0 | TB34: 0 | TC34: 0 | TD34: 0 | TE34: 0 | TF34: 0 | TG34: 0 | TH34: 0 | TI34: 0 | TJ34: 0 | TK34: 0 | TL34: 0 | TM34: 0 | TN34: 0 | TO34: 0 | TQ34: =M34+DH34+'2_MERCADO_PRIVADO'!BW34+'2_MERCADO_PRIVADO'!G34 -> 2 | TR34: =DH34+'2_MERCADO_PRIVADO'!AP34+'2_MERCADO_PRIVADO'!BW34 -> 2 | TS34: =BR34+'2_MERCADO_PRIVADO'!AP34+'2_MERCADO_PRIVADO'!BW34+'2_MERCADO_PRIVADO'!DD34 -> 2 | TT34: =CH34+CX34+'2_MERCADO_PRIVADO'!BF34+'2_MERCADO_PRIVADO'!CM34+'2_MERCADO_PRIVADO'!DT34 -> 2 | TU34: =CO34+DE34+'2_MERCADO_PRIVADO'!BM34+'2_MERCADO_PRIVADO'!CT34+'2_MERCADO_PRIVADO'!EA34 -> 2 | TV34: PENTA 1 | TW34: PENTA 2 | TX34: PENTA 3 | TY34: ROTA 1 | TZ34: ROTA 2 | UA34: NEUMO 1 | UB34: NEUMO 2 | UC34: TRIPLE | UD34: VARI | UE34: HA | UF34: R NEUMO | UG34: R1 DPT | UH34: FA | UI34: R1 TRIPLE
D35: REGIMEN ESPECIAL | E35: 60 | F35: 0 | G35: 0 | H35: 0 | I35: 58 | AZ35: 0 | BA35: 0 | BB35: 0 | BC35: 0 | BD35: 0 | BE35: 0 | BF35: 0 | BG35: 0 | BH35: 0 | BI35: 0 | BJ35: 0 | BK35: 0 | BP35: 4 | BQ35: 6 | BR35: 2 | BS35: 0 | BT35: 0 | BU35: 0 | BV35: 0 | BW35: 0 | BX35: 0 | BY35: 0 | BZ35: 0 | CA35: 0 | CB35: 0 | CC35: 0 | CD35: 0 | CE35: 0 | CF35: 0 | CG35: 0 | CH35: 0 | CI35: 0 | CJ35: 0 | CK35: 0 | CL35: 0 | CM35: 0 | CN35: 0 | CO35: 0 | CX35: 3 | CY35: 0 | CZ35: 0 | DA35: 0 | DB35: 0 | DC35: 0 | DD35: 0 | DE35: 7 | DF35: 4 | DG35: 4 | DH35: 2 | DI35: 0 | DJ35: 0 | DK35: 0 | EM35: 3 | EN35: 0 | EO35: 0 | EP35: 0 | EQ35: 0 | ER35: 0 | ES35: 0 | ET35: 6 | FM35: 0 | FN35: 0 | FO35: 0 | FP35: 0 | FQ35: 0 | FR35: 0 | FS35: 0 | FT35: 1 | FU35: 0 | FV35: 0 | FW35: 0 | FX35: 0 | FY35: 0 | HE35: 13 | HF35: 13 | HG35: 13 | HH35: 13 | HI35: 9 | HJ35: 0 | HK35: 0 | HL35: 0 | HS35: 8 | HT35: 0 | HU35: 0 | HV35: 0 | HW35: 0 | HX35: 0 | HY35: 0 | HZ35: 0 | IA35: 0 | IB35: 0 | ID35: 9 | IE35: 0 | IF35: 0 | IG35: 0 | IH35: 0 | II35: 0 | IL35: 2 | IM35: 0 | IN35: 1 | IO35: 0 | IP35: 0 | IQ35: 0 | IR35: 0 | IS35: 0 | IT35: 2 | IU35: 2 | IV35: 1 | IY35: 1 | IZ35: 1 | JB35: 6 | JC35: 0 | JD35: 0 | JE35: 0 | JF35: 0 | JG35: 0 | JH35: 0 | JI35: 0 | JJ35: 0 | JK35: 0 | JP35: 0 | JU35: 7 | JV35: 0 | JW35: 0 | JX35: 0 | JY35: 0 | JZ35: 0 | KA35: 0 | KE35: 8 | KF35: 0 | KG35: 0 | KH35: 0 | KI35: 0 | KJ35: 0 | KK35: 0 | KL35: 9 | KM35: 0 | KN35: 0 | KO35: 0 | KP35: 0 | KQ35: 0 | KR35: 0 | KS35: 0 | KT35: 0 | KU35: 0 | KV35: 0 | KW35: 0 | KX35: 0 | KY35: 0 | KZ35: 0 | LA35: 3 | LB35: 2 | LC35: 1 | LD35: 0 | LE35: 0 | LF35: 0 | LG35: 0 | LH35: 0 | LI35: 0 | LJ35: 0 | LK35: 0 | LL35: 0 | LM35: 0 | LN35: 0 | LO35: 2 | LP35: 1 | LQ35: 1 | LR35: 0 | LS35: 2 | LT35: 0 | LU35: 0 | LV35: 0 | LW35: 0 | LX35: 0 | LY35: 0 | LZ35: 0 | MA35: 0 | MB35: 0 | MC35: 0 | MD35: 0 | ME35: 2 | MF35: 0 | MG35: 0 | MH35: 0 | MI35: 0 | MJ35: 0 | MK35: 0 | ML35: 0 | MM35: 0 | MN35: 0 | MO35: 0 | MP35: 0 | MQ35: 0 | MR35: 0 | MS35: 0 | MT35: 0 | MU35: 0 | MV35: 0 | MW35: 0 | MX35: 0 | MY35: 0 | MZ35: 0 | NA35: 0 | NB35: 1 | NC35: 2 | ND35: 0 | NE35: 2 | NF35: 0 | NG35: 2 | OC35: 9 | OD35: 4 | OE35: 0 | OF35: 4 | OG35: 2 | OH35: 0 | OI35: 2 | OJ35: 5 | OK35: 0 | OL35: 1 | OM35: 5 | ON35: 0 | OO35: 3 | OP35: 2 | OQ35: 0 | OR35: 1 | OS35: 1 | OT35: 0 | OU35: 2 | OV35: 0 | OW35: 0 | OX35: 0 | OY35: 1 | OZ35: 0 | PA35: 0 | PB35: 2 | PC35: 0 | PF35: 0 | PG35: 0 | PH35: 0 | PI35: 0 | PJ35: 0 | PK35: 0 | PL35: 0 | PM35: 0 | PN35: 8 | PO35: 5 | PP35: 4 | PQ35: 4 | PR35: 11 | PS35: 2 | PT35: 0 | PU35: 0 | PV35: 0 | PW35: 0 | PX35: 0 | QC35: 371 | QE35: 60.0 | QF35: 58.0 | QG35: 12.0 | QH35: 10.0 | QI35: 10.0 | QJ35: 9.0 | QK35: 1.0 | QL35: 0.0 | QM35: 26.0 | QN35: 35.0 | QO35: 0.0 | QP35: 17.0 | QQ35: 10.0 | QR35: 6.0 | QS35: 7.0 | QT35: 17.0 | QU35: 14.0 | QV35: 7.0 | QW35: 0.0 | QX35: 0.0 | QY35: 0.0 | QZ35: 0.0 | RA35: 0.0 | RB35: 0.0 | RC35: 0.0 | RD35: 0.0 | RE35: 0.0 | RF35: 44.0 | RG35: 0.0 | RH35: 0.0 | RI35: 0.0 | RJ35: 17.0 | RK35: 4.0 | RL35: 11.0 | RM35: 2.0 | RN35: 0 | RO35: 0 | RP35: 0 | RQ35: 0.0 | RR35: 0.0 | RS35: 0.0 | RT35: 0.0 | RU35: 0.0 | RV35: 0.0 | RW35: 371.0 | RX35: =+SR35+RW40+SE35+'2_MERCADO_PRIVADO'!TA35 -> 290 | RY35: 1 | RZ35: 0 | SA35: 0 | SB35: 0 | SC35: 7 | SD35: 4 | SE35: 12 | SU35: 0 | SV35: 0 | SW35: 0 | SX35: 0 | SY35: 0 | TA35: 0 | TB35: 0 | TC35: 0 | TD35: 0 | TE35: 0 | TF35: 0 | TG35: 0 | TH35: 0 | TI35: 0 | TJ35: 0 | TK35: 0 | TL35: 0 | TM35: 0 | TN35: 0 | TO35: 0 | TQ35: =M35+DH35+'2_MERCADO_PRIVADO'!BW35+'2_MERCADO_PRIVADO'!G35 -> 8 | TR35: =DH35+'2_MERCADO_PRIVADO'!AP35+'2_MERCADO_PRIVADO'!BW35 -> 8 | TS35: =BR35+'2_MERCADO_PRIVADO'!AP35+'2_MERCADO_PRIVADO'!BW35+'2_MERCADO_PRIVADO'!DD35 -> 8 | TT35: =CH35+CX35+'2_MERCADO_PRIVADO'!BF35+'2_MERCADO_PRIVADO'!CM35+'2_MERCADO_PRIVADO'!DT35 -> 8 | TU35: =CO35+DE35+'2_MERCADO_PRIVADO'!BM35+'2_MERCADO_PRIVADO'!CT35+'2_MERCADO_PRIVADO'!EA35 -> 11 | TV35: =+DF31+DU31+EU31+'2_MERCADO_PRIVADO'!AN31+'2_MERCADO_PRIVADO'!BU31+'2_MERCADO_PRIVADO'!DB31+'2_MERCADO_PRIVADO'!EG31 -> 347 | TW35: =+DG31+DV31+EV31+'2_MERCADO_PRIVADO'!AO31+'2_MERCADO_PRIVADO'!BV31+'2_MERCADO_PRIVADO'!DC31+'2_MERCADO_PRIVADO'!EH31 -> 369 | TX35: =+DH31+DW31+EW31+'2_MERCADO_PRIVADO'!AP31+'2_MERCADO_PRIVADO'!BW31+'2_MERCADO_PRIVADO'!DD31+'2_MERCADO_PRIVADO'!EI31 -> 263 | TY35: =+HE31+'2_MERCADO_PRIVADO'!GQ31 -> 342 | TZ35: =+HF31+'2_MERCADO_PRIVADO'!GS31 -> 370 | UA35: =+HG31+'2_MERCADO_PRIVADO'!GT31 -> 341 | UB35: =+HH31+'2_MERCADO_PRIVADO'!GU31 -> 369 | UC35: =+HS31+'2_MERCADO_PRIVADO'!HK31+'2_MERCADO_PRIVADO'!IF31 -> 213 | UD35: =+KE31+'2_MERCADO_PRIVADO'!IF31+'2_MERCADO_PRIVADO'!LV31 -> 205 | UE35: =+JU31+'2_MERCADO_PRIVADO'!JS31 -> 219 | UF35: =+HI31+'2_MERCADO_PRIVADO'!GZ31 -> 203 | UG35: =+EM31+FM31+'2_MERCADO_PRIVADO'!BF31+'2_MERCADO_PRIVADO'!CM31+'2_MERCADO_PRIVADO'!DT31+'2_MERCADO_PRIVADO'!EY31 -> 230 | UH35: =+JB31+'2_MERCADO_PRIVADO'!JA31 -> 172 | UI35: =+ID31+'2_MERCADO_PRIVADO'!HX31+'2_MERCADO_PRIVADO'!IU31 -> 256
D36: TOTAL REGIMEN | E36: 614 | F36: 16 | G36: 3 | H36: 0 | I36: 603 | AZ36: 1 | BA36: 0 | BB36: 0 | BC36: 0 | BD36: 0 | BE36: 0 | BF36: 0 | BG36: 0 | BH36: 2 | BI36: 1 | BJ36: 0 | BK36: 0 | BP36: 101 | BQ36: 106 | BR36: 82 | BS36: 0 | BT36: 0 | BU36: 0 | BV36: 0 | BW36: 0 | BX36: 0 | BY36: 0 | BZ36: 0 | CA36: 0 | CB36: 0 | CC36: 0 | CD36: 0 | CE36: 0 | CF36: 0 | CG36: 0 | CH36: 2 | CI36: 0 | CJ36: 0 | CK36: 0 | CL36: 0 | CM36: 0 | CN36: 0 | CO36: 1 | CX36: 86 | CY36: 3 | CZ36: 1 | DA36: 0 | DB36: 0 | DC36: 0 | DD36: 0 | DE36: 117 | DF36: 101 | DG36: 103 | DH36: 82 | DI36: 0 | DJ36: 0 | DK36: 0 | EM36: 88 | EN36: 3 | EO36: 1 | EP36: 0 | EQ36: 0 | ER36: 0 | ES36: 0 | ET36: 117 | FM36: 0 | FN36: 0 | FO36: 0 | FP36: 0 | FQ36: 0 | FR36: 0 | FS36: 0 | FT36: 1 | FU36: 0 | FV36: 0 | FW36: 0 | FX36: 0 | FY36: 1 | HE36: 244 | HF36: 275 | HG36: 240 | HH36: 267 | HI36: 130 | HJ36: 1 | HK36: 0 | HL36: 0 | HS36: 128 | HT36: 1 | HU36: 0 | HV36: 0 | HW36: 0 | HX36: 0 | HY36: 0 | HZ36: 0 | IA36: 0 | IB36: 0 | ID36: 159 | IE36: 3 | IF36: 1 | IG36: 0 | IH36: 1 | II36: 1 | IL36: 84 | IM36: 8 | IN36: 18 | IO36: 20 | IP36: 21 | IQ36: 22 | IR36: 14 | IS36: 20 | IT36: 21 | IU36: 24 | IV36: 25 | IY36: 5 | IZ36: 2 | JB36: 163 | JC36: 5 | JD36: 0 | JE36: 3 | JF36: 4 | JG36: 0 | JH36: 1 | JI36: 1 | JJ36: 0 | JK36: 0 | JP36: 1 | JU36: 155 | JV36: 2 | JW36: 0 | JX36: 0 | JY36: 1 | JZ36: 0 | KA36: 1 | KE36: 128 | KF36: 3 | KG36: 0 | KH36: 0 | KI36: 1 | KJ36: 0 | KK36: 0 | KL36: 158 | KM36: 3 | KN36: 1 | KO36: 0 | KP36: 0 | KQ36: 0 | KR36: 0 | KS36: 0 | KT36: 0 | KU36: 0 | KV36: 3 | KW36: 0 | KX36: 0 | KY36: 0 | KZ36: 0 | LA36: 86 | LB36: 42 | LC36: 12 | LD36: 7 | LE36: 2 | LF36: 0 | LG36: 0 | LH36: 0 | LI36: 0 | LJ36: 7 | LK36: 4 | LL36: 1 | LM36: 0 | LN36: 0 | LO36: 100 | LP36: 78 | LQ36: 98 | LR36: 58 | LS36: 34 | LT36: 5 | LU36: 0 | LV36: 0 | LW36: 0 | LX36: 0 | LY36: 0 | LZ36: 0 | MA36: 0 | MB36: 0 | MC36: 3 | MD36: 0 | ME36: 2 | MF36: 0 | MG36: 0 | MH36: 0 | MI36: 0 | MJ36: 0 | MK36: 0 | ML36: 0 | MM36: 0 | MN36: 0 | MO36: 0 | MP36: 0 | MQ36: 0 | MR36: 0 | MS36: 0 | MT36: 0 | MU36: 0 | MV36: 0 | MW36: 0 | MX36: 4 | MY36: 0 | MZ36: 0 | NA36: 0 | NB36: 29 | NC36: 65 | ND36: 104 | NE36: 56 | NF36: 24 | NG36: 30 | OC36: 58 | OD36: 13 | OE36: 0 | OF36: 28 | OG36: 24 | OH36: 0 | OI36: 28 | OJ36: 32 | OK36: 0 | OL36: 24 | OM36: 22 | ON36: 0 | OO36: 25 | OP36: 9 | OQ36: 0 | OR36: 31 | OS36: 17 | OT36: 0 | OU36: 24 | OV36: 2 | OW36: 0 | OX36: 19 | OY36: 15 | OZ36: 0 | PA36: 11 | PB36: 9 | PC36: 0 | PF36: 0 | PG36: 0 | PH36: 0 | PI36: 0 | PJ36: 0 | PK36: 0 | PL36: 0 | PM36: 0 | PN36: 106 | PO36: 45 | PP36: 32 | PQ36: 32 | PR36: 184 | PS36: 40 | PT36: 0 | PU36: 0 | PV36: 0 | PW36: 12 | PX36: 2 | QC36: =SUM(QC32:QC35) -> 6,226 | QE36: =+SUM(QE32:QE35) -> 633.0 | QF36: =+SUM(QF32:QF35) -> 607.0 | QG36: =+SUM(QG32:QG35) -> 292.0 | QH36: =+SUM(QH32:QH35) -> 207.0 | QI36: =+SUM(QI32:QI35) -> 286.0 | QJ36: =+SUM(QJ32:QJ35) -> 209.0 | QK36: =+SUM(QK32:QK35) -> 2.0 | QL36: =+SUM(QL32:QL35) -> 0.0 | QM36: =+SUM(QM32:QM35) -> 519.0 | QN36: =+SUM(QN32:QN35) -> 638.0 | QO36: =+SUM(QO32:QO35) -> 0.0 | QP36: =+SUM(QP32:QP35) -> 294.0 | QQ36: =+SUM(QQ32:QQ35) -> 284.0 | QR36: =+SUM(QR32:QR35) -> 178.0 | QS36: =+SUM(QS32:QS35) -> 159.0 | QT36: =+SUM(QT32:QT35) -> 294.0 | QU36: =+SUM(QU32:QU35) -> 542.0 | QV36: =+SUM(QV32:QV35) -> 312.0 | QW36: =+SUM(QW32:QW35) -> 0.0 | QX36: =+SUM(QX32:QX35) -> 0.0 | QY36: =+SUM(QY32:QY35) -> 0.0 | QZ36: =+SUM(QZ32:QZ35) -> 0.0 | RA36: =+SUM(RA32:RA35) -> 0.0 | RB36: =+SUM(RB32:RB35) -> 0.0 | RC36: =+SUM(RC32:RC35) -> 0.0 | RD36: =+SUM(RD32:RD35) -> 0.0 | RE36: =+SUM(RE32:RE35) -> 0.0 | RF36: =+SUM(RF32:RF35) -> 391.0 | RG36: =+SUM(RG32:RG35) -> 0.0 | RH36: =+SUM(RH32:RH35) -> 0.0 | RI36: =+SUM(RI32:RI35) -> 0.0 | RJ36: =+SUM(RJ32:RJ35) -> 183.0 | RK36: =+SUM(RK32:RK35) -> 32.0 | RL36: =+SUM(RL32:RL35) -> 184.0 | RM36: =+SUM(RM32:RM35) -> 40.0 | RN36: =+SUM(RN32:RN35) -> 0.0 | RO36: =+SUM(RO32:RO35) -> 0.0 | RP36: =+SUM(RP32:RP35) -> 0.0 | RQ36: =+SUM(RQ32:RQ35) -> 12.0 | RR36: =+SUM(RR32:RR35) -> 2.0 | RS36: =+SUM(RS32:RS35) -> 0.0 | RT36: =+SUM(RT32:RT35) -> 0.0 | RU36: =+SUM(RU32:RU35) -> 0.0 | RV36: =+SUM(RV32:RV35) -> 0.0 | RW36: =SUM(RW32:RW35) -> 6,226.0 | RX36: =+SR36+RW41+SE36+'2_MERCADO_PRIVADO'!TA36 -> 9123 | RY36: 2 | RZ36: 4 | SA36: 2 | SB36: 94 | SC36: 130 | SD36: 46 | SE36: =SUM(SE32:SE35) -> 278 | SF36: =SUM(SF32:SF35) -> 0 | SG36: 0 | SH36: 0 | SI36: 0 | SJ36: 0 | SK36: 0 | SL36: 0 | SM36: 0 | SN36: 0 | SO36: 0 | SP36: 0 | SQ36: 0 | SR36: 1 | SS36: 1 | SU36: =SUM(SU32:SU35) -> 0 | SV36: 0 | SW36: 0 | SX36: 1 | SY36: 1 | TA36: 0 | TB36: 0 | TC36: 0 | TD36: 0 | TE36: 0 | TF36: 0 | TG36: 0 | TH36: 0 | TI36: 0 | TJ36: 0 | TK36: 0 | TL36: 0 | TM36: 0 | TN36: 0 | TO36: 0 | TQ36: =M36+DH36+'2_MERCADO_PRIVADO'!BW36+'2_MERCADO_PRIVADO'!G36 -> 263 | TR36: =DH36+'2_MERCADO_PRIVADO'!AP36+'2_MERCADO_PRIVADO'!BW36 -> 263 | TS36: =BR36+'2_MERCADO_PRIVADO'!AP36+'2_MERCADO_PRIVADO'!BW36+'2_MERCADO_PRIVADO'!DD36 -> 263 | TT36: =CH36+CX36+'2_MERCADO_PRIVADO'!BF36+'2_MERCADO_PRIVADO'!CM36+'2_MERCADO_PRIVADO'!DT36 -> 230 | TU36: =CO36+DE36+'2_MERCADO_PRIVADO'!BM36+'2_MERCADO_PRIVADO'!CT36+'2_MERCADO_PRIVADO'!EA36 -> 241
D37: INDIGENA | E37: 1 | F37: 0 | G37: 0 | H37: 0 | I37: 1 | AZ37: 0 | BA37: 0 | BB37: 0 | BC37: 0 | BD37: 0 | BE37: 0 | BF37: 0 | BG37: 0 | BH37: 0 | BI37: 0 | BJ37: 0 | BK37: 0 | BP37: 0 | BQ37: 0 | BR37: 0 | BS37: 0 | BT37: 0 | BU37: 0 | BV37: 0 | BW37: 0 | BX37: 0 | BY37: 0 | BZ37: 0 | CA37: 0 | CB37: 0 | CC37: 0 | CD37: 0 | CE37: 0 | CF37: 0 | CG37: 0 | CH37: 0 | CI37: 0 | CJ37: 0 | CK37: 0 | CL37: 0 | CM37: 0 | CN37: 0 | CO37: 0 | CX37: 0 | CY37: 0 | CZ37: 0 | DA37: 0 | DB37: 0 | DC37: 0 | DD37: 0 | DE37: 0 | DF37: 0 | DG37: 0 | DH37: 0 | DI37: 0 | DJ37: 0 | DK37: 0 | EM37: 0 | EN37: 0 | EO37: 0 | EP37: 0 | EQ37: 0 | ER37: 0 | ES37: 0 | ET37: 0 | FM37: 0 | FN37: 0 | FO37: 0 | FP37: 0 | FQ37: 0 | FR37: 0 | FS37: 0 | FT37: 0 | FU37: 0 | FV37: 0 | FW37: 0 | FX37: 0 | FY37: 0 | HE37: 0 | HF37: 0 | HG37: 0 | HH37: 0 | HI37: 0 | HJ37: 0 | HK37: 0 | HL37: 0 | HS37: 0 | HT37: 0 | HU37: 0 | HV37: 0 | HW37: 0 | HX37: 0 | HY37: 0 | HZ37: 0 | IA37: 0 | IB37: 0 | ID37: 0 | IE37: 0 | IF37: 0 | IG37: 0 | IH37: 0 | II37: 0 | IL37: 0 | IM37: 0 | IN37: 0 | IO37: 0 | IP37: 0 | IQ37: 0 | IR37: 0 | IS37: 0 | IT37: 0 | IU37: 0 | IV37: 0 | IY37: 0 | IZ37: 0 | JB37: 0 | JC37: 0 | JD37: 0 | JE37: 0 | JF37: 0 | JG37: 0 | JH37: 0 | JI37: 0 | JJ37: 0 | JK37: 0 | JP37: 0 | JU37: 0 | JV37: 0 | JW37: 0 | JX37: 0 | JY37: 0 | JZ37: 0 | KA37: 0 | KE37: 0 | KF37: 0 | KG37: 0 | KH37: 0 | KI37: 0 | KJ37: 0 | KK37: 0 | KL37: 0 | KM37: 0 | KN37: 0 | KO37: 0 | KP37: 0 | KQ37: 0 | KR37: 0 | KS37: 0 | KT37: 0 | KU37: 0 | KV37: 0 | KW37: 0 | KX37: 0 | KY37: 0 | KZ37: 0 | LA37: 1 | LB37: 0 | LC37: 0 | LD37: 0 | LE37: 0 | LF37: 0 | LG37: 0 | LH37: 0 | LI37: 0 | LJ37: 0 | LK37: 0 | LL37: 0 | LM37: 0 | LN37: 0 | LO37: 0 | LP37: 1 | LQ37: 0 | LR37: 0 | LS37: 0 | LT37: 0 | LU37: 0 | LV37: 0 | LW37: 0 | LX37: 0 | LY37: 0 | LZ37: 0 | MA37: 0 | MB37: 0 | MC37: 0 | MD37: 0 | ME37: 0 | MF37: 0 | MG37: 0 | MH37: 0 | MI37: 0 | MJ37: 0 | MK37: 0 | ML37: 0 | MM37: 0 | MN37: 0 | MO37: 0 | MP37: 0 | MQ37: 0 | MR37: 0 | MS37: 0 | MT37: 0 | MU37: 0 | MV37: 0 | MW37: 0 | MX37: 0 | MY37: 0 | MZ37: 0 | NA37: 0 | NB37: 0 | NC37: 0 | ND37: 0 | NE37: 0 | NF37: 0 | NG37: 0 | OC37: 0 | OD37: 0 | OE37: 0 | OF37: 0 | OG37: 0 | OH37: 0 | OI37: 0 | OJ37: 0 | OK37: 0 | OL37: 0 | OM37: 0 | ON37: 0 | OO37: 0 | OP37: 0 | OQ37: 0 | OR37: 0 | OS37: 0 | OT37: 0 | OU37: 0 | OV37: 0 | OW37: 0 | OX37: 0 | OY37: 0 | OZ37: 0 | PA37: 0 | PB37: 0 | PC37: 0 | PF37: 0 | PG37: 0 | PH37: 0 | PI37: 0 | PJ37: 0 | PK37: 0 | PL37: 0 | PM37: 0 | PN37: 0 | PO37: 0 | PP37: 0 | PQ37: 0 | PR37: 0 | PS37: 0 | PT37: 0 | PU37: 0 | PV37: 0 | PW37: 0 | PX37: 0 | QC37: =SUM(E37:QB37)-PQ37-PS37-PX37 -> 4 | QE37: =SUM(E37:H37) -> 1.0 | QF37: =SUM(I37:BO37) -> 1.0 | QG37: =SUM(BP37:CW37) -> 0.0 | QH37: =SUM(CX37:DE37) -> 0.0 | QI37: =SUM(DF37:DT37) -> 0.0 | QJ37: =SUM(DU37:ET37) -> 0.0 | QK37: =SUM(EU37:FY37) -> 0.0 | QL37: =SUM(FZ37:HD37) -> 0.0 | QM37: =SUM(HE37:HF37) -> 0.0 | QN37: =SUM(HG37:HL37) -> 0.0 | QO37: =SUM(HM37:HR37) -> 0.0 | QP37: =SUM(HS37:IJ37) -> 0.0 | QQ37: =SUM(IK37:JA37) -> 0.0 | QR37: =SUM(JB37:JT37) -> 0.0 | QS37: =SUM(JU37:KD37) -> 0.0 | QT37: =SUM(KE37:KP37) -> 0.0 | QU37: =SUM(KQ37:MU37) -> 2.0 | QV37: =SUM(MV37:NG37) -> 0.0 | QW37: =SUM(NH37:NI37) -> 0.0 | QX37: =SUM(NJ37:NL37) -> 0.0 | QY37: =SUM(NM37:NO37) -> 0.0 | QZ37: =SUM(NP37) -> 0.0 | RA37: =SUM(NQ37) -> 0.0 | RB37: =SUM(NR37:NT37) -> 0.0 | RC37: =SUM(NU37) -> 0.0 | RD37: =SUM(NV37) -> 0.0 | RE37: =SUM(NW37:OB37) -> 0.0 | RF37: =SUM(OC37:PE37) -> 0.0 | RG37: =SUM(PF37:PG37) -> 0.0 | RH37: =SUM(PH37:PI37) -> 0.0 | RI37: =SUM(PJ37:PM37) -> 0.0 | RJ37: =SUM(PN37:PP37) -> 0.0 | RK37: =SUM(PQ37) -> 0.0 | RL37: =SUM(PR37) -> 0.0 | RM37: =SUM(PS37) -> 0.0 | RN37: =SUM(PT37) -> 0 | RO37: =SUM(PU37) -> 0 | RP37: =SUM(PV37) -> 0 | RQ37: =SUM(PW37) -> 0.0 | RR37: =SUM(PX37) -> 0.0 | RS37: =SUM(PY37) -> 0.0 | RT37: =SUM(PZ37) -> 0.0 | RU37: =SUM(QA37) -> 0.0 | RV37: =SUM(QB37) -> 0.0 | RW37: 4.0 | RX37: =+SR37+RW42+SE37+'2_MERCADO_PRIVADO'!TA37 -> 6221 | RY37: 0 | RZ37: 0 | SA37: 0 | SB37: 0 | SC37: 0 | SD37: 0 | SE37: =SUM(RY37:SD37) -> 0 | SU37: =SF37+SG37 -> 0 | SV37: =SH37+SI37+SJ37+SK37+SL37+SM37+SN37+SO37+SP37 -> 0 | SW37: =SQ37 -> 0 | SX37: =SR37 -> 0 | SY37: =SS37 -> 0 | TA37: 0 | TB37: 0 | TC37: 0 | TD37: 0 | TE37: 0 | TF37: 0 | TG37: 0 | TH37: 0 | TI37: 0 | TJ37: 0 | TK37: 0 | TL37: 0 | TM37: 0 | TN37: 0 | TO37: 0 | TQ37: =M37+DH37+'2_MERCADO_PRIVADO'!BW37+'2_MERCADO_PRIVADO'!G37 -> 0 | TR37: =DH37+'2_MERCADO_PRIVADO'!AP37+'2_MERCADO_PRIVADO'!BW37 -> 0 | TS37: =BR37+'2_MERCADO_PRIVADO'!AP37+'2_MERCADO_PRIVADO'!BW37+'2_MERCADO_PRIVADO'!DD37 -> 0 | TT37: =CH37+CX37+'2_MERCADO_PRIVADO'!BF37+'2_MERCADO_PRIVADO'!CM37+'2_MERCADO_PRIVADO'!DT37 -> 0 | TU37: =CO37+DE37+'2_MERCADO_PRIVADO'!BM37+'2_MERCADO_PRIVADO'!CT37+'2_MERCADO_PRIVADO'!EA37 -> 0
D38: ROM (GITANO) | E38: 0 | F38: 0 | G38: 0 | H38: 0 | I38: 0 | AZ38: 0 | BA38: 0 | BB38: 0 | BC38: 0 | BD38: 0 | BE38: 0 | BF38: 0 | BG38: 0 | BH38: 0 | BI38: 0 | BJ38: 0 | BK38: 0 | BP38: 0 | BQ38: 0 | BR38: 0 | BS38: 0 | BT38: 0 | BU38: 0 | BV38: 0 | BW38: 0 | BX38: 0 | BY38: 0 | BZ38: 0 | CA38: 0 | CB38: 0 | CC38: 0 | CD38: 0 | CE38: 0 | CF38: 0 | CG38: 0 | CH38: 0 | CI38: 0 | CJ38: 0 | CK38: 0 | CL38: 0 | CM38: 0 | CN38: 0 | CO38: 0 | CX38: 0 | CY38: 0 | CZ38: 0 | DA38: 0 | DB38: 0 | DC38: 0 | DD38: 0 | DE38: 0 | DF38: 0 | DG38: 0 | DH38: 0 | DI38: 0 | DJ38: 0 | DK38: 0 | EM38: 0 | EN38: 0 | EO38: 0 | EP38: 0 | EQ38: 0 | ER38: 0 | ES38: 0 | ET38: 0 | FM38: 0 | FN38: 0 | FO38: 0 | FP38: 0 | FQ38: 0 | FR38: 0 | FS38: 0 | FT38: 0 | FU38: 0 | FV38: 0 | FW38: 0 | FX38: 0 | FY38: 0 | HE38: 0 | HF38: 0 | HG38: 0 | HH38: 0 | HI38: 0 | HJ38: 0 | HK38: 0 | HL38: 0 | HS38: 0 | HT38: 0 | HU38: 0 | HV38: 0 | HW38: 0 | HX38: 0 | HY38: 0 | HZ38: 0 | IA38: 0 | IB38: 0 | ID38: 0 | IE38: 0 | IF38: 0 | IG38: 0 | IH38: 0 | II38: 0 | IL38: 0 | IM38: 0 | IN38: 0 | IO38: 0 | IP38: 0 | IQ38: 0 | IR38: 0 | IS38: 0 | IT38: 0 | IU38: 0 | IV38: 0 | IY38: 0 | IZ38: 0 | JB38: 0 | JC38: 0 | JD38: 0 | JE38: 0 | JF38: 0 | JG38: 0 | JH38: 0 | JI38: 0 | JJ38: 0 | JK38: 0 | JP38: 0 | JU38: 0 | JV38: 0 | JW38: 0 | JX38: 0 | JY38: 0 | JZ38: 0 | KA38: 0 | KE38: 0 | KF38: 0 | KG38: 0 | KH38: 0 | KI38: 0 | KJ38: 0 | KK38: 0 | KL38: 0 | KM38: 0 | KN38: 0 | KO38: 0 | KP38: 0 | KQ38: 0 | KR38: 0 | KS38: 0 | KT38: 0 | KU38: 0 | KV38: 0 | KW38: 0 | KX38: 0 | KY38: 0 | KZ38: 0 | LA38: 0 | LB38: 0 | LC38: 0 | LD38: 0 | LE38: 0 | LF38: 0 | LG38: 0 | LH38: 0 | LI38: 0 | LJ38: 0 | LK38: 0 | LL38: 0 | LM38: 0 | LN38: 0 | LO38: 0 | LP38: 0 | LQ38: 0 | LR38: 0 | LS38: 0 | LT38: 0 | LU38: 0 | LV38: 0 | LW38: 0 | LX38: 0 | LY38: 0 | LZ38: 0 | MA38: 0 | MB38: 0 | MC38: 0 | MD38: 0 | ME38: 0 | MF38: 0 | MG38: 0 | MH38: 0 | MI38: 0 | MJ38: 0 | MK38: 0 | ML38: 0 | MM38: 0 | MN38: 0 | MO38: 0 | MP38: 0 | MQ38: 0 | MR38: 0 | MS38: 0 | MT38: 0 | MU38: 0 | MV38: 0 | MW38: 0 | MX38: 0 | MY38: 0 | MZ38: 0 | NA38: 0 | NB38: 0 | NC38: 0 | ND38: 0 | NE38: 0 | NF38: 0 | NG38: 0 | OC38: 0 | OD38: 0 | OE38: 0 | OF38: 0 | OG38: 0 | OH38: 0 | OI38: 0 | OJ38: 0 | OK38: 0 | OL38: 0 | OM38: 0 | ON38: 0 | OO38: 0 | OP38: 0 | OQ38: 0 | OR38: 0 | OS38: 0 | OT38: 0 | OU38: 0 | OV38: 0 | OW38: 0 | OX38: 0 | OY38: 0 | OZ38: 0 | PA38: 0 | PB38: 0 | PC38: 0 | PF38: 0 | PG38: 0 | PH38: 0 | PI38: 0 | PJ38: 0 | PK38: 0 | PL38: 0 | PM38: 0 | PN38: 0 | PO38: 0 | PP38: 0 | PQ38: 0 | PR38: 0 | PS38: 0 | PT38: 0 | PU38: 0 | PV38: 0 | PW38: 0 | PX38: 0 | QC38: 0 | QE38: 0.0 | QF38: 0.0 | QG38: 0.0 | QH38: 0.0 | QI38: 0.0 | QJ38: 0.0 | QK38: 0.0 | QL38: 0.0 | QM38: 0.0 | QN38: 0.0 | QO38: 0.0 | QP38: 0.0 | QQ38: 0.0 | QR38: 0.0 | QS38: 0.0 | QT38: 0.0 | QU38: 0.0 | QV38: 0.0 | QW38: 0.0 | QX38: 0.0 | QY38: 0.0 | QZ38: 0.0 | RA38: 0.0 | RB38: 0.0 | RC38: 0.0 | RD38: 0.0 | RE38: 0.0 | RF38: 0.0 | RG38: 0.0 | RH38: 0.0 | RI38: 0.0 | RJ38: 0.0 | RK38: 0.0 | RL38: 0.0 | RM38: 0.0 | RN38: 0 | RO38: 0 | RP38: 0 | RQ38: 0.0 | RR38: 0.0 | RS38: 0.0 | RT38: 0.0 | RU38: 0.0 | RV38: 0.0 | RW38: 0.0 | RX38: =+SR38+RW43+SE38+'2_MERCADO_PRIVADO'!TA38 -> 6226 | RY38: 0 | RZ38: 0 | SA38: 0 | SB38: 0 | SC38: 0 | SD38: 0 | SE38: 0 | SU38: 0 | SV38: 0 | SW38: 0 | SX38: 0 | SY38: 0 | TA38: 0 | TB38: 0 | TC38: 0 | TD38: 0 | TE38: 0 | TF38: 0 | TG38: 0 | TH38: 0 | TI38: 0 | TJ38: 0 | TK38: 0 | TL38: 0 | TM38: 0 | TN38: 0 | TO38: 0 | TQ38: =M38+DH38+'2_MERCADO_PRIVADO'!BW38+'2_MERCADO_PRIVADO'!G38 -> 0 | TR38: =DH38+'2_MERCADO_PRIVADO'!AP38+'2_MERCADO_PRIVADO'!BW38 -> 0 | TS38: =BR38+'2_MERCADO_PRIVADO'!AP38+'2_MERCADO_PRIVADO'!BW38+'2_MERCADO_PRIVADO'!DD38 -> 0 | TT38: =CH38+CX38+'2_MERCADO_PRIVADO'!BF38+'2_MERCADO_PRIVADO'!CM38+'2_MERCADO_PRIVADO'!DT38 -> 0 | TU38: =CO38+DE38+'2_MERCADO_PRIVADO'!BM38+'2_MERCADO_PRIVADO'!CT38+'2_MERCADO_PRIVADO'!EA38 -> 0
D39: RAIZAL | E39: 0 | F39: 0 | G39: 0 | H39: 0 | I39: 0 | AZ39: 0 | BA39: 0 | BB39: 0 | BC39: 0 | BD39: 0 | BE39: 0 | BF39: 0 | BG39: 0 | BH39: 0 | BI39: 0 | BJ39: 0 | BK39: 0 | BP39: 0 | BQ39: 0 | BR39: 0 | BS39: 0 | BT39: 0 | BU39: 0 | BV39: 0 | BW39: 0 | BX39: 0 | BY39: 0 | BZ39: 0 | CA39: 0 | CB39: 0 | CC39: 0 | CD39: 0 | CE39: 0 | CF39: 0 | CG39: 0 | CH39: 0 | CI39: 0 | CJ39: 0 | CK39: 0 | CL39: 0 | CM39: 0 | CN39: 0 | CO39: 0 | CX39: 0 | CY39: 0 | CZ39: 0 | DA39: 0 | DB39: 0 | DC39: 0 | DD39: 0 | DE39: 0 | DF39: 0 | DG39: 0 | DH39: 0 | DI39: 0 | DJ39: 0 | DK39: 0 | EM39: 0 | EN39: 0 | EO39: 0 | EP39: 0 | EQ39: 0 | ER39: 0 | ES39: 0 | ET39: 0 | FM39: 0 | FN39: 0 | FO39: 0 | FP39: 0 | FQ39: 0 | FR39: 0 | FS39: 0 | FT39: 0 | FU39: 0 | FV39: 0 | FW39: 0 | FX39: 0 | FY39: 0 | HE39: 0 | HF39: 0 | HG39: 0 | HH39: 0 | HI39: 0 | HJ39: 0 | HK39: 0 | HL39: 0 | HS39: 0 | HT39: 0 | HU39: 0 | HV39: 0 | HW39: 0 | HX39: 0 | HY39: 0 | HZ39: 0 | IA39: 0 | IB39: 0 | ID39: 0 | IE39: 0 | IF39: 0 | IG39: 0 | IH39: 0 | II39: 0 | IL39: 0 | IM39: 0 | IN39: 0 | IO39: 0 | IP39: 0 | IQ39: 0 | IR39: 0 | IS39: 0 | IT39: 0 | IU39: 0 | IV39: 0 | IY39: 0 | IZ39: 0 | JB39: 0 | JC39: 0 | JD39: 0 | JE39: 0 | JF39: 0 | JG39: 0 | JH39: 0 | JI39: 0 | JJ39: 0 | JK39: 0 | JP39: 0 | JU39: 0 | JV39: 0 | JW39: 0 | JX39: 0 | JY39: 0 | JZ39: 0 | KA39: 0 | KE39: 0 | KF39: 0 | KG39: 0 | KH39: 0 | KI39: 0 | KJ39: 0 | KK39: 0 | KL39: 0 | KM39: 0 | KN39: 0 | KO39: 0 | KP39: 0 | KQ39: 0 | KR39: 0 | KS39: 0 | KT39: 0 | KU39: 0 | KV39: 0 | KW39: 0 | KX39: 0 | KY39: 0 | KZ39: 0 | LA39: 0 | LB39: 0 | LC39: 0 | LD39: 0 | LE39: 0 | LF39: 0 | LG39: 0 | LH39: 0 | LI39: 0 | LJ39: 0 | LK39: 0 | LL39: 0 | LM39: 0 | LN39: 0 | LO39: 0 | LP39: 0 | LQ39: 0 | LR39: 0 | LS39: 0 | LT39: 0 | LU39: 0 | LV39: 0 | LW39: 0 | LX39: 0 | LY39: 0 | LZ39: 0 | MA39: 0 | MB39: 0 | MC39: 0 | MD39: 0 | ME39: 0 | MF39: 0 | MG39: 0 | MH39: 0 | MI39: 0 | MJ39: 0 | MK39: 0 | ML39: 0 | MM39: 0 | MN39: 0 | MO39: 0 | MP39: 0 | MQ39: 0 | MR39: 0 | MS39: 0 | MT39: 0 | MU39: 0 | MV39: 0 | MW39: 0 | MX39: 0 | MY39: 0 | MZ39: 0 | NA39: 0 | NB39: 0 | NC39: 0 | ND39: 0 | NE39: 0 | NF39: 0 | NG39: 0 | OC39: 0 | OD39: 0 | OE39: 0 | OF39: 0 | OG39: 0 | OH39: 0 | OI39: 0 | OJ39: 0 | OK39: 0 | OL39: 0 | OM39: 0 | ON39: 0 | OO39: 0 | OP39: 0 | OQ39: 0 | OR39: 0 | OS39: 0 | OT39: 0 | OU39: 0 | OV39: 0 | OW39: 0 | OX39: 0 | OY39: 0 | OZ39: 0 | PA39: 0 | PB39: 0 | PC39: 0 | PF39: 0 | PG39: 0 | PH39: 0 | PI39: 0 | PJ39: 0 | PK39: 0 | PL39: 0 | PM39: 0 | PN39: 0 | PO39: 0 | PP39: 0 | PQ39: 0 | PR39: 0 | PS39: 0 | PT39: 0 | PU39: 0 | PV39: 0 | PW39: 0 | PX39: 0 | QC39: 0 | QE39: 0.0 | QF39: 0.0 | QG39: 0.0 | QH39: 0.0 | QI39: 0.0 | QJ39: 0.0 | QK39: 0.0 | QL39: 0.0 | QM39: 0.0 | QN39: 0.0 | QO39: 0.0 | QP39: 0.0 | QQ39: 0.0 | QR39: 0.0 | QS39: 0.0 | QT39: 0.0 | QU39: 0.0 | QV39: 0.0 | QW39: 0.0 | QX39: 0.0 | QY39: 0.0 | QZ39: 0.0 | RA39: 0.0 | RB39: 0.0 | RC39: 0.0 | RD39: 0.0 | RE39: 0.0 | RF39: 0.0 | RG39: 0.0 | RH39: 0.0 | RI39: 0.0 | RJ39: 0.0 | RK39: 0.0 | RL39: 0.0 | RM39: 0.0 | RN39: 0 | RO39: 0 | RP39: 0 | RQ39: 0.0 | RR39: 0.0 | RS39: 0.0 | RT39: 0.0 | RU39: 0.0 | RV39: 0.0 | RW39: 0.0 | RX39: =+SR39+RW44+SE39+'2_MERCADO_PRIVADO'!TA39 -> 1 | RY39: 0 | RZ39: 0 | SA39: 0 | SB39: 0 | SC39: 0 | SD39: 0 | SE39: 0 | SU39: 0 | SV39: 0 | SW39: 0 | SX39: 0 | SY39: 0 | TA39: 0 | TB39: 0 | TC39: 0 | TD39: 0 | TE39: 0 | TF39: 0 | TG39: 0 | TH39: 0 | TI39: 0 | TJ39: 0 | TK39: 0 | TL39: 0 | TM39: 0 | TN39: 0 | TO39: 0 | TQ39: =M39+DH39+'2_MERCADO_PRIVADO'!BW39+'2_MERCADO_PRIVADO'!G39 -> 0 | TR39: =DH39+'2_MERCADO_PRIVADO'!AP39+'2_MERCADO_PRIVADO'!BW39 -> 0 | TS39: =BR39+'2_MERCADO_PRIVADO'!AP39+'2_MERCADO_PRIVADO'!BW39+'2_MERCADO_PRIVADO'!DD39 -> 0 | TT39: =CH39+CX39+'2_MERCADO_PRIVADO'!BF39+'2_MERCADO_PRIVADO'!CM39+'2_MERCADO_PRIVADO'!DT39 -> 0 | TU39: =CO39+DE39+'2_MERCADO_PRIVADO'!BM39+'2_MERCADO_PRIVADO'!CT39+'2_MERCADO_PRIVADO'!EA39 -> 0
D40: PALENQUERO | E40: 0 | F40: 0 | G40: 0 | H40: 0 | I40: 0 | AZ40: 0 | BA40: 0 | BB40: 0 | BC40: 0 | BD40: 0 | BE40: 0 | BF40: 0 | BG40: 0 | BH40: 0 | BI40: 0 | BJ40: 0 | BK40: 0 | BP40: 0 | BQ40: 0 | BR40: 0 | BS40: 0 | BT40: 0 | BU40: 0 | BV40: 0 | BW40: 0 | BX40: 0 | BY40: 0 | BZ40: 0 | CA40: 0 | CB40: 0 | CC40: 0 | CD40: 0 | CE40: 0 | CF40: 0 | CG40: 0 | CH40: 0 | CI40: 0 | CJ40: 0 | CK40: 0 | CL40: 0 | CM40: 0 | CN40: 0 | CO40: 0 | CX40: 0 | CY40: 0 | CZ40: 0 | DA40: 0 | DB40: 0 | DC40: 0 | DD40: 0 | DE40: 0 | DF40: 0 | DG40: 0 | DH40: 0 | DI40: 0 | DJ40: 0 | DK40: 0 | EM40: 0 | EN40: 0 | EO40: 0 | EP40: 0 | EQ40: 0 | ER40: 0 | ES40: 0 | ET40: 0 | FM40: 0 | FN40: 0 | FO40: 0 | FP40: 0 | FQ40: 0 | FR40: 0 | FS40: 0 | FT40: 0 | FU40: 0 | FV40: 0 | FW40: 0 | FX40: 0 | FY40: 0 | HE40: 0 | HF40: 0 | HG40: 0 | HH40: 0 | HI40: 0 | HJ40: 0 | HK40: 0 | HL40: 0 | HS40: 0 | HT40: 0 | HU40: 0 | HV40: 0 | HW40: 0 | HX40: 0 | HY40: 0 | HZ40: 0 | IA40: 0 | IB40: 0 | ID40: 0 | IE40: 0 | IF40: 0 | IG40: 0 | IH40: 0 | II40: 0 | IL40: 1 | IM40: 0 | IN40: 0 | IO40: 0 | IP40: 0 | IQ40: 0 | IR40: 0 | IS40: 0 | IT40: 0 | IU40: 0 | IV40: 1 | IY40: 0 | IZ40: 0 | JB40: 0 | JC40: 0 | JD40: 0 | JE40: 0 | JF40: 0 | JG40: 0 | JH40: 0 | JI40: 0 | JJ40: 0 | JK40: 0 | JP40: 0 | JU40: 0 | JV40: 0 | JW40: 0 | JX40: 0 | JY40: 0 | JZ40: 0 | KA40: 0 | KE40: 0 | KF40: 0 | KG40: 0 | KH40: 0 | KI40: 0 | KJ40: 0 | KK40: 0 | KL40: 0 | KM40: 0 | KN40: 0 | KO40: 0 | KP40: 0 | KQ40: 0 | KR40: 0 | KS40: 0 | KT40: 0 | KU40: 0 | KV40: 0 | KW40: 0 | KX40: 0 | KY40: 0 | KZ40: 0 | LA40: 0 | LB40: 0 | LC40: 0 | LD40: 0 | LE40: 0 | LF40: 0 | LG40: 0 | LH40: 0 | LI40: 0 | LJ40: 0 | LK40: 0 | LL40: 0 | LM40: 0 | LN40: 0 | LO40: 0 | LP40: 0 | LQ40: 0 | LR40: 0 | LS40: 0 | LT40: 0 | LU40: 0 | LV40: 0 | LW40: 0 | LX40: 0 | LY40: 0 | LZ40: 0 | MA40: 0 | MB40: 0 | MC40: 0 | MD40: 0 | ME40: 0 | MF40: 0 | MG40: 0 | MH40: 0 | MI40: 0 | MJ40: 0 | MK40: 0 | ML40: 0 | MM40: 0 | MN40: 0 | MO40: 0 | MP40: 0 | MQ40: 0 | MR40: 0 | MS40: 0 | MT40: 0 | MU40: 0 | MV40: 0 | MW40: 0 | MX40: 0 | MY40: 0 | MZ40: 0 | NA40: 0 | NB40: 0 | NC40: 0 | ND40: 0 | NE40: 0 | NF40: 0 | NG40: 0 | OC40: 0 | OD40: 0 | OE40: 0 | OF40: 0 | OG40: 0 | OH40: 0 | OI40: 1 | OJ40: 0 | OK40: 0 | OL40: 0 | OM40: 0 | ON40: 0 | OO40: 0 | OP40: 0 | OQ40: 0 | OR40: 0 | OS40: 0 | OT40: 0 | OU40: 0 | OV40: 0 | OW40: 0 | OX40: 0 | OY40: 0 | OZ40: 0 | PA40: 0 | PB40: 0 | PC40: 0 | PF40: 0 | PG40: 0 | PH40: 0 | PI40: 0 | PJ40: 0 | PK40: 0 | PL40: 0 | PM40: 0 | PN40: 0 | PO40: 0 | PP40: 0 | PQ40: 0 | PR40: 0 | PS40: 0 | PT40: 0 | PU40: 0 | PV40: 0 | PW40: 0 | PX40: 0 | QC40: 3 | QE40: 0.0 | QF40: 0.0 | QG40: 0.0 | QH40: 0.0 | QI40: 0.0 | QJ40: 0.0 | QK40: 0.0 | QL40: 0.0 | QM40: 0.0 | QN40: 0.0 | QO40: 0.0 | QP40: 0.0 | QQ40: 2.0 | QR40: 0.0 | QS40: 0.0 | QT40: 0.0 | QU40: 0.0 | QV40: 0.0 | QW40: 0.0 | QX40: 0.0 | QY40: 0.0 | QZ40: 0.0 | RA40: 0.0 | RB40: 0.0 | RC40: 0.0 | RD40: 0.0 | RE40: 0.0 | RF40: 1.0 | RG40: 0.0 | RH40: 0.0 | RI40: 0.0 | RJ40: 0.0 | RK40: 0.0 | RL40: 0.0 | RM40: 0.0 | RN40: 0 | RO40: 0 | RP40: 0 | RQ40: 0.0 | RR40: 0.0 | RS40: 0.0 | RT40: 0.0 | RU40: 0.0 | RV40: 0.0 | RW40: 3.0 | RX40: =+SR40+RW45+SE40+'2_MERCADO_PRIVADO'!TA40 -> 2 | RY40: 0 | RZ40: 0 | SA40: 0 | SB40: 0 | SC40: 0 | SD40: 0 | SE40: 0 | SU40: 0 | SV40: 0 | SW40: 0 | SX40: 0 | SY40: 0 | TA40: 0 | TB40: 0 | TC40: 0 | TD40: 0 | TE40: 0 | TF40: 0 | TG40: 0 | TH40: 0 | TI40: 0 | TJ40: 0 | TK40: 0 | TL40: 0 | TM40: 0 | TN40: 0 | TO40: 0 | TQ40: =M40+DH40+'2_MERCADO_PRIVADO'!BW40+'2_MERCADO_PRIVADO'!G40 -> 0 | TR40: =DH40+'2_MERCADO_PRIVADO'!AP40+'2_MERCADO_PRIVADO'!BW40 -> 0 | TS40: =BR40+'2_MERCADO_PRIVADO'!AP40+'2_MERCADO_PRIVADO'!BW40+'2_MERCADO_PRIVADO'!DD40 -> 0 | TT40: =CH40+CX40+'2_MERCADO_PRIVADO'!BF40+'2_MERCADO_PRIVADO'!CM40+'2_MERCADO_PRIVADO'!DT40 -> 0 | TU40: =CO40+DE40+'2_MERCADO_PRIVADO'!BM40+'2_MERCADO_PRIVADO'!CT40+'2_MERCADO_PRIVADO'!EA40 -> 0
D41: NEGRO(A), MULATO (A), AFROCOLOMBIANO (A) | E41: 0 | F41: 0 | G41: 0 | H41: 0 | I41: 0 | AZ41: 0 | BA41: 0 | BB41: 0 | BC41: 0 | BD41: 0 | BE41: 0 | BF41: 0 | BG41: 0 | BH41: 0 | BI41: 0 | BJ41: 0 | BK41: 0 | BP41: 0 | BQ41: 0 | BR41: 0 | BS41: 0 | BT41: 0 | BU41: 0 | BV41: 0 | BW41: 0 | BX41: 0 | BY41: 0 | BZ41: 0 | CA41: 0 | CB41: 0 | CC41: 0 | CD41: 0 | CE41: 0 | CF41: 0 | CG41: 0 | CH41: 0 | CI41: 0 | CJ41: 0 | CK41: 0 | CL41: 0 | CM41: 0 | CN41: 0 | CO41: 0 | CX41: 0 | CY41: 0 | CZ41: 0 | DA41: 0 | DB41: 0 | DC41: 0 | DD41: 0 | DE41: 0 | DF41: 0 | DG41: 0 | DH41: 0 | DI41: 0 | DJ41: 0 | DK41: 0 | EM41: 0 | EN41: 0 | EO41: 0 | EP41: 0 | EQ41: 0 | ER41: 0 | ES41: 0 | ET41: 0 | FM41: 0 | FN41: 0 | FO41: 0 | FP41: 0 | FQ41: 0 | FR41: 0 | FS41: 0 | FT41: 0 | FU41: 0 | FV41: 0 | FW41: 0 | FX41: 0 | FY41: 0 | HE41: 0 | HF41: 0 | HG41: 0 | HH41: 0 | HI41: 0 | HJ41: 0 | HK41: 0 | HL41: 0 | HS41: 0 | HT41: 0 | HU41: 0 | HV41: 0 | HW41: 0 | HX41: 0 | HY41: 0 | HZ41: 0 | IA41: 0 | IB41: 0 | ID41: 0 | IE41: 0 | IF41: 0 | IG41: 0 | IH41: 0 | II41: 0 | IL41: 0 | IM41: 0 | IN41: 0 | IO41: 0 | IP41: 0 | IQ41: 0 | IR41: 0 | IS41: 0 | IT41: 0 | IU41: 0 | IV41: 0 | IY41: 0 | IZ41: 0 | JB41: 0 | JC41: 0 | JD41: 0 | JE41: 0 | JF41: 0 | JG41: 0 | JH41: 0 | JI41: 0 | JJ41: 0 | JK41: 0 | JP41: 0 | JU41: 0 | JV41: 0 | JW41: 0 | JX41: 0 | JY41: 0 | JZ41: 0 | KA41: 0 | KE41: 0 | KF41: 0 | KG41: 0 | KH41: 0 | KI41: 0 | KJ41: 0 | KK41: 0 | KL41: 0 | KM41: 0 | KN41: 0 | KO41: 0 | KP41: 0 | KQ41: 0 | KR41: 0 | KS41: 0 | KT41: 0 | KU41: 0 | KV41: 0 | KW41: 0 | KX41: 0 | KY41: 0 | KZ41: 0 | LA41: 0 | LB41: 0 | LC41: 0 | LD41: 0 | LE41: 0 | LF41: 0 | LG41: 0 | LH41: 0 | LI41: 0 | LJ41: 0 | LK41: 0 | LL41: 0 | LM41: 0 | LN41: 0 | LO41: 0 | LP41: 0 | LQ41: 0 | LR41: 0 | LS41: 0 | LT41: 0 | LU41: 0 | LV41: 0 | LW41: 0 | LX41: 0 | LY41: 0 | LZ41: 0 | MA41: 0 | MB41: 0 | MC41: 0 | MD41: 0 | ME41: 0 | MF41: 0 | MG41: 0 | MH41: 0 | MI41: 0 | MJ41: 0 | MK41: 0 | ML41: 0 | MM41: 0 | MN41: 0 | MO41: 0 | MP41: 0 | MQ41: 0 | MR41: 0 | MS41: 0 | MT41: 0 | MU41: 0 | MV41: 0 | MW41: 0 | MX41: 0 | MY41: 0 | MZ41: 0 | NA41: 0 | NB41: 0 | NC41: 1 | ND41: 0 | NE41: 0 | NF41: 0 | NG41: 0 | OC41: 0 | OD41: 0 | OE41: 0 | OF41: 0 | OG41: 0 | OH41: 0 | OI41: 0 | OJ41: 0 | OK41: 0 | OL41: 0 | OM41: 0 | ON41: 0 | OO41: 0 | OP41: 0 | OQ41: 0 | OR41: 0 | OS41: 0 | OT41: 0 | OU41: 0 | OV41: 0 | OW41: 0 | OX41: 0 | OY41: 0 | OZ41: 0 | PA41: 0 | PB41: 0 | PC41: 0 | PF41: 0 | PG41: 0 | PH41: 0 | PI41: 0 | PJ41: 0 | PK41: 0 | PL41: 0 | PM41: 0 | PN41: 1 | PO41: 1 | PP41: 0 | PQ41: 0 | PR41: 0 | PS41: 0 | PT41: 0 | PU41: 0 | PV41: 0 | PW41: 0 | PX41: 0 | QC41: 3 | QE41: 0.0 | QF41: 0.0 | QG41: 0.0 | QH41: 0.0 | QI41: 0.0 | QJ41: 0.0 | QK41: 0.0 | QL41: 0.0 | QM41: 0.0 | QN41: 0.0 | QO41: 0.0 | QP41: 0.0 | QQ41: 0.0 | QR41: 0.0 | QS41: 0.0 | QT41: 0.0 | QU41: 0.0 | QV41: 1.0 | QW41: 0.0 | QX41: 0.0 | QY41: 0.0 | QZ41: 0.0 | RA41: 0.0 | RB41: 0.0 | RC41: 0.0 | RD41: 0.0 | RE41: 0.0 | RF41: 0.0 | RG41: 0.0 | RH41: 0.0 | RI41: 0.0 | RJ41: 2.0 | RK41: 0.0 | RL41: 0.0 | RM41: 0.0 | RN41: 0 | RO41: 0 | RP41: 0 | RQ41: 0.0 | RR41: 0.0 | RS41: 0.0 | RT41: 0.0 | RU41: 0.0 | RV41: 0.0 | RW41: 3.0 | RX41: =+SR41+RW46+SE41+'2_MERCADO_PRIVADO'!TA41 -> 15 | RY41: 0 | RZ41: 0 | SA41: 0 | SB41: 0 | SC41: 0 | SD41: 0 | SE41: 0 | SU41: 0 | SV41: 0 | SW41: 0 | SX41: 0 | SY41: 0 | TA41: 0 | TB41: 0 | TC41: 0 | TD41: 0 | TE41: 0 | TF41: 0 | TG41: 0 | TH41: 0 | TI41: 0 | TJ41: 0 | TK41: 0 | TL41: 0 | TM41: 0 | TN41: 0 | TO41: 0 | TQ41: =M41+DH41+'2_MERCADO_PRIVADO'!BW41+'2_MERCADO_PRIVADO'!G41 -> 0 | TR41: =DH41+'2_MERCADO_PRIVADO'!AP41+'2_MERCADO_PRIVADO'!BW41 -> 0 | TS41: =BR41+'2_MERCADO_PRIVADO'!AP41+'2_MERCADO_PRIVADO'!BW41+'2_MERCADO_PRIVADO'!DD41 -> 0 | TT41: =CH41+CX41+'2_MERCADO_PRIVADO'!BF41+'2_MERCADO_PRIVADO'!CM41+'2_MERCADO_PRIVADO'!DT41 -> 0 | TU41: =CO41+DE41+'2_MERCADO_PRIVADO'!BM41+'2_MERCADO_PRIVADO'!CT41+'2_MERCADO_PRIVADO'!EA41 -> 1
D42: SIN PERTENENCIA ETNICA | E42: 613 | F42: 16 | G42: 3 | H42: 0 | I42: 602 | AZ42: 1 | BA42: 0 | BB42: 0 | BC42: 0 | BD42: 0 | BE42: 0 | BF42: 0 | BG42: 0 | BH42: 2 | BI42: 1 | BJ42: 0 | BK42: 0 | BP42: 101 | BQ42: 106 | BR42: 82 | BS42: 0 | BT42: 0 | BU42: 0 | BV42: 0 | BW42: 0 | BX42: 0 | BY42: 0 | BZ42: 0 | CA42: 0 | CB42: 0 | CC42: 0 | CD42: 0 | CE42: 0 | CF42: 0 | CG42: 0 | CH42: 2 | CI42: 0 | CJ42: 0 | CK42: 0 | CL42: 0 | CM42: 0 | CN42: 0 | CO42: 1 | CX42: 86 | CY42: 3 | CZ42: 1 | DA42: 0 | DB42: 0 | DC42: 0 | DD42: 0 | DE42: 117 | DF42: 101 | DG42: 103 | DH42: 82 | DI42: 0 | DJ42: 0 | DK42: 0 | EM42: 88 | EN42: 3 | EO42: 1 | EP42: 0 | EQ42: 0 | ER42: 0 | ES42: 0 | ET42: 117 | FM42: 0 | FN42: 0 | FO42: 0 | FP42: 0 | FQ42: 0 | FR42: 0 | FS42: 0 | FT42: 1 | FU42: 0 | FV42: 0 | FW42: 0 | FX42: 0 | FY42: 1 | HE42: 244 | HF42: 275 | HG42: 240 | HH42: 267 | HI42: 130 | HJ42: 1 | HK42: 0 | HL42: 0 | HS42: 128 | HT42: 1 | HU42: 0 | HV42: 0 | HW42: 0 | HX42: 0 | HY42: 0 | HZ42: 0 | IA42: 0 | IB42: 0 | ID42: 159 | IE42: 3 | IF42: 1 | IG42: 0 | IH42: 1 | II42: 1 | IL42: 83 | IM42: 8 | IN42: 18 | IO42: 20 | IP42: 21 | IQ42: 22 | IR42: 14 | IS42: 20 | IT42: 21 | IU42: 24 | IV42: 24 | IY42: 5 | IZ42: 2 | JB42: 163 | JC42: 5 | JD42: 0 | JE42: 3 | JF42: 4 | JG42: 0 | JH42: 1 | JI42: 1 | JJ42: 0 | JK42: 0 | JP42: 1 | JU42: 155 | JV42: 2 | JW42: 0 | JX42: 0 | JY42: 1 | JZ42: 0 | KA42: 1 | KE42: 128 | KF42: 3 | KG42: 0 | KH42: 0 | KI42: 1 | KJ42: 0 | KK42: 0 | KL42: 158 | KM42: 3 | KN42: 1 | KO42: 0 | KP42: 0 | KQ42: 0 | KR42: 0 | KS42: 0 | KT42: 0 | KU42: 0 | KV42: 3 | KW42: 0 | KX42: 0 | KY42: 0 | KZ42: 0 | LA42: 85 | LB42: 42 | LC42: 12 | LD42: 7 | LE42: 2 | LF42: 0 | LG42: 0 | LH42: 0 | LI42: 0 | LJ42: 7 | LK42: 4 | LL42: 1 | LM42: 0 | LN42: 0 | LO42: 100 | LP42: 77 | LQ42: 98 | LR42: 58 | LS42: 34 | LT42: 5 | LU42: 0 | LV42: 0 | LW42: 0 | LX42: 0 | LY42: 0 | LZ42: 0 | MA42: 0 | MB42: 0 | MC42: 3 | MD42: 0 | ME42: 2 | MF42: 0 | MG42: 0 | MH42: 0 | MI42: 0 | MJ42: 0 | MK42: 0 | ML42: 0 | MM42: 0 | MN42: 0 | MO42: 0 | MP42: 0 | MQ42: 0 | MR42: 0 | MS42: 0 | MT42: 0 | MU42: 0 | MV42: 0 | MW42: 0 | MX42: 4 | MY42: 0 | MZ42: 0 | NA42: 0 | NB42: 29 | NC42: 64 | ND42: 104 | NE42: 56 | NF42: 24 | NG42: 30 | OC42: 58 | OD42: 13 | OE42: 0 | OF42: 28 | OG42: 24 | OH42: 0 | OI42: 27 | OJ42: 32 | OK42: 0 | OL42: 24 | OM42: 22 | ON42: 0 | OO42: 25 | OP42: 9 | OQ42: 0 | OR42: 31 | OS42: 17 | OT42: 0 | OU42: 24 | OV42: 2 | OW42: 0 | OX42: 19 | OY42: 15 | OZ42: 0 | PA42: 11 | PB42: 9 | PC42: 0 | PF42: 0 | PG42: 0 | PH42: 0 | PI42: 0 | PJ42: 0 | PK42: 0 | PL42: 0 | PM42: 0 | PN42: 105 | PO42: 44 | PP42: 32 | PQ42: 32 | PR42: 184 | PS42: 40 | PT42: 0 | PU42: 0 | PV42: 0 | PW42: 12 | PX42: 2 | QC42: 6,216 | QE42: 632.0 | QF42: 606.0 | QG42: 292.0 | QH42: 207.0 | QI42: 286.0 | QJ42: 209.0 | QK42: 2.0 | QL42: 0.0 | QM42: 519.0 | QN42: 638.0 | QO42: 0.0 | QP42: 294.0 | QQ42: 282.0 | QR42: 178.0 | QS42: 159.0 | QT42: 294.0 | QU42: 540.0 | QV42: 311.0 | QW42: 0.0 | QX42: 0.0 | QY42: 0.0 | QZ42: 0.0 | RA42: 0.0 | RB42: 0.0 | RC42: 0.0 | RD42: 0.0 | RE42: 0.0 | RF42: 390.0 | RG42: 0.0 | RH42: 0.0 | RI42: 0.0 | RJ42: 181.0 | RK42: 32.0 | RL42: 184.0 | RM42: 40.0 | RN42: 0 | RO42: 0 | RP42: 0 | RQ42: 12.0 | RR42: 2.0 | RS42: 0.0 | RT42: 0.0 | RU42: 0.0 | RV42: 0.0 | RW42: 6,216.0 | RX42: =+SR42+RW47+SE42+'2_MERCADO_PRIVADO'!TA42 -> 9097 | RY42: 2 | RZ42: 4 | SA42: 2 | SB42: 94 | SC42: 130 | SD42: 46 | SE42: 278 | SR42: 1 | SS42: 1 | SU42: 0 | SV42: 0 | SW42: 0 | SX42: 1 | SY42: 1 | TA42: 0 | TB42: 0 | TC42: 0 | TD42: 0 | TE42: 0 | TF42: 0 | TG42: 0 | TH42: 0 | TI42: 0 | TJ42: 0 | TK42: 0 | TL42: 0 | TM42: 0 | TN42: 0 | TO42: 0 | TQ42: =M42+DH42+'2_MERCADO_PRIVADO'!BW42+'2_MERCADO_PRIVADO'!G42 -> 263 | TR42: =DH42+'2_MERCADO_PRIVADO'!AP42+'2_MERCADO_PRIVADO'!BW42 -> 263 | TS42: =BR42+'2_MERCADO_PRIVADO'!AP42+'2_MERCADO_PRIVADO'!BW42+'2_MERCADO_PRIVADO'!DD42 -> 263 | TT42: =CH42+CX42+'2_MERCADO_PRIVADO'!BF42+'2_MERCADO_PRIVADO'!CM42+'2_MERCADO_PRIVADO'!DT42 -> 230 | TU42: =CO42+DE42+'2_MERCADO_PRIVADO'!BM42+'2_MERCADO_PRIVADO'!CT42+'2_MERCADO_PRIVADO'!EA42 -> 240
D43: TOTAL ETNICOS | E43: 614 | F43: 16 | G43: 3 | H43: 0 | I43: 603 | AZ43: 1 | BA43: 0 | BB43: 0 | BC43: 0 | BD43: 0 | BE43: 0 | BF43: 0 | BG43: 0 | BH43: 2 | BI43: 1 | BJ43: 0 | BK43: 0 | BP43: 101 | BQ43: 106 | BR43: 82 | BS43: 0 | BT43: 0 | BU43: 0 | BV43: 0 | BW43: 0 | BX43: 0 | BY43: 0 | BZ43: 0 | CA43: 0 | CB43: 0 | CC43: 0 | CD43: 0 | CE43: 0 | CF43: 0 | CG43: 0 | CH43: 2 | CI43: 0 | CJ43: 0 | CK43: 0 | CL43: 0 | CM43: 0 | CN43: 0 | CO43: 1 | CX43: 86 | CY43: 3 | CZ43: 1 | DA43: 0 | DB43: 0 | DC43: 0 | DD43: 0 | DE43: 117 | DF43: 101 | DG43: 103 | DH43: 82 | DI43: 0 | DJ43: 0 | DK43: 0 | EM43: 88 | EN43: 3 | EO43: 1 | EP43: 0 | EQ43: 0 | ER43: 0 | ES43: 0 | ET43: 117 | FM43: 0 | FN43: 0 | FO43: 0 | FP43: 0 | FQ43: 0 | FR43: 0 | FS43: 0 | FT43: 1 | FU43: 0 | FV43: 0 | FW43: 0 | FX43: 0 | FY43: 1 | HE43: 244 | HF43: 275 | HG43: 240 | HH43: 267 | HI43: 130 | HJ43: 1 | HK43: 0 | HL43: 0 | HS43: 128 | HT43: 1 | HU43: 0 | HV43: 0 | HW43: 0 | HX43: 0 | HY43: 0 | HZ43: 0 | IA43: 0 | IB43: 0 | ID43: 159 | IE43: 3 | IF43: 1 | IG43: 0 | IH43: 1 | II43: 1 | IL43: 84 | IM43: 8 | IN43: 18 | IO43: 20 | IP43: 21 | IQ43: 22 | IR43: 14 | IS43: 20 | IT43: 21 | IU43: 24 | IV43: 25 | IY43: 5 | IZ43: 2 | JB43: 163 | JC43: 5 | JD43: 0 | JE43: 3 | JF43: 4 | JG43: 0 | JH43: 1 | JI43: 1 | JJ43: 0 | JK43: 0 | JP43: 1 | JU43: 155 | JV43: 2 | JW43: 0 | JX43: 0 | JY43: 1 | JZ43: 0 | KA43: 1 | KE43: 128 | KF43: 3 | KG43: 0 | KH43: 0 | KI43: 1 | KJ43: 0 | KK43: 0 | KL43: 158 | KM43: 3 | KN43: 1 | KO43: 0 | KP43: 0 | KQ43: 0 | KR43: 0 | KS43: 0 | KT43: 0 | KU43: 0 | KV43: 3 | KW43: 0 | KX43: 0 | KY43: 0 | KZ43: 0 | LA43: 86 | LB43: 42 | LC43: 12 | LD43: 7 | LE43: 2 | LF43: 0 | LG43: 0 | LH43: 0 | LI43: 0 | LJ43: 7 | LK43: 4 | LL43: 1 | LM43: 0 | LN43: 0 | LO43: 100 | LP43: 78 | LQ43: 98 | LR43: 58 | LS43: 34 | LT43: 5 | LU43: 0 | LV43: 0 | LW43: 0 | LX43: 0 | LY43: 0 | LZ43: 0 | MA43: 0 | MB43: 0 | MC43: 3 | MD43: 0 | ME43: 2 | MF43: 0 | MG43: 0 | MH43: 0 | MI43: 0 | MJ43: 0 | MK43: 0 | ML43: 0 | MM43: 0 | MN43: 0 | MO43: 0 | MP43: 0 | MQ43: 0 | MR43: 0 | MS43: 0 | MT43: 0 | MU43: 0 | MV43: 0 | MW43: 0 | MX43: 4 | MY43: 0 | MZ43: 0 | NA43: 0 | NB43: 29 | NC43: 65 | ND43: 104 | NE43: 56 | NF43: 24 | NG43: 30 | OC43: 58 | OD43: 13 | OE43: 0 | OF43: 28 | OG43: 24 | OH43: 0 | OI43: 28 | OJ43: 32 | OK43: 0 | OL43: 24 | OM43: 22 | ON43: 0 | OO43: 25 | OP43: 9 | OQ43: 0 | OR43: 31 | OS43: 17 | OT43: 0 | OU43: 24 | OV43: 2 | OW43: 0 | OX43: 19 | OY43: 15 | OZ43: 0 | PA43: 11 | PB43: 9 | PC43: 0 | PF43: 0 | PG43: 0 | PH43: 0 | PI43: 0 | PJ43: 0 | PK43: 0 | PL43: 0 | PM43: 0 | PN43: 106 | PO43: 45 | PP43: 32 | PQ43: 32 | PR43: 184 | PS43: 40 | PT43: 0 | PU43: 0 | PV43: 0 | PW43: 12 | PX43: 2 | QC43: =SUM(QC37:QC42) -> 6,226 | QE43: =+SUM(QE37:QE42) -> 633.0 | QF43: =+SUM(QF37:QF42) -> 607.0 | QG43: =+SUM(QG37:QG42) -> 292.0 | QH43: =+SUM(QH37:QH42) -> 207.0 | QI43: =+SUM(QI37:QI42) -> 286.0 | QJ43: =+SUM(QJ37:QJ42) -> 209.0 | QK43: =+SUM(QK37:QK42) -> 2.0 | QL43: =+SUM(QL37:QL42) -> 0.0 | QM43: =+SUM(QM37:QM42) -> 519.0 | QN43: =+SUM(QN37:QN42) -> 638.0 | QO43: =+SUM(QO37:QO42) -> 0.0 | QP43: =+SUM(QP37:QP42) -> 294.0 | QQ43: =+SUM(QQ37:QQ42) -> 284.0 | QR43: =+SUM(QR37:QR42) -> 178.0 | QS43: =+SUM(QS37:QS42) -> 159.0 | QT43: =+SUM(QT37:QT42) -> 294.0 | QU43: =+SUM(QU37:QU42) -> 542.0 | QV43: =+SUM(QV37:QV42) -> 312.0 | QW43: =+SUM(QW37:QW42) -> 0.0 | QX43: =+SUM(QX37:QX42) -> 0.0 | QY43: =+SUM(QY37:QY42) -> 0.0 | QZ43: =+SUM(QZ37:QZ42) -> 0.0 | RA43: =+SUM(RA37:RA42) -> 0.0 | RB43: =+SUM(RB37:RB42) -> 0.0 | RC43: =+SUM(RC37:RC42) -> 0.0 | RD43: =+SUM(RD37:RD42) -> 0.0 | RE43: =+SUM(RE37:RE42) -> 0.0 | RF43: =+SUM(RF37:RF42) -> 391.0 | RG43: =+SUM(RG37:RG42) -> 0.0 | RH43: =+SUM(RH37:RH42) -> 0.0 | RI43: =+SUM(RI37:RI42) -> 0.0 | RJ43: =+SUM(RJ37:RJ42) -> 183.0 | RK43: =+SUM(RK37:RK42) -> 32.0 | RL43: =+SUM(RL37:RL42) -> 184.0 | RM43: =+SUM(RM37:RM42) -> 40.0 | RN43: =+SUM(RN37:RN42) -> 0.0 | RO43: =+SUM(RO37:RO42) -> 0.0 | RP43: =+SUM(RP37:RP42) -> 0.0 | RQ43: =+SUM(RQ37:RQ42) -> 12.0 | RR43: =+SUM(RR37:RR42) -> 2.0 | RS43: =+SUM(RS37:RS42) -> 0.0 | RT43: =+SUM(RT37:RT42) -> 0.0 | RU43: =+SUM(RU37:RU42) -> 0.0 | RV43: =+SUM(RV37:RV42) -> 0.0 | RW43: =SUM(RW37:RW42) -> 6,226.0 | RX43: =+SR43+RW48+SE43+'2_MERCADO_PRIVADO'!TA43 -> 10074 | RY43: 2 | RZ43: 4 | SA43: 2 | SB43: 94 | SC43: 130 | SD43: 46 | SE43: =SUM(SE37:SE42) -> 278 | SF43: =SUM(SF37:SF42) -> 0 | SG43: 0 | SH43: 0 | SI43: 0 | SJ43: 0 | SK43: 0 | SL43: 0 | SM43: 0 | SN43: 0 | SO43: 0 | SP43: 0 | SQ43: 0 | SR43: 1 | SS43: 1 | SU43: =SUM(SU37:SU42) -> 0 | SV43: 0 | SW43: 0 | SX43: 1 | SY43: 1 | TA43: 0 | TB43: 0 | TC43: 0 | TD43: 0 | TE43: 0 | TF43: 0 | TG43: 0 | TH43: 0 | TI43: 0 | TJ43: 0 | TK43: 0 | TL43: 0 | TM43: 0 | TN43: 0 | TO43: 0 | TQ43: =M43+DH43+'2_MERCADO_PRIVADO'!BW43+'2_MERCADO_PRIVADO'!G43 -> 263 | TR43: =DH43+'2_MERCADO_PRIVADO'!AP43+'2_MERCADO_PRIVADO'!BW43 -> 263 | TS43: =BR43+'2_MERCADO_PRIVADO'!AP43+'2_MERCADO_PRIVADO'!BW43+'2_MERCADO_PRIVADO'!DD43 -> 263 | TT43: =CH43+CX43+'2_MERCADO_PRIVADO'!BF43+'2_MERCADO_PRIVADO'!CM43+'2_MERCADO_PRIVADO'!DT43 -> 230 | TU43: =CO43+DE43+'2_MERCADO_PRIVADO'!BM43+'2_MERCADO_PRIVADO'!CT43+'2_MERCADO_PRIVADO'!EA43 -> 241
D44: EN SITUACION DE DESPLAZAMIENTO | OC44: 0 | OD44: 0 | OE44: 0 | OF44: 0 | OG44: 0 | OH44: 0 | OI44: 0 | OJ44: 0 | OK44: 0 | OL44: 0 | OM44: 0 | ON44: 0 | OO44: 0 | OP44: 0 | OQ44: 0 | OR44: 0 | OS44: 0 | OT44: 0 | OU44: 0 | OV44: 0 | OW44: 0 | OX44: 0 | OY44: 0 | OZ44: 0 | PA44: 0 | PB44: 0 | PC44: 0 | QC44: =SUM(E44:QB44)-SUM(PQ44:PT44)-SUM(PW44:PZ44) -> 0 | QE44: =SUM(E44:H44) -> 0.0 | QF44: =SUM(I44:BO44) -> 0.0 | QG44: =SUM(BP44:CW44) -> 0.0 | QH44: =SUM(CX44:DE44) -> 0.0 | QI44: =SUM(DF44:DT44) -> 0.0 | QJ44: =SUM(DU44:ET44) -> 0.0 | QK44: =SUM(EU44:FY44) -> 0.0 | QL44: =SUM(FZ44:HD44) -> 0.0 | QM44: =SUM(HE44:HF44) -> 0.0 | QN44: =SUM(HG44:HL44) -> 0.0 | QO44: =SUM(HM44:HR44) -> 0.0 | QP44: =SUM(HS44:IJ44) -> 0.0 | QQ44: =SUM(IK44:JA44) -> 0.0 | QR44: =SUM(JB44:JT44) -> 0.0 | QS44: =SUM(JU44:KD44) -> 0.0 | QT44: =SUM(KE44:KP44) -> 0.0 | QU44: =SUM(KQ44:MU44) -> 0.0 | QV44: =SUM(MV44:NG44) -> 0.0 | QW44: =SUM(NH44:NI44) -> 0.0 | QX44: =SUM(NJ44:NL44) -> 0.0 | QY44: =SUM(NM44:NO44) -> 0.0 | QZ44: =SUM(NP44) -> 0.0 | RA44: =SUM(NQ44) -> 0.0 | RB44: =SUM(NR44:NT44) -> 0.0 | RC44: =SUM(NU44) -> 0.0 | RD44: =SUM(NV44) -> 0.0 | RE44: =SUM(NW44:OB44) -> 0.0 | RF44: =SUM(OC44:PE44) -> 0.0 | RG44: =SUM(PF44:PG44) -> 0.0 | RH44: =SUM(PH44:PI44) -> 0.0 | RI44: =SUM(PJ44:PM44) -> 0.0 | RJ44: =SUM(PN44:PP44) -> 0.0 | RK44: =SUM(PQ44) -> 0.0 | RL44: =SUM(PR44) -> 0.0 | RM44: =SUM(PS44) -> 0.0 | RN44: 0 | RO44: 0 | RP44: 0 | RQ44: =SUM(PW44) -> 0.0 | RR44: =SUM(PX44) -> 0.0 | RS44: =SUM(PY44) -> 0.0 | RT44: =SUM(PZ44) -> 0.0 | RU44: =SUM(QA44) -> 0.0 | RV44: =SUM(QB44) -> 0.0 | RW44: =SUM(QE44:RU44)-SUM(RI44:RM44)-SUM(RQ44:RT44) -> 0.0 | RX44: =+SR44+RW49+SE44+'2_MERCADO_PRIVADO'!TA44 -> 771 | SE44: =SUM(RY44:SD44) -> 0 | SU44: =SF44+SG44 -> 0 | SV44: =SH44+SI44+SJ44+SK44+SL44+SM44+SN44+SO44+SP44 -> 0 | SW44: =SQ44 -> 0 | SX44: =SR44 -> 0 | SY44: =SS44 -> 0 | TQ44: =M44+DH44+'2_MERCADO_PRIVADO'!BW44+'2_MERCADO_PRIVADO'!G44 -> 0 | TR44: =DH44+'2_MERCADO_PRIVADO'!AP44+'2_MERCADO_PRIVADO'!BW44 -> 0 | TS44: =BR44+'2_MERCADO_PRIVADO'!AP44+'2_MERCADO_PRIVADO'!BW44+'2_MERCADO_PRIVADO'!DD44 -> 0 | TT44: =CH44+CX44+'2_MERCADO_PRIVADO'!BF44+'2_MERCADO_PRIVADO'!CM44+'2_MERCADO_PRIVADO'!DT44 -> 0 | TU44: =CO44+DE44+'2_MERCADO_PRIVADO'!BM44+'2_MERCADO_PRIVADO'!CT44+'2_MERCADO_PRIVADO'!EA44 -> 0
D45: EN CONDICION DE DISCAPACIDAD | QC45: 0 | QE45: 0.0 | QF45: 0.0 | QG45: 0.0 | QH45: 0.0 | QI45: 0.0 | QJ45: 0.0 | QK45: 0.0 | QL45: 0.0 | QM45: 0.0 | QN45: 0.0 | QO45: 0.0 | QP45: 0.0 | QQ45: 0.0 | QR45: 0.0 | QS45: 0.0 | QT45: 0.0 | QU45: 0.0 | QV45: 0.0 | QW45: 0.0 | QX45: 0.0 | QY45: 0.0 | QZ45: 0.0 | RA45: 0.0 | RB45: 0.0 | RC45: 0.0 | RD45: 0.0 | RE45: 0.0 | RF45: 0.0 | RG45: 0.0 | RH45: 0.0 | RI45: 0.0 | RJ45: 0.0 | RK45: 0.0 | RL45: 0.0 | RM45: 0.0 | RN45: 0 | RO45: 0 | RP45: 0 | RQ45: 0.0 | RR45: 0.0 | RS45: 0.0 | RT45: 0.0 | RU45: 0.0 | RV45: 0.0 | RW45: 0.0 | RX45: =+SR45+RW50+SE45+'2_MERCADO_PRIVADO'!TA45 -> 0 | SE45: 0 | SU45: 0 | SV45: 0 | SW45: 0 | SX45: 0 | SY45: 0 | TQ45: =M45+DH45+'2_MERCADO_PRIVADO'!BW45+'2_MERCADO_PRIVADO'!G45 -> 0 | TR45: =DH45+'2_MERCADO_PRIVADO'!AP45+'2_MERCADO_PRIVADO'!BW45 -> 0 | TS45: =BR45+'2_MERCADO_PRIVADO'!AP45+'2_MERCADO_PRIVADO'!BW45+'2_MERCADO_PRIVADO'!DD45 -> 0 | TT45: =CH45+CX45+'2_MERCADO_PRIVADO'!BF45+'2_MERCADO_PRIVADO'!CM45+'2_MERCADO_PRIVADO'!DT45 -> 0 | TU45: =CO45+DE45+'2_MERCADO_PRIVADO'!BM45+'2_MERCADO_PRIVADO'!CT45+'2_MERCADO_PRIVADO'!EA45 -> 0
D46: VICTIMAS DEL CONFLICTO ARMADO | QC46: 0 | QE46: 0.0 | QF46: 0.0 | QG46: 0.0 | QH46: 0.0 | QI46: 0.0 | QJ46: 0.0 | QK46: 0.0 | QL46: 0.0 | QM46: 0.0 | QN46: 0.0 | QO46: 0.0 | QP46: 0.0 | QQ46: 0.0 | QR46: 0.0 | QS46: 0.0 | QT46: 0.0 | QU46: 0.0 | QV46: 0.0 | QW46: 0.0 | QX46: 0.0 | QY46: 0.0 | QZ46: 0.0 | RA46: 0.0 | RB46: 0.0 | RC46: 0.0 | RD46: 0.0 | RE46: 0.0 | RF46: 0.0 | RG46: 0.0 | RH46: 0.0 | RI46: 0.0 | RJ46: 0.0 | RK46: 0.0 | RL46: 0.0 | RM46: 0.0 | RN46: 0 | RO46: 0 | RP46: 0 | RQ46: 0.0 | RR46: 0.0 | RS46: 0.0 | RT46: 0.0 | RU46: 0.0 | RV46: 0.0 | RW46: 0.0 | RX46: =+SR46+RW51+SE46+'2_MERCADO_PRIVADO'!TA46 -> 1725 | SE46: 0 | SU46: 0 | SV46: 0 | SW46: 0 | SX46: 0 | SY46: 0 | TQ46: =M46+DH46+'2_MERCADO_PRIVADO'!BW46+'2_MERCADO_PRIVADO'!G46 -> 0 | TR46: =DH46+'2_MERCADO_PRIVADO'!AP46+'2_MERCADO_PRIVADO'!BW46 -> 0 | TS46: =BR46+'2_MERCADO_PRIVADO'!AP46+'2_MERCADO_PRIVADO'!BW46+'2_MERCADO_PRIVADO'!DD46 -> 0 | TT46: =CH46+CX46+'2_MERCADO_PRIVADO'!BF46+'2_MERCADO_PRIVADO'!CM46+'2_MERCADO_PRIVADO'!DT46 -> 0 | TU46: =CO46+DE46+'2_MERCADO_PRIVADO'!BM46+'2_MERCADO_PRIVADO'!CT46+'2_MERCADO_PRIVADO'!EA46 -> 0
D47: ZONAS VEREDALES | QC47: 0 | QD47: =CONCATENATE($G$2,$B$28) -> 1102 | QE47: =SUM(E47:H47) -> 0.0 | QF47: =SUM(I47:BN47) -> 0.0 | QG47: =SUM(BP47:CW47) -> 0.0 | QH47: =SUM(CX47:DE47) -> 0.0 | QI47: =SUM(DF47:DT47) -> 0.0 | QJ47: =SUM(DU47:ET47) -> 0.0 | QK47: =SUM(EU47:FY47) -> 0.0 | QL47: =SUM(FZ47:HD47) -> 0.0 | QM47: =SUM(HE47:HF47) -> 0.0 | QN47: =SUM(HG47:HL47) -> 0.0 | QO47: =SUM(HR47:II47) -> 0.0 | QP47: 0.0 | QQ47: =SUM(IK47:JA47) -> 0.0 | QR47: =SUM(JB47:JT47) -> 0.0 | QS47: =SUM(JU47:KD47) -> 0.0 | QT47: =SUM(KE47:KP47) -> 0.0 | QU47: =SUM(KQ47:MU47) -> 0.0 | QV47: =SUM(MV47:NG47) -> 0.0 | QW47: =SUM(NH47:NL47) -> 0.0 | QX47: =SUM(NM47:NO47) -> 0.0 | QY47: =SUM(QY44:QY46) -> 0.0 | QZ47: =SUM(NP47) -> 0.0 | RA47: 0.0 | RB47: =SUM(NS47:NT47) -> 0.0 | RC47: 0.0 | RD47: 0.0 | RE47: =SUM(NZ47:OB47) -> 0.0 | RF47: =SUM(OC47:PE47) -> 0.0 | RG47: =SUM(PF47:PI47) -> 0.0 | RH47: =SUM(PJ47:PP47) -> 0.0 | RI47: =PQ47 -> 0.0 | RJ47: =PR47 -> 0.0 | RK47: =SUM(PQ47) -> 0.0 | RL47: 0.0 | RM47: 0.0 | RN47: 0 | RO47: 0 | RP47: 0 | RQ47: 0.0 | RR47: 0.0 | RS47: 0.0 | RT47: 0.0 | RU47: 0.0 | RV47: 0.0 | RW47: =SUM(QE47:RU47)-SUM(RI47:RM47)-SUM(RQ47:RT47) -> 0.0 | RX47: =+SR47+RW52+SE47+'2_MERCADO_PRIVADO'!TA47 -> 454 | SE47: 0 | SU47: 0 | SV47: 0 | SW47: 0 | SX47: 0 | SY47: 0 | TQ47: =M47+DH47+'2_MERCADO_PRIVADO'!BW47+'2_MERCADO_PRIVADO'!G47 -> 0 | TR47: =DH47+'2_MERCADO_PRIVADO'!AP47+'2_MERCADO_PRIVADO'!BW47 -> 0 | TS47: =BR47+'2_MERCADO_PRIVADO'!AP47+'2_MERCADO_PRIVADO'!BW47+'2_MERCADO_PRIVADO'!DD47 -> 0 | TT47: =CH47+CX47+'2_MERCADO_PRIVADO'!BF47+'2_MERCADO_PRIVADO'!CM47+'2_MERCADO_PRIVADO'!DT47 -> 0 | TU47: =CO47+DE47+'2_MERCADO_PRIVADO'!BM47+'2_MERCADO_PRIVADO'!CT47+'2_MERCADO_PRIVADO'!EA47 -> 0
B48: 03 | C48: SANTAFE | D48: FEMENINO | E48: 0 | F48: 0 | G48: 1 | H48: 0 | I48: 0 | J48: 0 | K48: 0 | L48: 0 | M48: 0 | N48: 0 | O48: 4 | P48: 2 | Q48: 0 | R48: 1 | S48: 1 | T48: 0 | U48: 0 | V48: 0 | W48: 0 | X48: 0 | Y48: 0 | Z48: 0 | AA48: 0 | AB48: 0 | AC48: 0 | AD48: 0 | AE48: 0 | AF48: 0 | AG48: 0 | AH48: 0 | AI48: 0 | AJ48: 0 | AK48: 0 | AL48: 0 | AM48: 0 | AN48: 0 | AO48: 0 | AP48: 0 | AQ48: 0 | AR48: 0 | AS48: 0 | AT48: 0 | AU48: 0 | AV48: 0 | AW48: 0 | AX48: 0 | AY48: 0 | AZ48: 0 | BA48: 0 | BB48: 0 | BC48: 0 | BD48: 0 | BE48: 0 | BF48: 0 | BG48: 0 | BH48: 0 | BI48: 0 | BJ48: 0 | BK48: 0 | BL48: 0 | BM48: 0 | BN48: 0 | BO48: 0 | BP48: 17 | BQ48: 27 | BR48: 32 | BS48: 1 | BT48: 4 | BU48: 2 | BV48: 0 | BW48: 1 | BX48: 1 | BY48: 0 | BZ48: 0 | CA48: 0 | CB48: 0 | CC48: 0 | CD48: 0 | CE48: 0 | CF48: 0 | CG48: 0 | CH48: 0 | CI48: 0 | CJ48: 0 | CK48: 0 | CL48: 0 | CM48: 0 | CN48: 0 | CO48: 0 | CP48: 0 | CQ48: 0 | CR48: 0 | CS48: 0 | CT48: 0 | CU48: 0 | CV48: 0 | CW48: 0 | CX48: 28 | CY48: 1 | CZ48: 3 | DA48: 2 | DB48: 1 | DC48: 0 | DD48: 0 | DE48: 31 | DF48: 18 | DG48: 27 | DH48: 31 | DI48: 1 | DJ48: 0 | DK48: 0 | DL48: 0 | DM48: 0 | DN48: 0 | DO48: 0 | DP48: 0 | DQ48: 0 | DR48: 0 | DS48: 0 | DT48: 0 | DU48: 0 | DV48: 0 | DW48: 0 | DX48: 1 | DY48: 3 | DZ48: 2 | EA48: 0 | EB48: 1 | EC48: 1 | ED48: 0 | EE48: 0 | EF48: 0 | EG48: 0 | EH48: 0 | EI48: 0 | EJ48: 0 | EK48: 0 | EL48: 0 | EM48: 28 | EN48: 1 | EO48: 3 | EP48: 2 | EQ48: 1 | ER48: 0 | ES48: 0 | ET48: 30 | EU48: 0 | EV48: 0 | EW48: 0 | EX48: 0 | EY48: 0 | EZ48: 0 | FA48: 0 | FB48: 0 | FC48: 0 | FD48: 0 | FE48: 0 | FF48: 0 | FG48: 0 | FH48: 0 | FI48: 0 | FJ48: 0 | FK48: 0 | FL48: 0 | FM48: 0 | FN48: 0 | FO48: 0 | FP48: 0 | FQ48: 0 | FR48: 0 | FS48: 0 | FT48: 1 | FU48: 0 | FV48: 0 | FW48: 0 | FX48: 0 | FY48: 0 | FZ48: 0 | GA48: 0 | GB48: 0 | GC48: 0 | GD48: 0 | GE48: 0 | GF48: 0 | GG48: 0 | GH48: 0 | GI48: 0 | GJ48: 0 | GK48: 0 | GL48: 0 | GM48: 0 | GN48: 0 | GO48: 0 | GP48: 0 | GQ48: 0 | GR48: 0 | GS48: 0 | GT48: 0 | GU48: 0 | GV48: 0 | GW48: 0 | GX48: 0 | GY48: 0 | GZ48: 0 | HA48: 0 | HB48: 0 | HC48: 0 | HD48: 0 | HE48: 17 | HF48: 22 | HG48: 17 | HH48: 28 | HI48: 39 | HJ48: 2 | HK48: 4 | HL48: 6 | HM48: 0 | HN48: 0 | HO48: 0 | HP48: 0 | HQ48: 0 | HR48: 0 | HS48: 42 | HT48: 1 | HU48: 0 | HV48: 2 | HW48: 0 | HX48: 0 | HY48: 0 | HZ48: 0 | IA48: 0 | IB48: 0 | IC48: 0 | ID48: 32 | IE48: 2 | IF48: 1 | IG48: 0 | IH48: 0 | II48: 0 | IJ48: 0 | IK48: 0 | IL48: 29 | IM48: 5 | IN48: 4 | IO48: 5 | IP48: 5 | IQ48: 3 | IR48: 4 | IS48: 6 | IT48: 2 | IU48: 9 | IV48: 4 | IW48: 1 | IX48: 0 | IY48: 0 | IZ48: 0 | JA48: 0 | JB48: 30 | JC48: 1 | JD48: 0 | JE48: 3 | JF48: 0 | JG48: 0 | JH48: 0 | JI48: 0 | JJ48: 0 | JK48: 0 | JL48: 0 | JM48: 0 | JN48: 0 | JO48: 0 | JP48: 0 | JQ48: 0 | JR48: 0 | JS48: 0 | JT48: 0 | JU48: 42 | JV48: 1 | JW48: 0 | JX48: 3 | JY48: 0 | JZ48: 1 | KA48: 1 | KB48: 0 | KC48: 0 | KD48: 0 | KE48: 42 | KF48: 1 | KG48: 0 | KH48: 3 | KI48: 0 | KJ48: 1 | KK48: 1 | KL48: 0 | KM48: 32 | KN48: 2 | KO48: 1 | KP48: 0 | KQ48: 0 | KR48: 0 | KS48: 0 | KT48: 0 | KU48: 2 | KV48: 1 | KW48: 0 | KX48: 0 | KY48: 0 | KZ48: 0 | LA48: 16 | LB48: 8 | LC48: 2 | LD48: 0 | LE48: 0 | LF48: 0 | LG48: 0 | LH48: 0 | LI48: 0 | LJ48: 4 | LK48: 1 | LL48: 0 | LM48: 0 | LN48: 0 | LO48: 8 | LP48: 8 | LQ48: 8 | LR48: 6 | LS48: 3 | LT48: 1 | LU48: 0 | LV48: 0 | LW48: 0 | LX48: 0 | LY48: 0 | LZ48: 0 | MA48: 0 | MB48: 0 | MC48: 0 | MD48: 0 | ME48: 0 | MF48: 0 | MG48: 0 | MH48: 0 | MI48: 0 | MJ48: 0 | MK48: 0 | ML48: 0 | MM48: 0 | MN48: 0 | MO48: 0 | MP48: 0 | MQ48: 0 | MR48: 0 | MS48: 0 | MT48: 0 | MU48: 0 | MV48: 0 | MW48: 1 | MX48: 2 | MY48: 0 | MZ48: 0 | NA48: 0 | NB48: 3 | NC48: 7 | ND48: 8 | NE48: 2 | NF48: 1 | NG48: 1 | NH48: 0 | NI48: 0 | NJ48: 0 | NK48: 0 | NL48: 0 | NM48: 0 | NN48: 0 | NO48: 0 | NP48: 0 | NQ48: 0 | NR48: 0 | NS48: 0 | NT48: 0 | NU48: 0 | NV48: 0 | NW48: 0 | NX48: 0 | NY48: 0 | NZ48: 0 | OA48: 0 | OB48: 0 | OC48: 12 | OD48: 1 | OE48: 0 | OF48: 12 | OG48: 8 | OH48: 0 | OI48: 4 | OJ48: 7 | OK48: 0 | OL48: 6 | OM48: 7 | ON48: 0 | OO48: 9 | OP48: 2 | OQ48: 0 | OR48: 5 | OS48: 4 | OT48: 0 | OU48: 5 | OV48: 1 | OW48: 0 | OX48: 2 | OY48: 1 | OZ48: 0 | PA48: 1 | PB48: 4 | PC48: 0 | PD48: 2 | PE48: 0 | PF48: 0 | PG48: 0 | PH48: 0 | PI48: 0 | PJ48: 0 | PK48: 0 | PL48: 0 | PM48: 0 | PN48: 6 | PO48: 1 | PP48: 1 | PQ48: 1 | PR48: 0 | PS48: 0 | PT48: 0 | PU48: 0 | PV48: 0 | PW48: 0 | PX48: 0 | PY48: 0 | PZ48: 0 | QA48: 0 | QB48: 0 | QC48: 962 | QE48: 1.0 | QF48: =SUM(I48:BO48) -> 8.0 | QG48: 85.0 | QH48: 66.0 | QI48: 77.0 | QJ48: 73.0 | QK48: 1.0 | QL48: 0.0 | QM48: 39.0 | QN48: 96.0 | QO48: =SUM(HM48:HR48) -> 0.0 | QP48: 80.0 | QQ48: 77.0 | QR48: 34.0 | QS48: 48.0 | QT48: 83.0 | QU48: 68.0 | QV48: 25.0 | QW48: =SUM(NH48:NI48) -> 0.0 | QX48: =SUM(NJ48:NL48) -> 0.0 | QY48: =SUM(NM48:NO48) -> 0.0 | QZ48: 0.0 | RA48: 0.0 | RB48: =SUM(NR48:NT48) -> 0.0 | RC48: =SUM(NU48) -> 0.0 | RD48: =SUM(NV48) -> 0.0 | RE48: =SUM(NW48:OB48) -> 0.0 | RF48: =SUM(OC48:PE48) -> 93.0 | RG48: =SUM(PF48:PG48) -> 0.0 | RH48: =SUM(PH48:PI48) -> 0.0 | RI48: =SUM(PJ48:PM48) -> 0.0 | RJ48: =SUM(PN48:PP48) -> 8.0 | RK48: =SUM(PQ48) -> 1.0 | RL48: =SUM(PR48) -> 0.0 | RM48: =SUM(PS48) -> 0.0 | RN48: 0 | RO48: 0 | RP48: 0 | RQ48: =SUM(PW48) -> 0.0 | RR48: =SUM(PX48) -> 0.0 | RS48: =SUM(PY48) -> 0.0 | RT48: =SUM(PZ48) -> 0.0 | RU48: =SUM(QA48) -> 0.0 | RV48: =SUM(QB48) -> 0.0 | RW48: =SUM(QE48:RU48)-SUM(RI48:RM48)-SUM(RQ48:RT48) -> 954.0 | RX48: =+SR48+RW53+SE48+'2_MERCADO_PRIVADO'!TA48 -> 651 | RY48: 0 | RZ48: 2 | SA48: 0 | SB48: 3 | SC48: 23 | SD48: 0 | SE48: 28 | SN48: 2 | SU48: 0 | SV48: 2 | SW48: 0 | SX48: 0 | SY48: 0 | TQ48: =M48+DH48+'2_MERCADO_PRIVADO'!BW48+'2_MERCADO_PRIVADO'!G48 -> 31 | TR48: =DH48+'2_MERCADO_PRIVADO'!AP48+'2_MERCADO_PRIVADO'!BW48 -> 31 | TS48: =BR48+'2_MERCADO_PRIVADO'!AP48+'2_MERCADO_PRIVADO'!BW48+'2_MERCADO_PRIVADO'!DD48 -> 32 | TT48: =CH48+CX48+'2_MERCADO_PRIVADO'!BF48+'2_MERCADO_PRIVADO'!CM48+'2_MERCADO_PRIVADO'!DT48 -> 28 | TU48: =CO48+DE48+'2_MERCADO_PRIVADO'!BM48+'2_MERCADO_PRIVADO'!CT48+'2_MERCADO_PRIVADO'!EA48 -> 31
D49: MASCULINO | E49: 0 | F49: 1 | G49: 1 | H49: 0 | I49: 0 | J49: 0 | K49: 0 | L49: 0 | M49: 0 | N49: 0 | O49: 3 | P49: 4 | Q49: 1 | R49: 0 | S49: 1 | T49: 0 | U49: 0 | V49: 0 | W49: 0 | X49: 0 | Y49: 0 | Z49: 0 | AA49: 1 | AB49: 0 | AC49: 0 | AD49: 0 | AE49: 0 | AF49: 0 | AG49: 0 | AH49: 0 | AI49: 0 | AJ49: 0 | AK49: 0 | AL49: 0 | AM49: 0 | AN49: 0 | AO49: 0 | AP49: 0 | AQ49: 0 | AR49: 0 | AS49: 0 | AT49: 0 | AU49: 0 | AV49: 0 | AW49: 0 | AX49: 0 | AY49: 0 | AZ49: 0 | BA49: 0 | BB49: 0 | BC49: 0 | BD49: 0 | BE49: 0 | BF49: 0 | BG49: 0 | BH49: 0 | BI49: 0 | BJ49: 0 | BK49: 0 | BL49: 0 | BM49: 0 | BN49: 0 | BO49: 0 | BP49: 27 | BQ49: 28 | BR49: 25 | BS49: 0 | BT49: 3 | BU49: 4 | BV49: 1 | BW49: 0 | BX49: 1 | BY49: 0 | BZ49: 0 | CA49: 0 | CB49: 0 | CC49: 0 | CD49: 0 | CE49: 0 | CF49: 1 | CG49: 0 | CH49: 1 | CI49: 0 | CJ49: 0 | CK49: 0 | CL49: 1 | CM49: 0 | CN49: 0 | CO49: 3 | CP49: 0 | CQ49: 0 | CR49: 0 | CS49: 0 | CT49: 0 | CU49: 0 | CV49: 0 | CW49: 0 | CX49: 27 | CY49: 3 | CZ49: 3 | DA49: 2 | DB49: 0 | DC49: 0 | DD49: 0 | DE49: 31 | DF49: 27 | DG49: 28 | DH49: 25 | DI49: 0 | DJ49: 0 | DK49: 0 | DL49: 0 | DM49: 0 | DN49: 0 | DO49: 0 | DP49: 0 | DQ49: 0 | DR49: 0 | DS49: 0 | DT49: 0 | DU49: 0 | DV49: 0 | DW49: 0 | DX49: 0 | DY49: 3 | DZ49: 4 | EA49: 1 | EB49: 0 | EC49: 1 | ED49: 0 | EE49: 0 | EF49: 0 | EG49: 0 | EH49: 0 | EI49: 0 | EJ49: 0 | EK49: 1 | EL49: 0 | EM49: 28 | EN49: 3 | EO49: 3 | EP49: 1 | EQ49: 1 | ER49: 0 | ES49: 0 | ET49: 34 | EU49: 0 | EV49: 0 | EW49: 0 | EX49: 0 | EY49: 0 | EZ49: 0 | FA49: 0 | FB49: 0 | FC49: 0 | FD49: 0 | FE49: 0 | FF49: 0 | FG49: 0 | FH49: 0 | FI49: 0 | FJ49: 0 | FK49: 0 | FL49: 0 | FM49: 0 | FN49: 0 | FO49: 0 | FP49: 0 | FQ49: 0 | FR49: 0 | FS49: 0 | FT49: 0 | FU49: 0 | FV49: 0 | FW49: 0 | FX49: 0 | FY49: 0 | FZ49: 0 | GA49: 0 | GB49: 0 | GC49: 0 | GD49: 0 | GE49: 0 | GF49: 0 | GG49: 0 | GH49: 0 | GI49: 0 | GJ49: 0 | GK49: 0 | GL49: 0 | GM49: 0 | GN49: 0 | GO49: 0 | GP49: 0 | GQ49: 0 | GR49: 0 | GS49: 0 | GT49: 0 | GU49: 0 | GV49: 0 | GW49: 0 | GX49: 0 | GY49: 0 | GZ49: 0 | HA49: 0 | HB49: 0 | HC49: 0 | HD49: 0 | HE49: 25 | HF49: 23 | HG49: 28 | HH49: 28 | HI49: 21 | HJ49: 1 | HK49: 8 | HL49: 8 | HM49: 0 | HN49: 0 | HO49: 0 | HP49: 0 | HQ49: 0 | HR49: 0 | HS49: 25 | HT49: 3 | HU49: 1 | HV49: 1 | HW49: 1 | HX49: 0 | HY49: 0 | HZ49: 0 | IA49: 0 | IB49: 0 | IC49: 0 | ID49: 35 | IE49: 0 | IF49: 1 | IG49: 1 | IH49: 1 | II49: 0 | IJ49: 0 | IK49: 0 | IL49: 29 | IM49: 2 | IN49: 4 | IO49: 6 | IP49: 4 | IQ49: 4 | IR49: 5 | IS49: 5 | IT49: 6 | IU49: 7 | IV49: 4 | IW49: 0 | IX49: 0 | IY49: 0 | IZ49: 0 | JA49: 0 | JB49: 29 | JC49: 4 | JD49: 1 | JE49: 0 | JF49: 1 | JG49: 0 | JH49: 0 | JI49: 1 | JJ49: 1 | JK49: 0 | JL49: 0 | JM49: 0 | JN49: 0 | JO49: 0 | JP49: 0 | JQ49: 0 | JR49: 0 | JS49: 0 | JT49: 0 | JU49: 25 | JV49: 3 | JW49: 2 | JX49: 3 | JY49: 2 | JZ49: 0 | KA49: 2 | KB49: 3 | KC49: 1 | KD49: 1 | KE49: 25 | KF49: 3 | KG49: 2 | KH49: 3 | KI49: 3 | KJ49: 0 | KK49: 2 | KL49: 0 | KM49: 33 | KN49: 0 | KO49: 0 | KP49: 0 | KQ49: 0 | KR49: 0 | KS49: 0 | KT49: 1 | KU49: 0 | KV49: 0 | KW49: 0 | KX49: 0 | KY49: 0 | KZ49: 0 | LA49: 0 | LB49: 0 | LC49: 0 | LD49: 0 | LE49: 0 | LF49: 0 | LG49: 0 | LH49: 0 | LI49: 0 | LJ49: 0 | LK49: 0 | LL49: 0 | LM49: 0 | LN49: 0 | LO49: 0 | LP49: 0 | LQ49: 0 | LR49: 0 | LS49: 0 | LT49: 0 | LU49: 0 | LV49: 0 | LW49: 0 | LX49: 0 | LY49: 0 | LZ49: 0 | MA49: 0 | MB49: 0 | MC49: 0 | MD49: 0 | ME49: 0 | MF49: 0 | MG49: 0 | MH49: 0 | MI49: 0 | MJ49: 0 | MK49: 0 | ML49: 0 | MM49: 0 | MN49: 0 | MO49: 0 | MP49: 0 | MQ49: 0 | MR49: 0 | MS49: 0 | MT49: 0 | MU49: 0 | MV49: 0 | MW49: 0 | MX49: 0 | MY49: 0 | MZ49: 0 | NA49: 0 | NB49: 0 | NC49: 0 | ND49: 0 | NE49: 0 | NF49: 0 | NG49: 0 | NH49: 0 | NI49: 0 | NJ49: 0 | NK49: 0 | NL49: 0 | NM49: 0 | NN49: 0 | NO49: 0 | NP49: 0 | NQ49: 0 | NR49: 0 | NS49: 0 | NT49: 0 | NU49: 0 | NV49: 0 | NW49: 0 | NX49: 0 | NY49: 0 | NZ49: 0 | OA49: 0 | OB49: 0 | OC49: 0 | OD49: 0 | OE49: 0 | OF49: 0 | OG49: 0 | OH49: 0 | OI49: 0 | OJ49: 0 | OK49: 0 | OL49: 0 | OM49: 0 | ON49: 0 | OO49: 0 | OP49: 0 | OQ49: 0 | OR49: 0 | OS49: 0 | OT49: 0 | OU49: 0 | OV49: 0 | OW49: 0 | OX49: 0 | OY49: 0 | OZ49: 0 | PA49: 0 | PB49: 0 | PC49: 0 | PD49: 0 | PE49: 0 | PF49: 0 | PG49: 0 | PH49: 0 | PI49: 0 | PJ49: 0 | PK49: 0 | PL49: 0 | PM49: 0 | PN49: 11 | PO49: 2 | PP49: 2 | PQ49: 2 | PR49: 0 | PS49: 0 | PT49: 0 | PU49: 0 | PV49: 0 | PW49: 0 | PX49: 0 | PY49: 0 | PZ49: 0 | QA49: 0 | QB49: 0 | QC49: 786 | QE49: 2.0 | QF49: 10.0 | QG49: 95.0 | QH49: 66.0 | QI49: 80.0 | QJ49: 80.0 | QK49: 0.0 | QL49: 0.0 | QM49: 48.0 | QN49: 94.0 | QO49: 0.0 | QP49: 69.0 | QQ49: 76.0 | QR49: 37.0 | QS49: 42.0 | QT49: 71.0 | QU49: 1.0 | QV49: 0.0 | QW49: 0.0 | QX49: 0.0 | QY49: 0.0 | QZ49: 0.0 | RA49: 0.0 | RB49: 0.0 | RC49: 0.0 | RD49: 0.0 | RE49: 0.0 | RF49: 0.0 | RG49: 0.0 | RH49: 0.0 | RI49: 0.0 | RJ49: 15.0 | RK49: 2.0 | RL49: 0.0 | RM49: 0.0 | RN49: 0 | RO49: 0 | RP49: 0 | RQ49: 0.0 | RR49: 0.0 | RS49: 0.0 | RT49: 0.0 | RU49: 0.0 | RV49: 0.0 | RW49: 771.0 | RX49: =+SR49+RW54+SE49+'2_MERCADO_PRIVADO'!TA49 -> 651 | RY49: 0 | RZ49: 2 | SA49: 0 | SB49: 2 | SC49: 16 | SD49: 0 | SE49: 20 | SN49: 0 | SU49: 0 | SV49: 0 | SW49: 0 | SX49: 0 | SY49: 0 | TQ49: =M49+DH49+'2_MERCADO_PRIVADO'!BW49+'2_MERCADO_PRIVADO'!G49 -> 25 | TR49: =DH49+'2_MERCADO_PRIVADO'!AP49+'2_MERCADO_PRIVADO'!BW49 -> 25 | TS49: =BR49+'2_MERCADO_PRIVADO'!AP49+'2_MERCADO_PRIVADO'!BW49+'2_MERCADO_PRIVADO'!DD49 -> 25 | TT49: =CH49+CX49+'2_MERCADO_PRIVADO'!BF49+'2_MERCADO_PRIVADO'!CM49+'2_MERCADO_PRIVADO'!DT49 -> 28 | TU49: =CO49+DE49+'2_MERCADO_PRIVADO'!BM49+'2_MERCADO_PRIVADO'!CT49+'2_MERCADO_PRIVADO'!EA49 -> 34
D50: OTRO | E50: 0 | F50: 0 | G50: 0 | H50: 0 | I50: 0 | J50: 0 | K50: 0 | L50: 0 | M50: 0 | N50: 0 | O50: 0 | P50: 0 | Q50: 0 | R50: 0 | S50: 0 | T50: 0 | U50: 0 | V50: 0 | W50: 0 | X50: 0 | Y50: 0 | Z50: 0 | AA50: 0 | AB50: 0 | AC50: 0 | AD50: 0 | AE50: 0 | AF50: 0 | AG50: 0 | AH50: 0 | AI50: 0 | AJ50: 0 | AK50: 0 | AL50: 0 | AM50: 0 | AN50: 0 | AO50: 0 | AP50: 0 | AQ50: 0 | AR50: 0 | AS50: 0 | AT50: 0 | AU50: 0 | AV50: 0 | AW50: 0 | AX50: 0 | AY50: 0 | AZ50: 0 | BA50: 0 | BB50: 0 | BC50: 0 | BD50: 0 | BE50: 0 | BF50: 0 | BG50: 0 | BH50: 0 | BI50: 0 | BJ50: 0 | BK50: 0 | BL50: 0 | BM50: 0 | BN50: 0 | BO50: 0 | BP50: 0 | BQ50: 0 | BR50: 0 | BS50: 0 | BT50: 0 | BU50: 0 | BV50: 0 | BW50: 0 | BX50: 0 | BY50: 0 | BZ50: 0 | CA50: 0 | CB50: 0 | CC50: 0 | CD50: 0 | CE50: 0 | CF50: 0 | CG50: 0 | CH50: 0 | CI50: 0 | CJ50: 0 | CK50: 0 | CL50: 0 | CM50: 0 | CN50: 0 | CO50: 0 | CP50: 0 | CQ50: 0 | CR50: 0 | CS50: 0 | CT50: 0 | CU50: 0 | CV50: 0 | CW50: 0 | CX50: 0 | CY50: 0 | CZ50: 0 | DA50: 0 | DB50: 0 | DC50: 0 | DD50: 0 | DE50: 0 | DF50: 0 | DG50: 0 | DH50: 0 | DI50: 0 | DJ50: 0 | DK50: 0 | DL50: 0 | DM50: 0 | DN50: 0 | DO50: 0 | DP50: 0 | DQ50: 0 | DR50: 0 | DS50: 0 | DT50: 0 | DU50: 0 | DV50: 0 | DW50: 0 | DX50: 0 | DY50: 0 | DZ50: 0 | EA50: 0 | EB50: 0 | EC50: 0 | ED50: 0 | EE50: 0 | EF50: 0 | EG50: 0 | EH50: 0 | EI50: 0 | EJ50: 0 | EK50: 0 | EL50: 0 | EM50: 0 | EN50: 0 | EO50: 0 | EP50: 0 | EQ50: 0 | ER50: 0 | ES50: 0 | ET50: 0 | EU50: 0 | EV50: 0 | EW50: 0 | EX50: 0 | EY50: 0 | EZ50: 0 | FA50: 0 | FB50: 0 | FC50: 0 | FD50: 0 | FE50: 0 | FF50: 0 | FG50: 0 | FH50: 0 | FI50: 0 | FJ50: 0 | FK50: 0 | FL50: 0 | FM50: 0 | FN50: 0 | FO50: 0 | FP50: 0 | FQ50: 0 | FR50: 0 | FS50: 0 | FT50: 0 | FU50: 0 | FV50: 0 | FW50: 0 | FX50: 0 | FY50: 0 | FZ50: 0 | GA50: 0 | GB50: 0 | GC50: 0 | GD50: 0 | GE50: 0 | GF50: 0 | GG50: 0 | GH50: 0 | GI50: 0 | GJ50: 0 | GK50: 0 | GL50: 0 | GM50: 0 | GN50: 0 | GO50: 0 | GP50: 0 | GQ50: 0 | GR50: 0 | GS50: 0 | GT50: 0 | GU50: 0 | GV50: 0 | GW50: 0 | GX50: 0 | GY50: 0 | GZ50: 0 | HA50: 0 | HB50: 0 | HC50: 0 | HD50: 0 | HE50: 0 | HF50: 0 | HG50: 0 | HH50: 0 | HI50: 0 | HJ50: 0 | HK50: 0 | HL50: 0 | HM50: 0 | HN50: 0 | HO50: 0 | HP50: 0 | HQ50: 0 | HR50: 0 | HS50: 0 | HT50: 0 | HU50: 0 | HV50: 0 | HW50: 0 | HX50: 0 | HY50: 0 | HZ50: 0 | IA50: 0 | IB50: 0 | IC50: 0 | ID50: 0 | IE50: 0 | IF50: 0 | IG50: 0 | IH50: 0 | II50: 0 | IJ50: 0 | IK50: 0 | IL50: 0 | IM50: 0 | IN50: 0 | IO50: 0 | IP50: 0 | IQ50: 0 | IR50: 0 | IS50: 0 | IT50: 0 | IU50: 0 | IV50: 0 | IW50: 0 | IX50: 0 | IY50: 0 | IZ50: 0 | JA50: 0 | JB50: 0 | JC50: 0 | JD50: 0 | JE50: 0 | JF50: 0 | JG50: 0 | JH50: 0 | JI50: 0 | JJ50: 0 | JK50: 0 | JL50: 0 | JM50: 0 | JN50: 0 | JO50: 0 | JP50: 0 | JQ50: 0 | JR50: 0 | JS50: 0 | JT50: 0 | JU50: 0 | JV50: 0 | JW50: 0 | JX50: 0 | JY50: 0 | JZ50: 0 | KA50: 0 | KB50: 0 | KC50: 0 | KD50: 0 | KE50: 0 | KF50: 0 | KG50: 0 | KH50: 0 | KI50: 0 | KJ50: 0 | KK50: 0 | KL50: 0 | KM50: 0 | KN50: 0 | KO50: 0 | KP50: 0 | KQ50: 0 | KR50: 0 | KS50: 0 | KT50: 0 | KU50: 0 | KV50: 0 | KW50: 0 | KX50: 0 | KY50: 0 | KZ50: 0 | LA50: 0 | LB50: 0 | LC50: 0 | LD50: 0 | LE50: 0 | LF50: 0 | LG50: 0 | LH50: 0 | LI50: 0 | LJ50: 0 | LK50: 0 | LL50: 0 | LM50: 0 | LN50: 0 | LO50: 0 | LP50: 0 | LQ50: 0 | LR50: 0 | LS50: 0 | LT50: 0 | LU50: 0 | LV50: 0 | LW50: 0 | LX50: 0 | LY50: 0 | LZ50: 0 | MA50: 0 | MB50: 0 | MC50: 0 | MD50: 0 | ME50: 0 | MF50: 0 | MG50: 0 | MH50: 0 | MI50: 0 | MJ50: 0 | MK50: 0 | ML50: 0 | MM50: 0 | MN50: 0 | MO50: 0 | MP50: 0 | MQ50: 0 | MR50: 0 | MS50: 0 | MT50: 0 | MU50: 0 | MV50: 0 | MW50: 0 | MX50: 0 | MY50: 0 | MZ50: 0 | NA50: 0 | NB50: 0 | NC50: 0 | ND50: 0 | NE50: 0 | NF50: 0 | NG50: 0 | NH50: 0 | NI50: 0 | NJ50: 0 | NK50: 0 | NL50: 0 | NM50: 0 | NN50: 0 | NO50: 0 | NP50: 0 | NQ50: 0 | NR50: 0 | NS50: 0 | NT50: 0 | NU50: 0 | NV50: 0 | NW50: 0 | NX50: 0 | NY50: 0 | NZ50: 0 | OA50: 0 | OB50: 0 | OC50: 0 | OD50: 0 | OE50: 0 | OF50: 0 | OG50: 0 | OH50: 0 | OI50: 0 | OJ50: 0 | OK50: 0 | OL50: 0 | OM50: 0 | ON50: 0 | OO50: 0 | OP50: 0 | OQ50: 0 | OR50: 0 | OS50: 0 | OT50: 0 | OU50: 0 | OV50: 0 | OW50: 0 | OX50: 0 | OY50: 0 | OZ50: 0 | PA50: 0 | PB50: 0 | PC50: 0 | PD50: 0 | PE50: 0 | PF50: 0 | PG50: 0 | PH50: 0 | PI50: 0 | PJ50: 0 | PK50: 0 | PL50: 0 | PM50: 0 | PN50: 0 | PO50: 0 | PP50: 0 | PQ50: 0 | PR50: 0 | PS50: 0 | PT50: 0 | PU50: 0 | PV50: 0 | PW50: 0 | PX50: 0 | PY50: 0 | PZ50: 0 | QA50: 0 | QB50: 0 | QC50: 0 | QE50: 0.0 | QF50: 0.0 | QG50: 0.0 | QH50: 0.0 | QI50: 0.0 | QJ50: 0.0 | QK50: 0.0 | QL50: 0.0 | QM50: 0.0 | QN50: 0.0 | QO50: 0.0 | QP50: 0.0 | QQ50: 0.0 | QR50: 0.0 | QS50: 0.0 | QT50: 0.0 | QU50: 0.0 | QV50: 0.0 | QW50: 0.0 | QX50: 0.0 | QY50: 0.0 | QZ50: 0.0 | RA50: 0.0 | RB50: 0.0 | RC50: 0.0 | RD50: 0.0 | RE50: 0.0 | RF50: 0.0 | RG50: 0.0 | RH50: 0.0 | RI50: 0.0 | RJ50: 0.0 | RK50: 0.0 | RL50: 0.0 | RM50: 0.0 | RN50: 0 | RO50: 0 | RP50: 0 | RQ50: 0.0 | RR50: 0.0 | RS50: 0.0 | RT50: 0.0 | RU50: 0.0 | RV50: 0.0 | RW50: 0.0 | RX50: =+SR50+RW55+SE50+'2_MERCADO_PRIVADO'!TA50 -> 17 | RY50: 0 | RZ50: 0 | SA50: 0 | SB50: 0 | SC50: 0 | SD50: 0 | SE50: 0 | SN50: 0 | SU50: 0 | SV50: 0 | SW50: 0 | SX50: 0 | SY50: 0 | TQ50: =M50+DH50+'2_MERCADO_PRIVADO'!BW50+'2_MERCADO_PRIVADO'!G50 -> 0 | TR50: =DH50+'2_MERCADO_PRIVADO'!AP50+'2_MERCADO_PRIVADO'!BW50 -> 0 | TS50: =BR50+'2_MERCADO_PRIVADO'!AP50+'2_MERCADO_PRIVADO'!BW50+'2_MERCADO_PRIVADO'!DD50 -> 0 | TT50: =CH50+CX50+'2_MERCADO_PRIVADO'!BF50+'2_MERCADO_PRIVADO'!CM50+'2_MERCADO_PRIVADO'!DT50 -> 0 | TU50: =CO50+DE50+'2_MERCADO_PRIVADO'!BM50+'2_MERCADO_PRIVADO'!CT50+'2_MERCADO_PRIVADO'!EA50 -> 0
D51: TOTAL GENERO | E51: 0 | F51: 1 | G51: 2 | H51: 0 | I51: 0 | J51: 0 | K51: 0 | L51: 0 | M51: 0 | N51: 0 | O51: 7 | P51: 6 | Q51: 1 | R51: 1 | S51: 2 | T51: 0 | U51: 0 | V51: 0 | W51: 0 | X51: 0 | Y51: 0 | Z51: 0 | AA51: 1 | AB51: 0 | AC51: 0 | AD51: 0 | AE51: 0 | AF51: 0 | AG51: 0 | AH51: 0 | AI51: 0 | AJ51: 0 | AK51: 0 | AL51: 0 | AM51: 0 | AN51: 0 | AO51: 0 | AP51: 0 | AQ51: 0 | AR51: 0 | AS51: 0 | AT51: 0 | AU51: 0 | AV51: 0 | AW51: 0 | AX51: 0 | AY51: 0 | AZ51: 0 | BA51: 0 | BB51: 0 | BC51: 0 | BD51: 0 | BE51: 0 | BF51: 0 | BG51: 0 | BH51: 0 | BI51: 0 | BJ51: 0 | BK51: 0 | BL51: 0 | BM51: 0 | BN51: 0 | BO51: 0 | BP51: 44 | BQ51: 55 | BR51: 57 | BS51: 1 | BT51: 7 | BU51: 6 | BV51: 1 | BW51: 1 | BX51: 2 | BY51: 0 | BZ51: 0 | CA51: 0 | CB51: 0 | CC51: 0 | CD51: 0 | CE51: 0 | CF51: 1 | CG51: 0 | CH51: 1 | CI51: 0 | CJ51: 0 | CK51: 0 | CL51: 1 | CM51: 0 | CN51: 0 | CO51: 3 | CP51: 0 | CQ51: 0 | CR51: 0 | CS51: 0 | CT51: 0 | CU51: 0 | CV51: 0 | CW51: 0 | CX51: 55 | CY51: 4 | CZ51: 6 | DA51: 4 | DB51: 1 | DC51: 0 | DD51: 0 | DE51: 62 | DF51: 45 | DG51: 55 | DH51: 56 | DI51: 1 | DJ51: 0 | DK51: 0 | DL51: 0 | DM51: 0 | DN51: 0 | DO51: 0 | DP51: 0 | DQ51: 0 | DR51: 0 | DS51: 0 | DT51: 0 | DU51: 0 | DV51: 0 | DW51: 0 | DX51: 1 | DY51: 6 | DZ51: 6 | EA51: 1 | EB51: 1 | EC51: 2 | ED51: 0 | EE51: 0 | EF51: 0 | EG51: 0 | EH51: 0 | EI51: 0 | EJ51: 0 | EK51: 1 | EL51: 0 | EM51: 56 | EN51: 4 | EO51: 6 | EP51: 3 | EQ51: 2 | ER51: 0 | ES51: 0 | ET51: 64 | EU51: 0 | EV51: 0 | EW51: 0 | EX51: 0 | EY51: 0 | EZ51: 0 | FA51: 0 | FB51: 0 | FC51: 0 | FD51: 0 | FE51: 0 | FF51: 0 | FG51: 0 | FH51: 0 | FI51: 0 | FJ51: 0 | FK51: 0 | FL51: 0 | FM51: 0 | FN51: 0 | FO51: 0 | FP51: 0 | FQ51: 0 | FR51: 0 | FS51: 0 | FT51: 1 | FU51: 0 | FV51: 0 | FW51: 0 | FX51: 0 | FY51: 0 | FZ51: 0 | GA51: 0 | GB51: 0 | GC51: 0 | GD51: 0 | GE51: 0 | GF51: 0 | GG51: 0 | GH51: 0 | GI51: 0 | GJ51: 0 | GK51: 0 | GL51: 0 | GM51: 0 | GN51: 0 | GO51: 0 | GP51: 0 | GQ51: 0 | GR51: 0 | GS51: 0 | GT51: 0 | GU51: 0 | GV51: 0 | GW51: 0 | GX51: 0 | GY51: 0 | GZ51: 0 | HA51: 0 | HB51: 0 | HC51: 0 | HD51: 0 | HE51: 42 | HF51: 45 | HG51: 45 | HH51: 56 | HI51: 60 | HJ51: 3 | HK51: 12 | HL51: 14 | HM51: 0 | HN51: 0 | HO51: 0 | HP51: 0 | HQ51: 0 | HR51: 0 | HS51: 67 | HT51: 4 | HU51: 1 | HV51: 3 | HW51: 1 | HX51: 0 | HY51: 0 | HZ51: 0 | IA51: 0 | IB51: 0 | IC51: 0 | ID51: 67 | IE51: 2 | IF51: 2 | IG51: 1 | IH51: 1 | II51: 0 | IJ51: 0 | IK51: 0 | IL51: 58 | IM51: 7 | IN51: 8 | IO51: 11 | IP51: 9 | IQ51: 7 | IR51: 9 | IS51: 11 | IT51: 8 | IU51: 16 | IV51: 8 | IW51: 1 | IX51: 0 | IY51: 0 | IZ51: 0 | JA51: 0 | JB51: 59 | JC51: 5 | JD51: 1 | JE51: 3 | JF51: 1 | JG51: 0 | JH51: 0 | JI51: 1 | JJ51: 1 | JK51: 0 | JL51: 0 | JM51: 0 | JN51: 0 | JO51: 0 | JP51: 0 | JQ51: 0 | JR51: 0 | JS51: 0 | JT51: 0 | JU51: 67 | JV51: 4 | JW51: 2 | JX51: 6 | JY51: 2 | JZ51: 1 | KA51: 3 | KB51: 3 | KC51: 1 | KD51: 1 | KE51: 67 | KF51: 4 | KG51: 2 | KH51: 6 | KI51: 3 | KJ51: 1 | KK51: 3 | KL51: 0 | KM51: 65 | KN51: 2 | KO51: 1 | KP51: 0 | KQ51: 0 | KR51: 0 | KS51: 0 | KT51: 1 | KU51: 2 | KV51: 1 | KW51: 0 | KX51: 0 | KY51: 0 | KZ51: 0 | LA51: 16 | LB51: 8 | LC51: 2 | LD51: 0 | LE51: 0 | LF51: 0 | LG51: 0 | LH51: 0 | LI51: 0 | LJ51: 4 | LK51: 1 | LL51: 0 | LM51: 0 | LN51: 0 | LO51: 8 | LP51: 8 | LQ51: 8 | LR51: 6 | LS51: 3 | LT51: 1 | LU51: 0 | LV51: 0 | LW51: 0 | LX51: 0 | LY51: 0 | LZ51: 0 | MA51: 0 | MB51: 0 | MC51: 0 | MD51: 0 | ME51: 0 | MF51: 0 | MG51: 0 | MH51: 0 | MI51: 0 | MJ51: 0 | MK51: 0 | ML51: 0 | MM51: 0 | MN51: 0 | MO51: 0 | MP51: 0 | MQ51: 0 | MR51: 0 | MS51: 0 | MT51: 0 | MU51: 0 | MV51: 0 | MW51: 1 | MX51: 2 | MY51: 0 | MZ51: 0 | NA51: 0 | NB51: 3 | NC51: 7 | ND51: 8 | NE51: 2 | NF51: 1 | NG51: 1 | NH51: 0 | NI51: 0 | NJ51: 0 | NK51: 0 | NL51: 0 | NM51: 0 | NN51: 0 | NO51: 0 | NP51: 0 | NQ51: 0 | NR51: 0 | NS51: 0 | NT51: 0 | NU51: 0 | NV51: 0 | NW51: 0 | NX51: 0 | NY51: 0 | NZ51: 0 | OA51: 0 | OB51: 0 | OC51: 12 | OD51: 1 | OE51: 0 | OF51: 12 | OG51: 8 | OH51: 0 | OI51: 4 | OJ51: 7 | OK51: 0 | OL51: 6 | OM51: 7 | ON51: 0 | OO51: 9 | OP51: 2 | OQ51: 0 | OR51: 5 | OS51: 4 | OT51: 0 | OU51: 5 | OV51: 1 | OW51: 0 | OX51: 2 | OY51: 1 | OZ51: 0 | PA51: 1 | PB51: 4 | PC51: 0 | PD51: 2 | PE51: 0 | PF51: 0 | PG51: 0 | PH51: 0 | PI51: 0 | PJ51: 0 | PK51: 0 | PL51: 0 | PM51: 0 | PN51: 17 | PO51: 3 | PP51: 3 | PQ51: 3 | PR51: 0 | PS51: 0 | PT51: 0 | PU51: 0 | PV51: 0 | PW51: 0 | PX51: 0 | PY51: 0 | PZ51: 0 | QA51: 0 | QB51: 0 | QC51: =SUM(QC48:QC50) -> 1,748 | QE51: =SUM(QE48:QE50) -> 3.0 | QF51: =SUM(QF48:QF50) -> 18.0 | QG51: =SUM(QG48:QG50) -> 180.0 | QH51: =SUM(QH48:QH50) -> 132.0 | QI51: =SUM(QI48:QI50) -> 157.0 | QJ51: =SUM(QJ48:QJ50) -> 153.0 | QK51: =SUM(QK48:QK50) -> 1.0 | QL51: =SUM(QL48:QL50) -> 0.0 | QM51: =SUM(QM48:QM50) -> 87.0 | QN51: =SUM(QN48:QN50) -> 190.0 | QO51: =SUM(QO48:QO50) -> 0.0 | QP51: 149.0 | QQ51: =SUM(QQ48:QQ50) -> 153.0 | QR51: =SUM(QR48:QR50) -> 71.0 | QS51: =SUM(QS48:QS50) -> 90.0 | QT51: =SUM(QT48:QT50) -> 154.0 | QU51: =SUM(QU48:QU50) -> 69.0 | QV51: =SUM(QV48:QV50) -> 25.0 | QW51: =SUM(QW48:QW50) -> 0.0 | QX51: =SUM(QX48:QX50) -> 0.0 | QY51: =SUM(QY48:QY50) -> 0.0 | QZ51: =SUM(QZ48:QZ50) -> 0.0 | RA51: =SUM(RA48:RA50) -> 0.0 | RB51: 0.0 | RC51: =SUM(RC48:RC50) -> 0.0 | RD51: 0.0 | RE51: =SUM(RE48:RE50) -> 0.0 | RF51: =SUM(RF48:RF50) -> 93.0 | RG51: =SUM(RG48:RG50) -> 0.0 | RH51: =SUM(RH48:RH50) -> 0.0 | RI51: =SUM(RI48:RI50) -> 0.0 | RJ51: =SUM(RJ48:RJ50) -> 23.0 | RK51: 3.0 | RL51: =SUM(RL48:RL50) -> 0.0 | RM51: 0.0 | RN51: 0 | RO51: 0 | RP51: 0 | RQ51: =SUM(RQ48:RQ50) -> 0.0 | RR51: =SUM(RR48:RR50) -> 0.0 | RS51: =SUM(RS48:RS50) -> 0.0 | RT51: =SUM(RT48:RT50) -> 0.0 | RU51: =SUM(RU48:RU50) -> 0.0 | RV51: =SUM(RV48:RV50) -> 0.0 | RW51: 1,725.0 | RX51: =+SR51+RW56+SE51+'2_MERCADO_PRIVADO'!TA51 -> 1773 | RY51: 0 | RZ51: 4 | SA51: 0 | SB51: 5 | SC51: 39 | SD51: 0 | SE51: 48 | SN51: 2 | SU51: =SUM(SU48:SU50) -> 0 | SV51: 2 | SW51: 0 | SX51: 0 | SY51: 0 | TQ51: =M51+DH51+'2_MERCADO_PRIVADO'!BW51+'2_MERCADO_PRIVADO'!G51 -> 56 | TR51: =DH51+'2_MERCADO_PRIVADO'!AP51+'2_MERCADO_PRIVADO'!BW51 -> 56 | TS51: =BR51+'2_MERCADO_PRIVADO'!AP51+'2_MERCADO_PRIVADO'!BW51+'2_MERCADO_PRIVADO'!DD51 -> 57 | TT51: =CH51+CX51+'2_MERCADO_PRIVADO'!BF51+'2_MERCADO_PRIVADO'!CM51+'2_MERCADO_PRIVADO'!DT51 -> 56 | TU51: =CO51+DE51+'2_MERCADO_PRIVADO'!BM51+'2_MERCADO_PRIVADO'!CT51+'2_MERCADO_PRIVADO'!EA51 -> 65
D52: CONTRIBUTIVO | E52: 0 | F52: 0 | G52: 0 | H52: 0 | I52: 0 | J52: 0 | K52: 0 | L52: 0 | M52: 0 | N52: 0 | O52: 0 | P52: 0 | Q52: 0 | R52: 1 | S52: 0 | T52: 0 | U52: 0 | V52: 0 | W52: 0 | X52: 0 | Y52: 0 | Z52: 0 | AA52: 0 | AB52: 0 | AC52: 0 | AD52: 0 | AE52: 0 | AF52: 0 | AG52: 0 | AH52: 0 | AI52: 0 | AJ52: 0 | AK52: 0 | AL52: 0 | AM52: 0 | AN52: 0 | AO52: 0 | AP52: 0 | AQ52: 0 | AR52: 0 | AS52: 0 | AT52: 0 | AU52: 0 | AV52: 0 | AW52: 0 | AX52: 0 | AY52: 0 | AZ52: 0 | BA52: 0 | BB52: 0 | BC52: 0 | BD52: 0 | BE52: 0 | BF52: 0 | BG52: 0 | BH52: 0 | BI52: 0 | BJ52: 0 | BK52: 0 | BL52: 0 | BM52: 0 | BN52: 0 | BO52: 0 | BP52: 13 | BQ52: 8 | BR52: 19 | BS52: 0 | BT52: 0 | BU52: 0 | BV52: 0 | BW52: 1 | BX52: 0 | BY52: 0 | BZ52: 0 | CA52: 0 | CB52: 0 | CC52: 0 | CD52: 0 | CE52: 0 | CF52: 0 | CG52: 0 | CH52: 0 | CI52: 0 | CJ52: 0 | CK52: 0 | CL52: 0 | CM52: 0 | CN52: 0 | CO52: 0 | CP52: 0 | CQ52: 0 | CR52: 0 | CS52: 0 | CT52: 0 | CU52: 0 | CV52: 0 | CW52: 0 | CX52: 16 | CY52: 0 | CZ52: 0 | DA52: 0 | DB52: 0 | DC52: 0 | DD52: 0 | DE52: 27 | DF52: 13 | DG52: 8 | DH52: 19 | DI52: 0 | DJ52: 0 | DK52: 0 | DL52: 0 | DM52: 0 | DN52: 0 | DO52: 0 | DP52: 0 | DQ52: 0 | DR52: 0 | DS52: 0 | DT52: 0 | DU52: 0 | DV52: 0 | DW52: 0 | DX52: 0 | DY52: 0 | DZ52: 0 | EA52: 0 | EB52: 1 | EC52: 0 | ED52: 0 | EE52: 0 | EF52: 0 | EG52: 0 | EH52: 0 | EI52: 0 | EJ52: 0 | EK52: 0 | EL52: 0 | EM52: 16 | EN52: 0 | EO52: 0 | EP52: 0 | EQ52: 0 | ER52: 0 | ES52: 0 | ET52: 26 | EU52: 0 | EV52: 0 | EW52: 0 | EX52: 0 | EY52: 0 | EZ52: 0 | FA52: 0 | FB52: 0 | FC52: 0 | FD52: 0 | FE52: 0 | FF52: 0 | FG52: 0 | FH52: 0 | FI52: 0 | FJ52: 0 | FK52: 0 | FL52: 0 | FM52: 0 | FN52: 0 | FO52: 0 | FP52: 0 | FQ52: 0 | FR52: 0 | FS52: 0 | FT52: 1 | FU52: 0 | FV52: 0 | FW52: 0 | FX52: 0 | FY52: 0 | FZ52: 0 | GA52: 0 | GB52: 0 | GC52: 0 | GD52: 0 | GE52: 0 | GF52: 0 | GG52: 0 | GH52: 0 | GI52: 0 | GJ52: 0 | GK52: 0 | GL52: 0 | GM52: 0 | GN52: 0 | GO52: 0 | GP52: 0 | GQ52: 0 | GR52: 0 | GS52: 0 | GT52: 0 | GU52: 0 | GV52: 0 | GW52: 0 | GX52: 0 | GY52: 0 | GZ52: 0 | HA52: 0 | HB52: 0 | HC52: 0 | HD52: 0 | HE52: 13 | HF52: 7 | HG52: 13 | HH52: 8 | HI52: 24 | HJ52: 0 | HK52: 0 | HL52: 0 | HM52: 0 | HN52: 0 | HO52: 0 | HP52: 0 | HQ52: 0 | HR52: 0 | HS52: 24 | HT52: 0 | HU52: 0 | HV52: 0 | HW52: 0 | HX52: 0 | HY52: 0 | HZ52: 0 | IA52: 0 | IB52: 0 | IC52: 0 | ID52: 27 | IE52: 0 | IF52: 0 | IG52: 0 | IH52: 0 | II52: 0 | IJ52: 0 | IK52: 0 | IL52: 14 | IM52: 2 | IN52: 0 | IO52: 0 | IP52: 4 | IQ52: 2 | IR52: 1 | IS52: 3 | IT52: 1 | IU52: 2 | IV52: 5 | IW52: 0 | IX52: 0 | IY52: 0 | IZ52: 0 | JA52: 0 | JB52: 16 | JC52: 0 | JD52: 0 | JE52: 0 | JF52: 0 | JG52: 0 | JH52: 0 | JI52: 0 | JJ52: 0 | JK52: 0 | JL52: 0 | JM52: 0 | JN52: 0 | JO52: 0 | JP52: 0 | JQ52: 0 | JR52: 0 | JS52: 0 | JT52: 0 | JU52: 24 | JV52: 0 | JW52: 0 | JX52: 0 | JY52: 0 | JZ52: 0 | KA52: 0 | KB52: 0 | KC52: 0 | KD52: 0 | KE52: 24 | KF52: 0 | KG52: 0 | KH52: 0 | KI52: 0 | KJ52: 0 | KK52: 0 | KL52: 0 | KM52: 27 | KN52: 0 | KO52: 0 | KP52: 0 | KQ52: 0 | KR52: 0 | KS52: 0 | KT52: 0 | KU52: 0 | KV52: 0 | KW52: 0 | KX52: 0 | KY52: 0 | KZ52: 0 | LA52: 0 | LB52: 0 | LC52: 0 | LD52: 0 | LE52: 0 | LF52: 0 | LG52: 0 | LH52: 0 | LI52: 0 | LJ52: 1 | LK52: 0 | LL52: 0 | LM52: 0 | LN52: 0 | LO52: 4 | LP52: 5 | LQ52: 5 | LR52: 2 | LS52: 2 | LT52: 0 | LU52: 0 | LV52: 0 | LW52: 0 | LX52: 0 | LY52: 0 | LZ52: 0 | MA52: 0 | MB52: 0 | MC52: 0 | MD52: 0 | ME52: 0 | MF52: 0 | MG52: 0 | MH52: 0 | MI52: 0 | MJ52: 0 | MK52: 0 | ML52: 0 | MM52: 0 | MN52: 0 | MO52: 0 | MP52: 0 | MQ52: 0 | MR52: 0 | MS52: 0 | MT52: 0 | MU52: 0 | MV52: 0 | MW52: 0 | MX52: 0 | MY52: 0 | MZ52: 0 | NA52: 0 | NB52: 0 | NC52: 0 | ND52: 1 | NE52: 0 | NF52: 0 | NG52: 0 | NH52: 0 | NI52: 0 | NJ52: 0 | NK52: 0 | NL52: 0 | NM52: 0 | NN52: 0 | NO52: 0 | NP52: 0 | NQ52: 0 | NR52: 0 | NS52: 0 | NT52: 0 | NU52: 0 | NV52: 0 | NW52: 0 | NX52: 0 | NY52: 0 | NZ52: 0 | OA52: 0 | OB52: 0 | OC52: 1 | OD52: 0 | OE52: 0 | OF52: 3 | OG52: 3 | OH52: 0 | OI52: 1 | OJ52: 4 | OK52: 0 | OL52: 0 | OM52: 1 | ON52: 0 | OO52: 1 | OP52: 1 | OQ52: 0 | OR52: 1 | OS52: 3 | OT52: 0 | OU52: 0 | OV52: 1 | OW52: 0 | OX52: 0 | OY52: 0 | OZ52: 0 | PA52: 0 | PB52: 3 | PC52: 0 | PD52: 1 | PE52: 0 | PF52: 0 | PG52: 0 | PH52: 0 | PI52: 0 | PJ52: 0 | PK52: 0 | PL52: 0 | PM52: 0 | PN52: 8 | PO52: 2 | PP52: 1 | PQ52: 1 | PR52: 0 | PS52: 0 | PT52: 0 | PU52: 0 | PV52: 0 | PW52: 0 | PX52: 0 | PY52: 0 | PZ52: 0 | QA52: 0 | QB52: 0 | QC52: =SUM(E52:QB52)-SUM(PQ52:PT52)-SUM(PW52:PZ52) -> 465 | QE52: =SUM(E52:H52) -> 0.0 | QF52: =SUM(I52:BO52) -> 1.0 | QG52: =SUM(BP52:CW52) -> 41.0 | QH52: =SUM(CX52:DE52) -> 43.0 | QI52: =SUM(DF52:DT52) -> 40.0 | QJ52: =SUM(DU52:ET52) -> 43.0 | QK52: =SUM(EU52:FY52) -> 1.0 | QL52: =SUM(FZ52:HD52) -> 0.0 | QM52: =SUM(HE52:HF52) -> 20.0 | QN52: =SUM(HG52:HL52) -> 45.0 | QO52: =SUM(HM52:HR52) -> 0.0 | QP52: =SUM(HS52:IJ52) -> 51.0 | QQ52: =SUM(IK52:JA52) -> 34.0 | QR52: =SUM(JB52:JT52) -> 16.0 | QS52: =SUM(JU52:KD52) -> 24.0 | QT52: =SUM(KE52:KP52) -> 51.0 | QU52: =SUM(KQ52:MU52) -> 19.0 | QV52: =SUM(MV52:NG52) -> 1.0 | QW52: =SUM(NH52:NI52) -> 0.0 | QX52: =SUM(NJ52:NL52) -> 0.0 | QY52: =SUM(NM52:NO52) -> 0.0 | QZ52: =SUM(NP52) -> 0.0 | RA52: =SUM(NQ52) -> 0.0 | RB52: =SUM(NR52:NT52) -> 0.0 | RC52: =SUM(NU52) -> 0.0 | RD52: =SUM(NV52) -> 0.0 | RE52: =SUM(NW52:OB52) -> 0.0 | RF52: =SUM(OC52:PE52) -> 24.0 | RG52: =SUM(PF52:PG52) -> 0.0 | RH52: =SUM(PH52:PI52) -> 0.0 | RI52: =SUM(PJ52:PM52) -> 0.0 | RJ52: =SUM(PN52:PP52) -> 11.0 | RK52: =SUM(PQ52) -> 1.0 | RL52: =SUM(PR52) -> 0.0 | RM52: =SUM(PS52) -> 0.0 | RN52: 0 | RO52: 0 | RP52: 0 | RQ52: =SUM(PW52) -> 0.0 | RR52: =SUM(PX52) -> 0.0 | RS52: =SUM(PY52) -> 0.0 | RT52: =SUM(PZ52) -> 0.0 | RU52: =SUM(QA52) -> 0.0 | RV52: =SUM(QB52) -> 0.0 | RW52: =SUM(QE52:RU52)-SUM(RI52:RM52)-SUM(RQ52:RT52) -> 454.0 | RX52: =+SR52+RW57+SE52+'2_MERCADO_PRIVADO'!TA52 -> 130 | RY52: 0 | RZ52: 0 | SA52: 0 | SB52: 2 | SC52: 14 | SD52: 0 | SE52: 16 | SN52: 2 | SU52: =SF52+SG52 -> 0 | SV52: =SH52+SI52+SJ52+SK52+SL52+SM52+SN52+SO52+SP52 -> 2 | SW52: =SQ52 -> 0 | SX52: =SR52 -> 0 | SY52: =SS52 -> 0 | TQ52: =M52+DH52+'2_MERCADO_PRIVADO'!BW52+'2_MERCADO_PRIVADO'!G52 -> 19 | TR52: =DH52+'2_MERCADO_PRIVADO'!AP52+'2_MERCADO_PRIVADO'!BW52 -> 19 | TS52: =BR52+'2_MERCADO_PRIVADO'!AP52+'2_MERCADO_PRIVADO'!BW52+'2_MERCADO_PRIVADO'!DD52 -> 19 | TT52: =CH52+CX52+'2_MERCADO_PRIVADO'!BF52+'2_MERCADO_PRIVADO'!CM52+'2_MERCADO_PRIVADO'!DT52 -> 16 | TU52: =CO52+DE52+'2_MERCADO_PRIVADO'!BM52+'2_MERCADO_PRIVADO'!CT52+'2_MERCADO_PRIVADO'!EA52 -> 27
D53: SUBSIDIADO | E53: 0 | F53: 0 | G53: 0 | H53: 0 | I53: 0 | J53: 0 | K53: 0 | L53: 0 | M53: 0 | N53: 0 | O53: 0 | P53: 1 | Q53: 0 | R53: 0 | S53: 0 | T53: 0 | U53: 0 | V53: 0 | W53: 0 | X53: 0 | Y53: 0 | Z53: 0 | AA53: 0 | AB53: 0 | AC53: 0 | AD53: 0 | AE53: 0 | AF53: 0 | AG53: 0 | AH53: 0 | AI53: 0 | AJ53: 0 | AK53: 0 | AL53: 0 | AM53: 0 | AN53: 0 | AO53: 0 | AP53: 0 | AQ53: 0 | AR53: 0 | AS53: 0 | AT53: 0 | AU53: 0 | AV53: 0 | AW53: 0 | AX53: 0 | AY53: 0 | AZ53: 0 | BA53: 0 | BB53: 0 | BC53: 0 | BD53: 0 | BE53: 0 | BF53: 0 | BG53: 0 | BH53: 0 | BI53: 0 | BJ53: 0 | BK53: 0 | BL53: 0 | BM53: 0 | BN53: 0 | BO53: 0 | BP53: 18 | BQ53: 25 | BR53: 27 | BS53: 0 | BT53: 0 | BU53: 1 | BV53: 0 | BW53: 0 | BX53: 0 | BY53: 0 | BZ53: 0 | CA53: 0 | CB53: 0 | CC53: 0 | CD53: 0 | CE53: 0 | CF53: 0 | CG53: 0 | CH53: 1 | CI53: 0 | CJ53: 0 | CK53: 0 | CL53: 0 | CM53: 0 | CN53: 0 | CO53: 1 | CP53: 0 | CQ53: 0 | CR53: 0 | CS53: 0 | CT53: 0 | CU53: 0 | CV53: 0 | CW53: 0 | CX53: 27 | CY53: 1 | CZ53: 0 | DA53: 0 | DB53: 0 | DC53: 0 | DD53: 0 | DE53: 15 | DF53: 18 | DG53: 25 | DH53: 27 | DI53: 0 | DJ53: 0 | DK53: 0 | DL53: 0 | DM53: 0 | DN53: 0 | DO53: 0 | DP53: 0 | DQ53: 0 | DR53: 0 | DS53: 0 | DT53: 0 | DU53: 0 | DV53: 0 | DW53: 0 | DX53: 0 | DY53: 0 | DZ53: 1 | EA53: 0 | EB53: 0 | EC53: 0 | ED53: 0 | EE53: 0 | EF53: 0 | EG53: 0 | EH53: 0 | EI53: 0 | EJ53: 0 | EK53: 0 | EL53: 0 | EM53: 28 | EN53: 1 | EO53: 0 | EP53: 0 | EQ53: 0 | ER53: 0 | ES53: 0 | ET53: 16 | EU53: 0 | EV53: 0 | EW53: 0 | EX53: 0 | EY53: 0 | EZ53: 0 | FA53: 0 | FB53: 0 | FC53: 0 | FD53: 0 | FE53: 0 | FF53: 0 | FG53: 0 | FH53: 0 | FI53: 0 | FJ53: 0 | FK53: 0 | FL53: 0 | FM53: 0 | FN53: 0 | FO53: 0 | FP53: 0 | FQ53: 0 | FR53: 0 | FS53: 0 | FT53: 0 | FU53: 0 | FV53: 0 | FW53: 0 | FX53: 0 | FY53: 0 | FZ53: 0 | GA53: 0 | GB53: 0 | GC53: 0 | GD53: 0 | GE53: 0 | GF53: 0 | GG53: 0 | GH53: 0 | GI53: 0 | GJ53: 0 | GK53: 0 | GL53: 0 | GM53: 0 | GN53: 0 | GO53: 0 | GP53: 0 | GQ53: 0 | GR53: 0 | GS53: 0 | GT53: 0 | GU53: 0 | GV53: 0 | GW53: 0 | GX53: 0 | GY53: 0 | GZ53: 0 | HA53: 0 | HB53: 0 | HC53: 0 | HD53: 0 | HE53: 18 | HF53: 24 | HG53: 18 | HH53: 25 | HI53: 25 | HJ53: 0 | HK53: 0 | HL53: 0 | HM53: 0 | HN53: 0 | HO53: 0 | HP53: 0 | HQ53: 0 | HR53: 0 | HS53: 25 | HT53: 0 | HU53: 0 | HV53: 0 | HW53: 0 | HX53: 0 | HY53: 0 | HZ53: 0 | IA53: 0 | IB53: 0 | IC53: 0 | ID53: 16 | IE53: 0 | IF53: 0 | IG53: 0 | IH53: 0 | II53: 0 | IJ53: 0 | IK53: 0 | IL53: 29 | IM53: 1 | IN53: 4 | IO53: 2 | IP53: 3 | IQ53: 4 | IR53: 5 | IS53: 4 | IT53: 3 | IU53: 6 | IV53: 3 | IW53: 1 | IX53: 0 | IY53: 0 | IZ53: 0 | JA53: 0 | JB53: 29 | JC53: 1 | JD53: 0 | JE53: 0 | JF53: 0 | JG53: 0 | JH53: 0 | JI53: 0 | JJ53: 0 | JK53: 0 | JL53: 0 | JM53: 0 | JN53: 0 | JO53: 0 | JP53: 0 | JQ53: 0 | JR53: 0 | JS53: 0 | JT53: 0 | JU53: 25 | JV53: 0 | JW53: 0 | JX53: 0 | JY53: 0 | JZ53: 0 | KA53: 0 | KB53: 1 | KC53: 0 | KD53: 0 | KE53: 25 | KF53: 0 | KG53: 0 | KH53: 0 | KI53: 0 | KJ53: 0 | KK53: 0 | KL53: 0 | KM53: 16 | KN53: 0 | KO53: 1 | KP53: 0 | KQ53: 0 | KR53: 0 | KS53: 0 | KT53: 0 | KU53: 1 | KV53: 0 | KW53: 0 | KX53: 0 | KY53: 0 | KZ53: 0 | LA53: 6 | LB53: 1 | LC53: 1 | LD53: 0 | LE53: 0 | LF53: 0 | LG53: 0 | LH53: 0 | LI53: 0 | LJ53: 1 | LK53: 1 | LL53: 0 | LM53: 0 | LN53: 0 | LO53: 2 | LP53: 2 | LQ53: 3 | LR53: 3 | LS53: 1 | LT53: 1 | LU53: 0 | LV53: 0 | LW53: 0 | LX53: 0 | LY53: 0 | LZ53: 0 | MA53: 0 | MB53: 0 | MC53: 0 | MD53: 0 | ME53: 0 | MF53: 0 | MG53: 0 | MH53: 0 | MI53: 0 | MJ53: 0 | MK53: 0 | ML53: 0 | MM53: 0 | MN53: 0 | MO53: 0 | MP53: 0 | MQ53: 0 | MR53: 0 | MS53: 0 | MT53: 0 | MU53: 0 | MV53: 0 | MW53: 1 | MX53: 1 | MY53: 0 | MZ53: 0 | NA53: 0 | NB53: 2 | NC53: 2 | ND53: 7 | NE53: 2 | NF53: 1 | NG53: 1 | NH53: 0 | NI53: 0 | NJ53: 0 | NK53: 0 | NL53: 0 | NM53: 0 | NN53: 0 | NO53: 0 | NP53: 0 | NQ53: 0 | NR53: 0 | NS53: 0 | NT53: 0 | NU53: 0 | NV53: 0 | NW53: 0 | NX53: 0 | NY53: 0 | NZ53: 0 | OA53: 0 | OB53: 0 | OC53: 6 | OD53: 1 | OE53: 0 | OF53: 5 | OG53: 1 | OH53: 0 | OI53: 3 | OJ53: 3 | OK53: 0 | OL53: 2 | OM53: 4 | ON53: 0 | OO53: 2 | OP53: 1 | OQ53: 0 | OR53: 3 | OS53: 0 | OT53: 0 | OU53: 2 | OV53: 0 | OW53: 0 | OX53: 1 | OY53: 1 | OZ53: 0 | PA53: 0 | PB53: 0 | PC53: 0 | PD53: 1 | PE53: 0 | PF53: 0 | PG53: 0 | PH53: 0 | PI53: 0 | PJ53: 0 | PK53: 0 | PL53: 0 | PM53: 0 | PN53: 4 | PO53: 1 | PP53: 2 | PQ53: 2 | PR53: 0 | PS53: 0 | PT53: 0 | PU53: 0 | PV53: 0 | PW53: 0 | PX53: 0 | PY53: 0 | PZ53: 0 | QA53: 0 | QB53: 0 | QC53: =SUM(E53:QB53)-SUM(PQ53:PT53)-SUM(PW53:PZ53) -> 630 | QE53: 0.0 | QF53: 1.0 | QG53: 73.0 | QH53: 43.0 | QI53: 70.0 | QJ53: 46.0 | QK53: 0.0 | QL53: 0.0 | QM53: 42.0 | QN53: 68.0 | QO53: 0.0 | QP53: 41.0 | QQ53: 65.0 | QR53: 30.0 | QS53: 26.0 | QT53: 42.0 | QU53: 23.0 | QV53: 17.0 | QW53: 0.0 | QX53: 0.0 | QY53: 0.0 | QZ53: 0.0 | RA53: 0.0 | RB53: 0.0 | RC53: 0.0 | RD53: 0.0 | RE53: 0.0 | RF53: 36.0 | RG53: 0.0 | RH53: 0.0 | RI53: 0.0 | RJ53: 7.0 | RK53: 2.0 | RL53: 0.0 | RM53: 0.0 | RN53: 0 | RO53: 0 | RP53: 0 | RQ53: 0.0 | RR53: 0.0 | RS53: 0.0 | RT53: 0.0 | RU53: 0.0 | RV53: 0.0 | RW53: 623.0 | RX53: =+SR53+RW58+SE53+'2_MERCADO_PRIVADO'!TA53 -> 23 | RY53: 0 | RZ53: 0 | SA53: 0 | SB53: 2 | SC53: 21 | SD53: 0 | SE53: 23 | SN53: 0 | SU53: 0 | SV53: 0 | SW53: 0 | SX53: 0 | SY53: 0 | TQ53: =M53+DH53+'2_MERCADO_PRIVADO'!BW53+'2_MERCADO_PRIVADO'!G53 -> 27 | TR53: =DH53+'2_MERCADO_PRIVADO'!AP53+'2_MERCADO_PRIVADO'!BW53 -> 27 | TS53: =BR53+'2_MERCADO_PRIVADO'!AP53+'2_MERCADO_PRIVADO'!BW53+'2_MERCADO_PRIVADO'!DD53 -> 27 | TT53: =CH53+CX53+'2_MERCADO_PRIVADO'!BF53+'2_MERCADO_PRIVADO'!CM53+'2_MERCADO_PRIVADO'!DT53 -> 28 | TU53: =CO53+DE53+'2_MERCADO_PRIVADO'!BM53+'2_MERCADO_PRIVADO'!CT53+'2_MERCADO_PRIVADO'!EA53 -> 16
D54: POBRE NO ASEGURADO | E54: 0 | F54: 1 | G54: 2 | H54: 0 | I54: 0 | J54: 0 | K54: 0 | L54: 0 | M54: 0 | N54: 0 | O54: 7 | P54: 5 | Q54: 1 | R54: 0 | S54: 2 | T54: 0 | U54: 0 | V54: 0 | W54: 0 | X54: 0 | Y54: 0 | Z54: 0 | AA54: 1 | AB54: 0 | AC54: 0 | AD54: 0 | AE54: 0 | AF54: 0 | AG54: 0 | AH54: 0 | AI54: 0 | AJ54: 0 | AK54: 0 | AL54: 0 | AM54: 0 | AN54: 0 | AO54: 0 | AP54: 0 | AQ54: 0 | AR54: 0 | AS54: 0 | AT54: 0 | AU54: 0 | AV54: 0 | AW54: 0 | AX54: 0 | AY54: 0 | AZ54: 0 | BA54: 0 | BB54: 0 | BC54: 0 | BD54: 0 | BE54: 0 | BF54: 0 | BG54: 0 | BH54: 0 | BI54: 0 | BJ54: 0 | BK54: 0 | BL54: 0 | BM54: 0 | BN54: 0 | BO54: 0 | BP54: 13 | BQ54: 21 | BR54: 9 | BS54: 1 | BT54: 7 | BU54: 5 | BV54: 1 | BW54: 0 | BX54: 2 | BY54: 0 | BZ54: 0 | CA54: 0 | CB54: 0 | CC54: 0 | CD54: 0 | CE54: 0 | CF54: 1 | CG54: 0 | CH54: 0 | CI54: 0 | CJ54: 0 | CK54: 0 | CL54: 1 | CM54: 0 | CN54: 0 | CO54: 2 | CP54: 0 | CQ54: 0 | CR54: 0 | CS54: 0 | CT54: 0 | CU54: 0 | CV54: 0 | CW54: 0 | CX54: 12 | CY54: 3 | CZ54: 6 | DA54: 4 | DB54: 1 | DC54: 0 | DD54: 0 | DE54: 18 | DF54: 14 | DG54: 21 | DH54: 8 | DI54: 1 | DJ54: 0 | DK54: 0 | DL54: 0 | DM54: 0 | DN54: 0 | DO54: 0 | DP54: 0 | DQ54: 0 | DR54: 0 | DS54: 0 | DT54: 0 | DU54: 0 | DV54: 0 | DW54: 0 | DX54: 1 | DY54: 6 | DZ54: 5 | EA54: 1 | EB54: 0 | EC54: 2 | ED54: 0 | EE54: 0 | EF54: 0 | EG54: 0 | EH54: 0 | EI54: 0 | EJ54: 0 | EK54: 1 | EL54: 0 | EM54: 12 | EN54: 3 | EO54: 6 | EP54: 3 | EQ54: 2 | ER54: 0 | ES54: 0 | ET54: 20 | EU54: 0 | EV54: 0 | EW54: 0 | EX54: 0 | EY54: 0 | EZ54: 0 | FA54: 0 | FB54: 0 | FC54: 0 | FD54: 0 | FE54: 0 | FF54: 0 | FG54: 0 | FH54: 0 | FI54: 0 | FJ54: 0 | FK54: 0 | FL54: 0 | FM54: 0 | FN54: 0 | FO54: 0 | FP54: 0 | FQ54: 0 | FR54: 0 | FS54: 0 | FT54: 0 | FU54: 0 | FV54: 0 | FW54: 0 | FX54: 0 | FY54: 0 | FZ54: 0 | GA54: 0 | GB54: 0 | GC54: 0 | GD54: 0 | GE54: 0 | GF54: 0 | GG54: 0 | GH54: 0 | GI54: 0 | GJ54: 0 | GK54: 0 | GL54: 0 | GM54: 0 | GN54: 0 | GO54: 0 | GP54: 0 | GQ54: 0 | GR54: 0 | GS54: 0 | GT54: 0 | GU54: 0 | GV54: 0 | GW54: 0 | GX54: 0 | GY54: 0 | GZ54: 0 | HA54: 0 | HB54: 0 | HC54: 0 | HD54: 0 | HE54: 11 | HF54: 13 | HG54: 14 | HH54: 22 | HI54: 11 | HJ54: 3 | HK54: 12 | HL54: 14 | HM54: 0 | HN54: 0 | HO54: 0 | HP54: 0 | HQ54: 0 | HR54: 0 | HS54: 18 | HT54: 4 | HU54: 1 | HV54: 3 | HW54: 1 | HX54: 0 | HY54: 0 | HZ54: 0 | IA54: 0 | IB54: 0 | IC54: 0 | ID54: 22 | IE54: 2 | IF54: 2 | IG54: 1 | IH54: 1 | II54: 0 | IJ54: 0 | IK54: 0 | IL54: 15 | IM54: 4 | IN54: 4 | IO54: 9 | IP54: 2 | IQ54: 1 | IR54: 3 | IS54: 4 | IT54: 4 | IU54: 8 | IV54: 0 | IW54: 0 | IX54: 0 | IY54: 0 | IZ54: 0 | JA54: 0 | JB54: 14 | JC54: 4 | JD54: 1 | JE54: 3 | JF54: 1 | JG54: 0 | JH54: 0 | JI54: 1 | JJ54: 1 | JK54: 0 | JL54: 0 | JM54: 0 | JN54: 0 | JO54: 0 | JP54: 0 | JQ54: 0 | JR54: 0 | JS54: 0 | JT54: 0 | JU54: 18 | JV54: 4 | JW54: 2 | JX54: 6 | JY54: 2 | JZ54: 1 | KA54: 3 | KB54: 2 | KC54: 1 | KD54: 1 | KE54: 18 | KF54: 4 | KG54: 2 | KH54: 6 | KI54: 3 | KJ54: 1 | KK54: 3 | KL54: 0 | KM54: 20 | KN54: 2 | KO54: 0 | KP54: 0 | KQ54: 0 | KR54: 0 | KS54: 0 | KT54: 1 | KU54: 1 | KV54: 1 | KW54: 0 | KX54: 0 | KY54: 0 | KZ54: 0 | LA54: 10 | LB54: 7 | LC54: 1 | LD54: 0 | LE54: 0 | LF54: 0 | LG54: 0 | LH54: 0 | LI54: 0 | LJ54: 2 | LK54: 0 | LL54: 0 | LM54: 0 | LN54: 0 | LO54: 2 | LP54: 1 | LQ54: 0 | LR54: 1 | LS54: 0 | LT54: 0 | LU54: 0 | LV54: 0 | LW54: 0 | LX54: 0 | LY54: 0 | LZ54: 0 | MA54: 0 | MB54: 0 | MC54: 0 | MD54: 0 | ME54: 0 | MF54: 0 | MG54: 0 | MH54: 0 | MI54: 0 | MJ54: 0 | MK54: 0 | ML54: 0 | MM54: 0 | MN54: 0 | MO54: 0 | MP54: 0 | MQ54: 0 | MR54: 0 | MS54: 0 | MT54: 0 | MU54: 0 | MV54: 0 | MW54: 0 | MX54: 1 | MY54: 0 | MZ54: 0 | NA54: 0 | NB54: 1 | NC54: 5 | ND54: 0 | NE54: 0 | NF54: 0 | NG54: 0 | NH54: 0 | NI54: 0 | NJ54: 0 | NK54: 0 | NL54: 0 | NM54: 0 | NN54: 0 | NO54: 0 | NP54: 0 | NQ54: 0 | NR54: 0 | NS54: 0 | NT54: 0 | NU54: 0 | NV54: 0 | NW54: 0 | NX54: 0 | NY54: 0 | NZ54: 0 | OA54: 0 | OB54: 0 | OC54: 5 | OD54: 0 | OE54: 0 | OF54: 3 | OG54: 4 | OH54: 0 | OI54: 0 | OJ54: 0 | OK54: 0 | OL54: 4 | OM54: 2 | ON54: 0 | OO54: 6 | OP54: 0 | OQ54: 0 | OR54: 1 | OS54: 1 | OT54: 0 | OU54: 3 | OV54: 0 | OW54: 0 | OX54: 1 | OY54: 0 | OZ54: 0 | PA54: 1 | PB54: 1 | PC54: 0 | PD54: 0 | PE54: 0 | PF54: 0 | PG54: 0 | PH54: 0 | PI54: 0 | PJ54: 0 | PK54: 0 | PL54: 0 | PM54: 0 | PN54: 5 | PO54: 0 | PP54: 0 | PQ54: 0 | PR54: 0 | PS54: 0 | PT54: 0 | PU54: 0 | PV54: 0 | PW54: 0 | PX54: 0 | PY54: 0 | PZ54: 0 | QA54: 0 | QB54: 0 | QC54: =SUM(E54:QB54)-SUM(PQ54:PT54)-SUM(PW54:PZ54) -> 636 | QE54: 3.0 | QF54: 16.0 | QG54: 63.0 | QH54: 44.0 | QI54: 44.0 | QJ54: 62.0 | QK54: 0.0 | QL54: 0.0 | QM54: 24.0 | QN54: 76.0 | QO54: 0.0 | QP54: 55.0 | QQ54: 54.0 | QR54: 25.0 | QS54: 40.0 | QT54: 59.0 | QU54: 27.0 | QV54: 7.0 | QW54: 0.0 | QX54: 0.0 | QY54: 0.0 | QZ54: 0.0 | RA54: 0.0 | RB54: 0.0 | RC54: 0.0 | RD54: 0.0 | RE54: 0.0 | RF54: 32.0 | RG54: 0.0 | RH54: 0.0 | RI54: 0.0 | RJ54: 5.0 | RK54: 0.0 | RL54: 0.0 | RM54: 0.0 | RN54: 0 | RO54: 0 | RP54: 0 | RQ54: 0.0 | RR54: 0.0 | RS54: 0.0 | RT54: 0.0 | RU54: 0.0 | RV54: 0.0 | RW54: 631.0 | RX54: =+SR54+RW59+SE54+'2_MERCADO_PRIVADO'!TA54 -> 9 | RY54: 0 | RZ54: 4 | SA54: 0 | SB54: 1 | SC54: 4 | SD54: 0 | SE54: 9 | SN54: 0 | SU54: 0 | SV54: 0 | SW54: 0 | SX54: 0 | SY54: 0 | TQ54: =M54+DH54+'2_MERCADO_PRIVADO'!BW54+'2_MERCADO_PRIVADO'!G54 -> 8 | TR54: =DH54+'2_MERCADO_PRIVADO'!AP54+'2_MERCADO_PRIVADO'!BW54 -> 8 | TS54: =BR54+'2_MERCADO_PRIVADO'!AP54+'2_MERCADO_PRIVADO'!BW54+'2_MERCADO_PRIVADO'!DD54 -> 9 | TT54: =CH54+CX54+'2_MERCADO_PRIVADO'!BF54+'2_MERCADO_PRIVADO'!CM54+'2_MERCADO_PRIVADO'!DT54 -> 12 | TU54: =CO54+DE54+'2_MERCADO_PRIVADO'!BM54+'2_MERCADO_PRIVADO'!CT54+'2_MERCADO_PRIVADO'!EA54 -> 20
D55: REGIMEN ESPECIAL | E55: 0 | F55: 0 | G55: 0 | H55: 0 | I55: 0 | J55: 0 | K55: 0 | L55: 0 | M55: 0 | N55: 0 | O55: 0 | P55: 0 | Q55: 0 | R55: 0 | S55: 0 | T55: 0 | U55: 0 | V55: 0 | W55: 0 | X55: 0 | Y55: 0 | Z55: 0 | AA55: 0 | AB55: 0 | AC55: 0 | AD55: 0 | AE55: 0 | AF55: 0 | AG55: 0 | AH55: 0 | AI55: 0 | AJ55: 0 | AK55: 0 | AL55: 0 | AM55: 0 | AN55: 0 | AO55: 0 | AP55: 0 | AQ55: 0 | AR55: 0 | AS55: 0 | AT55: 0 | AU55: 0 | AV55: 0 | AW55: 0 | AX55: 0 | AY55: 0 | AZ55: 0 | BA55: 0 | BB55: 0 | BC55: 0 | BD55: 0 | BE55: 0 | BF55: 0 | BG55: 0 | BH55: 0 | BI55: 0 | BJ55: 0 | BK55: 0 | BL55: 0 | BM55: 0 | BN55: 0 | BO55: 0 | BP55: 0 | BQ55: 1 | BR55: 2 | BS55: 0 | BT55: 0 | BU55: 0 | BV55: 0 | BW55: 0 | BX55: 0 | BY55: 0 | BZ55: 0 | CA55: 0 | CB55: 0 | CC55: 0 | CD55: 0 | CE55: 0 | CF55: 0 | CG55: 0 | CH55: 0 | CI55: 0 | CJ55: 0 | CK55: 0 | CL55: 0 | CM55: 0 | CN55: 0 | CO55: 0 | CP55: 0 | CQ55: 0 | CR55: 0 | CS55: 0 | CT55: 0 | CU55: 0 | CV55: 0 | CW55: 0 | CX55: 0 | CY55: 0 | CZ55: 0 | DA55: 0 | DB55: 0 | DC55: 0 | DD55: 0 | DE55: 2 | DF55: 0 | DG55: 1 | DH55: 2 | DI55: 0 | DJ55: 0 | DK55: 0 | DL55: 0 | DM55: 0 | DN55: 0 | DO55: 0 | DP55: 0 | DQ55: 0 | DR55: 0 | DS55: 0 | DT55: 0 | DU55: 0 | DV55: 0 | DW55: 0 | DX55: 0 | DY55: 0 | DZ55: 0 | EA55: 0 | EB55: 0 | EC55: 0 | ED55: 0 | EE55: 0 | EF55: 0 | EG55: 0 | EH55: 0 | EI55: 0 | EJ55: 0 | EK55: 0 | EL55: 0 | EM55: 0 | EN55: 0 | EO55: 0 | EP55: 0 | EQ55: 0 | ER55: 0 | ES55: 0 | ET55: 2 | EU55: 0 | EV55: 0 | EW55: 0 | EX55: 0 | EY55: 0 | EZ55: 0 | FA55: 0 | FB55: 0 | FC55: 0 | FD55: 0 | FE55: 0 | FF55: 0 | FG55: 0 | FH55: 0 | FI55: 0 | FJ55: 0 | FK55: 0 | FL55: 0 | FM55: 0 | FN55: 0 | FO55: 0 | FP55: 0 | FQ55: 0 | FR55: 0 | FS55: 0 | FT55: 0 | FU55: 0 | FV55: 0 | FW55: 0 | FX55: 0 | FY55: 0 | FZ55: 0 | GA55: 0 | GB55: 0 | GC55: 0 | GD55: 0 | GE55: 0 | GF55: 0 | GG55: 0 | GH55: 0 | GI55: 0 | GJ55: 0 | GK55: 0 | GL55: 0 | GM55: 0 | GN55: 0 | GO55: 0 | GP55: 0 | GQ55: 0 | GR55: 0 | GS55: 0 | GT55: 0 | GU55: 0 | GV55: 0 | GW55: 0 | GX55: 0 | GY55: 0 | GZ55: 0 | HA55: 0 | HB55: 0 | HC55: 0 | HD55: 0 | HE55: 0 | HF55: 1 | HG55: 0 | HH55: 1 | HI55: 0 | HJ55: 0 | HK55: 0 | HL55: 0 | HM55: 0 | HN55: 0 | HO55: 0 | HP55: 0 | HQ55: 0 | HR55: 0 | HS55: 0 | HT55: 0 | HU55: 0 | HV55: 0 | HW55: 0 | HX55: 0 | HY55: 0 | HZ55: 0 | IA55: 0 | IB55: 0 | IC55: 0 | ID55: 2 | IE55: 0 | IF55: 0 | IG55: 0 | IH55: 0 | II55: 0 | IJ55: 0 | IK55: 0 | IL55: 0 | IM55: 0 | IN55: 0 | IO55: 0 | IP55: 0 | IQ55: 0 | IR55: 0 | IS55: 0 | IT55: 0 | IU55: 0 | IV55: 0 | IW55: 0 | IX55: 0 | IY55: 0 | IZ55: 0 | JA55: 0 | JB55: 0 | JC55: 0 | JD55: 0 | JE55: 0 | JF55: 0 | JG55: 0 | JH55: 0 | JI55: 0 | JJ55: 0 | JK55: 0 | JL55: 0 | JM55: 0 | JN55: 0 | JO55: 0 | JP55: 0 | JQ55: 0 | JR55: 0 | JS55: 0 | JT55: 0 | JU55: 0 | JV55: 0 | JW55: 0 | JX55: 0 | JY55: 0 | JZ55: 0 | KA55: 0 | KB55: 0 | KC55: 0 | KD55: 0 | KE55: 0 | KF55: 0 | KG55: 0 | KH55: 0 | KI55: 0 | KJ55: 0 | KK55: 0 | KL55: 0 | KM55: 2 | KN55: 0 | KO55: 0 | KP55: 0 | KQ55: 0 | KR55: 0 | KS55: 0 | KT55: 0 | KU55: 0 | KV55: 0 | KW55: 0 | KX55: 0 | KY55: 0 | KZ55: 0 | LA55: 0 | LB55: 0 | LC55: 0 | LD55: 0 | LE55: 0 | LF55: 0 | LG55: 0 | LH55: 0 | LI55: 0 | LJ55: 0 | LK55: 0 | LL55: 0 | LM55: 0 | LN55: 0 | LO55: 0 | LP55: 0 | LQ55: 0 | LR55: 0 | LS55: 0 | LT55: 0 | LU55: 0 | LV55: 0 | LW55: 0 | LX55: 0 | LY55: 0 | LZ55: 0 | MA55: 0 | MB55: 0 | MC55: 0 | MD55: 0 | ME55: 0 | MF55: 0 | MG55: 0 | MH55: 0 | MI55: 0 | MJ55: 0 | MK55: 0 | ML55: 0 | MM55: 0 | MN55: 0 | MO55: 0 | MP55: 0 | MQ55: 0 | MR55: 0 | MS55: 0 | MT55: 0 | MU55: 0 | MV55: 0 | MW55: 0 | MX55: 0 | MY55: 0 | MZ55: 0 | NA55: 0 | NB55: 0 | NC55: 0 | ND55: 0 | NE55: 0 | NF55: 0 | NG55: 0 | NH55: 0 | NI55: 0 | NJ55: 0 | NK55: 0 | NL55: 0 | NM55: 0 | NN55: 0 | NO55: 0 | NP55: 0 | NQ55: 0 | NR55: 0 | NS55: 0 | NT55: 0 | NU55: 0 | NV55: 0 | NW55: 0 | NX55: 0 | NY55: 0 | NZ55: 0 | OA55: 0 | OB55: 0 | OC55: 0 | OD55: 0 | OE55: 0 | OF55: 1 | OG55: 0 | OH55: 0 | OI55: 0 | OJ55: 0 | OK55: 0 | OL55: 0 | OM55: 0 | ON55: 0 | OO55: 0 | OP55: 0 | OQ55: 0 | OR55: 0 | OS55: 0 | OT55: 0 | OU55: 0 | OV55: 0 | OW55: 0 | OX55: 0 | OY55: 0 | OZ55: 0 | PA55: 0 | PB55: 0 | PC55: 0 | PD55: 0 | PE55: 0 | PF55: 0 | PG55: 0 | PH55: 0 | PI55: 0 | PJ55: 0 | PK55: 0 | PL55: 0 | PM55: 0 | PN55: 0 | PO55: 0 | PP55: 0 | PQ55: 0 | PR55: 0 | PS55: 0 | PT55: 0 | PU55: 0 | PV55: 0 | PW55: 0 | PX55: 0 | PY55: 0 | PZ55: 0 | QA55: 0 | QB55: 0 | QC55: =SUM(E55:QB55)-SUM(PQ55:PT55)-SUM(PW55:PZ55) -> 17 | QE55: 0.0 | QF55: 0.0 | QG55: 3.0 | QH55: 2.0 | QI55: 3.0 | QJ55: 2.0 | QK55: 0.0 | QL55: 0.0 | QM55: 1.0 | QN55: 1.0 | QO55: 0.0 | QP55: 2.0 | QQ55: 0.0 | QR55: 0.0 | QS55: 0.0 | QT55: 2.0 | QU55: 0.0 | QV55: 0.0 | QW55: 0.0 | QX55: 0.0 | QY55: 0.0 | QZ55: 0.0 | RA55: 0.0 | RB55: 0.0 | RC55: 0.0 | RD55: 0.0 | RE55: 0.0 | RF55: 1.0 | RG55: 0.0 | RH55: 0.0 | RI55: 0.0 | RJ55: 0.0 | RK55: 0.0 | RL55: 0.0 | RM55: 0.0 | RN55: 0 | RO55: 0 | RP55: 0 | RQ55: 0.0 | RR55: 0.0 | RS55: 0.0 | RT55: 0.0 | RU55: 0.0 | RV55: 0.0 | RW55: 17.0 | RX55: =+SR55+RW60+SE55+'2_MERCADO_PRIVADO'!TA55 -> 0 | RY55: 0 | RZ55: 0 | SA55: 0 | SB55: 0 | SC55: 0 | SD55: 0 | SE55: 0 | SN55: 0 | SU55: 0 | SV55: 0 | SW55: 0 | SX55: 0 | SY55: 0 | TQ55: =M55+DH55+'2_MERCADO_PRIVADO'!BW55+'2_MERCADO_PRIVADO'!G55 -> 2 | TR55: =DH55+'2_MERCADO_PRIVADO'!AP55+'2_MERCADO_PRIVADO'!BW55 -> 2 | TS55: =BR55+'2_MERCADO_PRIVADO'!AP55+'2_MERCADO_PRIVADO'!BW55+'2_MERCADO_PRIVADO'!DD55 -> 2 | TT55: =CH55+CX55+'2_MERCADO_PRIVADO'!BF55+'2_MERCADO_PRIVADO'!CM55+'2_MERCADO_PRIVADO'!DT55 -> 0 | TU55: =CO55+DE55+'2_MERCADO_PRIVADO'!BM55+'2_MERCADO_PRIVADO'!CT55+'2_MERCADO_PRIVADO'!EA55 -> 2
D56: TOTAL REGIMEN | E56: 0 | F56: 1 | G56: 2 | H56: 0 | I56: 0 | J56: 0 | K56: 0 | L56: 0 | M56: 0 | N56: 0 | O56: 7 | P56: 6 | Q56: 1 | R56: 1 | S56: 2 | T56: 0 | U56: 0 | V56: 0 | W56: 0 | X56: 0 | Y56: 0 | Z56: 0 | AA56: 1 | AB56: 0 | AC56: 0 | AD56: 0 | AE56: 0 | AF56: 0 | AG56: 0 | AH56: 0 | AI56: 0 | AJ56: 0 | AK56: 0 | AL56: 0 | AM56: 0 | AN56: 0 | AO56: 0 | AP56: 0 | AQ56: 0 | AR56: 0 | AS56: 0 | AT56: 0 | AU56: 0 | AV56: 0 | AW56: 0 | AX56: 0 | AY56: 0 | AZ56: 0 | BA56: 0 | BB56: 0 | BC56: 0 | BD56: 0 | BE56: 0 | BF56: 0 | BG56: 0 | BH56: 0 | BI56: 0 | BJ56: 0 | BK56: 0 | BL56: 0 | BM56: 0 | BN56: 0 | BO56: 0 | BP56: 44 | BQ56: 55 | BR56: 57 | BS56: 1 | BT56: 7 | BU56: 6 | BV56: 1 | BW56: 1 | BX56: 2 | BY56: 0 | BZ56: 0 | CA56: 0 | CB56: 0 | CC56: 0 | CD56: 0 | CE56: 0 | CF56: 1 | CG56: 0 | CH56: 1 | CI56: 0 | CJ56: 0 | CK56: 0 | CL56: 1 | CM56: 0 | CN56: 0 | CO56: 3 | CP56: 0 | CQ56: 0 | CR56: 0 | CS56: 0 | CT56: 0 | CU56: 0 | CV56: 0 | CW56: 0 | CX56: 55 | CY56: 4 | CZ56: 6 | DA56: 4 | DB56: 1 | DC56: 0 | DD56: 0 | DE56: 62 | DF56: 45 | DG56: 55 | DH56: 56 | DI56: 1 | DJ56: 0 | DK56: 0 | DL56: 0 | DM56: 0 | DN56: 0 | DO56: 0 | DP56: 0 | DQ56: 0 | DR56: 0 | DS56: 0 | DT56: 0 | DU56: 0 | DV56: 0 | DW56: 0 | DX56: 1 | DY56: 6 | DZ56: 6 | EA56: 1 | EB56: 1 | EC56: 2 | ED56: 0 | EE56: 0 | EF56: 0 | EG56: 0 | EH56: 0 | EI56: 0 | EJ56: 0 | EK56: 1 | EL56: 0 | EM56: 56 | EN56: 4 | EO56: 6 | EP56: 3 | EQ56: 2 | ER56: 0 | ES56: 0 | ET56: 64 | EU56: 0 | EV56: 0 | EW56: 0 | EX56: 0 | EY56: 0 | EZ56: 0 | FA56: 0 | FB56: 0 | FC56: 0 | FD56: 0 | FE56: 0 | FF56: 0 | FG56: 0 | FH56: 0 | FI56: 0 | FJ56: 0 | FK56: 0 | FL56: 0 | FM56: 0 | FN56: 0 | FO56: 0 | FP56: 0 | FQ56: 0 | FR56: 0 | FS56: 0 | FT56: 1 | FU56: 0 | FV56: 0 | FW56: 0 | FX56: 0 | FY56: 0 | FZ56: 0 | GA56: 0 | GB56: 0 | GC56: 0 | GD56: 0 | GE56: 0 | GF56: 0 | GG56: 0 | GH56: 0 | GI56: 0 | GJ56: 0 | GK56: 0 | GL56: 0 | GM56: 0 | GN56: 0 | GO56: 0 | GP56: 0 | GQ56: 0 | GR56: 0 | GS56: 0 | GT56: 0 | GU56: 0 | GV56: 0 | GW56: 0 | GX56: 0 | GY56: 0 | GZ56: 0 | HA56: 0 | HB56: 0 | HC56: 0 | HD56: 0 | HE56: 42 | HF56: 45 | HG56: 45 | HH56: 56 | HI56: 60 | HJ56: 3 | HK56: 12 | HL56: 14 | HM56: 0 | HN56: 0 | HO56: 0 | HP56: 0 | HQ56: 0 | HR56: 0 | HS56: 67 | HT56: 4 | HU56: 1 | HV56: 3 | HW56: 1 | HX56: 0 | HY56: 0 | HZ56: 0 | IA56: 0 | IB56: 0 | IC56: 0 | ID56: 67 | IE56: 2 | IF56: 2 | IG56: 1 | IH56: 1 | II56: 0 | IJ56: 0 | IK56: 0 | IL56: 58 | IM56: 7 | IN56: 8 | IO56: 11 | IP56: 9 | IQ56: 7 | IR56: 9 | IS56: 11 | IT56: 8 | IU56: 16 | IV56: 8 | IW56: 1 | IX56: 0 | IY56: 0 | IZ56: 0 | JA56: 0 | JB56: 59 | JC56: 5 | JD56: 1 | JE56: 3 | JF56: 1 | JG56: 0 | JH56: 0 | JI56: 1 | JJ56: 1 | JK56: 0 | JL56: 0 | JM56: 0 | JN56: 0 | JO56: 0 | JP56: 0 | JQ56: 0 | JR56: 0 | JS56: 0 | JT56: 0 | JU56: 67 | JV56: 4 | JW56: 2 | JX56: 6 | JY56: 2 | JZ56: 1 | KA56: 3 | KB56: 3 | KC56: 1 | KD56: 1 | KE56: 67 | KF56: 4 | KG56: 2 | KH56: 6 | KI56: 3 | KJ56: 1 | KK56: 3 | KL56: 0 | KM56: 65 | KN56: 2 | KO56: 1 | KP56: 0 | KQ56: 0 | KR56: 0 | KS56: 0 | KT56: 1 | KU56: 2 | KV56: 1 | KW56: 0 | KX56: 0 | KY56: 0 | KZ56: 0 | LA56: 16 | LB56: 8 | LC56: 2 | LD56: 0 | LE56: 0 | LF56: 0 | LG56: 0 | LH56: 0 | LI56: 0 | LJ56: 4 | LK56: 1 | LL56: 0 | LM56: 0 | LN56: 0 | LO56: 8 | LP56: 8 | LQ56: 8 | LR56: 6 | LS56: 3 | LT56: 1 | LU56: 0 | LV56: 0 | LW56: 0 | LX56: 0 | LY56: 0 | LZ56: 0 | MA56: 0 | MB56: 0 | MC56: 0 | MD56: 0 | ME56: 0 | MF56: 0 | MG56: 0 | MH56: 0 | MI56: 0 | MJ56: 0 | MK56: 0 | ML56: 0 | MM56: 0 | MN56: 0 | MO56: 0 | MP56: 0 | MQ56: 0 | MR56: 0 | MS56: 0 | MT56: 0 | MU56: 0 | MV56: 0 | MW56: 1 | MX56: 2 | MY56: 0 | MZ56: 0 | NA56: 0 | NB56: 3 | NC56: 7 | ND56: 8 | NE56: 2 | NF56: 1 | NG56: 1 | NH56: 0 | NI56: 0 | NJ56: 0 | NK56: 0 | NL56: 0 | NM56: 0 | NN56: 0 | NO56: 0 | NP56: 0 | NQ56: 0 | NR56: 0 | NS56: 0 | NT56: 0 | NU56: 0 | NV56: 0 | NW56: 0 | NX56: 0 | NY56: 0 | NZ56: 0 | OA56: 0 | OB56: 0 | OC56: 12 | OD56: 1 | OE56: 0 | OF56: 12 | OG56: 8 | OH56: 0 | OI56: 4 | OJ56: 7 | OK56: 0 | OL56: 6 | OM56: 7 | ON56: 0 | OO56: 9 | OP56: 2 | OQ56: 0 | OR56: 5 | OS56: 4 | OT56: 0 | OU56: 5 | OV56: 1 | OW56: 0 | OX56: 2 | OY56: 1 | OZ56: 0 | PA56: 1 | PB56: 4 | PC56: 0 | PD56: 2 | PE56: 0 | PF56: 0 | PG56: 0 | PH56: 0 | PI56: 0 | PJ56: 0 | PK56: 0 | PL56: 0 | PM56: 0 | PN56: 17 | PO56: 3 | PP56: 3 | PQ56: 3 | PR56: 0 | PS56: 0 | PT56: 0 | PU56: 0 | PV56: 0 | PW56: 0 | PX56: 0 | PY56: 0 | PZ56: 0 | QA56: 0 | QB56: 0 | QC56: =SUM(QC52:QC55) -> 1,748 | QE56: =SUM(QE52:QE55) -> 3.0 | QF56: =SUM(QF52:QF55) -> 18.0 | QG56: =SUM(QG52:QG55) -> 180.0 | QH56: =SUM(QH52:QH55) -> 132.0 | QI56: =SUM(QI52:QI55) -> 157.0 | QJ56: =SUM(QJ52:QJ55) -> 153.0 | QK56: =SUM(QK52:QK55) -> 1.0 | QL56: =SUM(QL52:QL55) -> 0.0 | QM56: =SUM(QM52:QM55) -> 87.0 | QN56: =SUM(QN52:QN55) -> 190.0 | QO56: =SUM(QO52:QO55) -> 0.0 | QP56: 149.0 | QQ56: =SUM(QQ52:QQ55) -> 153.0 | QR56: =SUM(QR52:QR55) -> 71.0 | QS56: =SUM(QS52:QS55) -> 90.0 | QT56: =SUM(QT52:QT55) -> 154.0 | QU56: =SUM(QU52:QU55) -> 69.0 | QV56: =SUM(QV52:QV55) -> 25.0 | QW56: =SUM(QW52:QW55) -> 0.0 | QX56: =SUM(QX52:QX55) -> 0.0 | QY56: =SUM(QY52:QY55) -> 0.0 | QZ56: =SUM(QZ52:QZ55) -> 0.0 | RA56: =SUM(RA52:RA55) -> 0.0 | RB56: 0.0 | RC56: =SUM(RC52:RC55) -> 0.0 | RD56: 0.0 | RE56: =SUM(RE52:RE55) -> 0.0 | RF56: =SUM(RF52:RF55) -> 93.0 | RG56: =SUM(RG52:RG55) -> 0.0 | RH56: =SUM(RH52:RH55) -> 0.0 | RI56: =SUM(RI52:RI55) -> 0.0 | RJ56: =SUM(RJ52:RJ55) -> 23.0 | RK56: 3.0 | RL56: =SUM(RL52:RL55) -> 0.0 | RM56: 0.0 | RN56: 0 | RO56: 0 | RP56: 0 | RQ56: =SUM(RQ52:RQ55) -> 0.0 | RR56: =SUM(RR52:RR55) -> 0.0 | RS56: =SUM(RS52:RS55) -> 0.0 | RT56: =SUM(RT52:RT55) -> 0.0 | RU56: =SUM(RU52:RU55) -> 0.0 | RV56: =SUM(RV52:RV55) -> 0.0 | RW56: 1,725.0 | RX56: =+SR56+RW61+SE56+'2_MERCADO_PRIVADO'!TA56 -> 59 | RY56: 0 | RZ56: 4 | SA56: 0 | SB56: 5 | SC56: 39 | SD56: 0 | SE56: 48 | SN56: 2 | SU56: =SUM(SU52:SU55) -> 0 | SV56: 2 | SW56: 0 | SX56: 0 | SY56: 0 | TQ56: =M56+DH56+'2_MERCADO_PRIVADO'!BW56+'2_MERCADO_PRIVADO'!G56 -> 56 | TR56: =DH56+'2_MERCADO_PRIVADO'!AP56+'2_MERCADO_PRIVADO'!BW56 -> 56 | TS56: =BR56+'2_MERCADO_PRIVADO'!AP56+'2_MERCADO_PRIVADO'!BW56+'2_MERCADO_PRIVADO'!DD56 -> 57 | TT56: =CH56+CX56+'2_MERCADO_PRIVADO'!BF56+'2_MERCADO_PRIVADO'!CM56+'2_MERCADO_PRIVADO'!DT56 -> 56 | TU56: =CO56+DE56+'2_MERCADO_PRIVADO'!BM56+'2_MERCADO_PRIVADO'!CT56+'2_MERCADO_PRIVADO'!EA56 -> 65
D57: INDIGENA | E57: 0 | F57: 1 | G57: 2 | H57: 0 | I57: 0 | J57: 0 | K57: 0 | L57: 0 | M57: 0 | N57: 0 | O57: 2 | P57: 3 | Q57: 0 | R57: 0 | S57: 0 | T57: 0 | U57: 0 | V57: 0 | W57: 0 | X57: 0 | Y57: 0 | Z57: 0 | AA57: 1 | AB57: 0 | AC57: 0 | AD57: 0 | AE57: 0 | AF57: 0 | AG57: 0 | AH57: 0 | AI57: 0 | AJ57: 0 | AK57: 0 | AL57: 0 | AM57: 0 | AN57: 0 | AO57: 0 | AP57: 0 | AQ57: 0 | AR57: 0 | AS57: 0 | AT57: 0 | AU57: 0 | AV57: 0 | AW57: 0 | AX57: 0 | AY57: 0 | AZ57: 0 | BA57: 0 | BB57: 0 | BC57: 0 | BD57: 0 | BE57: 0 | BF57: 0 | BG57: 0 | BH57: 0 | BI57: 0 | BJ57: 0 | BK57: 0 | BL57: 0 | BM57: 0 | BN57: 0 | BO57: 0 | BP57: 1 | BQ57: 5 | BR57: 3 | BS57: 0 | BT57: 2 | BU57: 3 | BV57: 0 | BW57: 0 | BX57: 0 | BY57: 0 | BZ57: 0 | CA57: 0 | CB57: 0 | CC57: 0 | CD57: 0 | CE57: 0 | CF57: 1 | CG57: 0 | CH57: 0 | CI57: 0 | CJ57: 0 | CK57: 0 | CL57: 0 | CM57: 0 | CN57: 0 | CO57: 0 | CP57: 0 | CQ57: 0 | CR57: 0 | CS57: 0 | CT57: 0 | CU57: 0 | CV57: 0 | CW57: 0 | CX57: 4 | CY57: 1 | CZ57: 0 | DA57: 0 | DB57: 0 | DC57: 0 | DD57: 0 | DE57: 4 | DF57: 2 | DG57: 5 | DH57: 2 | DI57: 0 | DJ57: 0 | DK57: 0 | DL57: 0 | DM57: 0 | DN57: 0 | DO57: 0 | DP57: 0 | DQ57: 0 | DR57: 0 | DS57: 0 | DT57: 0 | DU57: 0 | DV57: 0 | DW57: 0 | DX57: 1 | DY57: 1 | DZ57: 3 | EA57: 0 | EB57: 0 | EC57: 0 | ED57: 0 | EE57: 0 | EF57: 0 | EG57: 0 | EH57: 0 | EI57: 0 | EJ57: 0 | EK57: 1 | EL57: 0 | EM57: 4 | EN57: 1 | EO57: 0 | EP57: 0 | EQ57: 0 | ER57: 0 | ES57: 0 | ET57: 4 | EU57: 0 | EV57: 0 | EW57: 0 | EX57: 0 | EY57: 0 | EZ57: 0 | FA57: 0 | FB57: 0 | FC57: 0 | FD57: 0 | FE57: 0 | FF57: 0 | FG57: 0 | FH57: 0 | FI57: 0 | FJ57: 0 | FK57: 0 | FL57: 0 | FM57: 0 | FN57: 0 | FO57: 0 | FP57: 0 | FQ57: 0 | FR57: 0 | FS57: 0 | FT57: 0 | FU57: 0 | FV57: 0 | FW57: 0 | FX57: 0 | FY57: 0 | FZ57: 0 | GA57: 0 | GB57: 0 | GC57: 0 | GD57: 0 | GE57: 0 | GF57: 0 | GG57: 0 | GH57: 0 | GI57: 0 | GJ57: 0 | GK57: 0 | GL57: 0 | GM57: 0 | GN57: 0 | GO57: 0 | GP57: 0 | GQ57: 0 | GR57: 0 | GS57: 0 | GT57: 0 | GU57: 0 | GV57: 0 | GW57: 0 | GX57: 0 | GY57: 0 | GZ57: 0 | HA57: 0 | HB57: 0 | HC57: 0 | HD57: 0 | HE57: 1 | HF57: 1 | HG57: 1 | HH57: 4 | HI57: 3 | HJ57: 1 | HK57: 1 | HL57: 0 | HM57: 0 | HN57: 0 | HO57: 0 | HP57: 0 | HQ57: 0 | HR57: 0 | HS57: 4 | HT57: 0 | HU57: 0 | HV57: 0 | HW57: 0 | HX57: 0 | HY57: 0 | HZ57: 0 | IA57: 0 | IB57: 0 | IC57: 0 | ID57: 5 | IE57: 1 | IF57: 0 | IG57: 0 | IH57: 0 | II57: 0 | IJ57: 0 | IK57: 0 | IL57: 5 | IM57: 0 | IN57: 0 | IO57: 1 | IP57: 1 | IQ57: 0 | IR57: 0 | IS57: 0 | IT57: 1 | IU57: 1 | IV57: 2 | IW57: 0 | IX57: 0 | IY57: 0 | IZ57: 0 | JA57: 0 | JB57: 4 | JC57: 0 | JD57: 0 | JE57: 0 | JF57: 0 | JG57: 0 | JH57: 0 | JI57: 0 | JJ57: 0 | JK57: 0 | JL57: 0 | JM57: 0 | JN57: 0 | JO57: 0 | JP57: 0 | JQ57: 0 | JR57: 0 | JS57: 0 | JT57: 0 | JU57: 4 | JV57: 0 | JW57: 0 | JX57: 0 | JY57: 0 | JZ57: 0 | KA57: 0 | KB57: 0 | KC57: 0 | KD57: 0 | KE57: 4 | KF57: 0 | KG57: 0 | KH57: 0 | KI57: 0 | KJ57: 0 | KK57: 0 | KL57: 0 | KM57: 5 | KN57: 1 | KO57: 0 | KP57: 0 | KQ57: 0 | KR57: 0 | KS57: 0 | KT57: 0 | KU57: 0 | KV57: 0 | KW57: 0 | KX57: 0 | KY57: 0 | KZ57: 0 | LA57: 0 | LB57: 0 | LC57: 0 | LD57: 0 | LE57: 0 | LF57: 0 | LG57: 0 | LH57: 0 | LI57: 0 | LJ57: 0 | LK57: 0 | LL57: 0 | LM57: 0 | LN57: 0 | LO57: 0 | LP57: 0 | LQ57: 0 | LR57: 0 | LS57: 0 | LT57: 0 | LU57: 0 | LV57: 0 | LW57: 0 | LX57: 0 | LY57: 0 | LZ57: 0 | MA57: 0 | MB57: 0 | MC57: 0 | MD57: 0 | ME57: 0 | MF57: 0 | MG57: 0 | MH57: 0 | MI57: 0 | MJ57: 0 | MK57: 0 | ML57: 0 | MM57: 0 | MN57: 0 | MO57: 0 | MP57: 0 | MQ57: 0 | MR57: 0 | MS57: 0 | MT57: 0 | MU57: 0 | MV57: 0 | MW57: 1 | MX57: 0 | MY57: 0 | MZ57: 0 | NA57: 0 | NB57: 0 | NC57: 0 | ND57: 0 | NE57: 0 | NF57: 0 | NG57: 0 | NH57: 0 | NI57: 0 | NJ57: 0 | NK57: 0 | NL57: 0 | NM57: 0 | NN57: 0 | NO57: 0 | NP57: 0 | NQ57: 0 | NR57: 0 | NS57: 0 | NT57: 0 | NU57: 0 | NV57: 0 | NW57: 0 | NX57: 0 | NY57: 0 | NZ57: 0 | OA57: 0 | OB57: 0 | OC57: 0 | OD57: 0 | OE57: 0 | OF57: 1 | OG57: 0 | OH57: 0 | OI57: 1 | OJ57: 1 | OK57: 0 | OL57: 1 | OM57: 0 | ON57: 0 | OO57: 1 | OP57: 0 | OQ57: 0 | OR57: 0 | OS57: 0 | OT57: 0 | OU57: 0 | OV57: 0 | OW57: 0 | OX57: 0 | OY57: 0 | OZ57: 0 | PA57: 0 | PB57: 0 | PC57: 0 | PD57: 0 | PE57: 0 | PF57: 0 | PG57: 0 | PH57: 0 | PI57: 0 | PJ57: 0 | PK57: 0 | PL57: 0 | PM57: 0 | PN57: 0 | PO57: 0 | PP57: 0 | PQ57: 0 | PR57: 0 | PS57: 0 | PT57: 0 | PU57: 0 | PV57: 0 | PW57: 0 | PX57: 0 | PY57: 0 | PZ57: 0 | QA57: 0 | QB57: 0 | QC57: =SUM(E57:QB57)-SUM(PQ57:PT57)-SUM(PW57:PZ57) -> 114 | QE57: =SUM(E57:H57) -> 3.0 | QF57: =SUM(I57:BO57) -> 6.0 | QG57: =SUM(BP57:CW57) -> 15.0 | QH57: =SUM(CX57:DE57) -> 9.0 | QI57: =SUM(DF57:DT57) -> 9.0 | QJ57: =SUM(DU57:ET57) -> 15.0 | QK57: =SUM(EU57:FY57) -> 0.0 | QL57: =SUM(FZ57:HD57) -> 0.0 | QM57: =SUM(HE57:HF57) -> 2.0 | QN57: =SUM(HG57:HL57) -> 10.0 | QO57: =SUM(HM57:HR57) -> 0.0 | QP57: =SUM(HS57:IJ57) -> 10.0 | QQ57: =SUM(IK57:JA57) -> 11.0 | QR57: =SUM(JB57:JT57) -> 4.0 | QS57: =SUM(JU57:KD57) -> 4.0 | QT57: =SUM(KE57:KP57) -> 10.0 | QU57: =SUM(KQ57:MU57) -> 0.0 | QV57: =SUM(MV57:NG57) -> 1.0 | QW57: =SUM(NH57:NI57) -> 0.0 | QX57: =SUM(NJ57:NL57) -> 0.0 | QY57: =SUM(NM57:NO57) -> 0.0 | QZ57: =SUM(NP57) -> 0.0 | RA57: =SUM(NQ57) -> 0.0 | RB57: =SUM(NR57:NT57) -> 0.0 | RC57: =SUM(NU57) -> 0.0 | RD57: =SUM(NV57) -> 0.0 | RE57: =SUM(NW57:OB57) -> 0.0 | RF57: =SUM(OC57:PE57) -> 5.0 | RG57: =SUM(PF57:PG57) -> 0.0 | RH57: =SUM(PH57:PI57) -> 0.0 | RI57: =SUM(PJ57:PM57) -> 0.0 | RJ57: =SUM(PN57:PP57) -> 0.0 | RK57: =SUM(PQ57) -> 0.0 | RL57: =SUM(PR57) -> 0.0 | RM57: =SUM(PS57) -> 0.0 | RN57: 0 | RO57: 0 | RP57: 0 | RQ57: =SUM(PW57) -> 0.0 | RR57: =SUM(PX57) -> 0.0 | RS57: =SUM(PY57) -> 0.0 | RT57: =SUM(PZ57) -> 0.0 | RU57: =SUM(QA57) -> 0.0 | RV57: =SUM(QB57) -> 0.0 | RW57: =SUM(QE57:RU57)-SUM(RI57:RM57)-SUM(RQ57:RT57) -> 114.0 | RX57: =+SR57+RW62+SE57+'2_MERCADO_PRIVADO'!TA57 -> 1601 | RY57: 0 | RZ57: 0 | SA57: 0 | SB57: 1 | SC57: 0 | SD57: 0 | SE57: 1 | SN57: 0 | SU57: =SF57+SG57 -> 0 | SV57: =SH57+SI57+SJ57+SK57+SL57+SM57+SN57+SO57+SP57 -> 0 | SW57: =SQ57 -> 0 | SX57: =SR57 -> 0 | SY57: =SS57 -> 0 | TQ57: =M57+DH57+'2_MERCADO_PRIVADO'!BW57+'2_MERCADO_PRIVADO'!G57 -> 2 | TR57: =DH57+'2_MERCADO_PRIVADO'!AP57+'2_MERCADO_PRIVADO'!BW57 -> 2 | TS57: =BR57+'2_MERCADO_PRIVADO'!AP57+'2_MERCADO_PRIVADO'!BW57+'2_MERCADO_PRIVADO'!DD57 -> 3 | TT57: =CH57+CX57+'2_MERCADO_PRIVADO'!BF57+'2_MERCADO_PRIVADO'!CM57+'2_MERCADO_PRIVADO'!DT57 -> 4 | TU57: =CO57+DE57+'2_MERCADO_PRIVADO'!BM57+'2_MERCADO_PRIVADO'!CT57+'2_MERCADO_PRIVADO'!EA57 -> 4
D58: ROM (GITANO) | E58: 0 | F58: 0 | G58: 0 | H58: 0 | I58: 0 | J58: 0 | K58: 0 | L58: 0 | M58: 0 | N58: 0 | O58: 0 | P58: 0 | Q58: 0 | R58: 0 | S58: 0 | T58: 0 | U58: 0 | V58: 0 | W58: 0 | X58: 0 | Y58: 0 | Z58: 0 | AA58: 0 | AB58: 0 | AC58: 0 | AD58: 0 | AE58: 0 | AF58: 0 | AG58: 0 | AH58: 0 | AI58: 0 | AJ58: 0 | AK58: 0 | AL58: 0 | AM58: 0 | AN58: 0 | AO58: 0 | AP58: 0 | AQ58: 0 | AR58: 0 | AS58: 0 | AT58: 0 | AU58: 0 | AV58: 0 | AW58: 0 | AX58: 0 | AY58: 0 | AZ58: 0 | BA58: 0 | BB58: 0 | BC58: 0 | BD58: 0 | BE58: 0 | BF58: 0 | BG58: 0 | BH58: 0 | BI58: 0 | BJ58: 0 | BK58: 0 | BL58: 0 | BM58: 0 | BN58: 0 | BO58: 0 | BP58: 0 | BQ58: 0 | BR58: 0 | BS58: 0 | BT58: 0 | BU58: 0 | BV58: 0 | BW58: 0 | BX58: 0 | BY58: 0 | BZ58: 0 | CA58: 0 | CB58: 0 | CC58: 0 | CD58: 0 | CE58: 0 | CF58: 0 | CG58: 0 | CH58: 0 | CI58: 0 | CJ58: 0 | CK58: 0 | CL58: 0 | CM58: 0 | CN58: 0 | CO58: 0 | CP58: 0 | CQ58: 0 | CR58: 0 | CS58: 0 | CT58: 0 | CU58: 0 | CV58: 0 | CW58: 0 | CX58: 0 | CY58: 0 | CZ58: 0 | DA58: 0 | DB58: 0 | DC58: 0 | DD58: 0 | DE58: 0 | DF58: 0 | DG58: 0 | DH58: 0 | DI58: 0 | DJ58: 0 | DK58: 0 | DL58: 0 | DM58: 0 | DN58: 0 | DO58: 0 | DP58: 0 | DQ58: 0 | DR58: 0 | DS58: 0 | DT58: 0 | DU58: 0 | DV58: 0 | DW58: 0 | DX58: 0 | DY58: 0 | DZ58: 0 | EA58: 0 | EB58: 0 | EC58: 0 | ED58: 0 | EE58: 0 | EF58: 0 | EG58: 0 | EH58: 0 | EI58: 0 | EJ58: 0 | EK58: 0 | EL58: 0 | EM58: 0 | EN58: 0 | EO58: 0 | EP58: 0 | EQ58: 0 | ER58: 0 | ES58: 0 | ET58: 0 | EU58: 0 | EV58: 0 | EW58: 0 | EX58: 0 | EY58: 0 | EZ58: 0 | FA58: 0 | FB58: 0 | FC58: 0 | FD58: 0 | FE58: 0 | FF58: 0 | FG58: 0 | FH58: 0 | FI58: 0 | FJ58: 0 | FK58: 0 | FL58: 0 | FM58: 0 | FN58: 0 | FO58: 0 | FP58: 0 | FQ58: 0 | FR58: 0 | FS58: 0 | FT58: 0 | FU58: 0 | FV58: 0 | FW58: 0 | FX58: 0 | FY58: 0 | FZ58: 0 | GA58: 0 | GB58: 0 | GC58: 0 | GD58: 0 | GE58: 0 | GF58: 0 | GG58: 0 | GH58: 0 | GI58: 0 | GJ58: 0 | GK58: 0 | GL58: 0 | GM58: 0 | GN58: 0 | GO58: 0 | GP58: 0 | GQ58: 0 | GR58: 0 | GS58: 0 | GT58: 0 | GU58: 0 | GV58: 0 | GW58: 0 | GX58: 0 | GY58: 0 | GZ58: 0 | HA58: 0 | HB58: 0 | HC58: 0 | HD58: 0 | HE58: 0 | HF58: 0 | HG58: 0 | HH58: 0 | HI58: 0 | HJ58: 0 | HK58: 0 | HL58: 0 | HM58: 0 | HN58: 0 | HO58: 0 | HP58: 0 | HQ58: 0 | HR58: 0 | HS58: 0 | HT58: 0 | HU58: 0 | HV58: 0 | HW58: 0 | HX58: 0 | HY58: 0 | HZ58: 0 | IA58: 0 | IB58: 0 | IC58: 0 | ID58: 0 | IE58: 0 | IF58: 0 | IG58: 0 | IH58: 0 | II58: 0 | IJ58: 0 | IK58: 0 | IL58: 0 | IM58: 0 | IN58: 0 | IO58: 0 | IP58: 0 | IQ58: 0 | IR58: 0 | IS58: 0 | IT58: 0 | IU58: 0 | IV58: 0 | IW58: 0 | IX58: 0 | IY58: 0 | IZ58: 0 | JA58: 0 | JB58: 0 | JC58: 0 | JD58: 0 | JE58: 0 | JF58: 0 | JG58: 0 | JH58: 0 | JI58: 0 | JJ58: 0 | JK58: 0 | JL58: 0 | JM58: 0 | JN58: 0 | JO58: 0 | JP58: 0 | JQ58: 0 | JR58: 0 | JS58: 0 | JT58: 0 | JU58: 0 | JV58: 0 | JW58: 0 | JX58: 0 | JY58: 0 | JZ58: 0 | KA58: 0 | KB58: 0 | KC58: 0 | KD58: 0 | KE58: 0 | KF58: 0 | KG58: 0 | KH58: 0 | KI58: 0 | KJ58: 0 | KK58: 0 | KL58: 0 | KM58: 0 | KN58: 0 | KO58: 0 | KP58: 0 | KQ58: 0 | KR58: 0 | KS58: 0 | KT58: 0 | KU58: 0 | KV58: 0 | KW58: 0 | KX58: 0 | KY58: 0 | KZ58: 0 | LA58: 0 | LB58: 0 | LC58: 0 | LD58: 0 | LE58: 0 | LF58: 0 | LG58: 0 | LH58: 0 | LI58: 0 | LJ58: 0 | LK58: 0 | LL58: 0 | LM58: 0 | LN58: 0 | LO58: 0 | LP58: 0 | LQ58: 0 | LR58: 0 | LS58: 0 | LT58: 0 | LU58: 0 | LV58: 0 | LW58: 0 | LX58: 0 | LY58: 0 | LZ58: 0 | MA58: 0 | MB58: 0 | MC58: 0 | MD58: 0 | ME58: 0 | MF58: 0 | MG58: 0 | MH58: 0 | MI58: 0 | MJ58: 0 | MK58: 0 | ML58: 0 | MM58: 0 | MN58: 0 | MO58: 0 | MP58: 0 | MQ58: 0 | MR58: 0 | MS58: 0 | MT58: 0 | MU58: 0 | MV58: 0 | MW58: 0 | MX58: 0 | MY58: 0 | MZ58: 0 | NA58: 0 | NB58: 0 | NC58: 0 | ND58: 0 | NE58: 0 | NF58: 0 | NG58: 0 | NH58: 0 | NI58: 0 | NJ58: 0 | NK58: 0 | NL58: 0 | NM58: 0 | NN58: 0 | NO58: 0 | NP58: 0 | NQ58: 0 | NR58: 0 | NS58: 0 | NT58: 0 | NU58: 0 | NV58: 0 | NW58: 0 | NX58: 0 | NY58: 0 | NZ58: 0 | OA58: 0 | OB58: 0 | OC58: 0 | OD58: 0 | OE58: 0 | OF58: 0 | OG58: 0 | OH58: 0 | OI58: 0 | OJ58: 0 | OK58: 0 | OL58: 0 | OM58: 0 | ON58: 0 | OO58: 0 | OP58: 0 | OQ58: 0 | OR58: 0 | OS58: 0 | OT58: 0 | OU58: 0 | OV58: 0 | OW58: 0 | OX58: 0 | OY58: 0 | OZ58: 0 | PA58: 0 | PB58: 0 | PC58: 0 | PD58: 0 | PE58: 0 | PF58: 0 | PG58: 0 | PH58: 0 | PI58: 0 | PJ58: 0 | PK58: 0 | PL58: 0 | PM58: 0 | PN58: 0 | PO58: 0 | PP58: 0 | PQ58: 0 | PR58: 0 | PS58: 0 | PT58: 0 | PU58: 0 | PV58: 0 | PW58: 0 | PX58: 0 | PY58: 0 | PZ58: 0 | QA58: 0 | QB58: 0 | QC58: 0 | QE58: 0.0 | QF58: 0.0 | QG58: 0.0 | QH58: 0.0 | QI58: 0.0 | QJ58: 0.0 | QK58: 0.0 | QL58: 0.0 | QM58: 0.0 | QN58: 0.0 | QO58: 0.0 | QP58: 0.0 | QQ58: 0.0 | QR58: 0.0 | QS58: 0.0 | QT58: 0.0 | QU58: 0.0 | QV58: 0.0 | QW58: 0.0 | QX58: 0.0 | QY58: 0.0 | QZ58: 0.0 | RA58: 0.0 | RB58: 0.0 | RC58: 0.0 | RD58: 0.0 | RE58: 0.0 | RF58: 0.0 | RG58: 0.0 | RH58: 0.0 | RI58: 0.0 | RJ58: 0.0 | RK58: 0.0 | RL58: 0.0 | RM58: 0.0 | RN58: 0 | RO58: 0 | RP58: 0 | RQ58: 0.0 | RR58: 0.0 | RS58: 0.0 | RT58: 0.0 | RU58: 0.0 | RV58: 0.0 | RW58: 0.0 | RX58: =+SR58+RW63+SE58+'2_MERCADO_PRIVADO'!TA58 -> 1725 | RY58: 0 | RZ58: 0 | SA58: 0 | SB58: 0 | SC58: 0 | SD58: 0 | SE58: 0 | SN58: 0 | SU58: 0 | SV58: 0 | SW58: 0 | SX58: 0 | SY58: 0 | TQ58: =M58+DH58+'2_MERCADO_PRIVADO'!BW58+'2_MERCADO_PRIVADO'!G58 -> 0 | TR58: =DH58+'2_MERCADO_PRIVADO'!AP58+'2_MERCADO_PRIVADO'!BW58 -> 0 | TS58: =BR58+'2_MERCADO_PRIVADO'!AP58+'2_MERCADO_PRIVADO'!BW58+'2_MERCADO_PRIVADO'!DD58 -> 0 | TT58: =CH58+CX58+'2_MERCADO_PRIVADO'!BF58+'2_MERCADO_PRIVADO'!CM58+'2_MERCADO_PRIVADO'!DT58 -> 0 | TU58: =CO58+DE58+'2_MERCADO_PRIVADO'!BM58+'2_MERCADO_PRIVADO'!CT58+'2_MERCADO_PRIVADO'!EA58 -> 0
